Workbook

Sheet Титульный
A1: Базовая комплектация | AY1: 1
A2: 1. Каркас модулей изготовлен из ЛДСП оклеенной кромкой ПВХ 0,4 мм. Задняя стенка модулей из облагороженной ХДФ;
A3: 2. Фасад; | AY3: 1
A4: 3. Петли Hettich Sensys плавного закрывания;
A5: 4. | B5: Полки ЛДСП
A6: 5. Роликовые направляющие в выкатных ящиках тумб и шкафов;
A7: 6. Шариковые направляющие Hafele в выкатном ящике стола туалетного, кровати 2 ящика и тумб с соответствующей пометкой "Шар";
A8: 7. Штанга в шкафах для одежды и шкафах комбинированных;
A9: 8. Регулируемые ножки PI04;
A10: 9. Стекло тонированное в шкафах-витринах;
A11: 10. Крючки FK 009 020 на панелях настенных. (На панелях шириной 400 - 2 крючка, а на панелях шириной 540 - 3 крючка)
A12: 11. Обращаем внимание, что в стоимость мебели ручки не входят! Кроме: кнопка "Латунь" в мебели для гостинной "Альфа" и ручка Скоба 1069, 128 мм. для мебели "Бета". "Сириус" комплектуется ручкой FM-021.
A13: Марго, краткое описание
A14: 1 | B14: Фасад Марого и Марго 16 выполнен из ЛДСП толщиной 16 мм. оклеенной кромкой ПВХ толщиной 1 мм. | AV14: Цвета Марго
A15: 2 | B15: Фасад шкафов витрин и полувитрин - рамочный, из алюминиевого профиля толщиной 21 мм. Стекло - Тонированное | AV15: Дуб шамони темный
A16: 3 | B16: Крышки столов, тумб, комода, стола туалетного, спинки кроватей Марго выполнены из ЛДСП толщиной 22 мм. и оклеенной кромкой ПВХ толщиной 1 мм. | AV16: Дуб шамони светлый
A17: 4 | B17: Сверловка под ручку 160 мм. | AV17: Сонома
A18: 5 | B18: Обращаем Ваше внимание на то, что каркас "Марго" изготавливается только следующих цветов - Капучино, Дуб шамони темный и Дуб шамони светлый, Сонома
A19: 6 | B19: Обращаем Ваше внимание на то, что каркас тумб Марго 16 может изготавливаться в любом цвете ЛДСП за исключением Зеленого лайма и Лаванды. Фасад набора мебели Марго и тумб Марго 16 может изготавливаться в любом цвете ЛДСП согласно классификации цветов фасадов.
A20: 7 | B20: Для фасада Марго и Марго 16 может быть использовано только накладное зеркало.
A21: Классификация цветов фасадов Марго и Марго 16
A22: 1 ценовая категория Марго 16 | K22: 2 ценовая категория Марго 16 | V22: 3 ценовая категория Марго 16 | AH22: 3 ценовая категория Марго 16 | AT22: 4 ценовая категория Марго 16
A23: Антрацит | K23: Бежевый | V23: Сосна Касцина EG | AH23: Зеленый шалфей | AT23: Дуб Галифакс натур-й EG
A24: Белая шагрень+ | K24: Сонома+ | V24: Чикаго серый EG | AH24: Зеленый эвкалипт | AT24: Дуб каселла коричневый
A25: Венге+ | K25: Дуб шамони светлый+ | V25: Чикаго темный EG | AH25: Кашемир серый | AT25: Дуб каселла натуральный
A26: Серый | K26: Выбеленное дерево+ | V26: Хюгге | AT26: Желтый песок
A27: Зеленый лайм+ | K27: Дуб гранж колон-ный+ | V27: Крафт
A28: Черный | K28: Цемент+ | V28: Рейн
A29: Дуб эвок приб-ный + | V29: Дуб барония светлый
A30: Винтаж+ | V30: Дуб Хантон EG
O32: Внимание! Следующие цвета ЛДСП: Лаванда, Бежевый, Серый, Антрацит и Черный кромяться кромкой тощиной 0.4 мм. | AI32: В случае заказа каркаса в цветах не 1-й ц.к., нужно к стоимости каркаса прибавить % соответсвующей категории
AI33: 2 ц.к. - 10% | AP33: 4 ц.к. - 80%
AI34: 3 ц.к. - 40%
A36: Классификация цветов фасадов МДФ в пленке ПВХ
A38: 1 ценовая категория
A39: Древесные матовые | I39: Сандал белый, Дуб Венге, Дуб Сонома, Кремовый Ясень, Ель сизая, Крымское дерево, Дримвуд Латте, Софора канзати, Софора давиди, Карельская береза, Снежное дерево, Миндаль
A40: Однотонные матовые | I40: Черные цветы, Белая матовая, Моти, Макарун
A42: 2 ценовая категория
A43: Супер матовые | I43: Графит, Шафран, Тирамиссу, Пикрит, Керамик, Миррис, Пудра, Риолит, Базальт, Магнолия, Рубелит, Селенит, Нефрит, Обсидиан
A44: Древесные матовые | I44: Белая сосна, Оливковое дерево, Лазурное дерево, Дуб филадельфия, Сосна фактурная, Зеленый патина белая, Стоун, Тис, Квазар, Темное дерево
A45: Однотонные глянцевые | I45: Белый металлик, Ваниль металлик, Белый глянец, Черный глянец, Латте, Макиотти глянец
A48: 3 ценовая категория
A49: Древесные матовые | I49: Вяз седой, Томан, Московский ясень
A50: Супер матовые | I50: ,Авери, Шелк аметист, Желтый пик, Космический оранжевый
A51: Фантазийные | I51: Камень гранж светлый Бруклин
A52: ВНИМАНИЕ!!! Возможны незначительные изменения в тональности пленки ПВХ (2-3 тона), что не является браком
A54: Таблица зависимости цвета внутренней стороны фасада от цвета пленки ПВХ:
A57: Пленка ПВХ | H57: Обратная сторона | P57: Пленка ПВХ | W57: Обратная сторона | AE57: Пленка ПВХ | AL57: Обратная сторона
A58: Платан глянец | H58: Белая | P58: Серебрянный дождь | W58: Белая | AE58: Ярко-зеленый мет | AL58: Белая
A59: Каштан золотистый | H59: Белая | P59: Черный глянец | W59: Белая | AE59: Кожа крокодила | AL59: Белая
A60: Тик | H60: Белая | P60: Желтый глянец | W60: Белая | AE60: Черные цветы | AL60: Белая
A61: Яблоня Тадж | H61: Белая | P61: Белый глянец | W61: Белая | AE61: Шелк Аметист | AL61: Белая
A62: Дуб сокальский | H62: Белая | P62: Ваниль глянец | W62: Белая | AE62: Шелк Крем | AL62: Белая
A63: Миндаль | H63: Белая | P63: Серый металлик | W63: Белая | AE63: Бонди металлик | AL63: Белая
A64: Оливковый глянец | H64: Белая | P64: Красный металлик | W64: Белая | AE64: Фиолет | AL64: Белая
A65: Чайное дерево | H65: Белая | P65: Белый металлик | W65: Белая | AE65: Лайм | AL65: Белая
A66: Темный Венге | H66: Белая | P66: Золотой металлик | W66: Белая | AE66: Индиго | AL66: Белая
A67: Вяз седой | H67: Белая | P67: Хамелеон коричневый | W67: Белая | AE67: Базилик | AL67: Белая
A68: Сандал белый | H68: Белая | P68: Фиолетовый мет | W68: Белая | AE68: Графит | AL68: Белая
A69: Дуб солнечный | H69: Белая | P69: Черный металлик | W69: Белая | AE69: Шафран | AL69: Белая
A70: Дуб беленый | H70: Белая | P70: Оранжевый мет | W70: Белая | AE70: Венге глянец | AL70: Белая
A71: Бордо глянец | H71: Белая | P71: Салатовый мет | W71: Белая | AE71: Латте | AL71: Белая
A72: Кремовый ясень | H72: Белая | P72: Огни Нью-Йорка | W72: Белая | AE72: Гранат металлик | AL72: Белая
A73: Патина Радиал | H73: Белая | P73: Цветы | W73: Белая
A74: Дуб сонома | H74: Белая | P74: Жемчужное дерево | W74: Белая
A75: Ель сизая | H75: Белая | P75: Крымское дерево | W75: Белая
A76: Гриджио/Крема Вен | H76: Белая | P76: Шоколад | W76: Белая
A77: Цветовое исполнение каркасов
A78: Белый, Серый, Венге, Бежевый, Выбеленное дерево, Капучино, Дуб шамони темный, Дуб шамони светлый, Сонома, Антрацит
A80: Варианты фрезеровок фасадов с привязкой ручки
A81: Для новой серии модулей разработаны следующие типы фасадов:
B83: Прованс | J83: Вензель цинк, 96мм | V83: Ручка RS407BAB.4 "Вензель латунь" 96мм | AL83: Юлия
J84: =CEILING('Титульный 2'!J79:L79*Титульный!$AY$1,Титульный!$AY$3) -> 101 | M84: руб/шт. | V84: =CEILING('Титульный 2'!V79:X79*Титульный!$AY$1,Титульный!$AY$3) -> 101
J85: Скоба зол/сер 96мм. | V85: Ручка RS408BAZ.4 "Ладья цинк, 96мм
J86: =CEILING('Титульный 2'!J81:L81*Титульный!$AY$1,Титульный!$AY$3) -> 72 | M86: руб/шт. | V86: =CEILING('Титульный 2'!V81:X81*Титульный!$AY$1,Титульный!$AY$3) -> 141 | Y86: руб/шт.
V87: Ручка RS408BAB.4 "Ладья латунь" 96 мм.
M88: руб/шт. | V88: =CEILING('Титульный 2'!V83:X83*Титульный!$AY$1,Титульный!$AY$3) -> 113 | Y88: руб/шт.
J89: Ручка RS-75, антик латунь, 96 мм. | V89: ОФК 747, 96мм Бронза+белый
J90: =CEILING('Титульный 2'!J85:L85*Титульный!$AY$1,Титульный!$AY$3) -> 96 | M90: руб/шт. | V90: =CEILING('Титульный 2'!V85:X85*Титульный!$AY$1,Титульный!$AY$3) -> 150 | Y90: руб/шт.
J91: Ручка Рейлинг 96 | V91: Ручка RS-77, 96 мм.
J92: =CEILING('Титульный 2'!J87:L87*Титульный!$AY$1,Титульный!$AY$3) -> 66 | M92: руб/шт. | V92: =CEILING('Титульный 2'!V87:X87*Титульный!$AY$1,Титульный!$AY$3) -> 83 | Y92: руб/шт.
J93: Ручка 96 (фарфор/узор золото)
J94: =CEILING('Титульный 2'!J89:L89*Титульный!$AY$1,Титульный!$AY$3) -> 81 | M94: руб/шт.
B96: Бриз | F96: Амелия | J96: Марго | V96: Ручка FS-074 "Волна" 160мм | AH96: Ручка RS-47-1 "хром+черный 160 мм
V97: =CEILING('Титульный 2'!V92:X92*Титульный!$AY$1,Титульный!$AY$3) -> 185 | Y97: руб/шт. | AH97: =CEILING('Титульный 2'!AH92:AJ92*Титульный!$AY$1,Титульный!$AY$3) -> 285 | AK97: руб/шт.
V98: Ручка Модерн 160 мм.
V99: =CEILING('Титульный 2'!V94:X94*Титульный!$AY$1,Титульный!$AY$3) -> 215 | Y99: руб/шт.
V100: Ручка FS-040 , 160мм
V101: =CEILING('Титульный 2'!V96:X96*Титульный!$AY$1,Титульный!$AY$3) -> 318 | Y101: руб/шт.
V102: Ручка Рейлинг 160 мм
V103: =CEILING('Титульный 2'!V98:X98*Титульный!$AY$1,Титульный!$AY$3) -> 62 | Y103: руб/шт.
V104: Ручка RS-74 "Бруш" сатин светлый, 160 мм.
V105: =CEILING('Титульный 2'!V100:X100*Титульный!$AY$1,Титульный!$AY$3) -> 168 | Y105: руб/шт.
V106: Ручка RS-47 "хром+белый 160 мм
V107: =CEILING('Титульный 2'!V102:X102*Титульный!$AY$1,Титульный!$AY$3) -> 285 | Y107: руб/шт.
B109: Лаура | F109: Натали | M109: Скоба 224мм | V109: Диана | AC109: Скоба 1069, 128 мм | AN109: Ручка скоба RS-33 128 мм.
M110: =CEILING('Титульный 2'!M105:O105*Титульный!$AY$1,Титульный!$AY$3) -> 155 | P110: руб/шт. | AC110: =CEILING('Титульный 2'!AC105:AE105*Титульный!$AY$1,Титульный!$AY$3) -> 164 | AF110: руб/шт. | AN110: =CEILING('Титульный 2'!AN105:AP105*Титульный!$AY$1,Титульный!$AY$3) -> 188 | AQ110: руб/шт.
M111: Скоба RLB224, 224 мм
M112: =CEILING('Титульный 2'!M107:O107*Титульный!$AY$1,Титульный!$AY$3) -> 155 | P112: руб/шт.
AC113: Ручка FS-111 "Сатин светлый" 128мм.
AC114: =CEILING('Титульный 2'!AC109:AE109*Титульный!$AY$1,Титульный!$AY$3) -> 345 | AF114: руб/шт.
AC115: Ручка скоба RS-52 128 мм.
AC116: =CEILING('Титульный 2'!AC111:AE111*Титульный!$AY$1,Титульный!$AY$3) -> 84 | AF116: руб/шт.
AC117: Ручка скоба RS-56 128 мм.
AC118: =CEILING('Титульный 2'!AC113:AE113*Титульный!$AY$1,Титульный!$AY$3) -> 185 | AF118: руб/шт.
AC119: Ручка скоба "Спираль" 128 мм.
AC120: =CEILING('Титульный 2'!AC115:AE115*Титульный!$AY$1,Титульный!$AY$3) -> 176 | AF120: руб/шт.
B122: Гретта | Z122: Ручка RC404BAZ.4 "Вензель цинк"
J123: =CEILING('Титульный 2'!J118:L118*Титульный!$AY$1,Титульный!$AY$3) -> 301 | M123: руб/шт. | Z123: =CEILING('Титульный 2'!Z118:AB118*Титульный!$AY$1,Титульный!$AY$3) -> 141 | AC123: руб/шт.
Z124: Ручка RC404BAВ.4 "Вензель латунь"
M125: руб/шт. | Z125: =CEILING('Титульный 2'!Z120:AB120*Титульный!$AY$1,Титульный!$AY$3) -> 71 | AC125: руб/шт.
Z126: Ручка RC405BAZ.4 "Ладья цинк"
M127: руб/шт. | Z127: =CEILING('Титульный 2'!Z122:AB122*Титульный!$AY$1,Титульный!$AY$3) -> 24 | AC127: руб/шт.
Z128: Ручка - кнопка (фарфор/узор золото)
M129: руб/шт. | Z129: =CEILING('Титульный 2'!Z124:AB124*Титульный!$AY$1,Титульный!$AY$3) -> 60 | AC129: руб/шт.
J130: Ручка RC405BAB.4 "Ладья латунь"
J131: =CEILING('Титульный 2'!J126:L126*Титульный!$AY$1,Титульный!$AY$3) -> 30 | M131: руб/шт.
J132: RC 052AB.4/w16 Бронза+белый
J133: =CEILING('Титульный 2'!J128:L128*Титульный!$AY$1,Титульный!$AY$3) -> 76 | M133: руб/шт.
A146: Фасады UV-лак
A147: Фасады UV-лак для корпусной мебели могут быть изготовлены, по умолчанию, в кромке ABS и, по желанию, в кромке 3D акриловой 2 в 1.
A151: Белый скандинавский | E151: Желтый Нарцисс | M151: Капучино | AA151: Оранжевый | AG151: Крем | AL151: Серый шелк
A152: ВНИМАНИЕ! | E152: Фасады UV-лак не изготавливаются на шкафы - витрины!
A157: Рекомендуемые ручки:
F158: Ручка FS-074 "Волна" 160мм | T158: Ручка Модерн 160 мм. | AF158: Ручка FS-040 , 160мм | AR158: Ручка Рейлинг 160 мм
F159: =V97 -> 185 | I159: руб/шт. | T159: =V99 -> 215 | W159: руб/шт. | AF159: =V101 -> 318 | AI159: руб/шт. | AR159: =V103 -> 62 | AU159: руб/шт.
E161: Ручка RS-74 "Бруш" сатин светлый, 160 мм. | Y161: Ручка RS-47 "хром+белый 160 мм | AN161: Ручка RS-47-1 "хром+черный 160 мм
E162: =V105 -> 168 | H162: руб/шт. | Y162: =V107 -> 285 | AB162: руб/шт. | AN162: =AH97 -> 285 | AQ162: руб/шт.
A164: Александрия
H165: Максимальная высота шкафов - 2040 мм. В прайс-листе считается по колонке "1ЦК+патина"
H166: Для Вашего удобства мы рекомендуем Вам комплектовать шкафы багетными блоками.
H167: Багетный блок состоит:
V168: 1. Багет 16, запиленный под необходимым углом;
V169: 2. Панель - козырек "Классика"
H172: Все составляющие багетного блока имеют необходимые сверловки для облегчения процесса сборки и правильной
B173: Фасад | H173: стыковки багета.
H174: Наименование | T174: Габариты, ШхГхВ мм. | AA174: Цена, руб.\шт.
AA175: 1 ЦК | AE175: 1 ЦК + патина | AI175: 2 ЦК | AM175: 3 ЦК
H176: Багетный блок 16 (420) 420 | T176: 510х475х86 | AA176: =_xlfn.CEILING.PRECISE('Титульный 2'!AA159:AD159*Титульный!$AY$1,Титульный!$AY$3) -> 1014 | AE176: =_xlfn.CEILING.PRECISE('Титульный 2'!AE159:AH159*Титульный!$AY$1,Титульный!$AY$3) -> 2054 | AI176: =_xlfn.CEILING.PRECISE('Титульный 2'!AI159:AL159*Титульный!$AY$1,Титульный!$AY$3) -> 1174 | AM176: =_xlfn.CEILING.PRECISE('Титульный 2'!AM159:AP159*Титульный!$AY$1,Титульный!$AY$3) -> 1484
H177: Багетный блок 16 (420) 560 | T177: 650х475х86 | AA177: =_xlfn.CEILING.PRECISE('Титульный 2'!AA160:AD160*Титульный!$AY$1,Титульный!$AY$3) -> 1244 | AE177: =_xlfn.CEILING.PRECISE('Титульный 2'!AE160:AH160*Титульный!$AY$1,Титульный!$AY$3) -> 2544 | AI177: =_xlfn.CEILING.PRECISE('Титульный 2'!AI160:AL160*Титульный!$AY$1,Титульный!$AY$3) -> 1434 | AM177: =_xlfn.CEILING.PRECISE('Титульный 2'!AM160:AP160*Титульный!$AY$1,Титульный!$AY$3) -> 1834
A178: Кремовый ясень | H178: Багетный блок 16 (420) 840 | T178: 930х475х86 | AA178: =_xlfn.CEILING.PRECISE('Титульный 2'!AA161:AD161*Титульный!$AY$1,Титульный!$AY$3) -> 1714 | AE178: =_xlfn.CEILING.PRECISE('Титульный 2'!AE161:AH161*Титульный!$AY$1,Титульный!$AY$3) -> 3504 | AI178: =_xlfn.CEILING.PRECISE('Титульный 2'!AI161:AL161*Титульный!$AY$1,Титульный!$AY$3) -> 1984 | AM178: =_xlfn.CEILING.PRECISE('Титульный 2'!AM161:AP161*Титульный!$AY$1,Титульный!$AY$3) -> 2534
A179: с золотой патиной | H179: Багетный блок 16 (420) 1120 | T179: 1210х475х86 | AA179: =_xlfn.CEILING.PRECISE('Титульный 2'!AA162:AD162*Титульный!$AY$1,Титульный!$AY$3) -> 2194 | AE179: =_xlfn.CEILING.PRECISE('Титульный 2'!AE162:AH162*Титульный!$AY$1,Титульный!$AY$3) -> 4484 | AI179: =_xlfn.CEILING.PRECISE('Титульный 2'!AI162:AL162*Титульный!$AY$1,Титульный!$AY$3) -> 2524 | AM179: =_xlfn.CEILING.PRECISE('Титульный 2'!AM162:AP162*Титульный!$AY$1,Титульный!$AY$3) -> 3244
H180: Багетный блок 16 (420) 1260 | T180: 1350х475х86 | AA180: =_xlfn.CEILING.PRECISE('Титульный 2'!AA163:AD163*Титульный!$AY$1,Титульный!$AY$3) -> 2424 | AE180: =_xlfn.CEILING.PRECISE('Титульный 2'!AE163:AH163*Титульный!$AY$1,Титульный!$AY$3) -> 4964 | AI180: =_xlfn.CEILING.PRECISE('Титульный 2'!AI163:AL163*Титульный!$AY$1,Титульный!$AY$3) -> 2794 | AM180: =_xlfn.CEILING.PRECISE('Титульный 2'!AM163:AP163*Титульный!$AY$1,Титульный!$AY$3) -> 3584
H181: Багетный блок 16 (420) 1400 | T181: 1490х475х86 | AA181: =_xlfn.CEILING.PRECISE('Титульный 2'!AA164:AD164*Титульный!$AY$1,Титульный!$AY$3) -> 2654 | AE181: =_xlfn.CEILING.PRECISE('Титульный 2'!AE164:AH164*Титульный!$AY$1,Титульный!$AY$3) -> 5454 | AI181: =_xlfn.CEILING.PRECISE('Титульный 2'!AI164:AL164*Титульный!$AY$1,Титульный!$AY$3) -> 3064 | AM181: =_xlfn.CEILING.PRECISE('Титульный 2'!AM164:AP164*Титульный!$AY$1,Титульный!$AY$3) -> 3934
A182: Ручка-кнопка "Вензель латунь" | H182: Багетный блок 16 (420) 1680 | T182: 1770х475х86 | AA182: =_xlfn.CEILING.PRECISE('Титульный 2'!AA165:AD165*Титульный!$AY$1,Титульный!$AY$3) -> 3134 | AE182: =_xlfn.CEILING.PRECISE('Титульный 2'!AE165:AH165*Титульный!$AY$1,Титульный!$AY$3) -> 6424 | AI182: =_xlfn.CEILING.PRECISE('Титульный 2'!AI165:AL165*Титульный!$AY$1,Титульный!$AY$3) -> 3604 | AM182: =_xlfn.CEILING.PRECISE('Титульный 2'!AM165:AP165*Титульный!$AY$1,Титульный!$AY$3) -> 4644
H183: Багетный блок 16 (420) 1960 | T183: 2050х475х86 | AA183: =_xlfn.CEILING.PRECISE('Титульный 2'!AA166:AD166*Титульный!$AY$1,Титульный!$AY$3) -> 3594 | AE183: =_xlfn.CEILING.PRECISE('Титульный 2'!AE166:AH166*Титульный!$AY$1,Титульный!$AY$3) -> 7394 | AI183: =_xlfn.CEILING.PRECISE('Титульный 2'!AI166:AL166*Титульный!$AY$1,Титульный!$AY$3) -> 4154 | AM183: =_xlfn.CEILING.PRECISE('Титульный 2'!AM166:AP166*Титульный!$AY$1,Титульный!$AY$3) -> 5354
H184: Багетный блок 16 (420) 2240 | T184: 2330х475х86 | AA184: =_xlfn.CEILING.PRECISE('Титульный 2'!AA167:AD167*Титульный!$AY$1,Титульный!$AY$3) -> 4074 | AE184: =_xlfn.CEILING.PRECISE('Титульный 2'!AE167:AH167*Титульный!$AY$1,Титульный!$AY$3) -> 8364 | AI184: =_xlfn.CEILING.PRECISE('Титульный 2'!AI167:AL167*Титульный!$AY$1,Титульный!$AY$3) -> 4694 | AM184: =_xlfn.CEILING.PRECISE('Титульный 2'!AM167:AP167*Титульный!$AY$1,Титульный!$AY$3) -> 6044
H185: Багетный блок 16 (560) 420 | T185: 510х615х86 | AA185: =_xlfn.CEILING.PRECISE('Титульный 2'!AA168:AD168*Титульный!$AY$1,Титульный!$AY$3) -> 1274 | AE185: =_xlfn.CEILING.PRECISE('Титульный 2'!AE168:AH168*Титульный!$AY$1,Титульный!$AY$3) -> 2594 | AI185: =_xlfn.CEILING.PRECISE('Титульный 2'!AI168:AL168*Титульный!$AY$1,Титульный!$AY$3) -> 1464 | AM185: =_xlfn.CEILING.PRECISE('Титульный 2'!AM168:AP168*Титульный!$AY$1,Титульный!$AY$3) -> 1894
H186: Багетный блок 16 (560) 560 | T186: 650х615х86 | AA186: =_xlfn.CEILING.PRECISE('Титульный 2'!AA169:AD169*Титульный!$AY$1,Титульный!$AY$3) -> 1574 | AE186: =_xlfn.CEILING.PRECISE('Титульный 2'!AE169:AH169*Титульный!$AY$1,Титульный!$AY$3) -> 3214 | AI186: =_xlfn.CEILING.PRECISE('Титульный 2'!AI169:AL169*Титульный!$AY$1,Титульный!$AY$3) -> 1804 | AM186: =_xlfn.CEILING.PRECISE('Титульный 2'!AM169:AP169*Титульный!$AY$1,Титульный!$AY$3) -> 2334
H187: Багетный блок 16 (560) 840 | T187: 930х615х86 | AA187: =_xlfn.CEILING.PRECISE('Титульный 2'!AA170:AD170*Титульный!$AY$1,Титульный!$AY$3) -> 2174 | AE187: =_xlfn.CEILING.PRECISE('Титульный 2'!AE170:AH170*Титульный!$AY$1,Титульный!$AY$3) -> 4444 | AI187: =_xlfn.CEILING.PRECISE('Титульный 2'!AI170:AL170*Титульный!$AY$1,Титульный!$AY$3) -> 2504 | AM187: =_xlfn.CEILING.PRECISE('Титульный 2'!AM170:AP170*Титульный!$AY$1,Титульный!$AY$3) -> 3224
H188: Багетный блок 16 (560) 1120 | T188: 1210х615х86 | AA188: =_xlfn.CEILING.PRECISE('Титульный 2'!AA171:AD171*Титульный!$AY$1,Титульный!$AY$3) -> 2774 | AE188: =_xlfn.CEILING.PRECISE('Титульный 2'!AE171:AH171*Титульный!$AY$1,Титульный!$AY$3) -> 5694 | AI188: =_xlfn.CEILING.PRECISE('Титульный 2'!AI171:AL171*Титульный!$AY$1,Титульный!$AY$3) -> 3184 | AM188: =_xlfn.CEILING.PRECISE('Титульный 2'!AM171:AP171*Титульный!$AY$1,Титульный!$AY$3) -> 4124
H189: Багетный блок 16 (560) 1260 | T189: 1350х615х86 | AA189: =_xlfn.CEILING.PRECISE('Титульный 2'!AA172:AD172*Титульный!$AY$1,Титульный!$AY$3) -> 3074 | AE189: =_xlfn.CEILING.PRECISE('Титульный 2'!AE172:AH172*Титульный!$AY$1,Титульный!$AY$3) -> 6304 | AI189: =_xlfn.CEILING.PRECISE('Титульный 2'!AI172:AL172*Титульный!$AY$1,Титульный!$AY$3) -> 3534 | AM189: =_xlfn.CEILING.PRECISE('Титульный 2'!AM172:AP172*Титульный!$AY$1,Титульный!$AY$3) -> 4564
H190: Багетный блок 16 (560) 1400 | T190: 1490х615х86 | AA190: =_xlfn.CEILING.PRECISE('Титульный 2'!AA173:AD173*Титульный!$AY$1,Титульный!$AY$3) -> 3374 | AE190: =_xlfn.CEILING.PRECISE('Титульный 2'!AE173:AH173*Титульный!$AY$1,Титульный!$AY$3) -> 6924 | AI190: =_xlfn.CEILING.PRECISE('Титульный 2'!AI173:AL173*Титульный!$AY$1,Титульный!$AY$3) -> 3884 | AM190: =_xlfn.CEILING.PRECISE('Титульный 2'!AM173:AP173*Титульный!$AY$1,Титульный!$AY$3) -> 5014
H191: Багетный блок 16 (560) 1680 | T191: 1770х615х86 | AA191: =_xlfn.CEILING.PRECISE('Титульный 2'!AA174:AD174*Титульный!$AY$1,Титульный!$AY$3) -> 3974 | AE191: =_xlfn.CEILING.PRECISE('Титульный 2'!AE174:AH174*Титульный!$AY$1,Титульный!$AY$3) -> 8154 | AI191: =_xlfn.CEILING.PRECISE('Титульный 2'!AI174:AL174*Титульный!$AY$1,Титульный!$AY$3) -> 4574 | AM191: =_xlfn.CEILING.PRECISE('Титульный 2'!AM174:AP174*Титульный!$AY$1,Титульный!$AY$3) -> 5914
H192: Багетный блок 16 (560) 1960 | T192: 2050х615х86 | AA192: =_xlfn.CEILING.PRECISE('Титульный 2'!AA175:AD175*Титульный!$AY$1,Титульный!$AY$3) -> 4574 | AE192: =_xlfn.CEILING.PRECISE('Титульный 2'!AE175:AH175*Титульный!$AY$1,Титульный!$AY$3) -> 9404 | AI192: =_xlfn.CEILING.PRECISE('Титульный 2'!AI175:AL175*Титульный!$AY$1,Титульный!$AY$3) -> 5264 | AM192: =_xlfn.CEILING.PRECISE('Титульный 2'!AM175:AP175*Титульный!$AY$1,Титульный!$AY$3) -> 6814
H193: Багетный блок 16 (560) 2240 | T193: 2330х615х86 | AA193: =_xlfn.CEILING.PRECISE('Титульный 2'!AA176:AD176*Титульный!$AY$1,Титульный!$AY$3) -> 5184 | AE193: =_xlfn.CEILING.PRECISE('Титульный 2'!AE176:AH176*Титульный!$AY$1,Титульный!$AY$3) -> 10634 | AI193: =_xlfn.CEILING.PRECISE('Титульный 2'!AI176:AL176*Титульный!$AY$1,Титульный!$AY$3) -> 5954 | AM193: =_xlfn.CEILING.PRECISE('Титульный 2'!AM176:AP176*Титульный!$AY$1,Титульный!$AY$3) -> 7704
A195: Схема расположения зеркал
B200: 1 зеркало | Z200: 2 зеркала
A201: Внимание!!! В прайс-листе указана стоимость за комплект зеркал
A202: Обращаем Ваше внимание на необходимость при заказе шкафа с зеркалом указывать накладное оно или в рамке!!!
B204: Зеркало накладное* | Z204: Зеркало в рамке**
Z212: **-Зеркало крепится на дверь стеклодержателями
A213: 1. ВНИМАНИЕ! Для наборов мебели "Марго" использовать только зеркало накладное!
A215: Шкафы-витрины с фрезеровкой Прованс.
A216: Обращаем Ваше внимание, что фасады шкафа (420) 1 дверь или 2 двери витрины, с фрезеровкой "Прованс" будут изготовлены с перемычкой
B224: Шкаф (420) | L224: Шкаф (420) | U224: Шкаф (420) | AD224: Шкаф (420) | AM224: Шкаф (420)
A225: 1 дв. 2 ящ. Витрина | K225: 2 дв. 1 ящ. Витрина | U225: 1 дв. Витрина | AC225: 2 дв. 2 ящ. Витрина | AM225: 2 дв. Витрина
A227: Шкафы-витрины с фрезеровками Бриз, Амелия, Лаура, Юлия, Гретта, Диана
A228: Обращаем Ваше внимание, что фасады на всех шкафах-витринах с фрезеровками Амелия, Бриз, Лаура, Юлия, выглядят следующим образом
B235: Шкаф (420) | L235: Шкаф (420) | U235: Шкаф (420) | AD235: Шкаф (420) | AM235: Шкаф (420)
A236: 1 дв. 2 ящ. Витрина | K236: 2 дв. 1 ящ. Витрина | U236: 1 дв. Витрина | AC236: 2 дв. 2 ящ. Витрина | AM236: 2 дв. Витрина
A237: Козырьки МДФ
B238: Козырьки, по желанию, могут быть отфрезерованы под светодиодную ленту (необходимо указывать в заказе), за исключением
A239: козырьков торцевых радиусных и торцевых скошенных.
B241: Козырек МДФ прямой | Y241: Козырек МДФ на шкаф угл. (420) трапеция
A242: Изображение | H242: Длина, мм | L242: Цена, руб.\шт. | Y242: Изображение | AF242: Цена, руб.\шт.
L243: 1 ЦК | O243: 1 ЦК + патина | R243: 2 ЦК | U243: 3 ЦК | AF243: 1 ЦК | AJ243: 1 ЦК + патина | AN243: 2 ЦК | AR243: 3 ЦК
A244: Козырек МДФ прямой | H244: 420 | L244: =CEILING('Титульный 2'!L224:N224*Титульный!$AY$1,Титульный!$AY$3) -> 420 | O244: =CEILING('Титульный 2'!O224:Q224*Титульный!$AY$1,Титульный!$AY$3) -> 750 | R244: =CEILING('Титульный 2'!R224:T224*Титульный!$AY$1,Титульный!$AY$3) -> 510 | U244: =CEILING('Титульный 2'!U224:W224*Титульный!$AY$1,Титульный!$AY$3) -> 600 | Y244: Козырек МДФ на шкаф угл. (420) трапеция | AF244: =CEILING('Титульный 2'!AF224:AH224*Титульный!$AY$1,Титульный!$AY$3) -> 420 | AJ244: =CEILING('Титульный 2'!AJ224:AL224*Титульный!$AY$1,Титульный!$AY$3) -> 730 | AN244: =CEILING('Титульный 2'!AN224:AP224*Титульный!$AY$1,Титульный!$AY$3) -> 500 | AR244: =CEILING('Титульный 2'!AR224:AT224*Титульный!$AY$1,Титульный!$AY$3) -> 590
H245: 560 | L245: =CEILING('Титульный 2'!L225:N225*Титульный!$AY$1,Титульный!$AY$3) -> 570 | O245: =CEILING('Титульный 2'!O225:Q225*Титульный!$AY$1,Титульный!$AY$3) -> 1000 | R245: =CEILING('Титульный 2'!R225:T225*Титульный!$AY$1,Титульный!$AY$3) -> 680 | U245: =CEILING('Титульный 2'!U225:W225*Титульный!$AY$1,Титульный!$AY$3) -> 800
H246: 840 | L246: =CEILING('Титульный 2'!L226:N226*Титульный!$AY$1,Титульный!$AY$3) -> 850 | O246: =CEILING('Титульный 2'!O226:Q226*Титульный!$AY$1,Титульный!$AY$3) -> 1500 | R246: =CEILING('Титульный 2'!R226:T226*Титульный!$AY$1,Титульный!$AY$3) -> 1010 | U246: =CEILING('Титульный 2'!U226:W226*Титульный!$AY$1,Титульный!$AY$3) -> 1200
H247: 1120 | L247: =CEILING('Титульный 2'!L227:N227*Титульный!$AY$1,Титульный!$AY$3) -> 1130 | O247: =CEILING('Титульный 2'!O227:Q227*Титульный!$AY$1,Титульный!$AY$3) -> 1990 | R247: =CEILING('Титульный 2'!R227:T227*Титульный!$AY$1,Титульный!$AY$3) -> 1350 | U247: =CEILING('Титульный 2'!U227:W227*Титульный!$AY$1,Титульный!$AY$3) -> 1590 | Y247: Козырек МДФ на шкаф угл. (560) трапеция
H248: 1260 | L248: =CEILING('Титульный 2'!L228:N228*Титульный!$AY$1,Титульный!$AY$3) -> 1270 | O248: =CEILING('Титульный 2'!O228:Q228*Титульный!$AY$1,Титульный!$AY$3) -> 2240 | R248: =CEILING('Титульный 2'!R228:T228*Титульный!$AY$1,Титульный!$AY$3) -> 1520 | U248: =CEILING('Титульный 2'!U228:W228*Титульный!$AY$1,Титульный!$AY$3) -> 1790 | Y248: Изображение | AF248: Цена, руб.\шт.
H249: 1400 | L249: =CEILING('Титульный 2'!L229:N229*Титульный!$AY$1,Титульный!$AY$3) -> 1410 | O249: =CEILING('Титульный 2'!O229:Q229*Титульный!$AY$1,Титульный!$AY$3) -> 2490 | R249: =CEILING('Титульный 2'!R229:T229*Титульный!$AY$1,Титульный!$AY$3) -> 1690 | U249: =CEILING('Титульный 2'!U229:W229*Титульный!$AY$1,Титульный!$AY$3) -> 1990 | AF249: 1 ЦК | AJ249: 1 ЦК + патина | AN249: 2 ЦК | AR249: 3 ЦК
H250: 1680 | L250: =CEILING('Титульный 2'!L230:N230*Титульный!$AY$1,Титульный!$AY$3) -> 1700 | O250: =CEILING('Титульный 2'!O230:Q230*Титульный!$AY$1,Титульный!$AY$3) -> 2990 | R250: =CEILING('Титульный 2'!R230:T230*Титульный!$AY$1,Титульный!$AY$3) -> 2030 | U250: =CEILING('Титульный 2'!U230:W230*Титульный!$AY$1,Титульный!$AY$3) -> 2390 | Y250: Козырек МДФ на шкаф угл. (560) трапеция | AF250: =CEILING('Титульный 2'!AF230:AH230*Титульный!$AY$1,Титульный!$AY$3) -> 540 | AJ250: =CEILING('Титульный 2'!AJ230:AL230*Титульный!$AY$1,Титульный!$AY$3) -> 950 | AN250: =CEILING('Титульный 2'!AN230:AP230*Титульный!$AY$1,Титульный!$AY$3) -> 640 | AR250: =CEILING('Титульный 2'!AR230:AT230*Титульный!$AY$1,Титульный!$AY$3) -> 760
H251: 1960 | L251: =CEILING('Титульный 2'!L231:N231*Титульный!$AY$1,Титульный!$AY$3) -> 1980 | O251: =CEILING('Титульный 2'!O231:Q231*Титульный!$AY$1,Титульный!$AY$3) -> 3490 | R251: =CEILING('Титульный 2'!R231:T231*Титульный!$AY$1,Титульный!$AY$3) -> 2360 | U251: =CEILING('Титульный 2'!U231:W231*Титульный!$AY$1,Титульный!$AY$3) -> 2790
H252: 2240 | L252: =CEILING('Титульный 2'!L232:N232*Титульный!$AY$1,Титульный!$AY$3) -> 2260 | O252: =CEILING('Титульный 2'!O232:Q232*Титульный!$AY$1,Титульный!$AY$3) -> 3990 | R252: =CEILING('Титульный 2'!R232:T232*Титульный!$AY$1,Титульный!$AY$3) -> 2700 | U252: =CEILING('Титульный 2'!U232:W232*Титульный!$AY$1,Титульный!$AY$3) -> 3190
A255: Козырьки торцевые радиусные и скошенные
A257: Козырек МДФ на шкаф (420) торцевой скошенный Л\Пр. | Y257: Козырек МДФ на стеллаж (420) торцевой радиусный Л\Пр.
H258: Цена руб.\шт. | AF258: Цена, руб.\шт.
H259: 1 ЦК | L259: 1 ЦК + патина | P259: 2 ЦК | T259: 3 ЦК | AF259: 1 ЦК | AJ259: 1 ЦК + патина | AN259: 2 ЦК | AR259: 3 ЦК
H260: =CEILING('Титульный 2'!H240:K240*Титульный!$AY$1,Титульный!$AY$3) -> 600 | L260: =CEILING('Титульный 2'!L240:O240*Титульный!$AY$1,Титульный!$AY$3) -> 1060 | P260: =CEILING('Титульный 2'!P240:S240*Титульный!$AY$1,Титульный!$AY$3) -> 720 | T260: =CEILING('Титульный 2'!T240:W240*Титульный!$AY$1,Титульный!$AY$3) -> 850 | AF260: =CEILING('Титульный 2'!AF240:AI240*Титульный!$AY$1,Титульный!$AY$3) -> 500 | AJ260: =CEILING('Титульный 2'!AJ240:AM240*Титульный!$AY$1,Титульный!$AY$3) -> 880 | AN260: =CEILING('Титульный 2'!AN240:AQ240*Титульный!$AY$1,Титульный!$AY$3) -> 590 | AR260: =CEILING('Титульный 2'!AR240:AU240*Титульный!$AY$1,Титульный!$AY$3) -> 700
A262: Козырек_02 МДФ на шкаф (420) торц скошенный Л\Пр. | Y262: Козырек_02 МДФ на стеллаж (420) торц радиусный Л\Пр.
H263: Цена руб.\шт. | AF263: Цена, руб.\шт.
H264: 1 ЦК | L264: 1 ЦК + патина | P264: 2 ЦК | T264: 3 ЦК | AF264: 1 ЦК | AJ264: 1 ЦК + патина | AN264: 2 ЦК | AR264: 3 ЦК
H265: =CEILING('Титульный 2'!H245:K245*Титульный!$AY$1,Титульный!$AY$3) -> 590 | L265: =CEILING('Титульный 2'!L245:O245*Титульный!$AY$1,Титульный!$AY$3) -> 1030 | P265: =CEILING('Титульный 2'!P245:S245*Титульный!$AY$1,Титульный!$AY$3) -> 700 | T265: =CEILING('Титульный 2'!T245:W245*Титульный!$AY$1,Титульный!$AY$3) -> 830 | AF265: =CEILING('Титульный 2'!AF245:AI245*Титульный!$AY$1,Титульный!$AY$3) -> 500 | AJ265: =CEILING('Титульный 2'!AJ245:AM245*Титульный!$AY$1,Титульный!$AY$3) -> 890 | AN265: =CEILING('Титульный 2'!AN245:AQ245*Титульный!$AY$1,Титульный!$AY$3) -> 600 | AR265: =CEILING('Титульный 2'!AR245:AU245*Титульный!$AY$1,Титульный!$AY$3) -> 710
A267: Козырек МДФ на шкаф (560) торцевой скошенный Л\Пр. | Y267: Козырек МДФ стеллаж (560) торцевой радиусный Л\Пр.
H268: Цена руб.\шт. | AF268: Цена руб.\шт.
H269: 1 ЦК | L269: 1 ЦК + патина | P269: 2 ЦК | T269: 3 ЦК | AF269: 1 ЦК | AJ269: 1 ЦК + патина | AN269: 2 ЦК | AR269: 3 ЦК
H270: =CEILING('Титульный 2'!H250:K250*Титульный!$AY$1,Титульный!$AY$3) -> 960 | L270: =CEILING('Титульный 2'!L250:O250*Титульный!$AY$1,Титульный!$AY$3) -> 1690 | P270: =CEILING('Титульный 2'!P250:S250*Титульный!$AY$1,Титульный!$AY$3) -> 1140 | T270: =CEILING('Титульный 2'!T250:W250*Титульный!$AY$1,Титульный!$AY$3) -> 1350 | AF270: =CEILING('Титульный 2'!AF250:AI250*Титульный!$AY$1,Титульный!$AY$3) -> 710 | AJ270: =CEILING('Титульный 2'!AJ250:AM250*Титульный!$AY$1,Титульный!$AY$3) -> 1250 | AN270: =CEILING('Титульный 2'!AN250:AQ250*Титульный!$AY$1,Титульный!$AY$3) -> 840 | AR270: =CEILING('Титульный 2'!AR250:AU250*Титульный!$AY$1,Титульный!$AY$3) -> 1000
A272: Козырек_02 МДФ на шкаф (560) торц скошенный Л\Пр. | Y272: Козырек_02 МДФ стеллаж (560) торц радиусный Л\Пр.
... 25 more rows

Sheet Титульный 2 (hidden)
A1: Базовая комплектация
A2: 1. Каркас модулей изготовлен из ЛДСП оклеенной кромкой ПВХ 0,4 мм. Задняя стенка модулей из облагороженной ХДФ;
A3: 2. Фасад из МДФ, покрытый пленкой ПВХ с лицевой стороны (базовая ценовая категория), обратная сторона (см. таблицу зависимости);
A4: 3. Петли Hettich Sensys плавного закрывания;
A5: 4. | B5: Полки ЛДСП
A6: 5. Роликовые направляющие в выкатных ящиках тумб и шкафов;
A7: 6. Шариковые направляющие Hafele в выкатном ящике стола туалетного и кровати 2 ящика;
A8: 7. Штанга в шкафах для одежды и шкафах комбинированных;
A9: 8. Регулируемые ножки PI04;
A10: 9. Стекло тонированное в шкафах-витринах;
A11: 10. Крючки FK 009 020 на панелях настенных. (На панелях шириной 400 - 2 крючка, а на панелях шириной 540 - 3 крючка)
A12: Марго, краткое описание
A13: 1 | B13: Фасад выполнен из ЛДСП толщиной 16 мм. оклеенной кромкой ПВХ толщиной 2 мм.
A14: 2 | B14: Фасад шкафов витрин и полувитрин - рамочный, из алюминиевого профиля толщиной 21 мм. Стекло - Тонированное
A15: 3 | B15: Крышки столов, тумб, комода, стола туалетного, спинки кроватей выполнены из ЛДСП толщиной 22 мм. и оклеенной кромкой ПВХ толщиной 2 мм.
A16: 4 | B16: Ручка - FS040, 160 мм.
A17: 5 | B17: Обращаем Ваше внимание на то, что каркас "Марго" изготавливается только следующих цветов - Капучино и Выбеленное дерево, Дуб шамони темный, Дуб шамони светлый
A18: 6 | B18: Обращаем Ваше внимание на то, что каркас тумб Марго 16 может изготавливаться в любом цвете ЛДСП за исключением серого и 3-й ценовой категории. Фасад набора мебели Марго и тумб Марго 16 может изготавливаться в любом цвете ЛДСП за исключением серого.
A19: 7 | B19: Для фасада Марго может быть использовано только накладное зеркало.
A30: Классификация цветов фасадов
A31: 1 ценовая категория
A32: Древесные матовые | I32: Ольха, Тик, Слива Тадж, Орех золотистый, Сандал белый, Темный Венге, Дуб беленый, Дуб солнечный, Яблоня Тадж, Коричневый холст, Бежевый холст
A33: Однотонные матовые | I33: Белые цветы, Черные цветы
A35: 2 ценовая категория
A36: Древесные матовые | I36: Эффект старения
A37: Однотонные матовые | I37: Фиолет, Лайм, Фуксия, Индиго
A38: Древесные глянцевые | I38: Вишня, Клен, Платан, Жемчужное Дерево
A39: Однотонные глянцевые | I39: Красный металлик, Чёрный металлик, Белый металлик, Оранжевый металлик, Фиолетовый металлик, Салатовый металлик, Синий металлик, Серый металлик, Золотистый металлик, Корица металлик, Хамелеон Коричневый, Белый глянец, Оливковый, Баклажан, Бордо, Ваниль, Оранжевый, Желтый, Черный.
A40: Фантазийные | I40: Мрамор глянцевый, Кожа крокодила, Огни Нью-Йорка, Цветы, Серебряный дождь.
A42: 3 ценовая категория
A44: Фантазийные | I44: Вяз седой, Синга-крем, Синга-аметист, Шелк-крем, Шелк-аметист
A45: ВНИМАНИЕ!!! Возможны незначительные изменения в тональности пленки ПВХ (2-3 тона), что не является браком
A48: Таблица зависимости цвета внутренней стороны фасада от цвета пленки ПВХ:
B49: Цвет внутренней стороны фасадов зависит от цвета пленки ПВХ, исключение составляют наборы мебели, каркасы
A50: которых изготовлены из ЛДСП цвета "Бук Бавария", в этом случае обратная сторона фасадов будет всегда в цвете "Ольха"
A52: Пленка ПВХ | H52: Обратная сторона | P52: Пленка ПВХ | W52: Обратная сторона | AE52: Пленка ПВХ | AL52: Обратная сторона
A53: Слива Тадж | H53: Ольха | P53: Оливковый глянец | W53: Белая | AE53: Салатовый металлик | AL53: Белая
A54: Вишня глянец | H54: Ольха | P54: Баклажан глянец | W54: Белая | AE54: Огни Нью-Йорка | AL54: Белая
A55: Клен глянец | H55: Ольха | P55: Черный глянец | W55: Белая | AE55: Цветы | AL55: Белая
A56: Платан глянец | H56: Ольха | P56: Желтый глянец | W56: Белая | AE56: Жемчужное дерево | AL56: Белая
A57: Каштан золотистый | H57: Ольха | P57: Белый глянец | W57: Белая | AE57: Серебрянный дождь | AL57: Белая
A58: Тик | H58: Ольха | P58: Ваниль глянец | W58: Белая | AE58: Белые цветы | AL58: Белая
A59: Орех золотистый | H59: Ольха | P59: Оранжевый глянец | W59: Белая | AE59: Кожа крокодила | AL59: Белая
A60: Яблоня Тадж | H60: Ольха | P60: Серый металлик | W60: Белая | AE60: Черные цветы | AL60: Белая
A61: Ольха | H61: Ольха | P61: Красный металлик | W61: Белая | AE61: Шелк Аметист | AL61: Белая
A62: Темный Венге | H62: Белая | P62: Белый металлик | W62: Белая | AE62: Шелк Крем | AL62: Белая
A63: Эффект старения | H63: Белая | P63: Корица металлик | W63: Белая | AE63: Синга Аметист | AL63: Белая
A64: Вяз седой | H64: Белая | P64: Синий металлик | W64: Белая | AE64: Коричневый холст | AL64: Белая
A65: Сандал белый | H65: Белая | P65: Золотой металлик | W65: Белая | AE65: Бежевый холст | AL65: Белая
A66: Дуб солнечный | H66: Белая | P66: Хамелион коричневый | W66: Белая | AE66: Фиолет | AL66: Белая
A67: Дуб беленый | H67: Белая | P67: Фиолетовый металлик | W67: Белая | AE67: Лайм | AL67: Белая
A68: Бордо глянец | H68: Белая | P68: Черный металлик | W68: Белая | AE68: Фуксия | AL68: Белая
A69: Мрамор глянец | H69: Белая | P69: Оранжевый металлик | W69: Белая | AE69: Индиго | AL69: Белая
A71: Цветовое исполнение каркасов
A72: Белый, Серый, Бук Бавария, Орех итальянский, Гварнери, Венге, Бежевый, Выбеленное дерево, Капучино
A75: Варианты фрезеровок фасадов с привязкой ручки
A76: Для новой серии модулей разработаны следующие типы фасадов:
B78: Прованс | J78: Вензель цинк, 96мм | V78: Ручка RS407BAB.4 "Вензель латунь" 96мм
J79: 101 | M79: руб/шт. | V79: 101
J80: Скоба зол/сер 96мм. | V80: Ручка RS408BAZ.4 "Ладья цинк, 96мм
J81: 72 | M81: руб/шт. | V81: 141 | Y81: руб/шт.
V82: Ручка RS408BAB.4 "Ладья латунь" 96 мм.
M83: руб/шт. | V83: 113 | Y83: руб/шт.
J84: Ручка RS-75, антик латунь, 96 мм. | V84: ОФК 747, 96мм Бронза+белый
J85: 96 | M85: руб/шт. | V85: 150 | Y85: руб/шт.
J86: Ручка Рейлинг 96 | V86: Ручка RS-77, 96 мм.
J87: 66 | M87: руб/шт. | V87: 83 | Y87: руб/шт.
J88: Ручка 96 (фарфор/узор золото)
J89: 81 | M89: руб/шт.
B91: Бриз | F91: Амелия | J91: Марго | V91: Ручка FS-074 "Волна" 160мм | AH91: Ручка RS-47-1 "хром+черный 160 мм
V92: 185 | Y92: руб/шт. | AH92: 285 | AK92: руб/шт.
V93: Ручка Модерн 160 мм.
V94: 215 | Y94: руб/шт.
V95: Ручка FS-040 , 160мм
V96: 318 | Y96: руб/шт.
V97: Ручка Рейлинг 160 мм
V98: 62 | Y98: руб/шт.
V99: Ручка RS-74 "Бруш" сатин светлый, 160 мм.
V100: 168 | Y100: руб/шт.
V101: Ручка RS-47 "хром+белый 160 мм
V102: 285 | Y102: руб/шт.
B104: Лаура | F104: Натали | M104: Скоба 224мм | V104: Диана | AC104: Скоба 1069, 128 мм | AN104: Ручка скоба RS-33 128 мм.
M105: 155 | P105: руб/шт. | AC105: 164 | AF105: руб/шт. | AN105: 188 | AQ105: руб/шт.
M106: Скоба RLB224, 224 мм
M107: 155 | P107: руб/шт. | AF107: руб/шт.
AC108: Ручка FS-111 "Сатин светлый" 128мм.
AC109: 345 | AF109: руб/шт.
AC110: Ручка скоба RS-52 128 мм.
AC111: 84 | AF111: руб/шт.
AC112: Ручка скоба RS-56 128 мм.
AC113: 185 | AF113: руб/шт.
AC114: Ручка скоба "Спираль" 128 мм.
AC115: 176 | AF115: руб/шт.
B117: Гретта | J117: Ручка GG-3105 кнопка "Латунь" | Z117: Ручка RC404BAZ.4 "Вензель цинк"
J118: 301 | M118: руб/шт. | Z118: 141 | AC118: руб/шт.
Z119: Ручка RC404BAВ.4 "Вензель латунь"
J120: - | M120: руб/шт. | Z120: 71 | AC120: руб/шт.
Z121: Ручка RC405BAZ.4 "Ладья цинк"
J122: 127 | M122: руб/шт. | Z122: 24 | AC122: руб/шт.
J123: Ручка GR-1006 кнопка "Никель" | Z123: Ручка - кнопка (фарфор/узор золото)
M124: руб/шт. | Z124: 60 | AC124: руб/шт.
J125: Ручка RC405BAB.4 "Ладья латунь"
J126: 30 | M126: руб/шт.
J127: RC 052AB.4/w16 Бронза+белый
J128: 76 | M128: руб/шт.
B130: Юлия
J131: FS024 064, 64 мм
J132: 180 | M132: руб/шт.
H157: Наименование | T157: Габариты, ШхГхВ мм. | AA157: Цена, руб.\шт.
AA158: 1 ЦК | AE158: 1 ЦК + патина | AI158: 2 ЦК | AM158: 3 ЦК
H159: Багетный блок 16 (420) 420 | AA159: 1014 | AE159: 2054 | AI159: 1174 | AM159: 1484
H160: Багетный блок 16 (420) 560 | AA160: 1244 | AE160: 2544 | AI160: 1434 | AM160: 1834
H161: Багетный блок 16 (420) 840 | AA161: 1714 | AE161: 3504 | AI161: 1984 | AM161: 2534
H162: Багетный блок 16 (420) 1120 | AA162: 2194 | AE162: 4484 | AI162: 2524 | AM162: 3244
H163: Багетный блок 16 (420) 1260 | AA163: 2424 | AE163: 4964 | AI163: 2794 | AM163: 3584
H164: Багетный блок 16 (420) 1400 | AA164: 2654 | AE164: 5454 | AI164: 3064 | AM164: 3934
H165: Багетный блок 16 (420) 1680 | AA165: 3134 | AE165: 6424 | AI165: 3604 | AM165: 4644
H166: Багетный блок 16 (420) 1960 | AA166: 3594 | AE166: 7394 | AI166: 4154 | AM166: 5354
H167: Багетный блок 16 (420) 2240 | AA167: 4074 | AE167: 8364 | AI167: 4694 | AM167: 6044
H168: Багетный блок 16 (560) 420 | AA168: 1274 | AE168: 2594 | AI168: 1464 | AM168: 1894
H169: Багетный блок 16 (560) 560 | AA169: 1574 | AE169: 3214 | AI169: 1804 | AM169: 2334
H170: Багетный блок 16 (560) 840 | AA170: 2174 | AE170: 4444 | AI170: 2504 | AM170: 3224
H171: Багетный блок 16 (560) 1120 | AA171: 2774 | AE171: 5694 | AI171: 3184 | AM171: 4124
H172: Багетный блок 16 (560) 1260 | AA172: 3074 | AE172: 6304 | AI172: 3534 | AM172: 4564
H173: Багетный блок 16 (560) 1400 | AA173: 3374 | AE173: 6924 | AI173: 3884 | AM173: 5014
H174: Багетный блок 16 (560) 1680 | AA174: 3974 | AE174: 8154 | AI174: 4574 | AM174: 5914
H175: Багетный блок 16 (560) 1960 | AA175: 4574 | AE175: 9404 | AI175: 5264 | AM175: 6814
H176: Багетный блок 16 (560) 2240 | AA176: 5184 | AE176: 10634 | AI176: 5954 | AM176: 7704
A178: Схема расположения зеркал
B183: 1 зеркало | Z183: 2 зеркала
A184: Внимание!!! В прайс-листе указана стоимость за комплект зеркал
B185: Зеркало накладное | Z185: Зеркало в рамке
A196: Шкафы-витрины с фрезеровкой "Прованс"
A217: Козырьки МДФ
B218: Козырьки, по желанию, могут быть отфрезерованы под светодиодную ленту (необходимо указывать в заказе), за исключением
A219: козырьков торцевых радиусных и торцевых скошенных.
B221: Козырек МДФ прямой | Y221: Козырек МДФ на шкаф угл. (420) трапеция
A222: Изображение | H222: Длина, мм | L222: Цена, руб.\шт. | Y222: Изображение | AF222: Цена, руб.\шт.
L223: 1 ЦК | O223: 1 ЦК + патина | R223: 2 ЦК | U223: 3 ЦК | AF223: 0 ЦК | AJ223: 1 ЦК | AN223: 2 ЦК | AR223: 3 ЦК
H224: 420 | L224: 420 | O224: 750 | P224: 350 | Q224: 350 | R224: 510 | S224: 230 | T224: 230 | U224: 600 | V224: 290 | W224: 290 | AF224: 420 | AJ224: 730 | AN224: 500 | AR224: 590
H225: 560 | L225: 570 | M225: 250 | N225: 250 | O225: 1000 | P225: 470 | Q225: 470 | R225: 680 | S225: 310 | T225: 310 | U225: 800 | V225: 380 | W225: 380
H226: 840 | L226: 850 | M226: 370 | N226: 370 | O226: 1500 | P226: 710 | Q226: 710 | R226: 1010 | S226: 460 | T226: 460 | U226: 1200 | V226: 570 | W226: 570
H227: 1120 | L227: 1130 | M227: 490 | N227: 490 | O227: 1990 | P227: 940 | Q227: 940 | R227: 1350 | S227: 610 | T227: 610 | U227: 1590 | V227: 770 | W227: 770 | Y227: Козырек МДФ на шкаф угл. (560) трапеция
H228: 1260 | L228: 1270 | M228: 550 | N228: 550 | O228: 2240 | P228: 1060 | Q228: 1060 | R228: 1520 | S228: 690 | T228: 690 | U228: 1790 | V228: 860 | W228: 860 | Y228: Изображение | AF228: Цена, руб.\шт.
H229: 1400 | L229: 1410 | M229: 620 | N229: 620 | O229: 2490 | P229: 1180 | Q229: 1180 | R229: 1690 | S229: 760 | T229: 760 | U229: 1990 | V229: 960 | W229: 960 | AF229: 0 ЦК | AJ229: 1 ЦК | AN229: 2 ЦК | AR229: 3 ЦК
H230: 1680 | L230: 1700 | M230: 740 | N230: 740 | O230: 2990 | P230: 1410 | Q230: 1410 | R230: 2030 | S230: 920 | T230: 920 | U230: 2390 | V230: 1150 | W230: 1150 | AF230: 540 | AJ230: 950 | AN230: 640 | AR230: 760
H231: 1960 | L231: 1980 | M231: 860 | N231: 860 | O231: 3490 | P231: 1650 | Q231: 1650 | R231: 2360 | S231: 1070 | T231: 1070 | U231: 2790 | V231: 1340 | W231: 1340
H232: 2240 | L232: 2260 | M232: 990 | N232: 990 | O232: 3990 | P232: 1880 | Q232: 1880 | R232: 2700 | S232: 1220 | T232: 1220 | U232: 3190 | V232: 1530 | W232: 1530
A235: Козырьки торцевые радиусные и скошенные
A237: Козырек МДФ на шкаф (420) торцевой скошенный Л\Пр. | Y237: Козырек МДФ на стеллаж (420) торцевой радиусный Л\Пр.
H238: Цена руб.\шт. | AF238: Цена, руб.\шт.
H239: 0 ЦК | L239: 1 ЦК | P239: 2 ЦК | T239: 3 ЦК | AF239: 0 ЦК | AJ239: 1 ЦК | AN239: 2 ЦК | AR239: 3 ЦК
H240: 600 | L240: 1060 | P240: 720 | T240: 850 | AF240: 500 | AJ240: 880 | AN240: 590 | AR240: 700
A242: Козырек_02 МДФ на шкаф (420) торц скошенный Л\Пр. | Y242: Козырек_02 МДФ на стеллаж (420) торц радиусный Л\Пр.
H243: Цена руб.\шт. | AF243: Цена, руб.\шт.
H244: 0 ЦК | L244: 1 ЦК | P244: 2 ЦК | T244: 3 ЦК | AF244: 0 ЦК | AJ244: 1 ЦК | AN244: 2 ЦК | AR244: 3 ЦК
H245: 590 | L245: 1030 | P245: 700 | T245: 830 | AF245: 500 | AJ245: 890 | AN245: 600 | AR245: 710
A247: Козырек МДФ на шкаф (560) торцевой скошенный Л\Пр. | Y247: Козырек МДФ стеллаж (560) торцевой радиусный Л\Пр.
H248: Цена руб.\шт. | AF248: Цена руб.\шт.
H249: 0 ЦК | L249: 1 ЦК | P249: 2 ЦК | T249: 3 ЦК | AF249: 0 ЦК | AJ249: 1 ЦК | AN249: 2 ЦК | AR249: 3 ЦК
H250: 960 | L250: 1690 | P250: 1140 | T250: 1350 | AF250: 710 | AJ250: 1250 | AN250: 840 | AR250: 1000
A252: Козырек_02 МДФ на шкаф (560) торц скошенный Л\Пр. | Y252: Козырек_02 МДФ стеллаж (560) торц радиусный Л\Пр.
H253: Цена руб.\шт. | AF253: Цена руб.\шт.
H254: 0 ЦК | L254: 1 ЦК | P254: 2 ЦК | T254: 3 ЦК | AF254: 0 ЦК | AJ254: 1 ЦК | AN254: 2 ЦК | AR254: 3 ЦК
H255: 930 | L255: 1640 | P255: 1110 | T255: 1310 | AF255: 710 | AJ255: 1250 | AN255: 850 | AR255: 1000
A257: ВНИМАНИЕ!!! Для шкафа угл (560х420) Прямого 1000 козырька нет.
A259: Козырек_02 МДФ на шкафы прямых позиций.2200х100 мм.*
H260: Цена руб.\шт.
H261: 0 ЦК | L261: 1 ЦК | P261: 2 ЦК | T261: 3 ЦК
H262: 1110 | L262: 1960 | P262: 1330 | T262: 1570
A264: Багеты
A265: Багет прямой, высотой 75 мм, может стыковаться под углом в 90⁰ без запила, с использованием углового элемента.
H267: Багет высотой 75мм, L-1200 | AE267: Багет высотой 75мм, L-2400
H268: Цена руб.\шт. | AF268: Цена руб.\шт.
H269: 0 ЦК | L269: 1 ЦК | P269: 2 ЦК | T269: 3 ЦК | AF269: 0 ЦК | AJ269: 1 ЦК | AN269: 2 ЦК | AR269: 3 ЦК
H270: 610 | L270: 1070 | P270: 720 | T270: 850 | AF270: 1110 | AJ270: 1960 | AN270: 1330 | AR270: 1570
H272: Угол внешни, 90⁰
H273: Цена руб.\шт.
H274: Б.Ц.К. | L274: 1 ЦК | P274: 2 ЦК | T274: 3 ЦК
H275: 1592 | L275: 1592 | P275: 1960 | T275: 2380
A277: Светильник
L279: Светильник FC103,с выкл.на плафоне руб./шт.
L280: 1725
A284: Пояснения и ограничения
A285: 1. Для кровати с наборным изголовьем, необходимо заказывать основание с круглыми опорами. Кроватьс не устанавливается
A286: без основания
A287: 2. Каркас "Кровати 2 ящика" не может быть исполнен в Сером цвете.
A289: 3. Схема стыковки шкафа углового прямого со шкафом 1 дверным
A297: 4. Схема шкафа углового (560х420) Трапеция

Sheet прайс-лист
A1: Шкафы глубиной 420мм
A2: Наименование | B2: Эскиз | C2: Габариты, ШхГхВ мм. | D2: МДФ фасады | H2: Марго16 | M2: UV-лак | O2: ТСС | Q2: ТСС сборный | R2: Стоимость зеркал
D3: 1 ЦК | E3: 1 ЦК + патина | F3: 2 ЦК | G3: 3 ЦК | H3: 1 ц.к. | I3: 2 ц.к. | J3: 3 ц.к. | K3: 4 ц.к. | L3: 5 ц.к. | M3: UV-лак кромка ABC/AL кромка | N3: кромка 3D | O3: 1 ЦК | P3: 2 ЦК | R3: Зеркало в рамке** | S3: Зеркало накладное*
A4: Шкаф (420) 1дв 2040х420 | C4: 420х440х2040 | D4: =CEILING('прайс-лист2'!E4*Титульный!$AY$1,Титульный!$AY$3) -> 10595 | E4: =CEILING('прайс-лист2'!F4*Титульный!$AY$1,Титульный!$AY$3) -> 14135 | F4: =CEILING('прайс-лист2'!G4*Титульный!$AY$1,Титульный!$AY$3) -> 11135 | G4: =CEILING('прайс-лист2'!H4*Титульный!$AY$1,Титульный!$AY$3) -> 12455 | H4: =CEILING('прайс-лист2'!I4*Титульный!$AY$1,Титульный!$AY$3) -> 9105 | I4: =CEILING('прайс-лист2'!J4*Титульный!$AY$1,Титульный!$AY$3) -> 9385 | J4: =CEILING('прайс-лист2'!K4*Титульный!$AY$1,Титульный!$AY$3) -> 10085 | K4: =CEILING('прайс-лист2'!L4*Титульный!$AY$1,Титульный!$AY$3) -> 10915 | L4: - | M4: =CEILING('прайс-лист2'!N4*Титульный!$AY$1,Титульный!$AY$3) -> 13885 | N4: =CEILING('прайс-лист2'!O4*Титульный!$AY$1,Титульный!$AY$3) -> 14895 | O4: =CEILING('прайс-лист2'!P4*Титульный!$AY$1,Титульный!$AY$3) -> 13865 | P4: =CEILING('прайс-лист2'!Q4*Титульный!$AY$1,Титульный!$AY$3) -> 15075 | Q4: - | R4: =CEILING('прайс-лист2'!S4*Титульный!$AY$1,Титульный!$AY$3) -> 1344 | S4: =CEILING('прайс-лист2'!T4*Титульный!$AY$1,Титульный!$AY$3) -> 2490
A5: Шкаф (420) 1дв 2040х560 | C5: 560х440х2040 | D5: =CEILING('прайс-лист2'!E5*Титульный!$AY$1,Титульный!$AY$3) -> 12519 | E5: =CEILING('прайс-лист2'!F5*Титульный!$AY$1,Титульный!$AY$3) -> 17239 | F5: =CEILING('прайс-лист2'!G5*Титульный!$AY$1,Титульный!$AY$3) -> 13229 | G5: =CEILING('прайс-лист2'!H5*Титульный!$AY$1,Титульный!$AY$3) -> 14999 | H5: =CEILING('прайс-лист2'!I5*Титульный!$AY$1,Титульный!$AY$3) -> 10499 | I5: =CEILING('прайс-лист2'!J5*Титульный!$AY$1,Титульный!$AY$3) -> 10849 | J5: =CEILING('прайс-лист2'!K5*Титульный!$AY$1,Титульный!$AY$3) -> 11739 | K5: =CEILING('прайс-лист2'!L5*Титульный!$AY$1,Титульный!$AY$3) -> 12829 | L5: - | M5: =CEILING('прайс-лист2'!N5*Титульный!$AY$1,Титульный!$AY$3) -> 16649 | N5: =CEILING('прайс-лист2'!O5*Титульный!$AY$1,Титульный!$AY$3) -> 17719 | O5: =CEILING('прайс-лист2'!P5*Титульный!$AY$1,Титульный!$AY$3) -> 16629 | P5: =CEILING('прайс-лист2'!Q5*Титульный!$AY$1,Титульный!$AY$3) -> 18239 | Q5: - | R5: =CEILING('прайс-лист2'!S5*Титульный!$AY$1,Титульный!$AY$3) -> 1932 | S5: =CEILING('прайс-лист2'!T5*Титульный!$AY$1,Титульный!$AY$3) -> 3314
A6: Шкаф (420) 1дв 2240х420 | C6: 420х440х2240 | D6: =CEILING('прайс-лист2'!E6*Титульный!$AY$1,Титульный!$AY$3) -> 11487 | E6: =CEILING('прайс-лист2'!F6*Титульный!$AY$1,Титульный!$AY$3) -> 15367 | F6: =CEILING('прайс-лист2'!G6*Титульный!$AY$1,Титульный!$AY$3) -> 12067 | G6: =CEILING('прайс-лист2'!H6*Титульный!$AY$1,Титульный!$AY$3) -> 13527 | H6: =CEILING('прайс-лист2'!I6*Титульный!$AY$1,Титульный!$AY$3) -> 9847 | I6: =CEILING('прайс-лист2'!J6*Титульный!$AY$1,Титульный!$AY$3) -> 10147 | J6: =CEILING('прайс-лист2'!K6*Титульный!$AY$1,Титульный!$AY$3) -> 10917 | K6: =CEILING('прайс-лист2'!L6*Титульный!$AY$1,Титульный!$AY$3) -> 11827 | L6: - | M6: =CEILING('прайс-лист2'!N6*Титульный!$AY$1,Титульный!$AY$3) -> 15077 | N6: =CEILING('прайс-лист2'!O6*Титульный!$AY$1,Титульный!$AY$3) -> 16177 | O6: =CEILING('прайс-лист2'!P6*Титульный!$AY$1,Титульный!$AY$3) -> 15057 | P6: =CEILING('прайс-лист2'!Q6*Титульный!$AY$1,Титульный!$AY$3) -> 16387 | Q6: - | R6: =CEILING('прайс-лист2'!S6*Титульный!$AY$1,Титульный!$AY$3) -> 1523 | S6: =CEILING('прайс-лист2'!T6*Титульный!$AY$1,Титульный!$AY$3) -> 2730
A7: Шкаф (420) 1дв 2240х560 | C7: 560х440х2240 | D7: =CEILING('прайс-лист2'!E7*Титульный!$AY$1,Титульный!$AY$3) -> 13588 | E7: =CEILING('прайс-лист2'!F7*Титульный!$AY$1,Титульный!$AY$3) -> 18778 | F7: =CEILING('прайс-лист2'!G7*Титульный!$AY$1,Титульный!$AY$3) -> 14368 | G7: =CEILING('прайс-лист2'!H7*Титульный!$AY$1,Титульный!$AY$3) -> 16308 | H7: =CEILING('прайс-лист2'!I7*Титульный!$AY$1,Титульный!$AY$3) -> 11368 | I7: =CEILING('прайс-лист2'!J7*Титульный!$AY$1,Титульный!$AY$3) -> 11748 | J7: =CEILING('прайс-лист2'!K7*Титульный!$AY$1,Титульный!$AY$3) -> 12718 | K7: =CEILING('прайс-лист2'!L7*Титульный!$AY$1,Титульный!$AY$3) -> 13908 | L7: - | M7: =CEILING('прайс-лист2'!N7*Титульный!$AY$1,Титульный!$AY$3) -> 18108 | N7: =CEILING('прайс-лист2'!O7*Титульный!$AY$1,Титульный!$AY$3) -> 19258 | O7: =CEILING('прайс-лист2'!P7*Титульный!$AY$1,Титульный!$AY$3) -> 18078 | P7: =CEILING('прайс-лист2'!Q7*Титульный!$AY$1,Титульный!$AY$3) -> 19858 | Q7: - | R7: =CEILING('прайс-лист2'!S7*Титульный!$AY$1,Титульный!$AY$3) -> 2190 | S7: =CEILING('прайс-лист2'!T7*Титульный!$AY$1,Титульный!$AY$3) -> 3632
A8: Шкаф (420) 1дв 1240х420 | C8: 420х440х1240 | D8: =CEILING('прайс-лист2'!E8*Титульный!$AY$1,Титульный!$AY$3) -> 7177 | E8: =CEILING('прайс-лист2'!F8*Титульный!$AY$1,Титульный!$AY$3) -> 9297 | F8: =CEILING('прайс-лист2'!G8*Титульный!$AY$1,Титульный!$AY$3) -> 7497 | G8: =CEILING('прайс-лист2'!H8*Титульный!$AY$1,Титульный!$AY$3) -> 8287 | H8: =CEILING('прайс-лист2'!I8*Титульный!$AY$1,Титульный!$AY$3) -> 6297 | I8: =CEILING('прайс-лист2'!J8*Титульный!$AY$1,Титульный!$AY$3) -> 6467 | J8: =CEILING('прайс-лист2'!K8*Титульный!$AY$1,Титульный!$AY$3) -> 6897 | K8: =CEILING('прайс-лист2'!L8*Титульный!$AY$1,Титульный!$AY$3) -> 7397 | L8: - | M8: =CEILING('прайс-лист2'!N8*Титульный!$AY$1,Титульный!$AY$3) -> 9207 | N8: =CEILING('прайс-лист2'!O8*Титульный!$AY$1,Титульный!$AY$3) -> 9887 | O8: =CEILING('прайс-лист2'!P8*Титульный!$AY$1,Титульный!$AY$3) -> 9197 | P8: =CEILING('прайс-лист2'!Q8*Титульный!$AY$1,Титульный!$AY$3) -> 9927 | Q8: - | R8: - | S8: -
A9: Шкаф (420) 1дв 1240х560 | C9: 560х440х1240 | D9: =CEILING('прайс-лист2'!E9*Титульный!$AY$1,Титульный!$AY$3) -> 8251 | E9: =CEILING('прайс-лист2'!F9*Титульный!$AY$1,Титульный!$AY$3) -> 11081 | F9: =CEILING('прайс-лист2'!G9*Титульный!$AY$1,Титульный!$AY$3) -> 8681 | G9: =CEILING('прайс-лист2'!H9*Титульный!$AY$1,Титульный!$AY$3) -> 9731 | H9: =CEILING('прайс-лист2'!I9*Титульный!$AY$1,Титульный!$AY$3) -> 7051 | I9: =CEILING('прайс-лист2'!J9*Титульный!$AY$1,Титульный!$AY$3) -> 7271 | J9: =CEILING('прайс-лист2'!K9*Титульный!$AY$1,Титульный!$AY$3) -> 7811 | K9: =CEILING('прайс-лист2'!L9*Титульный!$AY$1,Титульный!$AY$3) -> 8471 | L9: - | M9: =CEILING('прайс-лист2'!N9*Титульный!$AY$1,Титульный!$AY$3) -> 10811 | N9: =CEILING('прайс-лист2'!O9*Титульный!$AY$1,Титульный!$AY$3) -> 11551 | O9: =CEILING('прайс-лист2'!P9*Титульный!$AY$1,Титульный!$AY$3) -> 10801 | P9: =CEILING('прайс-лист2'!Q9*Титульный!$AY$1,Титульный!$AY$3) -> 11771 | Q9: - | R9: - | S9: -
A10: Шкаф (420) 1дв витрина 1240х420 | C10: 420х440х1240 | D10: =CEILING('прайс-лист2'!E10*Титульный!$AY$1,Титульный!$AY$3) -> 8338 | E10: =CEILING('прайс-лист2'!F10*Титульный!$AY$1,Титульный!$AY$3) -> 10458 | F10: =CEILING('прайс-лист2'!G10*Титульный!$AY$1,Титульный!$AY$3) -> 8658 | G10: =CEILING('прайс-лист2'!H10*Титульный!$AY$1,Титульный!$AY$3) -> 9448 | H10: =CEILING('прайс-лист2'!I10*Титульный!$AY$1,Титульный!$AY$3) -> 6951 | I10: =CEILING('прайс-лист2'!J10*Титульный!$AY$1,Титульный!$AY$3) -> 7061 | J10: =CEILING('прайс-лист2'!K10*Титульный!$AY$1,Титульный!$AY$3) -> 7401 | K10: =CEILING('прайс-лист2'!L10*Титульный!$AY$1,Титульный!$AY$3) -> 7861 | L10: - | M10: - | N10: - | O10: =CEILING('прайс-лист2'!P10*Титульный!$AY$1,Титульный!$AY$3) -> 10231 | P10: =CEILING('прайс-лист2'!Q10*Титульный!$AY$1,Титульный!$AY$3) -> 10981 | Q10: - | R10: - | S10: -
A11: Шкаф (420) 1дв витрина 1240х560 | C11: 560х440х1240 | D11: =CEILING('прайс-лист2'!E11*Титульный!$AY$1,Титульный!$AY$3) -> 9839 | E11: =CEILING('прайс-лист2'!F11*Титульный!$AY$1,Титульный!$AY$3) -> 12669 | F11: =CEILING('прайс-лист2'!G11*Титульный!$AY$1,Титульный!$AY$3) -> 10269 | G11: =CEILING('прайс-лист2'!H11*Титульный!$AY$1,Титульный!$AY$3) -> 11319 | H11: =CEILING('прайс-лист2'!I11*Титульный!$AY$1,Титульный!$AY$3) -> 7919 | I11: =CEILING('прайс-лист2'!J11*Титульный!$AY$1,Титульный!$AY$3) -> 8079 | J11: =CEILING('прайс-лист2'!K11*Титульный!$AY$1,Титульный!$AY$3) -> 8539 | K11: =CEILING('прайс-лист2'!L11*Титульный!$AY$1,Титульный!$AY$3) -> 9149 | L11: - | M11: - | N11: - | O11: =CEILING('прайс-лист2'!P11*Титульный!$AY$1,Титульный!$AY$3) -> 12149 | P11: =CEILING('прайс-лист2'!Q11*Титульный!$AY$1,Титульный!$AY$3) -> 13159 | Q11: - | R11: - | S11: -
A12: Шкаф (420) 1дв витрина 2040х420 | C12: 420х440х2040 | D12: =CEILING('прайс-лист2'!E12*Титульный!$AY$1,Титульный!$AY$3) -> 11584 | E12: =CEILING('прайс-лист2'!F12*Титульный!$AY$1,Титульный!$AY$3) -> 15124 | F12: =CEILING('прайс-лист2'!G12*Титульный!$AY$1,Титульный!$AY$3) -> 12124 | G12: =CEILING('прайс-лист2'!H12*Титульный!$AY$1,Титульный!$AY$3) -> 13444 | H12: =CEILING('прайс-лист2'!I12*Титульный!$AY$1,Титульный!$AY$3) -> 9228 | I12: =CEILING('прайс-лист2'!J12*Титульный!$AY$1,Титульный!$AY$3) -> 9428 | J12: =CEILING('прайс-лист2'!K12*Титульный!$AY$1,Титульный!$AY$3) -> 10018 | K12: =CEILING('прайс-лист2'!L12*Титульный!$AY$1,Титульный!$AY$3) -> 10798 | L12: - | M12: - | N12: - | O12: =CEILING('прайс-лист2'!P12*Титульный!$AY$1,Титульный!$AY$3) -> 14578 | P12: =CEILING('прайс-лист2'!Q12*Титульный!$AY$1,Титульный!$AY$3) -> 15868 | Q12: - | R12: - | S12: -
A13: Шкаф (420) 1дв витрина 2040х560 | C13: 560х440х2040 | D13: =CEILING('прайс-лист2'!E13*Титульный!$AY$1,Титульный!$AY$3) -> 13224 | E13: =CEILING('прайс-лист2'!F13*Титульный!$AY$1,Титульный!$AY$3) -> 17944 | F13: =CEILING('прайс-лист2'!G13*Титульный!$AY$1,Титульный!$AY$3) -> 13934 | G13: =CEILING('прайс-лист2'!H13*Титульный!$AY$1,Титульный!$AY$3) -> 15704 | H13: =CEILING('прайс-лист2'!I13*Титульный!$AY$1,Титульный!$AY$3) -> 9979 | I13: =CEILING('прайс-лист2'!J13*Титульный!$AY$1,Титульный!$AY$3) -> 10239 | J13: =CEILING('прайс-лист2'!K13*Титульный!$AY$1,Титульный!$AY$3) -> 11029 | K13: =CEILING('прайс-лист2'!L13*Титульный!$AY$1,Титульный!$AY$3) -> 12069 | L13: - | M13: - | N13: - | O13: =CEILING('прайс-лист2'!P13*Титульный!$AY$1,Титульный!$AY$3) -> 16849 | P13: =CEILING('прайс-лист2'!Q13*Титульный!$AY$1,Титульный!$AY$3) -> 18569 | Q13: -
A14: Шкаф (420) 1дв витрина 2240х420 | C14: 420х440х2240 | D14: =CEILING('прайс-лист2'!E14*Титульный!$AY$1,Титульный!$AY$3) -> 12658 | E14: =CEILING('прайс-лист2'!F14*Титульный!$AY$1,Титульный!$AY$3) -> 16538 | F14: =CEILING('прайс-лист2'!G14*Титульный!$AY$1,Титульный!$AY$3) -> 13238 | G14: =CEILING('прайс-лист2'!H14*Титульный!$AY$1,Титульный!$AY$3) -> 14698 | H14: =CEILING('прайс-лист2'!I14*Титульный!$AY$1,Титульный!$AY$3) -> 9955 | I14: =CEILING('прайс-лист2'!J14*Титульный!$AY$1,Титульный!$AY$3) -> 10165 | J14: =CEILING('прайс-лист2'!K14*Титульный!$AY$1,Титульный!$AY$3) -> 10815 | K14: =CEILING('прайс-лист2'!L14*Титульный!$AY$1,Титульный!$AY$3) -> 11675 | L14: - | M14: - | N14: - | O14: =CEILING('прайс-лист2'!P14*Титульный!$AY$1,Титульный!$AY$3) -> 15815 | P14: =CEILING('прайс-лист2'!Q14*Титульный!$AY$1,Титульный!$AY$3) -> 17245 | Q14: - | R14: - | S14: -
A15: Шкаф (420) 1дв 2ящ 2040х420 | C15: 420х440х2040 | D15: =CEILING('прайс-лист2'!E15*Титульный!$AY$1,Титульный!$AY$3) -> 11717 | E15: =CEILING('прайс-лист2'!F15*Титульный!$AY$1,Титульный!$AY$3) -> 15237 | F15: =CEILING('прайс-лист2'!G15*Титульный!$AY$1,Титульный!$AY$3) -> 12247 | G15: =CEILING('прайс-лист2'!H15*Титульный!$AY$1,Титульный!$AY$3) -> 13557 | H15: =CEILING('прайс-лист2'!I15*Титульный!$AY$1,Титульный!$AY$3) -> 10267 | I15: =CEILING('прайс-лист2'!J15*Титульный!$AY$1,Титульный!$AY$3) -> 10577 | J15: =CEILING('прайс-лист2'!K15*Титульный!$AY$1,Титульный!$AY$3) -> 11317 | K15: =CEILING('прайс-лист2'!L15*Титульный!$AY$1,Титульный!$AY$3) -> 12187 | L15: - | M15: =CEILING('прайс-лист2'!N15*Титульный!$AY$1,Титульный!$AY$3) -> 15317 | N15: =CEILING('прайс-лист2'!O15*Титульный!$AY$1,Титульный!$AY$3) -> 16677 | O15: =CEILING('прайс-лист2'!P15*Титульный!$AY$1,Титульный!$AY$3) -> 15297 | P15: =CEILING('прайс-лист2'!Q15*Титульный!$AY$1,Титульный!$AY$3) -> 16507 | Q15: - | R15: =CEILING('прайс-лист2'!S15*Титульный!$AY$1,Титульный!$AY$3) -> 1344 | S15: =CEILING('прайс-лист2'!T15*Титульный!$AY$1,Титульный!$AY$3) -> 2010
A16: Шкаф (420) 1дв 2ящ 2240х420 | C16: 420х440х2240 | D16: =CEILING('прайс-лист2'!E16*Титульный!$AY$1,Титульный!$AY$3) -> 12599 | E16: =CEILING('прайс-лист2'!F16*Титульный!$AY$1,Титульный!$AY$3) -> 16479 | F16: =CEILING('прайс-лист2'!G16*Титульный!$AY$1,Титульный!$AY$3) -> 13179 | G16: =CEILING('прайс-лист2'!H16*Титульный!$AY$1,Титульный!$AY$3) -> 14629 | H16: =CEILING('прайс-лист2'!I16*Титульный!$AY$1,Титульный!$AY$3) -> 10999 | I16: =CEILING('прайс-лист2'!J16*Титульный!$AY$1,Титульный!$AY$3) -> 11339 | J16: =CEILING('прайс-лист2'!K16*Титульный!$AY$1,Титульный!$AY$3) -> 12149 | K16: =CEILING('прайс-лист2'!L16*Титульный!$AY$1,Титульный!$AY$3) -> 13099 | L16: - | M16: =CEILING('прайс-лист2'!N16*Титульный!$AY$1,Титульный!$AY$3) -> 16509 | N16: =CEILING('прайс-лист2'!O16*Титульный!$AY$1,Титульный!$AY$3) -> 17959 | O16: =CEILING('прайс-лист2'!P16*Титульный!$AY$1,Титульный!$AY$3) -> 16499 | P16: =CEILING('прайс-лист2'!Q16*Титульный!$AY$1,Титульный!$AY$3) -> 17829 | Q16: - | R16: =CEILING('прайс-лист2'!S16*Титульный!$AY$1,Титульный!$AY$3) -> 1523 | S16: =CEILING('прайс-лист2'!T16*Титульный!$AY$1,Титульный!$AY$3) -> 2250
A17: Шкаф (420) 1дв 2ящ 2040х560 | C17: 560х440х2040 | D17: =CEILING('прайс-лист2'!E17*Титульный!$AY$1,Титульный!$AY$3) -> 13685 | E17: =CEILING('прайс-лист2'!F17*Титульный!$AY$1,Титульный!$AY$3) -> 18395 | F17: =CEILING('прайс-лист2'!G17*Титульный!$AY$1,Титульный!$AY$3) -> 14395 | G17: =CEILING('прайс-лист2'!H17*Титульный!$AY$1,Титульный!$AY$3) -> 16165 | H17: =CEILING('прайс-лист2'!I17*Титульный!$AY$1,Титульный!$AY$3) -> 11715 | I17: =CEILING('прайс-лист2'!J17*Титульный!$AY$1,Титульный!$AY$3) -> 12115 | J17: =CEILING('прайс-лист2'!K17*Титульный!$AY$1,Титульный!$AY$3) -> 13075 | K17: =CEILING('прайс-лист2'!L17*Титульный!$AY$1,Титульный!$AY$3) -> 14185 | L17: - | M17: =CEILING('прайс-лист2'!N17*Титульный!$AY$1,Титульный!$AY$3) -> 18225 | N17: =CEILING('прайс-лист2'!O17*Титульный!$AY$1,Титульный!$AY$3) -> 19765 | O17: =CEILING('прайс-лист2'!P17*Титульный!$AY$1,Титульный!$AY$3) -> 18205 | P17: =CEILING('прайс-лист2'!Q17*Титульный!$AY$1,Титульный!$AY$3) -> 19815 | Q17: - | R17: =CEILING('прайс-лист2'!S17*Титульный!$AY$1,Титульный!$AY$3) -> 1932 | S17: =CEILING('прайс-лист2'!T17*Титульный!$AY$1,Титульный!$AY$3) -> 2677
A18: Шкаф (420) 1дв 2ящ 2240х560 | C18: 560х440х2240 | D18: =CEILING('прайс-лист2'!E18*Титульный!$AY$1,Титульный!$AY$3) -> 14733 | E18: =CEILING('прайс-лист2'!F18*Титульный!$AY$1,Титульный!$AY$3) -> 19923 | F18: =CEILING('прайс-лист2'!G18*Титульный!$AY$1,Титульный!$AY$3) -> 15523 | G18: =CEILING('прайс-лист2'!H18*Титульный!$AY$1,Титульный!$AY$3) -> 17463 | H18: =CEILING('прайс-лист2'!I18*Титульный!$AY$1,Титульный!$AY$3) -> 12563 | I18: =CEILING('прайс-лист2'!J18*Титульный!$AY$1,Титульный!$AY$3) -> 13003 | J18: =CEILING('прайс-лист2'!K18*Титульный!$AY$1,Титульный!$AY$3) -> 14043 | K18: =CEILING('прайс-лист2'!L18*Титульный!$AY$1,Титульный!$AY$3) -> 15263 | L18: - | M18: =CEILING('прайс-лист2'!N18*Титульный!$AY$1,Титульный!$AY$3) -> 19673 | N18: =CEILING('прайс-лист2'!O18*Титульный!$AY$1,Титульный!$AY$3) -> 21303 | O18: =CEILING('прайс-лист2'!P18*Титульный!$AY$1,Титульный!$AY$3) -> 19653 | P18: =CEILING('прайс-лист2'!Q18*Титульный!$AY$1,Титульный!$AY$3) -> 21423 | Q18: - | R18: =CEILING('прайс-лист2'!S18*Титульный!$AY$1,Титульный!$AY$3) -> 2190 | S18: =CEILING('прайс-лист2'!T18*Титульный!$AY$1,Титульный!$AY$3) -> 2995
A19: Шкаф (420) 1дв 2ящ Шар 2040х420 | C19: 420х440х2040 | D19: =CEILING('прайс-лист2'!E19*Титульный!$AY$1,Титульный!$AY$3) -> 12359 | E19: =CEILING('прайс-лист2'!F19*Титульный!$AY$1,Титульный!$AY$3) -> 15879 | F19: =CEILING('прайс-лист2'!G19*Титульный!$AY$1,Титульный!$AY$3) -> 12889 | G19: =CEILING('прайс-лист2'!H19*Титульный!$AY$1,Титульный!$AY$3) -> 14199 | H19: =CEILING('прайс-лист2'!I19*Титульный!$AY$1,Титульный!$AY$3) -> 10909 | I19: =CEILING('прайс-лист2'!J19*Титульный!$AY$1,Титульный!$AY$3) -> 11219 | J19: =CEILING('прайс-лист2'!K19*Титульный!$AY$1,Титульный!$AY$3) -> 11959 | K19: =CEILING('прайс-лист2'!L19*Титульный!$AY$1,Титульный!$AY$3) -> 12829 | L19: - | M19: =CEILING('прайс-лист2'!N19*Титульный!$AY$1,Титульный!$AY$3) -> 15959 | N19: =CEILING('прайс-лист2'!O19*Титульный!$AY$1,Титульный!$AY$3) -> 17319 | O19: =CEILING('прайс-лист2'!P19*Титульный!$AY$1,Титульный!$AY$3) -> 15939 | P19: =CEILING('прайс-лист2'!Q19*Титульный!$AY$1,Титульный!$AY$3) -> 17149 | Q19: - | R19: =CEILING('прайс-лист2'!S19*Титульный!$AY$1,Титульный!$AY$3) -> 1344 | S19: =CEILING('прайс-лист2'!T19*Титульный!$AY$1,Титульный!$AY$3) -> 2010
A20: Шкаф (420) 1дв 2ящ Шар 2240х420 | C20: 420х440х2240 | D20: =CEILING('прайс-лист2'!E20*Титульный!$AY$1,Титульный!$AY$3) -> 13229 | E20: =CEILING('прайс-лист2'!F20*Титульный!$AY$1,Титульный!$AY$3) -> 17109 | F20: =CEILING('прайс-лист2'!G20*Титульный!$AY$1,Титульный!$AY$3) -> 13809 | G20: =CEILING('прайс-лист2'!H20*Титульный!$AY$1,Титульный!$AY$3) -> 15259 | H20: =CEILING('прайс-лист2'!I20*Титульный!$AY$1,Титульный!$AY$3) -> 11629 | I20: =CEILING('прайс-лист2'!J20*Титульный!$AY$1,Титульный!$AY$3) -> 11969 | J20: =CEILING('прайс-лист2'!K20*Титульный!$AY$1,Титульный!$AY$3) -> 12779 | K20: =CEILING('прайс-лист2'!L20*Титульный!$AY$1,Титульный!$AY$3) -> 13729 | L20: - | M20: =CEILING('прайс-лист2'!N20*Титульный!$AY$1,Титульный!$AY$3) -> 17139 | N20: =CEILING('прайс-лист2'!O20*Титульный!$AY$1,Титульный!$AY$3) -> 18589 | O20: =CEILING('прайс-лист2'!P20*Титульный!$AY$1,Титульный!$AY$3) -> 17129 | P20: =CEILING('прайс-лист2'!Q20*Титульный!$AY$1,Титульный!$AY$3) -> 18459 | Q20: - | R20: =CEILING('прайс-лист2'!S20*Титульный!$AY$1,Титульный!$AY$3) -> 1523 | S20: =CEILING('прайс-лист2'!T20*Титульный!$AY$1,Титульный!$AY$3) -> 2250
A21: Шкаф (420) 1дв 2ящ Шар 2040х560 | C21: 560х440х2040 | D21: =CEILING('прайс-лист2'!E21*Титульный!$AY$1,Титульный!$AY$3) -> 14256 | E21: =CEILING('прайс-лист2'!F21*Титульный!$AY$1,Титульный!$AY$3) -> 18966 | F21: =CEILING('прайс-лист2'!G21*Титульный!$AY$1,Титульный!$AY$3) -> 14966 | G21: =CEILING('прайс-лист2'!H21*Титульный!$AY$1,Титульный!$AY$3) -> 16736 | H21: =CEILING('прайс-лист2'!I21*Титульный!$AY$1,Титульный!$AY$3) -> 12286 | I21: =CEILING('прайс-лист2'!J21*Титульный!$AY$1,Титульный!$AY$3) -> 12686 | J21: =CEILING('прайс-лист2'!K21*Титульный!$AY$1,Титульный!$AY$3) -> 13646 | K21: =CEILING('прайс-лист2'!L21*Титульный!$AY$1,Титульный!$AY$3) -> 14756 | L21: - | M21: =CEILING('прайс-лист2'!N21*Титульный!$AY$1,Титульный!$AY$3) -> 18796 | N21: =CEILING('прайс-лист2'!O21*Титульный!$AY$1,Титульный!$AY$3) -> 20336 | O21: =CEILING('прайс-лист2'!P21*Титульный!$AY$1,Титульный!$AY$3) -> 18776 | P21: =CEILING('прайс-лист2'!Q21*Титульный!$AY$1,Титульный!$AY$3) -> 20386 | Q21: - | R21: =CEILING('прайс-лист2'!S21*Титульный!$AY$1,Титульный!$AY$3) -> 1932 | S21: =CEILING('прайс-лист2'!T21*Титульный!$AY$1,Титульный!$AY$3) -> 2677
A22: Шкаф (420) 1дв 2ящ Шар 2240х560 | C22: 560х440х2240 | D22: =CEILING('прайс-лист2'!E22*Титульный!$AY$1,Титульный!$AY$3) -> 15258 | E22: =CEILING('прайс-лист2'!F22*Титульный!$AY$1,Титульный!$AY$3) -> 20448 | F22: =CEILING('прайс-лист2'!G22*Титульный!$AY$1,Титульный!$AY$3) -> 16048 | G22: =CEILING('прайс-лист2'!H22*Титульный!$AY$1,Титульный!$AY$3) -> 17988 | H22: =CEILING('прайс-лист2'!I22*Титульный!$AY$1,Титульный!$AY$3) -> 13088 | I22: =CEILING('прайс-лист2'!J22*Титульный!$AY$1,Титульный!$AY$3) -> 13528 | J22: =CEILING('прайс-лист2'!K22*Титульный!$AY$1,Титульный!$AY$3) -> 14568 | K22: =CEILING('прайс-лист2'!L22*Титульный!$AY$1,Титульный!$AY$3) -> 15788 | L22: - | M22: =CEILING('прайс-лист2'!N22*Титульный!$AY$1,Титульный!$AY$3) -> 20198 | N22: =CEILING('прайс-лист2'!O22*Титульный!$AY$1,Титульный!$AY$3) -> 21828 | O22: =CEILING('прайс-лист2'!P22*Титульный!$AY$1,Титульный!$AY$3) -> 20178 | P22: =CEILING('прайс-лист2'!Q22*Титульный!$AY$1,Титульный!$AY$3) -> 21948 | Q22: - | R22: =CEILING('прайс-лист2'!S22*Титульный!$AY$1,Титульный!$AY$3) -> 2190 | S22: =CEILING('прайс-лист2'!T22*Титульный!$AY$1,Титульный!$AY$3) -> 2995
A23: Шкаф (420) 1дв 2ящ витрина 2040х420 | C23: 420х440х2040 | D23: =CEILING('прайс-лист2'!E23*Титульный!$AY$1,Титульный!$AY$3) -> 12572 | E23: =CEILING('прайс-лист2'!F23*Титульный!$AY$1,Титульный!$AY$3) -> 16092 | F23: =CEILING('прайс-лист2'!G23*Титульный!$AY$1,Титульный!$AY$3) -> 13102 | G23: =CEILING('прайс-лист2'!H23*Титульный!$AY$1,Титульный!$AY$3) -> 14412 | H23: =CEILING('прайс-лист2'!I23*Титульный!$AY$1,Титульный!$AY$3) -> 10360 | I23: =CEILING('прайс-лист2'!J23*Титульный!$AY$1,Титульный!$AY$3) -> 10600 | J23: =CEILING('прайс-лист2'!K23*Титульный!$AY$1,Титульный!$AY$3) -> 11240 | K23: =CEILING('прайс-лист2'!L23*Титульный!$AY$1,Титульный!$AY$3) -> 12060 | L23: - | M23: - | N23: - | O23: =CEILING('прайс-лист2'!P23*Титульный!$AY$1,Титульный!$AY$3) -> 15880 | P23: =CEILING('прайс-лист2'!Q23*Титульный!$AY$1,Титульный!$AY$3) -> 17140 | Q23: - | R23: - | S23: -
A24: Шкаф (420) 1дв 2ящ витрина 2240х420 | C24: 420х440х2240 | D24: =CEILING('прайс-лист2'!E24*Титульный!$AY$1,Титульный!$AY$3) -> 13953 | E24: =CEILING('прайс-лист2'!F24*Титульный!$AY$1,Титульный!$AY$3) -> 17833 | F24: =CEILING('прайс-лист2'!G24*Титульный!$AY$1,Титульный!$AY$3) -> 14533 | G24: =CEILING('прайс-лист2'!H24*Титульный!$AY$1,Титульный!$AY$3) -> 15983 | H24: =CEILING('прайс-лист2'!I24*Титульный!$AY$1,Титульный!$AY$3) -> 11080 | I24: =CEILING('прайс-лист2'!J24*Титульный!$AY$1,Титульный!$AY$3) -> 11340 | J24: =CEILING('прайс-лист2'!K24*Титульный!$AY$1,Титульный!$AY$3) -> 12040 | K24: =CEILING('прайс-лист2'!L24*Титульный!$AY$1,Титульный!$AY$3) -> 12950 | L24: - | M24: - | N24: - | O24: =CEILING('прайс-лист2'!P24*Титульный!$AY$1,Титульный!$AY$3) -> 17110 | P24: =CEILING('прайс-лист2'!Q24*Титульный!$AY$1,Титульный!$AY$3) -> 18510 | Q24: - | R24: - | S24: -
A25: Шкаф (420) 2дв 1ящ 2040х420 | C25: 420х440х2040 | D25: =CEILING('прайс-лист2'!E25*Титульный!$AY$1,Титульный!$AY$3) -> 11106 | E25: =CEILING('прайс-лист2'!F25*Титульный!$AY$1,Титульный!$AY$3) -> 14636 | F25: =CEILING('прайс-лист2'!G25*Титульный!$AY$1,Титульный!$AY$3) -> 11636 | G25: =CEILING('прайс-лист2'!H25*Титульный!$AY$1,Титульный!$AY$3) -> 12946 | H25: =CEILING('прайс-лист2'!I25*Титульный!$AY$1,Титульный!$AY$3) -> 9656 | I25: =CEILING('прайс-лист2'!J25*Титульный!$AY$1,Титульный!$AY$3) -> 9956 | J25: =CEILING('прайс-лист2'!K25*Титульный!$AY$1,Титульный!$AY$3) -> 10706 | K25: =CEILING('прайс-лист2'!L25*Титульный!$AY$1,Титульный!$AY$3) -> 11566 | L25: - | M25: =CEILING('прайс-лист2'!N25*Титульный!$AY$1,Титульный!$AY$3) -> 14696 | N25: =CEILING('прайс-лист2'!O25*Титульный!$AY$1,Титульный!$AY$3) -> 16056 | O25: =CEILING('прайс-лист2'!P25*Титульный!$AY$1,Титульный!$AY$3) -> 14676 | P25: =CEILING('прайс-лист2'!Q25*Титульный!$AY$1,Титульный!$AY$3) -> 15896 | Q25: - | R25: - | S25: -
A26: Шкаф (420) 2дв 1ящ 2240х420 | C26: 420х440х2240 | D26: =CEILING('прайс-лист2'!E26*Титульный!$AY$1,Титульный!$AY$3) -> 11962 | E26: =CEILING('прайс-лист2'!F26*Титульный!$AY$1,Титульный!$AY$3) -> 15842 | F26: =CEILING('прайс-лист2'!G26*Титульный!$AY$1,Титульный!$AY$3) -> 12552 | G26: =CEILING('прайс-лист2'!H26*Титульный!$AY$1,Титульный!$AY$3) -> 13992 | H26: =CEILING('прайс-лист2'!I26*Титульный!$AY$1,Титульный!$AY$3) -> 10362 | I26: =CEILING('прайс-лист2'!J26*Титульный!$AY$1,Титульный!$AY$3) -> 10692 | J26: =CEILING('прайс-лист2'!K26*Титульный!$AY$1,Титульный!$AY$3) -> 11512 | K26: =CEILING('прайс-лист2'!L26*Титульный!$AY$1,Титульный!$AY$3) -> 12452 | L26: - | M26: =CEILING('прайс-лист2'!N26*Титульный!$AY$1,Титульный!$AY$3) -> 15872 | N26: =CEILING('прайс-лист2'!O26*Титульный!$AY$1,Титульный!$AY$3) -> 17312 | O26: =CEILING('прайс-лист2'!P26*Титульный!$AY$1,Титульный!$AY$3) -> 15852 | P26: =CEILING('прайс-лист2'!Q26*Титульный!$AY$1,Титульный!$AY$3) -> 17182 | Q26: - | R26: - | S26: -
A27: Шкаф (420) 2дв 1ящ витрина 2040х420 | C27: 420х440х2040 | D27: =CEILING('прайс-лист2'!E27*Титульный!$AY$1,Титульный!$AY$3) -> 11956 | E27: =CEILING('прайс-лист2'!F27*Титульный!$AY$1,Титульный!$AY$3) -> 15486 | F27: =CEILING('прайс-лист2'!G27*Титульный!$AY$1,Титульный!$AY$3) -> 12486 | G27: =CEILING('прайс-лист2'!H27*Титульный!$AY$1,Титульный!$AY$3) -> 13796 | H27: =CEILING('прайс-лист2'!I27*Титульный!$AY$1,Титульный!$AY$3) -> 9760 | I27: =CEILING('прайс-лист2'!J27*Титульный!$AY$1,Титульный!$AY$3) -> 9980 | J27: =CEILING('прайс-лист2'!K27*Титульный!$AY$1,Титульный!$AY$3) -> 10570 | K27: =CEILING('прайс-лист2'!L27*Титульный!$AY$1,Титульный!$AY$3) -> 11350 | L27: - | M27: - | N27: - | O27: =CEILING('прайс-лист2'!P27*Титульный!$AY$1,Титульный!$AY$3) -> 15380 | P27: =CEILING('прайс-лист2'!Q27*Титульный!$AY$1,Титульный!$AY$3) -> 16620 | Q27: - | R27: - | S27: -
A28: Шкаф (420) 2дв 1ящ витрина 2240х420 | C28: 420х440х2240 | D28: =CEILING('прайс-лист2'!E28*Титульный!$AY$1,Титульный!$AY$3) -> 13015 | E28: =CEILING('прайс-лист2'!F28*Титульный!$AY$1,Титульный!$AY$3) -> 16895 | F28: =CEILING('прайс-лист2'!G28*Титульный!$AY$1,Титульный!$AY$3) -> 13605 | G28: =CEILING('прайс-лист2'!H28*Титульный!$AY$1,Титульный!$AY$3) -> 15045 | H28: =CEILING('прайс-лист2'!I28*Титульный!$AY$1,Титульный!$AY$3) -> 10578 | I28: =CEILING('прайс-лист2'!J28*Титульный!$AY$1,Титульный!$AY$3) -> 10818 | J28: =CEILING('прайс-лист2'!K28*Титульный!$AY$1,Титульный!$AY$3) -> 11468 | K28: =CEILING('прайс-лист2'!L28*Титульный!$AY$1,Титульный!$AY$3) -> 12328 | L28: - | M28: - | N28: - | O28: =CEILING('прайс-лист2'!P28*Титульный!$AY$1,Титульный!$AY$3) -> 16718 | P28: =CEILING('прайс-лист2'!Q28*Титульный!$AY$1,Титульный!$AY$3) -> 18088 | Q28: - | R28: - | S28: -
A29: Шкаф (420) 2дв 1ящ шар 2040х420 | C29: 420х440х2040 | D29: =CEILING('прайс-лист2'!E29*Титульный!$AY$1,Титульный!$AY$3) -> 11356 | E29: =CEILING('прайс-лист2'!F29*Титульный!$AY$1,Титульный!$AY$3) -> 14886 | F29: =CEILING('прайс-лист2'!G29*Титульный!$AY$1,Титульный!$AY$3) -> 11886 | G29: =CEILING('прайс-лист2'!H29*Титульный!$AY$1,Титульный!$AY$3) -> 13196 | H29: =CEILING('прайс-лист2'!I29*Титульный!$AY$1,Титульный!$AY$3) -> 9906 | I29: =CEILING('прайс-лист2'!J29*Титульный!$AY$1,Титульный!$AY$3) -> 10206 | J29: =CEILING('прайс-лист2'!K29*Титульный!$AY$1,Титульный!$AY$3) -> 10956 | K29: =CEILING('прайс-лист2'!L29*Титульный!$AY$1,Титульный!$AY$3) -> 11816 | L29: - | M29: =CEILING('прайс-лист2'!N29*Титульный!$AY$1,Титульный!$AY$3) -> 14946 | N29: =CEILING('прайс-лист2'!O29*Титульный!$AY$1,Титульный!$AY$3) -> 16306 | O29: =CEILING('прайс-лист2'!P29*Титульный!$AY$1,Титульный!$AY$3) -> 14926 | P29: =CEILING('прайс-лист2'!Q29*Титульный!$AY$1,Титульный!$AY$3) -> 16146 | Q29: -
A30: Шкаф (420) 2дв 1ящ шар 2240х420 | C30: 420х440х2240 | D30: =CEILING('прайс-лист2'!E30*Титульный!$AY$1,Титульный!$AY$3) -> 12201 | E30: =CEILING('прайс-лист2'!F30*Титульный!$AY$1,Титульный!$AY$3) -> 16081 | F30: =CEILING('прайс-лист2'!G30*Титульный!$AY$1,Титульный!$AY$3) -> 12791 | G30: =CEILING('прайс-лист2'!H30*Титульный!$AY$1,Титульный!$AY$3) -> 14231 | H30: =CEILING('прайс-лист2'!I30*Титульный!$AY$1,Титульный!$AY$3) -> 10601 | I30: =CEILING('прайс-лист2'!J30*Титульный!$AY$1,Титульный!$AY$3) -> 10931 | J30: =CEILING('прайс-лист2'!K30*Титульный!$AY$1,Титульный!$AY$3) -> 11751 | K30: =CEILING('прайс-лист2'!L30*Титульный!$AY$1,Титульный!$AY$3) -> 12691 | L30: - | M30: =CEILING('прайс-лист2'!N30*Титульный!$AY$1,Титульный!$AY$3) -> 16111 | N30: =CEILING('прайс-лист2'!O30*Титульный!$AY$1,Титульный!$AY$3) -> 17551 | O30: =CEILING('прайс-лист2'!P30*Титульный!$AY$1,Титульный!$AY$3) -> 16091 | P30: =CEILING('прайс-лист2'!Q30*Титульный!$AY$1,Титульный!$AY$3) -> 17421 | Q30: -
A31: Шкаф (420) 2дв 1ящ шар витрина 2040х420 | C31: 420х440х2040 | D31: =CEILING('прайс-лист2'!E31*Титульный!$AY$1,Титульный!$AY$3) -> 12332 | E31: =CEILING('прайс-лист2'!F31*Титульный!$AY$1,Титульный!$AY$3) -> 15862 | F31: =CEILING('прайс-лист2'!G31*Титульный!$AY$1,Титульный!$AY$3) -> 12862 | G31: =CEILING('прайс-лист2'!H31*Титульный!$AY$1,Титульный!$AY$3) -> 14172 | H31: =CEILING('прайс-лист2'!I31*Титульный!$AY$1,Титульный!$AY$3) -> 10136 | I31: =CEILING('прайс-лист2'!J31*Титульный!$AY$1,Титульный!$AY$3) -> 10356 | J31: =CEILING('прайс-лист2'!K31*Титульный!$AY$1,Титульный!$AY$3) -> 10946 | K31: =CEILING('прайс-лист2'!L31*Титульный!$AY$1,Титульный!$AY$3) -> 11726 | L31: - | M31: =CEILING('прайс-лист2'!N31*Титульный!$AY$1,Титульный!$AY$3) -> 15776 | N31: =CEILING('прайс-лист2'!O31*Титульный!$AY$1,Титульный!$AY$3) -> 17576 | O31: =CEILING('прайс-лист2'!P31*Титульный!$AY$1,Титульный!$AY$3) -> 15756 | P31: =CEILING('прайс-лист2'!Q31*Титульный!$AY$1,Титульный!$AY$3) -> 16996 | Q31: -
A32: Шкаф (420) 2дв 1ящ шар витрина 2240х420 | C32: 420х440х2240 | D32: =CEILING('прайс-лист2'!E32*Титульный!$AY$1,Титульный!$AY$3) -> 13248 | E32: =CEILING('прайс-лист2'!F32*Титульный!$AY$1,Титульный!$AY$3) -> 17128 | F32: =CEILING('прайс-лист2'!G32*Титульный!$AY$1,Титульный!$AY$3) -> 13838 | G32: =CEILING('прайс-лист2'!H32*Титульный!$AY$1,Титульный!$AY$3) -> 15278 | H32: =CEILING('прайс-лист2'!I32*Титульный!$AY$1,Титульный!$AY$3) -> 10811 | I32: =CEILING('прайс-лист2'!J32*Титульный!$AY$1,Титульный!$AY$3) -> 11051 | J32: =CEILING('прайс-лист2'!K32*Титульный!$AY$1,Титульный!$AY$3) -> 11701 | K32: =CEILING('прайс-лист2'!L32*Титульный!$AY$1,Титульный!$AY$3) -> 12561 | L32: - | M32: =CEILING('прайс-лист2'!N32*Титульный!$AY$1,Титульный!$AY$3) -> 16971 | N32: =CEILING('прайс-лист2'!O32*Титульный!$AY$1,Титульный!$AY$3) -> 18861 | O32: =CEILING('прайс-лист2'!P32*Титульный!$AY$1,Титульный!$AY$3) -> 16951 | P32: =CEILING('прайс-лист2'!Q32*Титульный!$AY$1,Титульный!$AY$3) -> 18321 | Q32: -
A33: Шкаф (420) 2дв 2040х840 | C33: 840х440х2040 | D33: =CEILING('прайс-лист2'!E33*Титульный!$AY$1,Титульный!$AY$3) -> 17798 | E33: =CEILING('прайс-лист2'!F33*Титульный!$AY$1,Титульный!$AY$3) -> 24878 | F33: =CEILING('прайс-лист2'!G33*Титульный!$AY$1,Титульный!$AY$3) -> 18878 | G33: =CEILING('прайс-лист2'!H33*Титульный!$AY$1,Титульный!$AY$3) -> 21518 | H33: =CEILING('прайс-лист2'!I33*Титульный!$AY$1,Титульный!$AY$3) -> 14818 | I33: =CEILING('прайс-лист2'!J33*Титульный!$AY$1,Титульный!$AY$3) -> 15378 | J33: =CEILING('прайс-лист2'!K33*Титульный!$AY$1,Титульный!$AY$3) -> 16778 | K33: =CEILING('прайс-лист2'!L33*Титульный!$AY$1,Титульный!$AY$3) -> 18438 | L33: - | M33: =CEILING('прайс-лист2'!N33*Титульный!$AY$1,Титульный!$AY$3) -> 24378 | N33: =CEILING('прайс-лист2'!O33*Титульный!$AY$1,Титульный!$AY$3) -> 26398 | O33: =CEILING('прайс-лист2'!P33*Титульный!$AY$1,Титульный!$AY$3) -> 24338 | P33: =CEILING('прайс-лист2'!Q33*Титульный!$AY$1,Титульный!$AY$3) -> 26758 | Q33: - | R33: =CEILING('прайс-лист2'!S33*Титульный!$AY$1,Титульный!$AY$3) -> 2688 | S33: =CEILING('прайс-лист2'!T33*Титульный!$AY$1,Титульный!$AY$3) -> 4980
A34: Шкаф (420) 2дв 2240х840 | C34: 840х440х2240 | D34: =CEILING('прайс-лист2'!E34*Титульный!$AY$1,Титульный!$AY$3) -> 19305 | E34: =CEILING('прайс-лист2'!F34*Титульный!$AY$1,Титульный!$AY$3) -> 27065 | F34: =CEILING('прайс-лист2'!G34*Титульный!$AY$1,Титульный!$AY$3) -> 20465 | G34: =CEILING('прайс-лист2'!H34*Титульный!$AY$1,Титульный!$AY$3) -> 23385 | H34: =CEILING('прайс-лист2'!I34*Титульный!$AY$1,Титульный!$AY$3) -> 16025 | I34: =CEILING('прайс-лист2'!J34*Титульный!$AY$1,Титульный!$AY$3) -> 16625 | J34: =CEILING('прайс-лист2'!K34*Титульный!$AY$1,Титульный!$AY$3) -> 18165 | K34: =CEILING('прайс-лист2'!L34*Титульный!$AY$1,Титульный!$AY$3) -> 19985 | L34: - | M34: =CEILING('прайс-лист2'!N34*Титульный!$AY$1,Титульный!$AY$3) -> 26485 | N34: =CEILING('прайс-лист2'!O34*Титульный!$AY$1,Титульный!$AY$3) -> 28685 | O34: =CEILING('прайс-лист2'!P34*Титульный!$AY$1,Титульный!$AY$3) -> 26445 | P34: =CEILING('прайс-лист2'!Q34*Титульный!$AY$1,Титульный!$AY$3) -> 29105 | Q34: - | R34: =CEILING('прайс-лист2'!S34*Титульный!$AY$1,Титульный!$AY$3) -> 3046 | S34: =CEILING('прайс-лист2'!T34*Титульный!$AY$1,Титульный!$AY$3) -> 5460
A35: Шкаф (420) комб 2дв 2040х840 | C35: 840х440х2040 | D35: =CEILING('прайс-лист2'!E35*Титульный!$AY$1,Титульный!$AY$3) -> 19323 | E35: =CEILING('прайс-лист2'!F35*Титульный!$AY$1,Титульный!$AY$3) -> 26403 | F35: =CEILING('прайс-лист2'!G35*Титульный!$AY$1,Титульный!$AY$3) -> 20403 | G35: =CEILING('прайс-лист2'!H35*Титульный!$AY$1,Титульный!$AY$3) -> 23043 | H35: =CEILING('прайс-лист2'!I35*Титульный!$AY$1,Титульный!$AY$3) -> 16343 | I35: =CEILING('прайс-лист2'!J35*Титульный!$AY$1,Титульный!$AY$3) -> 16903 | J35: =CEILING('прайс-лист2'!K35*Титульный!$AY$1,Титульный!$AY$3) -> 18303 | K35: =CEILING('прайс-лист2'!L35*Титульный!$AY$1,Титульный!$AY$3) -> 19963 | L35: - | M35: =CEILING('прайс-лист2'!N35*Титульный!$AY$1,Титульный!$AY$3) -> 25903 | N35: =CEILING('прайс-лист2'!O35*Титульный!$AY$1,Титульный!$AY$3) -> 27923 | O35: =CEILING('прайс-лист2'!P35*Титульный!$AY$1,Титульный!$AY$3) -> 25863 | P35: =CEILING('прайс-лист2'!Q35*Титульный!$AY$1,Титульный!$AY$3) -> 28283 | Q35: - | R35: =CEILING('прайс-лист2'!S35*Титульный!$AY$1,Титульный!$AY$3) -> 2688 | S35: =CEILING('прайс-лист2'!T35*Титульный!$AY$1,Титульный!$AY$3) -> 4980
A36: Шкаф (420) комб 2дв 2240х840 | C36: 840х440х2240 | D36: =CEILING('прайс-лист2'!E36*Титульный!$AY$1,Титульный!$AY$3) -> 20685 | E36: =CEILING('прайс-лист2'!F36*Титульный!$AY$1,Титульный!$AY$3) -> 28445 | F36: =CEILING('прайс-лист2'!G36*Титульный!$AY$1,Титульный!$AY$3) -> 21845 | G36: =CEILING('прайс-лист2'!H36*Титульный!$AY$1,Титульный!$AY$3) -> 24765 | H36: =CEILING('прайс-лист2'!I36*Титульный!$AY$1,Титульный!$AY$3) -> 17405 | I36: =CEILING('прайс-лист2'!J36*Титульный!$AY$1,Титульный!$AY$3) -> 18005 | J36: =CEILING('прайс-лист2'!K36*Титульный!$AY$1,Титульный!$AY$3) -> 19545 | K36: =CEILING('прайс-лист2'!L36*Титульный!$AY$1,Титульный!$AY$3) -> 21365 | L36: - | M36: =CEILING('прайс-лист2'!N36*Титульный!$AY$1,Титульный!$AY$3) -> 27865 | N36: =CEILING('прайс-лист2'!O36*Титульный!$AY$1,Титульный!$AY$3) -> 30065 | O36: =CEILING('прайс-лист2'!P36*Титульный!$AY$1,Титульный!$AY$3) -> 27825 | P36: =CEILING('прайс-лист2'!Q36*Титульный!$AY$1,Титульный!$AY$3) -> 30485 | Q36: - | R36: =CEILING('прайс-лист2'!S36*Титульный!$AY$1,Титульный!$AY$3) -> 3046 | S36: =CEILING('прайс-лист2'!T36*Титульный!$AY$1,Титульный!$AY$3) -> 5460
A37: Шкаф (420) 2дв витрина 2040х840 | C37: 840х440х2040 | D37: =CEILING('прайс-лист2'!E37*Титульный!$AY$1,Титульный!$AY$3) -> 21870 | E37: =CEILING('прайс-лист2'!F37*Титульный!$AY$1,Титульный!$AY$3) -> 28950 | F37: =CEILING('прайс-лист2'!G37*Титульный!$AY$1,Титульный!$AY$3) -> 22950 | G37: =CEILING('прайс-лист2'!H37*Титульный!$AY$1,Титульный!$AY$3) -> 25590 | H37: =CEILING('прайс-лист2'!I37*Титульный!$AY$1,Титульный!$AY$3) -> 15058 | I37: =CEILING('прайс-лист2'!J37*Титульный!$AY$1,Титульный!$AY$3) -> 15458 | J37: =CEILING('прайс-лист2'!K37*Титульный!$AY$1,Титульный!$AY$3) -> 16638 | K37: =CEILING('прайс-лист2'!L37*Титульный!$AY$1,Титульный!$AY$3) -> 18198 | L37: - | M37: - | N37: - | O37: =CEILING('прайс-лист2'!P37*Титульный!$AY$1,Титульный!$AY$3) -> 25758 | P37: =CEILING('прайс-лист2'!Q37*Титульный!$AY$1,Титульный!$AY$3) -> 28338 | Q37: - | R37: - | S37: -
A38: Шкаф (420) 2дв витрина 2240х840 | C38: 840х440х2240 | D38: =CEILING('прайс-лист2'!E38*Титульный!$AY$1,Титульный!$AY$3) -> 23777 | E38: =CEILING('прайс-лист2'!F38*Титульный!$AY$1,Титульный!$AY$3) -> 31537 | F38: =CEILING('прайс-лист2'!G38*Титульный!$AY$1,Титульный!$AY$3) -> 24937 | G38: =CEILING('прайс-лист2'!H38*Титульный!$AY$1,Титульный!$AY$3) -> 27857 | H38: =CEILING('прайс-лист2'!I38*Титульный!$AY$1,Титульный!$AY$3) -> 16261 | I38: =CEILING('прайс-лист2'!J38*Титульный!$AY$1,Титульный!$AY$3) -> 16681 | J38: =CEILING('прайс-лист2'!K38*Титульный!$AY$1,Титульный!$AY$3) -> 17981 | K38: =CEILING('прайс-лист2'!L38*Титульный!$AY$1,Титульный!$AY$3) -> 19701 | L38: - | M38: - | N38: - | O38: =CEILING('прайс-лист2'!P38*Титульный!$AY$1,Титульный!$AY$3) -> 27981 | P38: =CEILING('прайс-лист2'!Q38*Титульный!$AY$1,Титульный!$AY$3) -> 30841 | Q38: - | R38: - | S38: -
A39: Внимание!!! Для наборов мебели "Марго" использовать только накладные зеркала
A40: Шкафы глубиной 420мм
A41: Наименование | B41: Эскиз | C41: Габариты, ШхГхВ мм. | D41: МДФ фасады | H41: Марго16 | M41: UV-лак | O41: ТСС | Q41: ТСС сборный | R41: Стоимость зеркал
D42: 1 ЦК | E42: 1 ЦК + патина | F42: 2 ЦК | G42: 3 ЦК | H42: 1 ц.к. | I42: 2 ц.к. | J42: 3 ц.к. | K42: 4 ц.к. | L42: 5 ц.к. | M42: UV-лак кромка ABC/AL кромка | N42: кромка 3D | O42: 1 ЦК | P42: 2 ЦК | R42: Зеркало в рамке** | S42: Зеркало накладное*
A43: Шкаф (420) 2дв 2ящ 2040х840 | C43: 840х440х2040 | D43: =CEILING('прайс-лист2'!E39*Титульный!$AY$1,Титульный!$AY$3) -> 19010 | E43: =CEILING('прайс-лист2'!F39*Титульный!$AY$1,Титульный!$AY$3) -> 26050 | F43: =CEILING('прайс-лист2'!G39*Титульный!$AY$1,Титульный!$AY$3) -> 20090 | G43: =CEILING('прайс-лист2'!H39*Титульный!$AY$1,Титульный!$AY$3) -> 22710 | H43: =CEILING('прайс-лист2'!I39*Титульный!$AY$1,Титульный!$AY$3) -> 16090 | I43: =CEILING('прайс-лист2'!J39*Титульный!$AY$1,Титульный!$AY$3) -> 16690 | J43: =CEILING('прайс-лист2'!K39*Титульный!$AY$1,Титульный!$AY$3) -> 18170 | K43: =CEILING('прайс-лист2'!L39*Титульный!$AY$1,Титульный!$AY$3) -> 19870 | L43: - | M43: =CEILING('прайс-лист2'!N39*Титульный!$AY$1,Титульный!$AY$3) -> 26050 | N43: =CEILING('прайс-лист2'!O39*Титульный!$AY$1,Титульный!$AY$3) -> 28610 | O43: =CEILING('прайс-лист2'!P39*Титульный!$AY$1,Титульный!$AY$3) -> 26010 | P43: =CEILING('прайс-лист2'!Q39*Титульный!$AY$1,Титульный!$AY$3) -> 28430 | Q43: - | R43: =CEILING('прайс-лист2'!S39*Титульный!$AY$1,Титульный!$AY$3) -> 2688 | S43: =CEILING('прайс-лист2'!T39*Титульный!$AY$1,Титульный!$AY$3) -> 4980
A44: Шкаф (420) 2дв 2ящ 2240х840 | C44: 840х440х2240 | D44: =CEILING('прайс-лист2'!E40*Титульный!$AY$1,Титульный!$AY$3) -> 20525 | E44: =CEILING('прайс-лист2'!F40*Титульный!$AY$1,Титульный!$AY$3) -> 28285 | F44: =CEILING('прайс-лист2'!G40*Титульный!$AY$1,Титульный!$AY$3) -> 21705 | G44: =CEILING('прайс-лист2'!H40*Титульный!$AY$1,Титульный!$AY$3) -> 24605 | H44: =CEILING('прайс-лист2'!I40*Титульный!$AY$1,Титульный!$AY$3) -> 17305 | I44: =CEILING('прайс-лист2'!J40*Титульный!$AY$1,Титульный!$AY$3) -> 17965 | J44: =CEILING('прайс-лист2'!K40*Титульный!$AY$1,Титульный!$AY$3) -> 19585 | K44: =CEILING('прайс-лист2'!L40*Титульный!$AY$1,Титульный!$AY$3) -> 21445 | L44: - | M44: =CEILING('прайс-лист2'!N40*Титульный!$AY$1,Титульный!$AY$3) -> 28185 | N44: =CEILING('прайс-лист2'!O40*Титульный!$AY$1,Титульный!$AY$3) -> 30925 | O44: =CEILING('прайс-лист2'!P40*Титульный!$AY$1,Титульный!$AY$3) -> 28165 | P44: =CEILING('прайс-лист2'!Q40*Титульный!$AY$1,Титульный!$AY$3) -> 30825 | Q44: - | R44: =CEILING('прайс-лист2'!S40*Титульный!$AY$1,Титульный!$AY$3) -> 3046 | S44: =CEILING('прайс-лист2'!T40*Титульный!$AY$1,Титульный!$AY$3) -> 5460
A45: Шкаф (420) 2дв 2ящ витрина 2040х840 | C45: 840х440х2040 | D45: =CEILING('прайс-лист2'!E41*Титульный!$AY$1,Титульный!$AY$3) -> 22224 | E45: =CEILING('прайс-лист2'!F41*Титульный!$AY$1,Титульный!$AY$3) -> 29264 | F45: =CEILING('прайс-лист2'!G41*Титульный!$AY$1,Титульный!$AY$3) -> 23304 | G45: =CEILING('прайс-лист2'!H41*Титульный!$AY$1,Титульный!$AY$3) -> 25924 | H45: =CEILING('прайс-лист2'!I41*Титульный!$AY$1,Титульный!$AY$3) -> 16276 | I45: =CEILING('прайс-лист2'!J41*Титульный!$AY$1,Титульный!$AY$3) -> 16736 | J45: =CEILING('прайс-лист2'!K41*Титульный!$AY$1,Титульный!$AY$3) -> 18016 | K45: =CEILING('прайс-лист2'!L41*Титульный!$AY$1,Титульный!$AY$3) -> 19616 | L45: - | M45: - | N45: - | O45: =CEILING('прайс-лист2'!P41*Титульный!$AY$1,Титульный!$AY$3) -> 27176 | P45: =CEILING('прайс-лист2'!Q41*Титульный!$AY$1,Титульный!$AY$3) -> 29696 | Q45: - | R45: - | S45: -
A46: Шкаф (420) 2дв 2ящ витрина 2240х840 | C46: 840х440х2240 | D46: =CEILING('прайс-лист2'!E42*Титульный!$AY$1,Титульный!$AY$3) -> 23872 | E46: =CEILING('прайс-лист2'!F42*Титульный!$AY$1,Титульный!$AY$3) -> 31632 | F46: =CEILING('прайс-лист2'!G42*Титульный!$AY$1,Титульный!$AY$3) -> 25052 | G46: =CEILING('прайс-лист2'!H42*Титульный!$AY$1,Титульный!$AY$3) -> 27952 | H46: =CEILING('прайс-лист2'!I42*Титульный!$AY$1,Титульный!$AY$3) -> 17222 | I46: =CEILING('прайс-лист2'!J42*Титульный!$AY$1,Титульный!$AY$3) -> 17722 | J46: =CEILING('прайс-лист2'!K42*Титульный!$AY$1,Титульный!$AY$3) -> 19122 | K46: =CEILING('прайс-лист2'!L42*Титульный!$AY$1,Титульный!$AY$3) -> 20902 | L46: - | M46: - | N46: - | O46: =CEILING('прайс-лист2'!P42*Титульный!$AY$1,Титульный!$AY$3) -> 29142 | P46: =CEILING('прайс-лист2'!Q42*Титульный!$AY$1,Титульный!$AY$3) -> 31942 | Q46: - | R46: - | S46: -
A47: Шкаф (420) 2дв 2ящ шар 2040х840 | C47: 840х440х2040 | D47: =CEILING('прайс-лист2'!E43*Титульный!$AY$1,Титульный!$AY$3) -> 19235 | E47: =CEILING('прайс-лист2'!F43*Титульный!$AY$1,Титульный!$AY$3) -> 26275 | F47: =CEILING('прайс-лист2'!G43*Титульный!$AY$1,Титульный!$AY$3) -> 20315 | G47: =CEILING('прайс-лист2'!H43*Титульный!$AY$1,Титульный!$AY$3) -> 22935 | H47: =CEILING('прайс-лист2'!I43*Титульный!$AY$1,Титульный!$AY$3) -> 16315 | I47: =CEILING('прайс-лист2'!J43*Титульный!$AY$1,Титульный!$AY$3) -> 16915 | J47: =CEILING('прайс-лист2'!K43*Титульный!$AY$1,Титульный!$AY$3) -> 18395 | K47: =CEILING('прайс-лист2'!L43*Титульный!$AY$1,Титульный!$AY$3) -> 20095 | L47: - | M47: =CEILING('прайс-лист2'!N43*Титульный!$AY$1,Титульный!$AY$3) -> 26275 | N47: =CEILING('прайс-лист2'!O43*Титульный!$AY$1,Титульный!$AY$3) -> 28835 | O47: =CEILING('прайс-лист2'!P43*Титульный!$AY$1,Титульный!$AY$3) -> 26235 | P47: =CEILING('прайс-лист2'!Q43*Титульный!$AY$1,Титульный!$AY$3) -> 28655 | Q47: -
A48: Шкаф (420) 2дв 2ящ шар 2240х840 | C48: 840х440х2240 | D48: =CEILING('прайс-лист2'!E44*Титульный!$AY$1,Титульный!$AY$3) -> 20723 | E48: =CEILING('прайс-лист2'!F44*Титульный!$AY$1,Титульный!$AY$3) -> 28483 | F48: =CEILING('прайс-лист2'!G44*Титульный!$AY$1,Титульный!$AY$3) -> 21903 | G48: =CEILING('прайс-лист2'!H44*Титульный!$AY$1,Титульный!$AY$3) -> 24803 | H48: =CEILING('прайс-лист2'!I44*Титульный!$AY$1,Титульный!$AY$3) -> 17503 | I48: =CEILING('прайс-лист2'!J44*Титульный!$AY$1,Титульный!$AY$3) -> 18163 | J48: =CEILING('прайс-лист2'!K44*Титульный!$AY$1,Титульный!$AY$3) -> 19783 | K48: =CEILING('прайс-лист2'!L44*Титульный!$AY$1,Титульный!$AY$3) -> 21643 | L48: - | M48: =CEILING('прайс-лист2'!N44*Титульный!$AY$1,Титульный!$AY$3) -> 28383 | N48: =CEILING('прайс-лист2'!O44*Титульный!$AY$1,Титульный!$AY$3) -> 31123 | O48: =CEILING('прайс-лист2'!P44*Титульный!$AY$1,Титульный!$AY$3) -> 28363 | P48: =CEILING('прайс-лист2'!Q44*Титульный!$AY$1,Титульный!$AY$3) -> 31023 | Q48: -
A49: Шкаф (420) 2дв 2ящ шар витрина 2040х840 | C49: 840х440х2040 | D49: =CEILING('прайс-лист2'!E45*Титульный!$AY$1,Титульный!$AY$3) -> 22442 | E49: =CEILING('прайс-лист2'!F45*Титульный!$AY$1,Титульный!$AY$3) -> 29482 | F49: =CEILING('прайс-лист2'!G45*Титульный!$AY$1,Титульный!$AY$3) -> 23522 | G49: =CEILING('прайс-лист2'!H45*Титульный!$AY$1,Титульный!$AY$3) -> 26142 | H49: =CEILING('прайс-лист2'!I45*Титульный!$AY$1,Титульный!$AY$3) -> 16494 | I49: =CEILING('прайс-лист2'!J45*Титульный!$AY$1,Титульный!$AY$3) -> 16954 | J49: =CEILING('прайс-лист2'!K45*Титульный!$AY$1,Титульный!$AY$3) -> 18234 | K49: =CEILING('прайс-лист2'!L45*Титульный!$AY$1,Титульный!$AY$3) -> 19834 | L49: - | M49: =CEILING('прайс-лист2'!N45*Титульный!$AY$1,Титульный!$AY$3) -> 27414 | N49: =CEILING('прайс-лист2'!O45*Титульный!$AY$1,Титульный!$AY$3) -> 30474 | O49: =CEILING('прайс-лист2'!P45*Титульный!$AY$1,Титульный!$AY$3) -> 27394 | P49: =CEILING('прайс-лист2'!Q45*Титульный!$AY$1,Титульный!$AY$3) -> 29914 | Q49: -
A50: Шкаф (420) 2дв 2ящ шар витрина 2240х840 | C50: 840х440х2240 | D50: =CEILING('прайс-лист2'!E46*Титульный!$AY$1,Титульный!$AY$3) -> 24598 | E50: =CEILING('прайс-лист2'!F46*Титульный!$AY$1,Титульный!$AY$3) -> 32358 | F50: =CEILING('прайс-лист2'!G46*Титульный!$AY$1,Титульный!$AY$3) -> 25778 | G50: =CEILING('прайс-лист2'!H46*Титульный!$AY$1,Титульный!$AY$3) -> 28678 | H50: =CEILING('прайс-лист2'!I46*Титульный!$AY$1,Титульный!$AY$3) -> 17948 | I50: =CEILING('прайс-лист2'!J46*Титульный!$AY$1,Титульный!$AY$3) -> 18448 | J50: =CEILING('прайс-лист2'!K46*Титульный!$AY$1,Титульный!$AY$3) -> 19848 | K50: =CEILING('прайс-лист2'!L46*Титульный!$AY$1,Титульный!$AY$3) -> 21628 | L50: - | M50: =CEILING('прайс-лист2'!N46*Титульный!$AY$1,Титульный!$AY$3) -> 29908 | N50: =CEILING('прайс-лист2'!O46*Титульный!$AY$1,Титульный!$AY$3) -> 33168 | O50: =CEILING('прайс-лист2'!P46*Титульный!$AY$1,Титульный!$AY$3) -> 29868 | P50: =CEILING('прайс-лист2'!Q46*Титульный!$AY$1,Титульный!$AY$3) -> 32668 | Q50: -
A51: Шкаф (420) 1дв полувитрина 2040х420 | C51: 420х440х2040 | D51: =CEILING('прайс-лист2'!E47*Титульный!$AY$1,Титульный!$AY$3) -> 11633 | E51: =CEILING('прайс-лист2'!F47*Титульный!$AY$1,Титульный!$AY$3) -> 15173 | F51: =CEILING('прайс-лист2'!G47*Титульный!$AY$1,Титульный!$AY$3) -> 12173 | G51: =CEILING('прайс-лист2'!H47*Титульный!$AY$1,Титульный!$AY$3) -> 13493 | H51: - | I51: - | J51: - | K51: - | L51: - | M51: - | N51: - | O51: =CEILING('прайс-лист2'!P47*Титульный!$AY$1,Титульный!$AY$3) -> 14751 | P51: =CEILING('прайс-лист2'!Q47*Титульный!$AY$1,Титульный!$AY$3) -> 16041 | Q51: - | R51: - | S51: -
A52: Шкаф (420) 1дв полувитрина 2040х560 | C52: 560х440х2040 | D52: =CEILING('прайс-лист2'!E48*Титульный!$AY$1,Титульный!$AY$3) -> 13732 | E52: =CEILING('прайс-лист2'!F48*Титульный!$AY$1,Титульный!$AY$3) -> 18452 | F52: =CEILING('прайс-лист2'!G48*Титульный!$AY$1,Титульный!$AY$3) -> 14442 | G52: =CEILING('прайс-лист2'!H48*Титульный!$AY$1,Титульный!$AY$3) -> 16212 | H52: - | I52: - | J52: - | K52: - | L52: - | M52: - | N52: - | O52: =CEILING('прайс-лист2'!P48*Титульный!$AY$1,Титульный!$AY$3) -> 17537 | P52: =CEILING('прайс-лист2'!Q48*Титульный!$AY$1,Титульный!$AY$3) -> 19257 | Q52: - | R52: - | S52: -
A53: Шкаф (420) 1дв полувитрина 2240х420 | C53: 420х440х2240 | D53: =CEILING('прайс-лист2'!E49*Титульный!$AY$1,Титульный!$AY$3) -> 13046 | E53: =CEILING('прайс-лист2'!F49*Титульный!$AY$1,Титульный!$AY$3) -> 16926 | F53: =CEILING('прайс-лист2'!G49*Титульный!$AY$1,Титульный!$AY$3) -> 13626 | G53: =CEILING('прайс-лист2'!H49*Титульный!$AY$1,Титульный!$AY$3) -> 15086 | H53: - | I53: - | J53: - | K53: - | L53: - | M53: - | N53: - | O53: =CEILING('прайс-лист2'!P49*Титульный!$AY$1,Титульный!$AY$3) -> 16013 | P53: =CEILING('прайс-лист2'!Q49*Титульный!$AY$1,Титульный!$AY$3) -> 17443 | Q53: - | R53: - | S53: -
A54: Шкаф (420) 1дв полувитрина 2240х560 | C54: 560х440х2240 | D54: =CEILING('прайс-лист2'!E50*Титульный!$AY$1,Титульный!$AY$3) -> 14952 | E54: =CEILING('прайс-лист2'!F50*Титульный!$AY$1,Титульный!$AY$3) -> 20142 | F54: =CEILING('прайс-лист2'!G50*Титульный!$AY$1,Титульный!$AY$3) -> 15732 | G54: =CEILING('прайс-лист2'!H50*Титульный!$AY$1,Титульный!$AY$3) -> 17672 | H54: - | I54: - | J54: - | K54: - | L54: - | M54: - | N54: - | O54: =CEILING('прайс-лист2'!P50*Титульный!$AY$1,Титульный!$AY$3) -> 19069 | P54: =CEILING('прайс-лист2'!Q50*Титульный!$AY$1,Титульный!$AY$3) -> 20969 | Q54: - | R54: - | S54: -
A55: Шкаф (420) 2дв полувитрина 2040х840 | C55: 840х440х2040 | D55: =CEILING('прайс-лист2'!E51*Титульный!$AY$1,Титульный!$AY$3) -> 21177 | E55: =CEILING('прайс-лист2'!F51*Титульный!$AY$1,Титульный!$AY$3) -> 28257 | F55: =CEILING('прайс-лист2'!G51*Титульный!$AY$1,Титульный!$AY$3) -> 22257 | G55: =CEILING('прайс-лист2'!H51*Титульный!$AY$1,Титульный!$AY$3) -> 24897 | H55: - | I55: - | J55: - | K55: - | L55: - | M55: - | N55: - | O55: =CEILING('прайс-лист2'!P51*Титульный!$AY$1,Титульный!$AY$3) -> 25909 | P55: =CEILING('прайс-лист2'!Q51*Титульный!$AY$1,Титульный!$AY$3) -> 28489 | Q55: - | R55: - | S55: -
A56: Шкаф (420) 2дв полувитрина 2240х840 | C56: 840х440х2240 | D56: =CEILING('прайс-лист2'!E52*Титульный!$AY$1,Титульный!$AY$3) -> 23106 | E56: =CEILING('прайс-лист2'!F52*Титульный!$AY$1,Титульный!$AY$3) -> 30866 | F56: =CEILING('прайс-лист2'!G52*Титульный!$AY$1,Титульный!$AY$3) -> 24266 | G56: =CEILING('прайс-лист2'!H52*Титульный!$AY$1,Титульный!$AY$3) -> 27186 | H56: - | I56: - | J56: - | K56: - | L56: - | M56: - | N56: - | O56: =CEILING('прайс-лист2'!P52*Титульный!$AY$1,Титульный!$AY$3) -> 28156 | P56: =CEILING('прайс-лист2'!Q52*Титульный!$AY$1,Титульный!$AY$3) -> 31016 | Q56: - | R56: - | S56: -
A57: Шкаф (420) 1дв витрина 1дв глух 2040х420 | C57: 420х440х2040 | D57: =CEILING('прайс-лист2'!E53*Титульный!$AY$1,Титульный!$AY$3) -> 12263 | E57: =CEILING('прайс-лист2'!F53*Титульный!$AY$1,Титульный!$AY$3) -> 15793 | F57: =CEILING('прайс-лист2'!G53*Титульный!$AY$1,Титульный!$AY$3) -> 12803 | G57: =CEILING('прайс-лист2'!H53*Титульный!$AY$1,Титульный!$AY$3) -> 14113 | H57: =CEILING('прайс-лист2'!I53*Титульный!$AY$1,Титульный!$AY$3) -> 10031 | I57: =CEILING('прайс-лист2'!J53*Титульный!$AY$1,Титульный!$AY$3) -> 10261 | J57: =CEILING('прайс-лист2'!K53*Титульный!$AY$1,Титульный!$AY$3) -> 10881 | K57: =CEILING('прайс-лист2'!L53*Титульный!$AY$1,Титульный!$AY$3) -> 11681 | L57: - | M57: - | N57: - | O57: =CEILING('прайс-лист2'!P53*Титульный!$AY$1,Титульный!$AY$3) -> 15411 | P57: =CEILING('прайс-лист2'!Q53*Титульный!$AY$1,Титульный!$AY$3) -> 16671 | Q57: - | R57: - | S57: -
A58: Шкаф (420) 1дв витрина 1дв глух 2040х560 | C58: 560х440х2040 | D58: =CEILING('прайс-лист2'!E54*Титульный!$AY$1,Титульный!$AY$3) -> 14366 | E58: =CEILING('прайс-лист2'!F54*Титульный!$AY$1,Титульный!$AY$3) -> 19076 | F58: =CEILING('прайс-лист2'!G54*Титульный!$AY$1,Титульный!$AY$3) -> 15076 | G58: =CEILING('прайс-лист2'!H54*Титульный!$AY$1,Титульный!$AY$3) -> 16836 | H58: =CEILING('прайс-лист2'!I54*Титульный!$AY$1,Титульный!$AY$3) -> 11291 | I58: =CEILING('прайс-лист2'!J54*Титульный!$AY$1,Титульный!$AY$3) -> 11581 | J58: =CEILING('прайс-лист2'!K54*Титульный!$AY$1,Титульный!$AY$3) -> 12411 | K58: =CEILING('прайс-лист2'!L54*Титульный!$AY$1,Титульный!$AY$3) -> 13471 | L58: - | M58: - | N58: - | O58: =CEILING('прайс-лист2'!P54*Титульный!$AY$1,Титульный!$AY$3) -> 18211 | P58: =CEILING('прайс-лист2'!Q54*Титульный!$AY$1,Титульный!$AY$3) -> 19891 | Q58: - | R58: - | S58: -
A59: Шкаф (420) 1дв витрина 1дв глух 2240х420 | C59: 420х440х2240 | D59: =CEILING('прайс-лист2'!E55*Титульный!$AY$1,Титульный!$AY$3) -> 13667 | E59: =CEILING('прайс-лист2'!F55*Титульный!$AY$1,Титульный!$AY$3) -> 17557 | F59: =CEILING('прайс-лист2'!G55*Титульный!$AY$1,Титульный!$AY$3) -> 14257 | G59: =CEILING('прайс-лист2'!H55*Титульный!$AY$1,Титульный!$AY$3) -> 15707 | H59: =CEILING('прайс-лист2'!I55*Титульный!$AY$1,Титульный!$AY$3) -> 10774 | I59: =CEILING('прайс-лист2'!J55*Титульный!$AY$1,Титульный!$AY$3) -> 11024 | J59: =CEILING('прайс-лист2'!K55*Титульный!$AY$1,Титульный!$AY$3) -> 11704 | K59: =CEILING('прайс-лист2'!L55*Титульный!$AY$1,Титульный!$AY$3) -> 12594 | L59: - | M59: - | N59: - | O59: =CEILING('прайс-лист2'!P55*Титульный!$AY$1,Титульный!$AY$3) -> 16664 | P59: =CEILING('прайс-лист2'!Q55*Титульный!$AY$1,Титульный!$AY$3) -> 18064 | Q59: - | R59: - | S59: -
A60: Шкаф (420) 1дв витрина 1дв глух 2240х560 | C60: 560х440х2240 | D60: =CEILING('прайс-лист2'!E56*Титульный!$AY$1,Титульный!$AY$3) -> 15579 | E60: =CEILING('прайс-лист2'!F56*Титульный!$AY$1,Титульный!$AY$3) -> 20769 | F60: =CEILING('прайс-лист2'!G56*Титульный!$AY$1,Титульный!$AY$3) -> 16369 | G60: =CEILING('прайс-лист2'!H56*Титульный!$AY$1,Титульный!$AY$3) -> 18299 | H60: =CEILING('прайс-лист2'!I56*Титульный!$AY$1,Титульный!$AY$3) -> 12166 | I60: =CEILING('прайс-лист2'!J56*Титульный!$AY$1,Титульный!$AY$3) -> 12486 | J60: =CEILING('прайс-лист2'!K56*Титульный!$AY$1,Титульный!$AY$3) -> 13396 | K60: =CEILING('прайс-лист2'!L56*Титульный!$AY$1,Титульный!$AY$3) -> 14566 | L60: - | M60: - | N60: - | O60: =CEILING('прайс-лист2'!P56*Титульный!$AY$1,Титульный!$AY$3) -> 19746 | P60: =CEILING('прайс-лист2'!Q56*Титульный!$AY$1,Титульный!$AY$3) -> 21606 | Q60: - | R60: - | S60: -
A61: Шкаф (420) 1дв витрина зеркало 1дв глух 2040х420 | C61: 420х440х2040 | D61: =CEILING('прайс-лист2'!E57*Титульный!$AY$1,Титульный!$AY$3) -> 15508 | E61: =CEILING('прайс-лист2'!F57*Титульный!$AY$1,Титульный!$AY$3) -> 19038 | F61: =CEILING('прайс-лист2'!G57*Титульный!$AY$1,Титульный!$AY$3) -> 16048 | G61: =CEILING('прайс-лист2'!H57*Титульный!$AY$1,Титульный!$AY$3) -> 17358 | H61: - | I61: - | J61: - | K61: - | L61: - | M61: - | N61: - | O61: =CEILING('прайс-лист2'!P57*Титульный!$AY$1,Титульный!$AY$3) -> 18656 | P61: =CEILING('прайс-лист2'!Q57*Титульный!$AY$1,Титульный!$AY$3) -> 19916 | Q61: - | R61: - | S61: -
A62: Шкаф (420) 1дв витрина зеркало 1дв глух 2040х560 | C62: 560х440х2040 | D62: =CEILING('прайс-лист2'!E58*Титульный!$AY$1,Титульный!$AY$3) -> 18423 | E62: =CEILING('прайс-лист2'!F58*Титульный!$AY$1,Титульный!$AY$3) -> 23133 | F62: =CEILING('прайс-лист2'!G58*Титульный!$AY$1,Титульный!$AY$3) -> 19133 | G62: =CEILING('прайс-лист2'!H58*Титульный!$AY$1,Титульный!$AY$3) -> 20893 | H62: - | I62: - | J62: - | K62: - | L62: - | M62: - | N62: - | O62: =CEILING('прайс-лист2'!P58*Титульный!$AY$1,Титульный!$AY$3) -> 22268 | P62: =CEILING('прайс-лист2'!Q58*Титульный!$AY$1,Титульный!$AY$3) -> 23948 | Q62: - | R62: - | S62: -
A63: Шкаф (420) 2дв витрина 2дв глух 2040х840 | C63: 840х440х2040 | D63: =CEILING('прайс-лист2'!E59*Титульный!$AY$1,Титульный!$AY$3) -> 22333 | E63: =CEILING('прайс-лист2'!F59*Титульный!$AY$1,Титульный!$AY$3) -> 29393 | F63: =CEILING('прайс-лист2'!G59*Титульный!$AY$1,Титульный!$AY$3) -> 23413 | G63: =CEILING('прайс-лист2'!H59*Титульный!$AY$1,Титульный!$AY$3) -> 26033 | H63: =CEILING('прайс-лист2'!I59*Титульный!$AY$1,Титульный!$AY$3) -> 16365 | I63: =CEILING('прайс-лист2'!J59*Титульный!$AY$1,Титульный!$AY$3) -> 16825 | J63: =CEILING('прайс-лист2'!K59*Титульный!$AY$1,Титульный!$AY$3) -> 18065 | K63: =CEILING('прайс-лист2'!L59*Титульный!$AY$1,Титульный!$AY$3) -> 19665 | L63: - | M63: - | N63: - | O63: =CEILING('прайс-лист2'!P59*Титульный!$AY$1,Титульный!$AY$3) -> 27125 | P63: =CEILING('прайс-лист2'!Q59*Титульный!$AY$1,Титульный!$AY$3) -> 29645 | Q63: - | R63: - | S63: -
A64: Шкаф (420) 2дв витрина 2дв глух 2240х840 | C64: 840х440х2240 | D64: =CEILING('прайс-лист2'!E60*Титульный!$AY$1,Титульный!$AY$3) -> 24246 | E64: =CEILING('прайс-лист2'!F60*Титульный!$AY$1,Титульный!$AY$3) -> 32026 | F64: =CEILING('прайс-лист2'!G60*Титульный!$AY$1,Титульный!$AY$3) -> 25426 | G64: =CEILING('прайс-лист2'!H60*Титульный!$AY$1,Титульный!$AY$3) -> 28326 | H64: =CEILING('прайс-лист2'!I60*Титульный!$AY$1,Титульный!$AY$3) -> 17576 | I64: =CEILING('прайс-лист2'!J60*Титульный!$AY$1,Титульный!$AY$3) -> 18076 | J64: =CEILING('прайс-лист2'!K60*Титульный!$AY$1,Титульный!$AY$3) -> 19436 | K64: =CEILING('прайс-лист2'!L60*Титульный!$AY$1,Титульный!$AY$3) -> 21216 | L64: - | M64: - | N64: - | O64: =CEILING('прайс-лист2'!P60*Титульный!$AY$1,Титульный!$AY$3) -> 29356 | P64: =CEILING('прайс-лист2'!Q60*Титульный!$AY$1,Титульный!$AY$3) -> 32156 | Q64: - | R64: - | S64: -
A65: Шкаф (420) ДО 1дв 2040х560 | C65: 560х440х2040 | D65: =CEILING('прайс-лист2'!E61*Титульный!$AY$1,Титульный!$AY$3) -> 11980 | E65: =CEILING('прайс-лист2'!F61*Титульный!$AY$1,Титульный!$AY$3) -> 16700 | F65: =CEILING('прайс-лист2'!G61*Титульный!$AY$1,Титульный!$AY$3) -> 12690 | G65: =CEILING('прайс-лист2'!H61*Титульный!$AY$1,Титульный!$AY$3) -> 14460 | H65: =CEILING('прайс-лист2'!I61*Титульный!$AY$1,Титульный!$AY$3) -> 9960 | I65: =CEILING('прайс-лист2'!J61*Титульный!$AY$1,Титульный!$AY$3) -> 10310 | J65: =CEILING('прайс-лист2'!K61*Титульный!$AY$1,Титульный!$AY$3) -> 11200 | K65: =CEILING('прайс-лист2'!L61*Титульный!$AY$1,Титульный!$AY$3) -> 12290 | L65: - | M65: =CEILING('прайс-лист2'!N61*Титульный!$AY$1,Титульный!$AY$3) -> 16110 | N65: =CEILING('прайс-лист2'!O61*Титульный!$AY$1,Титульный!$AY$3) -> 17180 | O65: =CEILING('прайс-лист2'!P61*Титульный!$AY$1,Титульный!$AY$3) -> 16090 | P65: =CEILING('прайс-лист2'!Q61*Титульный!$AY$1,Титульный!$AY$3) -> 17700 | Q65: - | R65: =CEILING('прайс-лист2'!S61*Титульный!$AY$1,Титульный!$AY$3) -> 1932 | S65: =CEILING('прайс-лист2'!T61*Титульный!$AY$1,Титульный!$AY$3) -> 3314
A66: Шкаф (420) ДО 1дв 2240х560 | C66: 560х440х2240 | D66: =CEILING('прайс-лист2'!E62*Титульный!$AY$1,Титульный!$AY$3) -> 12712 | E66: =CEILING('прайс-лист2'!F62*Титульный!$AY$1,Титульный!$AY$3) -> 17902 | F66: =CEILING('прайс-лист2'!G62*Титульный!$AY$1,Титульный!$AY$3) -> 13492 | G66: =CEILING('прайс-лист2'!H62*Титульный!$AY$1,Титульный!$AY$3) -> 15432 | H66: =CEILING('прайс-лист2'!I62*Титульный!$AY$1,Титульный!$AY$3) -> 10492 | I66: =CEILING('прайс-лист2'!J62*Титульный!$AY$1,Титульный!$AY$3) -> 10872 | J66: =CEILING('прайс-лист2'!K62*Титульный!$AY$1,Титульный!$AY$3) -> 11842 | K66: =CEILING('прайс-лист2'!L62*Титульный!$AY$1,Титульный!$AY$3) -> 13032 | L66: - | M66: =CEILING('прайс-лист2'!N62*Титульный!$AY$1,Титульный!$AY$3) -> 17232 | N66: =CEILING('прайс-лист2'!O62*Титульный!$AY$1,Титульный!$AY$3) -> 18382 | O66: =CEILING('прайс-лист2'!P62*Титульный!$AY$1,Титульный!$AY$3) -> 17202 | P66: =CEILING('прайс-лист2'!Q62*Титульный!$AY$1,Титульный!$AY$3) -> 18982 | Q66: - | R66: =CEILING('прайс-лист2'!S62*Титульный!$AY$1,Титульный!$AY$3) -> 2190 | S66: =CEILING('прайс-лист2'!T62*Титульный!$AY$1,Титульный!$AY$3) -> 3632
A67: Шкаф (420) ДО 2дв 2040х840 | C67: 840х440х2040 | D67: =CEILING('прайс-лист2'!E63*Титульный!$AY$1,Титульный!$AY$3) -> 16926 | E67: =CEILING('прайс-лист2'!F63*Титульный!$AY$1,Титульный!$AY$3) -> 24006 | F67: =CEILING('прайс-лист2'!G63*Титульный!$AY$1,Титульный!$AY$3) -> 18006 | G67: =CEILING('прайс-лист2'!H63*Титульный!$AY$1,Титульный!$AY$3) -> 20646 | H67: =CEILING('прайс-лист2'!I63*Титульный!$AY$1,Титульный!$AY$3) -> 13946 | I67: =CEILING('прайс-лист2'!J63*Титульный!$AY$1,Титульный!$AY$3) -> 14506 | J67: =CEILING('прайс-лист2'!K63*Титульный!$AY$1,Титульный!$AY$3) -> 15906 | K67: =CEILING('прайс-лист2'!L63*Титульный!$AY$1,Титульный!$AY$3) -> 17566 | L67: - | M67: =CEILING('прайс-лист2'!N63*Титульный!$AY$1,Титульный!$AY$3) -> 23506 | N67: =CEILING('прайс-лист2'!O63*Титульный!$AY$1,Титульный!$AY$3) -> 25526 | O67: =CEILING('прайс-лист2'!P63*Титульный!$AY$1,Титульный!$AY$3) -> 23466 | P67: =CEILING('прайс-лист2'!Q63*Титульный!$AY$1,Титульный!$AY$3) -> 25886 | Q67: - | R67: =CEILING('прайс-лист2'!S63*Титульный!$AY$1,Титульный!$AY$3) -> 2688 | S67: =CEILING('прайс-лист2'!T63*Титульный!$AY$1,Титульный!$AY$3) -> 4980
A68: Шкаф (420) ДО 2дв 2240х840 | C68: 840х440х2240 | D68: =CEILING('прайс-лист2'!E64*Титульный!$AY$1,Титульный!$AY$3) -> 17951 | E68: =CEILING('прайс-лист2'!F64*Титульный!$AY$1,Титульный!$AY$3) -> 25711 | F68: =CEILING('прайс-лист2'!G64*Титульный!$AY$1,Титульный!$AY$3) -> 19111 | G68: =CEILING('прайс-лист2'!H64*Титульный!$AY$1,Титульный!$AY$3) -> 22031 | H68: =CEILING('прайс-лист2'!I64*Титульный!$AY$1,Титульный!$AY$3) -> 14671 | I68: =CEILING('прайс-лист2'!J64*Титульный!$AY$1,Титульный!$AY$3) -> 15271 | J68: =CEILING('прайс-лист2'!K64*Титульный!$AY$1,Титульный!$AY$3) -> 16811 | K68: =CEILING('прайс-лист2'!L64*Титульный!$AY$1,Титульный!$AY$3) -> 18631 | L68: - | M68: =CEILING('прайс-лист2'!N64*Титульный!$AY$1,Титульный!$AY$3) -> 25131 | N68: =CEILING('прайс-лист2'!O64*Титульный!$AY$1,Титульный!$AY$3) -> 27331 | O68: =CEILING('прайс-лист2'!P64*Титульный!$AY$1,Титульный!$AY$3) -> 25091 | P68: =CEILING('прайс-лист2'!Q64*Титульный!$AY$1,Титульный!$AY$3) -> 27751 | Q68: - | R68: =CEILING('прайс-лист2'!S64*Титульный!$AY$1,Титульный!$AY$3) -> 3046 | S68: =CEILING('прайс-лист2'!T64*Титульный!$AY$1,Титульный!$AY$3) -> 5460
A69: Внимание!!! Для наборов мебели "Марго" использовать только накладные зеркала
A70: Шкафы глубиной 420мм
A71: Наименование | B71: Эскиз | C71: Габариты, ШхГхВ мм. | D71: МДФ фасады | H71: Марго16 | M71: UV-лак | O71: ТСС | Q71: ТСС сборный | R71: Стоимость зеркал
D72: 1 ЦК | E72: 1 ЦК + патина | F72: 2 ЦК | G72: 3 ЦК | H72: 1 ц.к. | I72: 2 ц.к. | J72: 3 ц.к. | K72: 4 ц.к. | L72: 5 ц.к. | M72: UV-лак кромка ABC/AL кромка | N72: кромка 3D | O72: 1 ЦК | P72: 2 ЦК | R72: Зеркало в рамке** | S72: Зеркало накладное*
A73: Шкаф (420) ДО 2дв 2ящ 2040х840 | C73: 840х440х2040 | D73: =CEILING('прайс-лист2'!E65*Титульный!$AY$1,Титульный!$AY$3) -> 18209 | E73: =CEILING('прайс-лист2'!F65*Титульный!$AY$1,Титульный!$AY$3) -> 25249 | F73: =CEILING('прайс-лист2'!G65*Титульный!$AY$1,Титульный!$AY$3) -> 19289 | G73: =CEILING('прайс-лист2'!H65*Титульный!$AY$1,Титульный!$AY$3) -> 21909 | H73: =CEILING('прайс-лист2'!I65*Титульный!$AY$1,Титульный!$AY$3) -> 15289 | I73: =CEILING('прайс-лист2'!J65*Титульный!$AY$1,Титульный!$AY$3) -> 15889 | J73: =CEILING('прайс-лист2'!K65*Титульный!$AY$1,Титульный!$AY$3) -> 17369 | K73: =CEILING('прайс-лист2'!L65*Титульный!$AY$1,Титульный!$AY$3) -> 19069 | L73: - | M73: =CEILING('прайс-лист2'!N65*Титульный!$AY$1,Титульный!$AY$3) -> 25249 | N73: =CEILING('прайс-лист2'!O65*Титульный!$AY$1,Титульный!$AY$3) -> 27809 | O73: =CEILING('прайс-лист2'!P65*Титульный!$AY$1,Титульный!$AY$3) -> 25209 | P73: =CEILING('прайс-лист2'!Q65*Титульный!$AY$1,Титульный!$AY$3) -> 27629 | Q73: - | R73: =CEILING('прайс-лист2'!S65*Титульный!$AY$1,Титульный!$AY$3) -> 2688 | S73: =CEILING('прайс-лист2'!T65*Титульный!$AY$1,Титульный!$AY$3) -> 4020
A74: Шкаф (420) ДО 2дв 2ящ 2240х840 | C74: 840х440х2240 | D74: =CEILING('прайс-лист2'!E66*Титульный!$AY$1,Титульный!$AY$3) -> 19214 | E74: =CEILING('прайс-лист2'!F66*Титульный!$AY$1,Титульный!$AY$3) -> 26974 | F74: =CEILING('прайс-лист2'!G66*Титульный!$AY$1,Титульный!$AY$3) -> 20394 | G74: =CEILING('прайс-лист2'!H66*Титульный!$AY$1,Титульный!$AY$3) -> 23294 | H74: =CEILING('прайс-лист2'!I66*Титульный!$AY$1,Титульный!$AY$3) -> 15994 | I74: =CEILING('прайс-лист2'!J66*Титульный!$AY$1,Титульный!$AY$3) -> 16654 | J74: =CEILING('прайс-лист2'!K66*Титульный!$AY$1,Титульный!$AY$3) -> 18274 | K74: =CEILING('прайс-лист2'!L66*Титульный!$AY$1,Титульный!$AY$3) -> 20134 | L74: - | M74: =CEILING('прайс-лист2'!N66*Титульный!$AY$1,Титульный!$AY$3) -> 26874 | N74: =CEILING('прайс-лист2'!O66*Титульный!$AY$1,Титульный!$AY$3) -> 29614 | O74: =CEILING('прайс-лист2'!P66*Титульный!$AY$1,Титульный!$AY$3) -> 26854 | P74: =CEILING('прайс-лист2'!Q66*Титульный!$AY$1,Титульный!$AY$3) -> 29514 | Q74: - | R74: =CEILING('прайс-лист2'!S66*Титульный!$AY$1,Титульный!$AY$3) -> 3046 | S74: =CEILING('прайс-лист2'!T66*Титульный!$AY$1,Титульный!$AY$3) -> 4500
A75: Шкаф (420) ДО 2дв 2ящ шар 2040х840 | C75: 840х440х2040 | D75: =CEILING('прайс-лист2'!E67*Титульный!$AY$1,Титульный!$AY$3) -> 19040 | E75: =CEILING('прайс-лист2'!F67*Титульный!$AY$1,Титульный!$AY$3) -> 26080 | F75: =CEILING('прайс-лист2'!G67*Титульный!$AY$1,Титульный!$AY$3) -> 20120 | G75: =CEILING('прайс-лист2'!H67*Титульный!$AY$1,Титульный!$AY$3) -> 22740 | H75: =CEILING('прайс-лист2'!I67*Титульный!$AY$1,Титульный!$AY$3) -> 16120 | I75: =CEILING('прайс-лист2'!J67*Титульный!$AY$1,Титульный!$AY$3) -> 16720 | J75: =CEILING('прайс-лист2'!K67*Титульный!$AY$1,Титульный!$AY$3) -> 18200 | K75: =CEILING('прайс-лист2'!L67*Титульный!$AY$1,Титульный!$AY$3) -> 19900 | L75: - | M75: =CEILING('прайс-лист2'!N67*Титульный!$AY$1,Титульный!$AY$3) -> 26080 | N75: =CEILING('прайс-лист2'!O67*Титульный!$AY$1,Титульный!$AY$3) -> 28640 | O75: =CEILING('прайс-лист2'!P67*Титульный!$AY$1,Титульный!$AY$3) -> 26040 | P75: =CEILING('прайс-лист2'!Q67*Титульный!$AY$1,Титульный!$AY$3) -> 28460 | Q75: - | R75: =CEILING('прайс-лист2'!S67*Титульный!$AY$1,Титульный!$AY$3) -> 2688 | S75: =CEILING('прайс-лист2'!T67*Титульный!$AY$1,Титульный!$AY$3) -> 4020
A76: Шкаф (420) ДО 2дв 2ящ шар 2240х840 | C76: 840х440х2240 | D76: =CEILING('прайс-лист2'!E68*Титульный!$AY$1,Титульный!$AY$3) -> 20055 | E76: =CEILING('прайс-лист2'!F68*Титульный!$AY$1,Титульный!$AY$3) -> 27815 | F76: =CEILING('прайс-лист2'!G68*Титульный!$AY$1,Титульный!$AY$3) -> 21235 | G76: =CEILING('прайс-лист2'!H68*Титульный!$AY$1,Титульный!$AY$3) -> 24135 | H76: =CEILING('прайс-лист2'!I68*Титульный!$AY$1,Титульный!$AY$3) -> 16835 | I76: =CEILING('прайс-лист2'!J68*Титульный!$AY$1,Титульный!$AY$3) -> 17495 | J76: =CEILING('прайс-лист2'!K68*Титульный!$AY$1,Титульный!$AY$3) -> 19115 | K76: =CEILING('прайс-лист2'!L68*Титульный!$AY$1,Титульный!$AY$3) -> 20975 | L76: - | M76: =CEILING('прайс-лист2'!N68*Титульный!$AY$1,Титульный!$AY$3) -> 27715 | N76: =CEILING('прайс-лист2'!O68*Титульный!$AY$1,Титульный!$AY$3) -> 30455 | O76: =CEILING('прайс-лист2'!P68*Титульный!$AY$1,Титульный!$AY$3) -> 27695 | P76: =CEILING('прайс-лист2'!Q68*Титульный!$AY$1,Титульный!$AY$3) -> 30355 | Q76: - | R76: =CEILING('прайс-лист2'!S68*Титульный!$AY$1,Титульный!$AY$3) -> 3046 | S76: =CEILING('прайс-лист2'!T68*Титульный!$AY$1,Титульный!$AY$3) -> 4500
A77: Шкаф (420) Ниша 2дв 2040х420 | C77: 420х440х2040 | D77: =CEILING('прайс-лист2'!E69*Титульный!$AY$1,Титульный!$AY$3) -> 10166 | E77: =CEILING('прайс-лист2'!F69*Титульный!$AY$1,Титульный!$AY$3) -> 12986 | F77: =CEILING('прайс-лист2'!G69*Титульный!$AY$1,Титульный!$AY$3) -> 10586 | G77: =CEILING('прайс-лист2'!H69*Титульный!$AY$1,Титульный!$AY$3) -> 11646 | H77: =CEILING('прайс-лист2'!I69*Титульный!$AY$1,Титульный!$AY$3) -> 8986 | I77: =CEILING('прайс-лист2'!J69*Титульный!$AY$1,Титульный!$AY$3) -> 9226 | J77: =CEILING('прайс-лист2'!K69*Титульный!$AY$1,Титульный!$AY$3) -> 9826 | K77: =CEILING('прайс-лист2'!L69*Титульный!$AY$1,Титульный!$AY$3) -> 10506 | L77: - | M77: =CEILING('прайс-лист2'!N69*Титульный!$AY$1,Титульный!$AY$3) -> 12966 | N77: =CEILING('прайс-лист2'!O69*Титульный!$AY$1,Титульный!$AY$3) -> 13986 | O77: =CEILING('прайс-лист2'!P69*Титульный!$AY$1,Титульный!$AY$3) -> 12966 | P77: =CEILING('прайс-лист2'!Q69*Титульный!$AY$1,Титульный!$AY$3) -> 13926 | Q77: - | R77: - | S77: -
A78: Шкаф (420) Ниша 2дв 2040х560 | C78: 420х580х2040 | D78: - | E78: - | F78: - | G78: - | H78: - | I78: - | J78: - | K78: - | L78: - | M78: =CEILING('прайс-лист2'!N70*Титульный!$AY$1,Титульный!$AY$3) -> 16436 | N78: =CEILING('прайс-лист2'!O70*Титульный!$AY$1,Титульный!$AY$3) -> 17576 | O78: =CEILING('прайс-лист2'!P70*Титульный!$AY$1,Титульный!$AY$3) -> 16416 | P78: =CEILING('прайс-лист2'!Q70*Титульный!$AY$1,Титульный!$AY$3) -> 17716 | Q78: - | R78: - | S78: -
A79: Шкаф (420) Ниша 2дв 2240х420 | C79: 420х440х2240 | D79: =CEILING('прайс-лист2'!E71*Титульный!$AY$1,Титульный!$AY$3) -> 11045 | E79: - | F79: =CEILING('прайс-лист2'!G71*Титульный!$AY$1,Титульный!$AY$3) -> 11525 | G79: =CEILING('прайс-лист2'!H71*Титульный!$AY$1,Титульный!$AY$3) -> 12715 | H79: =CEILING('прайс-лист2'!I71*Титульный!$AY$1,Титульный!$AY$3) -> 9715 | I79: =CEILING('прайс-лист2'!J71*Титульный!$AY$1,Титульный!$AY$3) -> 9985 | J79: =CEILING('прайс-лист2'!K71*Титульный!$AY$1,Титульный!$AY$3) -> 10645 | K79: =CEILING('прайс-лист2'!L71*Титульный!$AY$1,Титульный!$AY$3) -> 11415 | L79: - | M79: =CEILING('прайс-лист2'!N71*Титульный!$AY$1,Титульный!$AY$3) -> 14165 | N79: =CEILING('прайс-лист2'!O71*Титульный!$AY$1,Титульный!$AY$3) -> 15265 | O79: =CEILING('прайс-лист2'!P71*Титульный!$AY$1,Титульный!$AY$3) -> 14155 | P79: =CEILING('прайс-лист2'!Q71*Титульный!$AY$1,Титульный!$AY$3) -> 15245 | Q79: - | R79: - | S79: -
A80: Шкаф (420) Ниша 2дв 2240х560 | C80: 420х580х2240 | D80: - | E80: - | F80: - | G80: - | H80: - | I80: - | J80: - | K80: - | L80: - | M80: =CEILING('прайс-лист2'!N72*Титульный!$AY$1,Титульный!$AY$3) -> 18100 | N80: =CEILING('прайс-лист2'!O72*Титульный!$AY$1,Титульный!$AY$3) -> 19320 | O80: =CEILING('прайс-лист2'!P72*Титульный!$AY$1,Титульный!$AY$3) -> 18080 | P80: =CEILING('прайс-лист2'!Q72*Титульный!$AY$1,Титульный!$AY$3) -> 19540 | Q80: - | R80: - | S80: -
A81: Шкаф (420) Ниша 4дв 2040х840 | C81: 840х440х2040 | D81: =CEILING('прайс-лист2'!E73*Титульный!$AY$1,Титульный!$AY$3) -> 16982 | E81: =CEILING('прайс-лист2'!F73*Титульный!$AY$1,Титульный!$AY$3) -> 22622 | F81: =CEILING('прайс-лист2'!G73*Титульный!$AY$1,Титульный!$AY$3) -> 17822 | G81: =CEILING('прайс-лист2'!H73*Титульный!$AY$1,Титульный!$AY$3) -> 19942 | H81: =CEILING('прайс-лист2'!I73*Титульный!$AY$1,Титульный!$AY$3) -> 14622 | I81: =CEILING('прайс-лист2'!J73*Титульный!$AY$1,Титульный!$AY$3) -> 15102 | J81: =CEILING('прайс-лист2'!K73*Титульный!$AY$1,Титульный!$AY$3) -> 16302 | K81: =CEILING('прайс-лист2'!L73*Титульный!$AY$1,Титульный!$AY$3) -> 17662 | L81: - | M81: =CEILING('прайс-лист2'!N73*Титульный!$AY$1,Титульный!$AY$3) -> 22582 | N81: =CEILING('прайс-лист2'!O73*Титульный!$AY$1,Титульный!$AY$3) -> 24622 | O81: =CEILING('прайс-лист2'!P73*Титульный!$AY$1,Титульный!$AY$3) -> 22582 | P81: =CEILING('прайс-лист2'!Q73*Титульный!$AY$1,Титульный!$AY$3) -> 24502 | Q81: - | R81: - | S81: -
A82: Шкаф (420) Ниша 4дв 2240х840 | C82: 840х440х2240 | D82: =CEILING('прайс-лист2'!E74*Титульный!$AY$1,Титульный!$AY$3) -> 20503 | E82: =CEILING('прайс-лист2'!F74*Титульный!$AY$1,Титульный!$AY$3) -> 26843 | F82: =CEILING('прайс-лист2'!G74*Титульный!$AY$1,Титульный!$AY$3) -> 21463 | G82: =CEILING('прайс-лист2'!H74*Титульный!$AY$1,Титульный!$AY$3) -> 23843 | H82: =CEILING('прайс-лист2'!I74*Титульный!$AY$1,Титульный!$AY$3) -> 17843 | I82: =CEILING('прайс-лист2'!J74*Титульный!$AY$1,Титульный!$AY$3) -> 18383 | J82: =CEILING('прайс-лист2'!K74*Титульный!$AY$1,Титульный!$AY$3) -> 19703 | K82: =CEILING('прайс-лист2'!L74*Титульный!$AY$1,Титульный!$AY$3) -> 21243 | L82: - | M82: =CEILING('прайс-лист2'!N74*Титульный!$AY$1,Титульный!$AY$3) -> 26743 | N82: =CEILING('прайс-лист2'!O74*Титульный!$AY$1,Титульный!$AY$3) -> 28943 | O82: =CEILING('прайс-лист2'!P74*Титульный!$AY$1,Титульный!$AY$3) -> 26723 | P82: =CEILING('прайс-лист2'!Q74*Титульный!$AY$1,Титульный!$AY$3) -> 28903 | Q82: - | R82: - | S82: -
A83: Шкаф (420) Торцевой 2040х420 ЛЕВ\ПР | C83: 420х440х2040 | D83: =CEILING('прайс-лист2'!E75*Титульный!$AY$1,Титульный!$AY$3) -> 13306 | E83: =CEILING('прайс-лист2'!F75*Титульный!$AY$1,Титульный!$AY$3) -> 18906 | F83: =CEILING('прайс-лист2'!G75*Титульный!$AY$1,Титульный!$AY$3) -> 14156 | G83: =CEILING('прайс-лист2'!H75*Титульный!$AY$1,Титульный!$AY$3) -> 16246 | H83: =CEILING('прайс-лист2'!I75*Титульный!$AY$1,Титульный!$AY$3) -> 10986 | I83: =CEILING('прайс-лист2'!J75*Титульный!$AY$1,Титульный!$AY$3) -> 11456 | J83: =CEILING('прайс-лист2'!K75*Титульный!$AY$1,Титульный!$AY$3) -> 12616 | K83: =CEILING('прайс-лист2'!L75*Титульный!$AY$1,Титульный!$AY$3) -> 13956 | L83: - | M83: =CEILING('прайс-лист2'!N75*Титульный!$AY$1,Титульный!$AY$3) -> 18826 | N83: =CEILING('прайс-лист2'!O75*Титульный!$AY$1,Титульный!$AY$3) -> 20776 | O83: =CEILING('прайс-лист2'!P75*Титульный!$AY$1,Титульный!$AY$3) -> 18796 | P83: =CEILING('прайс-лист2'!Q75*Титульный!$AY$1,Титульный!$AY$3) -> 20716 | Q83: - | R83: - | S83: -
A84: Шкаф (420) Торцевой 2240х420 ЛЕВ\ПР | C84: 420х440х2240 | D84: =CEILING('прайс-лист2'!E76*Титульный!$AY$1,Титульный!$AY$3) -> 14355 | E84: =CEILING('прайс-лист2'!F76*Титульный!$AY$1,Титульный!$AY$3) -> 20525 | F84: =CEILING('прайс-лист2'!G76*Титульный!$AY$1,Титульный!$AY$3) -> 15285 | G84: =CEILING('прайс-лист2'!H76*Титульный!$AY$1,Титульный!$AY$3) -> 17595 | H84: =CEILING('прайс-лист2'!I76*Титульный!$AY$1,Титульный!$AY$3) -> 11795 | I84: =CEILING('прайс-лист2'!J76*Титульный!$AY$1,Титульный!$AY$3) -> 12315 | J84: =CEILING('прайс-лист2'!K76*Титульный!$AY$1,Титульный!$AY$3) -> 13585 | K84: =CEILING('прайс-лист2'!L76*Титульный!$AY$1,Титульный!$AY$3) -> 15065 | L84: - | M84: =CEILING('прайс-лист2'!N76*Титульный!$AY$1,Титульный!$AY$3) -> 20405 | N84: =CEILING('прайс-лист2'!O76*Титульный!$AY$1,Титульный!$AY$3) -> 22525 | O84: =CEILING('прайс-лист2'!P76*Титульный!$AY$1,Титульный!$AY$3) -> 20375 | P84: =CEILING('прайс-лист2'!Q76*Титульный!$AY$1,Титульный!$AY$3) -> 22485 | Q84: - | R84: - | S84: -
A85: Шкаф (420) 4 двери, 1160х1120 | C85: 1120х440х1160 | D85: =CEILING('прайс-лист2'!E77*Титульный!$AY$1,Титульный!$AY$3) -> 16223 | E85: =CEILING('прайс-лист2'!F77*Титульный!$AY$1,Титульный!$AY$3) -> 21463 | F85: =CEILING('прайс-лист2'!G77*Титульный!$AY$1,Титульный!$AY$3) -> 17023 | G85: =CEILING('прайс-лист2'!H77*Титульный!$AY$1,Титульный!$AY$3) -> 18983 | H85: =CEILING('прайс-лист2'!I77*Титульный!$AY$1,Титульный!$AY$3) -> 14023 | I85: =CEILING('прайс-лист2'!J77*Титульный!$AY$1,Титульный!$AY$3) -> 14463 | J85: =CEILING('прайс-лист2'!K77*Титульный!$AY$1,Титульный!$AY$3) -> 15583 | K85: =CEILING('прайс-лист2'!L77*Титульный!$AY$1,Титульный!$AY$3) -> 16823 | L85: - | M85: - | N85: - | O85: =CEILING('прайс-лист2'!P77*Титульный!$AY$1,Титульный!$AY$3) -> 21423 | P85: =CEILING('прайс-лист2'!Q77*Титульный!$AY$1,Титульный!$AY$3) -> 23223 | Q85: - | R85: - | S85: -
A86: Шкафы глубиной 560мм
A87: Шкаф (560) 1дв 2040х420 | C87: 420х580х2040 | D87: =CEILING('прайс-лист2'!E79*Титульный!$AY$1,Титульный!$AY$3) -> 11792 | E87: =CEILING('прайс-лист2'!F79*Титульный!$AY$1,Титульный!$AY$3) -> 15332 | F87: =CEILING('прайс-лист2'!G79*Титульный!$AY$1,Титульный!$AY$3) -> 12332 | G87: =CEILING('прайс-лист2'!H79*Титульный!$AY$1,Титульный!$AY$3) -> 13652 | H87: =CEILING('прайс-лист2'!I79*Титульный!$AY$1,Титульный!$AY$3) -> 10302 | I87: =CEILING('прайс-лист2'!J79*Титульный!$AY$1,Титульный!$AY$3) -> 10582 | J87: =CEILING('прайс-лист2'!K79*Титульный!$AY$1,Титульный!$AY$3) -> 11282 | K87: =CEILING('прайс-лист2'!L79*Титульный!$AY$1,Титульный!$AY$3) -> 12112 | L87: - | M87: =CEILING('прайс-лист2'!N79*Титульный!$AY$1,Титульный!$AY$3) -> 15082 | N87: =CEILING('прайс-лист2'!O79*Титульный!$AY$1,Титульный!$AY$3) -> 16092 | O87: =CEILING('прайс-лист2'!P79*Титульный!$AY$1,Титульный!$AY$3) -> 15062 | P87: =CEILING('прайс-лист2'!Q79*Титульный!$AY$1,Титульный!$AY$3) -> 16272 | Q87: - | R87: =CEILING('прайс-лист2'!S79*Титульный!$AY$1,Титульный!$AY$3) -> 1344 | S87: =CEILING('прайс-лист2'!T79*Титульный!$AY$1,Титульный!$AY$3) -> 2490
A88: Шкаф (560) 1дв 2040х560 | C88: 560х580х2040 | D88: =CEILING('прайс-лист2'!E80*Титульный!$AY$1,Титульный!$AY$3) -> 13873 | E88: =CEILING('прайс-лист2'!F80*Титульный!$AY$1,Титульный!$AY$3) -> 18593 | F88: =CEILING('прайс-лист2'!G80*Титульный!$AY$1,Титульный!$AY$3) -> 14583 | G88: =CEILING('прайс-лист2'!H80*Титульный!$AY$1,Титульный!$AY$3) -> 16353 | H88: =CEILING('прайс-лист2'!I80*Титульный!$AY$1,Титульный!$AY$3) -> 11853 | I88: =CEILING('прайс-лист2'!J80*Титульный!$AY$1,Титульный!$AY$3) -> 12203 | J88: =CEILING('прайс-лист2'!K80*Титульный!$AY$1,Титульный!$AY$3) -> 13093 | K88: =CEILING('прайс-лист2'!L80*Титульный!$AY$1,Титульный!$AY$3) -> 14183 | L88: - | M88: =CEILING('прайс-лист2'!N80*Титульный!$AY$1,Титульный!$AY$3) -> 18003 | N88: =CEILING('прайс-лист2'!O80*Титульный!$AY$1,Титульный!$AY$3) -> 19073 | O88: =CEILING('прайс-лист2'!P80*Титульный!$AY$1,Титульный!$AY$3) -> 17983 | P88: =CEILING('прайс-лист2'!Q80*Титульный!$AY$1,Титульный!$AY$3) -> 19593 | Q88: - | R88: =CEILING('прайс-лист2'!S80*Титульный!$AY$1,Титульный!$AY$3) -> 1932 | S88: =CEILING('прайс-лист2'!T80*Титульный!$AY$1,Титульный!$AY$3) -> 3314
A89: Шкаф (560) 1дв 2240х420 | C89: 420х580х2240 | D89: =CEILING('прайс-лист2'!E81*Титульный!$AY$1,Титульный!$AY$3) -> 12962 | E89: =CEILING('прайс-лист2'!F81*Титульный!$AY$1,Титульный!$AY$3) -> 16842 | F89: =CEILING('прайс-лист2'!G81*Титульный!$AY$1,Титульный!$AY$3) -> 13542 | G89: =CEILING('прайс-лист2'!H81*Титульный!$AY$1,Титульный!$AY$3) -> 15002 | H89: =CEILING('прайс-лист2'!I81*Титульный!$AY$1,Титульный!$AY$3) -> 11322 | I89: =CEILING('прайс-лист2'!J81*Титульный!$AY$1,Титульный!$AY$3) -> 11622 | J89: =CEILING('прайс-лист2'!K81*Титульный!$AY$1,Титульный!$AY$3) -> 12392 | K89: =CEILING('прайс-лист2'!L81*Титульный!$AY$1,Титульный!$AY$3) -> 13302 | L89: - | M89: =CEILING('прайс-лист2'!N81*Титульный!$AY$1,Титульный!$AY$3) -> 16552 | N89: =CEILING('прайс-лист2'!O81*Титульный!$AY$1,Титульный!$AY$3) -> 17652 | O89: =CEILING('прайс-лист2'!P81*Титульный!$AY$1,Титульный!$AY$3) -> 16532 | P89: =CEILING('прайс-лист2'!Q81*Титульный!$AY$1,Титульный!$AY$3) -> 17862 | Q89: - | R89: =CEILING('прайс-лист2'!S81*Титульный!$AY$1,Титульный!$AY$3) -> 1523 | S89: =CEILING('прайс-лист2'!T81*Титульный!$AY$1,Титульный!$AY$3) -> 2730
A90: Шкаф (560) 1дв 2240х560 | C90: 560х580х2240 | D90: =CEILING('прайс-лист2'!E82*Титульный!$AY$1,Титульный!$AY$3) -> 15077 | E90: =CEILING('прайс-лист2'!F82*Титульный!$AY$1,Титульный!$AY$3) -> 20267 | F90: =CEILING('прайс-лист2'!G82*Титульный!$AY$1,Титульный!$AY$3) -> 15857 | G90: =CEILING('прайс-лист2'!H82*Титульный!$AY$1,Титульный!$AY$3) -> 17797 | H90: =CEILING('прайс-лист2'!I82*Титульный!$AY$1,Титульный!$AY$3) -> 12857 | I90: =CEILING('прайс-лист2'!J82*Титульный!$AY$1,Титульный!$AY$3) -> 13237 | J90: =CEILING('прайс-лист2'!K82*Титульный!$AY$1,Титульный!$AY$3) -> 14207 | K90: =CEILING('прайс-лист2'!L82*Титульный!$AY$1,Титульный!$AY$3) -> 15397 | L90: - | M90: =CEILING('прайс-лист2'!N82*Титульный!$AY$1,Титульный!$AY$3) -> 19597 | N90: =CEILING('прайс-лист2'!O82*Титульный!$AY$1,Титульный!$AY$3) -> 20747 | O90: =CEILING('прайс-лист2'!P82*Титульный!$AY$1,Титульный!$AY$3) -> 19567 | P90: =CEILING('прайс-лист2'!Q82*Титульный!$AY$1,Титульный!$AY$3) -> 21347 | Q90: - | R90: =CEILING('прайс-лист2'!S82*Титульный!$AY$1,Титульный!$AY$3) -> 2190 | S90: =CEILING('прайс-лист2'!T82*Титульный!$AY$1,Титульный!$AY$3) -> 3632
A91: Шкаф (560) 1дв 2ящ 2040х420 | C91: 420х580х2040 | D91: =CEILING('прайс-лист2'!E83*Титульный!$AY$1,Титульный!$AY$3) -> 13488 | E91: =CEILING('прайс-лист2'!F83*Титульный!$AY$1,Титульный!$AY$3) -> 17008 | F91: =CEILING('прайс-лист2'!G83*Титульный!$AY$1,Титульный!$AY$3) -> 14018 | G91: =CEILING('прайс-лист2'!H83*Титульный!$AY$1,Титульный!$AY$3) -> 15328 | H91: =CEILING('прайс-лист2'!I83*Титульный!$AY$1,Титульный!$AY$3) -> 12038 | I91: =CEILING('прайс-лист2'!J83*Титульный!$AY$1,Титульный!$AY$3) -> 12348 | J91: =CEILING('прайс-лист2'!K83*Титульный!$AY$1,Титульный!$AY$3) -> 13088 | K91: =CEILING('прайс-лист2'!L83*Титульный!$AY$1,Титульный!$AY$3) -> 13958 | L91: - | M91: =CEILING('прайс-лист2'!N83*Титульный!$AY$1,Титульный!$AY$3) -> 17088 | N91: =CEILING('прайс-лист2'!O83*Титульный!$AY$1,Титульный!$AY$3) -> 18448 | O91: =CEILING('прайс-лист2'!P83*Титульный!$AY$1,Титульный!$AY$3) -> 17068 | P91: =CEILING('прайс-лист2'!Q83*Титульный!$AY$1,Титульный!$AY$3) -> 18278 | Q91: - | R91: =CEILING('прайс-лист2'!S83*Титульный!$AY$1,Титульный!$AY$3) -> 1344 | S91: =CEILING('прайс-лист2'!T83*Титульный!$AY$1,Титульный!$AY$3) -> 2010
A92: Шкаф (560) 1дв 2ящ 2040х560 | C92: 560х580х2040 | D92: =CEILING('прайс-лист2'!E84*Титульный!$AY$1,Титульный!$AY$3) -> 15308 | E92: =CEILING('прайс-лист2'!F84*Титульный!$AY$1,Титульный!$AY$3) -> 20018 | F92: =CEILING('прайс-лист2'!G84*Титульный!$AY$1,Титульный!$AY$3) -> 16018 | G92: =CEILING('прайс-лист2'!H84*Титульный!$AY$1,Титульный!$AY$3) -> 17788 | H92: =CEILING('прайс-лист2'!I84*Титульный!$AY$1,Титульный!$AY$3) -> 13338 | I92: =CEILING('прайс-лист2'!J84*Титульный!$AY$1,Титульный!$AY$3) -> 13738 | J92: =CEILING('прайс-лист2'!K84*Титульный!$AY$1,Титульный!$AY$3) -> 14698 | K92: =CEILING('прайс-лист2'!L84*Титульный!$AY$1,Титульный!$AY$3) -> 15808 | L92: - | M92: =CEILING('прайс-лист2'!N84*Титульный!$AY$1,Титульный!$AY$3) -> 19848 | N92: =CEILING('прайс-лист2'!O84*Титульный!$AY$1,Титульный!$AY$3) -> 21388 | O92: =CEILING('прайс-лист2'!P84*Титульный!$AY$1,Титульный!$AY$3) -> 19828 | P92: =CEILING('прайс-лист2'!Q84*Титульный!$AY$1,Титульный!$AY$3) -> 21438 | Q92: - | R92: =CEILING('прайс-лист2'!S84*Титульный!$AY$1,Титульный!$AY$3) -> 1932 | S92: =CEILING('прайс-лист2'!T84*Титульный!$AY$1,Титульный!$AY$3) -> 2677
A93: Шкаф (560) 1дв 2ящ 2240х420 | C93: 420х580х2240 | D93: =CEILING('прайс-лист2'!E85*Титульный!$AY$1,Титульный!$AY$3) -> 14284 | E93: =CEILING('прайс-лист2'!F85*Титульный!$AY$1,Титульный!$AY$3) -> 18164 | F93: =CEILING('прайс-лист2'!G85*Титульный!$AY$1,Титульный!$AY$3) -> 14864 | G93: =CEILING('прайс-лист2'!H85*Титульный!$AY$1,Титульный!$AY$3) -> 16314 | H93: =CEILING('прайс-лист2'!I85*Титульный!$AY$1,Титульный!$AY$3) -> 12684 | I93: =CEILING('прайс-лист2'!J85*Титульный!$AY$1,Титульный!$AY$3) -> 13024 | J93: =CEILING('прайс-лист2'!K85*Титульный!$AY$1,Титульный!$AY$3) -> 13834 | K93: =CEILING('прайс-лист2'!L85*Титульный!$AY$1,Титульный!$AY$3) -> 14784 | L93: - | M93: =CEILING('прайс-лист2'!N85*Титульный!$AY$1,Титульный!$AY$3) -> 18194 | N93: =CEILING('прайс-лист2'!O85*Титульный!$AY$1,Титульный!$AY$3) -> 19644 | O93: =CEILING('прайс-лист2'!P85*Титульный!$AY$1,Титульный!$AY$3) -> 18184 | P93: =CEILING('прайс-лист2'!Q85*Титульный!$AY$1,Титульный!$AY$3) -> 19514 | Q93: - | R93: =CEILING('прайс-лист2'!S85*Титульный!$AY$1,Титульный!$AY$3) -> 1523 | S93: =CEILING('прайс-лист2'!T85*Титульный!$AY$1,Титульный!$AY$3) -> 2250
A94: Шкаф (560) 1дв 2ящ 2240х560 | C94: 560х580х2240 | D94: =CEILING('прайс-лист2'!E86*Титульный!$AY$1,Титульный!$AY$3) -> 16528 | E94: =CEILING('прайс-лист2'!F86*Титульный!$AY$1,Титульный!$AY$3) -> 21718 | F94: =CEILING('прайс-лист2'!G86*Титульный!$AY$1,Титульный!$AY$3) -> 17318 | G94: =CEILING('прайс-лист2'!H86*Титульный!$AY$1,Титульный!$AY$3) -> 19258 | H94: =CEILING('прайс-лист2'!I86*Титульный!$AY$1,Титульный!$AY$3) -> 14358 | I94: =CEILING('прайс-лист2'!J86*Титульный!$AY$1,Титульный!$AY$3) -> 14798 | J94: =CEILING('прайс-лист2'!K86*Титульный!$AY$1,Титульный!$AY$3) -> 15838 | K94: =CEILING('прайс-лист2'!L86*Титульный!$AY$1,Титульный!$AY$3) -> 17058 | L94: - | M94: =CEILING('прайс-лист2'!N86*Титульный!$AY$1,Титульный!$AY$3) -> 21468 | N94: =CEILING('прайс-лист2'!O86*Титульный!$AY$1,Титульный!$AY$3) -> 23098 | O94: =CEILING('прайс-лист2'!P86*Титульный!$AY$1,Титульный!$AY$3) -> 21448 | P94: =CEILING('прайс-лист2'!Q86*Титульный!$AY$1,Титульный!$AY$3) -> 23218 | Q94: - | R94: =CEILING('прайс-лист2'!S86*Титульный!$AY$1,Титульный!$AY$3) -> 2190 | S94: =CEILING('прайс-лист2'!T86*Титульный!$AY$1,Титульный!$AY$3) -> 2995
A95: Шкаф (560) 2дв 1ящ 2040х560 | C95: 560х580х2040 | D95: =CEILING('прайс-лист2'!E87*Титульный!$AY$1,Титульный!$AY$3) -> 14272 | E95: =CEILING('прайс-лист2'!F87*Титульный!$AY$1,Титульный!$AY$3) -> 18982 | F95: =CEILING('прайс-лист2'!G87*Титульный!$AY$1,Титульный!$AY$3) -> 15002 | G95: =CEILING('прайс-лист2'!H87*Титульный!$AY$1,Титульный!$AY$3) -> 16762 | H95: =CEILING('прайс-лист2'!I87*Титульный!$AY$1,Титульный!$AY$3) -> 12312 | I95: =CEILING('прайс-лист2'!J87*Титульный!$AY$1,Титульный!$AY$3) -> 12712 | J95: =CEILING('прайс-лист2'!K87*Титульный!$AY$1,Титульный!$AY$3) -> 13672 | K95: =CEILING('прайс-лист2'!L87*Титульный!$AY$1,Титульный!$AY$3) -> 14792 | L95: - | M95: =CEILING('прайс-лист2'!N87*Титульный!$AY$1,Титульный!$AY$3) -> 18832 | N95: =CEILING('прайс-лист2'!O87*Титульный!$AY$1,Титульный!$AY$3) -> 20372 | O95: =CEILING('прайс-лист2'!P87*Титульный!$AY$1,Титульный!$AY$3) -> 18812 | P95: =CEILING('прайс-лист2'!Q87*Титульный!$AY$1,Титульный!$AY$3) -> 20412 | Q95: - | R95: - | S95: -
A96: Шкаф (560) 2дв 1ящ 2240х560 | C96: 560х580х2240 | D96: =CEILING('прайс-лист2'!E88*Титульный!$AY$1,Титульный!$AY$3) -> 15510 | E96: =CEILING('прайс-лист2'!F88*Титульный!$AY$1,Титульный!$AY$3) -> 20690 | F96: =CEILING('прайс-лист2'!G88*Титульный!$AY$1,Титульный!$AY$3) -> 16300 | G96: =CEILING('прайс-лист2'!H88*Титульный!$AY$1,Титульный!$AY$3) -> 18240 | H96: =CEILING('прайс-лист2'!I88*Титульный!$AY$1,Титульный!$AY$3) -> 13340 | I96: =CEILING('прайс-лист2'!J88*Титульный!$AY$1,Титульный!$AY$3) -> 13780 | J96: =CEILING('прайс-лист2'!K88*Титульный!$AY$1,Титульный!$AY$3) -> 14820 | K96: =CEILING('прайс-лист2'!L88*Титульный!$AY$1,Титульный!$AY$3) -> 16040 | L96: - | M96: =CEILING('прайс-лист2'!N88*Титульный!$AY$1,Титульный!$AY$3) -> 20460 | N96: =CEILING('прайс-лист2'!O88*Титульный!$AY$1,Титульный!$AY$3) -> 22080 | O96: =CEILING('прайс-лист2'!P88*Титульный!$AY$1,Титульный!$AY$3) -> 20430 | P96: =CEILING('прайс-лист2'!Q88*Титульный!$AY$1,Титульный!$AY$3) -> 22200 | Q96: - | R96: - | S96: -
A97: Шкаф (560) 2дв 2040х840 | C97: 840х580х2040 | D97: =CEILING('прайс-лист2'!E89*Титульный!$AY$1,Титульный!$AY$3) -> 19641 | E97: =CEILING('прайс-лист2'!F89*Титульный!$AY$1,Титульный!$AY$3) -> 26721 | F97: =CEILING('прайс-лист2'!G89*Титульный!$AY$1,Титульный!$AY$3) -> 20721 | G97: =CEILING('прайс-лист2'!H89*Титульный!$AY$1,Титульный!$AY$3) -> 23361 | H97: =CEILING('прайс-лист2'!I89*Титульный!$AY$1,Титульный!$AY$3) -> 16661 | I97: =CEILING('прайс-лист2'!J89*Титульный!$AY$1,Титульный!$AY$3) -> 17221 | J97: =CEILING('прайс-лист2'!K89*Титульный!$AY$1,Титульный!$AY$3) -> 18621 | K97: =CEILING('прайс-лист2'!L89*Титульный!$AY$1,Титульный!$AY$3) -> 20281 | L97: - | M97: =CEILING('прайс-лист2'!N89*Титульный!$AY$1,Титульный!$AY$3) -> 26221 | N97: =CEILING('прайс-лист2'!O89*Титульный!$AY$1,Титульный!$AY$3) -> 28241 | O97: =CEILING('прайс-лист2'!P89*Титульный!$AY$1,Титульный!$AY$3) -> 26181 | P97: =CEILING('прайс-лист2'!Q89*Титульный!$AY$1,Титульный!$AY$3) -> 28601 | Q97: - | R97: =CEILING('прайс-лист2'!S89*Титульный!$AY$1,Титульный!$AY$3) -> 2688 | S97: =CEILING('прайс-лист2'!T89*Титульный!$AY$1,Титульный!$AY$3) -> 4980
A98: Шкаф (560) 2дв 2240х840 | C98: 840х580х2240 | D98: =CEILING('прайс-лист2'!E90*Титульный!$AY$1,Титульный!$AY$3) -> 21374 | E98: =CEILING('прайс-лист2'!F90*Титульный!$AY$1,Титульный!$AY$3) -> 29134 | F98: =CEILING('прайс-лист2'!G90*Титульный!$AY$1,Титульный!$AY$3) -> 22534 | G98: =CEILING('прайс-лист2'!H90*Титульный!$AY$1,Титульный!$AY$3) -> 25454 | H98: =CEILING('прайс-лист2'!I90*Титульный!$AY$1,Титульный!$AY$3) -> 18094 | I98: =CEILING('прайс-лист2'!J90*Титульный!$AY$1,Титульный!$AY$3) -> 18694 | J98: =CEILING('прайс-лист2'!K90*Титульный!$AY$1,Титульный!$AY$3) -> 20234 | K98: =CEILING('прайс-лист2'!L90*Титульный!$AY$1,Титульный!$AY$3) -> 22054 | L98: - | M98: =CEILING('прайс-лист2'!N90*Титульный!$AY$1,Титульный!$AY$3) -> 28554 | N98: =CEILING('прайс-лист2'!O90*Титульный!$AY$1,Титульный!$AY$3) -> 30754 | O98: =CEILING('прайс-лист2'!P90*Титульный!$AY$1,Титульный!$AY$3) -> 28514 | P98: =CEILING('прайс-лист2'!Q90*Титульный!$AY$1,Титульный!$AY$3) -> 31174 | Q98: - | R98: =CEILING('прайс-лист2'!S90*Титульный!$AY$1,Титульный!$AY$3) -> 3046 | S98: =CEILING('прайс-лист2'!T90*Титульный!$AY$1,Титульный!$AY$3) -> 5460
A99: Шкаф (560) 2дв 2ящ 2040х840 | C99: 840х580х2040 | D99: =CEILING('прайс-лист2'!E91*Титульный!$AY$1,Титульный!$AY$3) -> 20840 | E99: =CEILING('прайс-лист2'!F91*Титульный!$AY$1,Титульный!$AY$3) -> 27880 | F99: =CEILING('прайс-лист2'!G91*Титульный!$AY$1,Титульный!$AY$3) -> 21920 | G99: =CEILING('прайс-лист2'!H91*Титульный!$AY$1,Титульный!$AY$3) -> 24540 | H99: =CEILING('прайс-лист2'!I91*Титульный!$AY$1,Титульный!$AY$3) -> 17920 | I99: =CEILING('прайс-лист2'!J91*Титульный!$AY$1,Титульный!$AY$3) -> 18520 | J99: =CEILING('прайс-лист2'!K91*Титульный!$AY$1,Титульный!$AY$3) -> 20000 | K99: =CEILING('прайс-лист2'!L91*Титульный!$AY$1,Титульный!$AY$3) -> 21700 | L99: - | M99: =CEILING('прайс-лист2'!N91*Титульный!$AY$1,Титульный!$AY$3) -> 27880 | N99: =CEILING('прайс-лист2'!O91*Титульный!$AY$1,Титульный!$AY$3) -> 30440 | O99: =CEILING('прайс-лист2'!P91*Титульный!$AY$1,Титульный!$AY$3) -> 27840 | P99: =CEILING('прайс-лист2'!Q91*Титульный!$AY$1,Титульный!$AY$3) -> 30260 | Q99: - | R99: =CEILING('прайс-лист2'!S91*Титульный!$AY$1,Титульный!$AY$3) -> 2688 | S99: =CEILING('прайс-лист2'!T91*Титульный!$AY$1,Титульный!$AY$3) -> 4980
A100: Шкаф (560) 2дв 2ящ 2240х840 | C100: 840х580х2240 | D100: =CEILING('прайс-лист2'!E92*Титульный!$AY$1,Титульный!$AY$3) -> 22553 | E100: =CEILING('прайс-лист2'!F92*Титульный!$AY$1,Титульный!$AY$3) -> 30313 | F100: =CEILING('прайс-лист2'!G92*Титульный!$AY$1,Титульный!$AY$3) -> 23733 | G100: =CEILING('прайс-лист2'!H92*Титульный!$AY$1,Титульный!$AY$3) -> 26633 | H100: =CEILING('прайс-лист2'!I92*Титульный!$AY$1,Титульный!$AY$3) -> 19333 | I100: =CEILING('прайс-лист2'!J92*Титульный!$AY$1,Титульный!$AY$3) -> 19993 | J100: =CEILING('прайс-лист2'!K92*Титульный!$AY$1,Титульный!$AY$3) -> 21613 | K100: =CEILING('прайс-лист2'!L92*Титульный!$AY$1,Титульный!$AY$3) -> 23473 | L100: - | M100: =CEILING('прайс-лист2'!N92*Титульный!$AY$1,Титульный!$AY$3) -> 30213 | N100: =CEILING('прайс-лист2'!O92*Титульный!$AY$1,Титульный!$AY$3) -> 32953 | O100: =CEILING('прайс-лист2'!P92*Титульный!$AY$1,Титульный!$AY$3) -> 30193 | P100: =CEILING('прайс-лист2'!Q92*Титульный!$AY$1,Титульный!$AY$3) -> 32853 | Q100: - | R100: =CEILING('прайс-лист2'!S92*Титульный!$AY$1,Титульный!$AY$3) -> 3046 | S100: =CEILING('прайс-лист2'!T92*Титульный!$AY$1,Титульный!$AY$3) -> 5460
A101: Шкаф (560) ДО 1дв 2040х420 | C101: 420х580х2040 | D101: =CEILING('прайс-лист2'!E93*Титульный!$AY$1,Титульный!$AY$3) -> 11148 | E101: =CEILING('прайс-лист2'!F93*Титульный!$AY$1,Титульный!$AY$3) -> 14688 | F101: =CEILING('прайс-лист2'!G93*Титульный!$AY$1,Титульный!$AY$3) -> 11688 | G101: =CEILING('прайс-лист2'!H93*Титульный!$AY$1,Титульный!$AY$3) -> 13008 | H101: =CEILING('прайс-лист2'!I93*Титульный!$AY$1,Титульный!$AY$3) -> 9658 | I101: =CEILING('прайс-лист2'!J93*Титульный!$AY$1,Титульный!$AY$3) -> 9938 | J101: =CEILING('прайс-лист2'!K93*Титульный!$AY$1,Титульный!$AY$3) -> 10638 | K101: =CEILING('прайс-лист2'!L93*Титульный!$AY$1,Титульный!$AY$3) -> 11468 | L101: - | M101: =CEILING('прайс-лист2'!N93*Титульный!$AY$1,Титульный!$AY$3) -> 14438 | N101: =CEILING('прайс-лист2'!O93*Титульный!$AY$1,Титульный!$AY$3) -> 15448 | O101: =CEILING('прайс-лист2'!P93*Титульный!$AY$1,Титульный!$AY$3) -> 14418 | P101: =CEILING('прайс-лист2'!Q93*Титульный!$AY$1,Титульный!$AY$3) -> 15628 | Q101: - | R101: =CEILING('прайс-лист2'!S93*Титульный!$AY$1,Титульный!$AY$3) -> 1344 | S101: =CEILING('прайс-лист2'!T93*Титульный!$AY$1,Титульный!$AY$3) -> 2490
A102: Шкаф (560) ДО 1дв 2040х560 | C102: 560х580х2040 | D102: =CEILING('прайс-лист2'!E94*Титульный!$AY$1,Титульный!$AY$3) -> 12801 | E102: =CEILING('прайс-лист2'!F94*Титульный!$AY$1,Титульный!$AY$3) -> 17521 | F102: =CEILING('прайс-лист2'!G94*Титульный!$AY$1,Титульный!$AY$3) -> 13511 | G102: =CEILING('прайс-лист2'!H94*Титульный!$AY$1,Титульный!$AY$3) -> 15281 | H102: =CEILING('прайс-лист2'!I94*Титульный!$AY$1,Титульный!$AY$3) -> 10781 | I102: =CEILING('прайс-лист2'!J94*Титульный!$AY$1,Титульный!$AY$3) -> 11131 | J102: =CEILING('прайс-лист2'!K94*Титульный!$AY$1,Титульный!$AY$3) -> 12021 | K102: =CEILING('прайс-лист2'!L94*Титульный!$AY$1,Титульный!$AY$3) -> 13111 | L102: - | M102: =CEILING('прайс-лист2'!N94*Титульный!$AY$1,Титульный!$AY$3) -> 16931 | N102: =CEILING('прайс-лист2'!O94*Титульный!$AY$1,Титульный!$AY$3) -> 18001 | O102: =CEILING('прайс-лист2'!P94*Титульный!$AY$1,Титульный!$AY$3) -> 16911 | P102: =CEILING('прайс-лист2'!Q94*Титульный!$AY$1,Титульный!$AY$3) -> 18521 | Q102: - | R102: =CEILING('прайс-лист2'!S94*Титульный!$AY$1,Титульный!$AY$3) -> 1932 | S102: =CEILING('прайс-лист2'!T94*Титульный!$AY$1,Титульный!$AY$3) -> 3314
A103: Шкаф (560) ДО 1дв 2240х420 | C103: 420х580х2240 | D103: =CEILING('прайс-лист2'!E95*Титульный!$AY$1,Титульный!$AY$3) -> 11855 | E103: =CEILING('прайс-лист2'!F95*Титульный!$AY$1,Титульный!$AY$3) -> 15735 | F103: =CEILING('прайс-лист2'!G95*Титульный!$AY$1,Титульный!$AY$3) -> 12435 | G103: =CEILING('прайс-лист2'!H95*Титульный!$AY$1,Титульный!$AY$3) -> 13895 | H103: =CEILING('прайс-лист2'!I95*Титульный!$AY$1,Титульный!$AY$3) -> 10215 | I103: =CEILING('прайс-лист2'!J95*Титульный!$AY$1,Титульный!$AY$3) -> 10515 | J103: =CEILING('прайс-лист2'!K95*Титульный!$AY$1,Титульный!$AY$3) -> 11285 | K103: =CEILING('прайс-лист2'!L95*Титульный!$AY$1,Титульный!$AY$3) -> 12195 | L103: - | M103: =CEILING('прайс-лист2'!N95*Титульный!$AY$1,Титульный!$AY$3) -> 15445 | N103: =CEILING('прайс-лист2'!O95*Титульный!$AY$1,Титульный!$AY$3) -> 16545 | O103: =CEILING('прайс-лист2'!P95*Титульный!$AY$1,Титульный!$AY$3) -> 15425 | P103: =CEILING('прайс-лист2'!Q95*Титульный!$AY$1,Титульный!$AY$3) -> 16755 | Q103: - | R103: =CEILING('прайс-лист2'!S95*Титульный!$AY$1,Титульный!$AY$3) -> 1523 | S103: =CEILING('прайс-лист2'!T95*Титульный!$AY$1,Титульный!$AY$3) -> 2730
A104: Шкаф (560) ДО 1дв 2240х560 | C104: 560х580х2240 | D104: =CEILING('прайс-лист2'!E96*Титульный!$AY$1,Титульный!$AY$3) -> 13589 | E104: =CEILING('прайс-лист2'!F96*Титульный!$AY$1,Титульный!$AY$3) -> 18779 | F104: =CEILING('прайс-лист2'!G96*Титульный!$AY$1,Титульный!$AY$3) -> 14369 | G104: =CEILING('прайс-лист2'!H96*Титульный!$AY$1,Титульный!$AY$3) -> 16309 | H104: =CEILING('прайс-лист2'!I96*Титульный!$AY$1,Титульный!$AY$3) -> 11369 | I104: =CEILING('прайс-лист2'!J96*Титульный!$AY$1,Титульный!$AY$3) -> 11749 | J104: =CEILING('прайс-лист2'!K96*Титульный!$AY$1,Титульный!$AY$3) -> 12719 | K104: =CEILING('прайс-лист2'!L96*Титульный!$AY$1,Титульный!$AY$3) -> 13909 | L104: - | M104: =CEILING('прайс-лист2'!N96*Титульный!$AY$1,Титульный!$AY$3) -> 18109 | N104: =CEILING('прайс-лист2'!O96*Титульный!$AY$1,Титульный!$AY$3) -> 19259 | O104: =CEILING('прайс-лист2'!P96*Титульный!$AY$1,Титульный!$AY$3) -> 18079 | P104: =CEILING('прайс-лист2'!Q96*Титульный!$AY$1,Титульный!$AY$3) -> 19859 | Q104: - | R104: =CEILING('прайс-лист2'!S96*Титульный!$AY$1,Титульный!$AY$3) -> 2190 | S104: =CEILING('прайс-лист2'!T96*Титульный!$AY$1,Титульный!$AY$3) -> 3632
A105: Внимание!!! Для наборов мебели "Марго" использовать только накладные зеркала
A106: Шкафы глубиной 560мм
A107: Наименование | B107: Эскиз | C107: Габариты, ШхГхВ мм. | D107: МДФ фасады | H107: Марго16 | M107: UV-лак | O107: ТСС | Q107: ТСС сборный | R107: Стоимость зеркал
D108: 1 ЦК | E108: 1 ЦК + патина | F108: 2 ЦК | G108: 3 ЦК | H108: 1 ц.к. | I108: 2 ц.к. | J108: 3 ц.к. | K108: 4 ц.к. | L108: 5 ц.к. | M108: UV-лак кромка ABC/AL кромка | N108: кромка 3D | O108: 1 ЦК | P108: 2 ЦК | R108: Зеркало в рамке** | S108: Зеркало накладное*
A109: Шкаф (560) ДО 2дв 2040х840 | C109: 840х580х2040 | D109: =CEILING('прайс-лист2'!E97*Титульный!$AY$1,Титульный!$AY$3) -> 18131 | E109: =CEILING('прайс-лист2'!F97*Титульный!$AY$1,Титульный!$AY$3) -> 25211 | F109: =CEILING('прайс-лист2'!G97*Титульный!$AY$1,Титульный!$AY$3) -> 19211 | G109: =CEILING('прайс-лист2'!H97*Титульный!$AY$1,Титульный!$AY$3) -> 21851 | H109: =CEILING('прайс-лист2'!I97*Титульный!$AY$1,Титульный!$AY$3) -> 15151 | I109: =CEILING('прайс-лист2'!J97*Титульный!$AY$1,Титульный!$AY$3) -> 15711 | J109: =CEILING('прайс-лист2'!K97*Титульный!$AY$1,Титульный!$AY$3) -> 17111 | K109: =CEILING('прайс-лист2'!L97*Титульный!$AY$1,Титульный!$AY$3) -> 18771 | L109: - | M109: =CEILING('прайс-лист2'!N97*Титульный!$AY$1,Титульный!$AY$3) -> 24711 | N109: =CEILING('прайс-лист2'!O97*Титульный!$AY$1,Титульный!$AY$3) -> 26731 | O109: =CEILING('прайс-лист2'!P97*Титульный!$AY$1,Титульный!$AY$3) -> 24671 | P109: =CEILING('прайс-лист2'!Q97*Титульный!$AY$1,Титульный!$AY$3) -> 27091 | Q109: - | R109: =CEILING('прайс-лист2'!S97*Титульный!$AY$1,Титульный!$AY$3) -> 2688 | S109: =CEILING('прайс-лист2'!T97*Титульный!$AY$1,Титульный!$AY$3) -> 5985
A110: Шкаф (560) ДО 2дв 2040х1120 | C110: 1120х580х2040 | D110: =CEILING('прайс-лист2'!E98*Титульный!$AY$1,Титульный!$AY$3) -> 21576 | E110: =CEILING('прайс-лист2'!F98*Титульный!$AY$1,Титульный!$AY$3) -> 31016 | F110: =CEILING('прайс-лист2'!G98*Титульный!$AY$1,Титульный!$AY$3) -> 22996 | G110: =CEILING('прайс-лист2'!H98*Титульный!$AY$1,Титульный!$AY$3) -> 26536 | H110: =CEILING('прайс-лист2'!I98*Титульный!$AY$1,Титульный!$AY$3) -> 17536 | I110: =CEILING('прайс-лист2'!J98*Титульный!$AY$1,Титульный!$AY$3) -> 18236 | J110: =CEILING('прайс-лист2'!K98*Титульный!$AY$1,Титульный!$AY$3) -> 20016 | K110: =CEILING('прайс-лист2'!L98*Титульный!$AY$1,Титульный!$AY$3) -> 22196 | L110: - | M110: =CEILING('прайс-лист2'!N98*Титульный!$AY$1,Титульный!$AY$3) -> 29836 | N110: =CEILING('прайс-лист2'!O98*Титульный!$AY$1,Титульный!$AY$3) -> 31976 | O110: =CEILING('прайс-лист2'!P98*Титульный!$AY$1,Титульный!$AY$3) -> 29796 | P110: =CEILING('прайс-лист2'!Q98*Титульный!$AY$1,Титульный!$AY$3) -> 33016 | Q110: - | R110: =CEILING('прайс-лист2'!S98*Титульный!$AY$1,Титульный!$AY$3) -> 3864 | S110: =CEILING('прайс-лист2'!T98*Титульный!$AY$1,Титульный!$AY$3) -> 7464
A111: Шкаф (560) ДО 2дв 2240х840 | C111: 840х580х2240 | D111: =CEILING('прайс-лист2'!E99*Титульный!$AY$1,Титульный!$AY$3) -> 19225 | E111: =CEILING('прайс-лист2'!F99*Титульный!$AY$1,Титульный!$AY$3) -> 26985 | F111: =CEILING('прайс-лист2'!G99*Титульный!$AY$1,Титульный!$AY$3) -> 20385 | G111: =CEILING('прайс-лист2'!H99*Титульный!$AY$1,Титульный!$AY$3) -> 23305 | H111: =CEILING('прайс-лист2'!I99*Титульный!$AY$1,Титульный!$AY$3) -> 15945 | I111: =CEILING('прайс-лист2'!J99*Титульный!$AY$1,Титульный!$AY$3) -> 16545 | J111: =CEILING('прайс-лист2'!K99*Титульный!$AY$1,Титульный!$AY$3) -> 18085 | K111: =CEILING('прайс-лист2'!L99*Титульный!$AY$1,Титульный!$AY$3) -> 19905 | L111: - | M111: =CEILING('прайс-лист2'!N99*Титульный!$AY$1,Титульный!$AY$3) -> 26405 | N111: =CEILING('прайс-лист2'!O99*Титульный!$AY$1,Титульный!$AY$3) -> 28605 | O111: =CEILING('прайс-лист2'!P99*Титульный!$AY$1,Титульный!$AY$3) -> 26365 | P111: =CEILING('прайс-лист2'!Q99*Титульный!$AY$1,Титульный!$AY$3) -> 29025 | Q111: - | R111: =CEILING('прайс-лист2'!S99*Титульный!$AY$1,Титульный!$AY$3) -> 3046 | S111: =CEILING('прайс-лист2'!T99*Титульный!$AY$1,Титульный!$AY$3) -> 5460
A112: Шкаф (560) ДО 2дв 2240х1120 | C112: 1120х580х2240 | D112: =CEILING('прайс-лист2'!E100*Титульный!$AY$1,Титульный!$AY$3) -> 22889 | E112: =CEILING('прайс-лист2'!F100*Титульный!$AY$1,Титульный!$AY$3) -> 33269 | F112: =CEILING('прайс-лист2'!G100*Титульный!$AY$1,Титульный!$AY$3) -> 24449 | G112: =CEILING('прайс-лист2'!H100*Титульный!$AY$1,Титульный!$AY$3) -> 28329 | H112: =CEILING('прайс-лист2'!I100*Титульный!$AY$1,Титульный!$AY$3) -> 18449 | I112: =CEILING('прайс-лист2'!J100*Титульный!$AY$1,Титульный!$AY$3) -> 19209 | J112: =CEILING('прайс-лист2'!K100*Титульный!$AY$1,Титульный!$AY$3) -> 21149 | K112: =CEILING('прайс-лист2'!L100*Титульный!$AY$1,Титульный!$AY$3) -> 23529 | L112: - | M112: =CEILING('прайс-лист2'!N100*Титульный!$AY$1,Титульный!$AY$3) -> 31929 | N112: =CEILING('прайс-лист2'!O100*Титульный!$AY$1,Титульный!$AY$3) -> 34229 | O112: =CEILING('прайс-лист2'!P100*Титульный!$AY$1,Титульный!$AY$3) -> 31869 | P112: =CEILING('прайс-лист2'!Q100*Титульный!$AY$1,Титульный!$AY$3) -> 35429 | Q112: - | R112: =CEILING('прайс-лист2'!S100*Титульный!$AY$1,Титульный!$AY$3) -> 4380 | S112: =CEILING('прайс-лист2'!T100*Титульный!$AY$1,Титульный!$AY$3) -> 7264
A113: Шкаф (560) ДО 2дв 2ящ 2040х840 | C113: 840х580х2040 | D113: =CEILING('прайс-лист2'!E101*Титульный!$AY$1,Титульный!$AY$3) -> 20361 | E113: =CEILING('прайс-лист2'!F101*Титульный!$AY$1,Титульный!$AY$3) -> 27401 | F113: =CEILING('прайс-лист2'!G101*Титульный!$AY$1,Титульный!$AY$3) -> 21441 | G113: =CEILING('прайс-лист2'!H101*Титульный!$AY$1,Титульный!$AY$3) -> 24061 | H113: =CEILING('прайс-лист2'!I101*Титульный!$AY$1,Титульный!$AY$3) -> 17441 | I113: =CEILING('прайс-лист2'!J101*Титульный!$AY$1,Титульный!$AY$3) -> 18041 | J113: =CEILING('прайс-лист2'!K101*Титульный!$AY$1,Титульный!$AY$3) -> 19521 | K113: =CEILING('прайс-лист2'!L101*Титульный!$AY$1,Титульный!$AY$3) -> 21221 | L113: - | M113: =CEILING('прайс-лист2'!N101*Титульный!$AY$1,Титульный!$AY$3) -> 27401 | N113: =CEILING('прайс-лист2'!O101*Титульный!$AY$1,Титульный!$AY$3) -> 29961 | O113: =CEILING('прайс-лист2'!P101*Титульный!$AY$1,Титульный!$AY$3) -> 27361 | P113: =CEILING('прайс-лист2'!Q101*Титульный!$AY$1,Титульный!$AY$3) -> 29781 | Q113: - | R113: =CEILING('прайс-лист2'!S101*Титульный!$AY$1,Титульный!$AY$3) -> 2688 | S113: =CEILING('прайс-лист2'!T101*Титульный!$AY$1,Титульный!$AY$3) -> 4980
A114: Шкаф (560) ДО 2дв 2ящ 2240х840 | C114: 840х580х2240 | D114: =CEILING('прайс-лист2'!E102*Титульный!$AY$1,Титульный!$AY$3) -> 21436 | E114: =CEILING('прайс-лист2'!F102*Титульный!$AY$1,Титульный!$AY$3) -> 29196 | F114: =CEILING('прайс-лист2'!G102*Титульный!$AY$1,Титульный!$AY$3) -> 22616 | G114: =CEILING('прайс-лист2'!H102*Титульный!$AY$1,Титульный!$AY$3) -> 25516 | H114: =CEILING('прайс-лист2'!I102*Титульный!$AY$1,Титульный!$AY$3) -> 18216 | I114: =CEILING('прайс-лист2'!J102*Титульный!$AY$1,Титульный!$AY$3) -> 18876 | J114: =CEILING('прайс-лист2'!K102*Титульный!$AY$1,Титульный!$AY$3) -> 20496 | K114: =CEILING('прайс-лист2'!L102*Титульный!$AY$1,Титульный!$AY$3) -> 22356 | L114: - | M114: =CEILING('прайс-лист2'!N102*Титульный!$AY$1,Титульный!$AY$3) -> 29096 | N114: =CEILING('прайс-лист2'!O102*Титульный!$AY$1,Титульный!$AY$3) -> 31836 | O114: =CEILING('прайс-лист2'!P102*Титульный!$AY$1,Титульный!$AY$3) -> 29076 | P114: =CEILING('прайс-лист2'!Q102*Титульный!$AY$1,Титульный!$AY$3) -> 31736 | Q114: - | R114: =CEILING('прайс-лист2'!S102*Титульный!$AY$1,Титульный!$AY$3) -> 3046 | S114: =CEILING('прайс-лист2'!T102*Титульный!$AY$1,Титульный!$AY$3) -> 5460
A115: Шкаф (560) Комб 2дв 2040х840 | C115: 840х580х2040 | D115: =CEILING('прайс-лист2'!E103*Титульный!$AY$1,Титульный!$AY$3) -> 21063 | E115: =CEILING('прайс-лист2'!F103*Титульный!$AY$1,Титульный!$AY$3) -> 28143 | F115: =CEILING('прайс-лист2'!G103*Титульный!$AY$1,Титульный!$AY$3) -> 22143 | G115: =CEILING('прайс-лист2'!H103*Титульный!$AY$1,Титульный!$AY$3) -> 24783 | H115: =CEILING('прайс-лист2'!I103*Титульный!$AY$1,Титульный!$AY$3) -> 18083 | I115: =CEILING('прайс-лист2'!J103*Титульный!$AY$1,Титульный!$AY$3) -> 18643 | J115: =CEILING('прайс-лист2'!K103*Титульный!$AY$1,Титульный!$AY$3) -> 20043 | K115: =CEILING('прайс-лист2'!L103*Титульный!$AY$1,Титульный!$AY$3) -> 21703 | L115: - | M115: =CEILING('прайс-лист2'!N103*Титульный!$AY$1,Титульный!$AY$3) -> 27643 | N115: =CEILING('прайс-лист2'!O103*Титульный!$AY$1,Титульный!$AY$3) -> 29663 | O115: =CEILING('прайс-лист2'!P103*Титульный!$AY$1,Титульный!$AY$3) -> 27603 | P115: =CEILING('прайс-лист2'!Q103*Титульный!$AY$1,Титульный!$AY$3) -> 30023 | Q115: - | R115: =CEILING('прайс-лист2'!S103*Титульный!$AY$1,Титульный!$AY$3) -> 2688 | S115: =CEILING('прайс-лист2'!T103*Титульный!$AY$1,Титульный!$AY$3) -> 4980
A116: Шкаф (560) Комб 2дв 2240х840 | C116: 840х580х2240 | D116: =CEILING('прайс-лист2'!E104*Титульный!$AY$1,Титульный!$AY$3) -> 22606 | E116: =CEILING('прайс-лист2'!F104*Титульный!$AY$1,Титульный!$AY$3) -> 30366 | F116: =CEILING('прайс-лист2'!G104*Титульный!$AY$1,Титульный!$AY$3) -> 23766 | G116: =CEILING('прайс-лист2'!H104*Титульный!$AY$1,Титульный!$AY$3) -> 26686 | H116: =CEILING('прайс-лист2'!I104*Титульный!$AY$1,Титульный!$AY$3) -> 19326 | I116: =CEILING('прайс-лист2'!J104*Титульный!$AY$1,Титульный!$AY$3) -> 19926 | J116: =CEILING('прайс-лист2'!K104*Титульный!$AY$1,Титульный!$AY$3) -> 21466 | K116: =CEILING('прайс-лист2'!L104*Титульный!$AY$1,Титульный!$AY$3) -> 23286 | L116: - | M116: =CEILING('прайс-лист2'!N104*Титульный!$AY$1,Титульный!$AY$3) -> 29786 | N116: =CEILING('прайс-лист2'!O104*Титульный!$AY$1,Титульный!$AY$3) -> 31986 | O116: =CEILING('прайс-лист2'!P104*Титульный!$AY$1,Титульный!$AY$3) -> 29746 | P116: =CEILING('прайс-лист2'!Q104*Титульный!$AY$1,Титульный!$AY$3) -> 32406 | Q116: - | R116: =CEILING('прайс-лист2'!S104*Титульный!$AY$1,Титульный!$AY$3) -> 3046 | S116: =CEILING('прайс-лист2'!T104*Титульный!$AY$1,Титульный!$AY$3) -> 5460
A117: Шкаф (560) Комб 2дв 2040х1120 | C117: 1120х580х2040 | D117: =CEILING('прайс-лист2'!E105*Титульный!$AY$1,Титульный!$AY$3) -> 24294 | E117: =CEILING('прайс-лист2'!F105*Титульный!$AY$1,Титульный!$AY$3) -> 33734 | F117: =CEILING('прайс-лист2'!G105*Титульный!$AY$1,Титульный!$AY$3) -> 25714 | G117: =CEILING('прайс-лист2'!H105*Титульный!$AY$1,Титульный!$AY$3) -> 29254 | H117: =CEILING('прайс-лист2'!I105*Титульный!$AY$1,Титульный!$AY$3) -> 20254 | I117: =CEILING('прайс-лист2'!J105*Титульный!$AY$1,Титульный!$AY$3) -> 20954 | J117: =CEILING('прайс-лист2'!K105*Титульный!$AY$1,Титульный!$AY$3) -> 22734 | K117: =CEILING('прайс-лист2'!L105*Титульный!$AY$1,Титульный!$AY$3) -> 24914 | L117: - | M117: =CEILING('прайс-лист2'!N105*Титульный!$AY$1,Титульный!$AY$3) -> 32554 | N117: =CEILING('прайс-лист2'!O105*Титульный!$AY$1,Титульный!$AY$3) -> 34694 | O117: =CEILING('прайс-лист2'!P105*Титульный!$AY$1,Титульный!$AY$3) -> 32514 | P117: =CEILING('прайс-лист2'!Q105*Титульный!$AY$1,Титульный!$AY$3) -> 35734 | Q117: - | R117: =CEILING('прайс-лист2'!S105*Титульный!$AY$1,Титульный!$AY$3) -> 3864 | S117: =CEILING('прайс-лист2'!T105*Титульный!$AY$1,Титульный!$AY$3) -> 7464
A118: Шкаф (560) Комб 2дв 2240х1120 | C118: 1120х580х2240 | D118: =CEILING('прайс-лист2'!E106*Титульный!$AY$1,Титульный!$AY$3) -> 25968 | E118: =CEILING('прайс-лист2'!F106*Титульный!$AY$1,Титульный!$AY$3) -> 36348 | F118: =CEILING('прайс-лист2'!G106*Титульный!$AY$1,Титульный!$AY$3) -> 27528 | G118: =CEILING('прайс-лист2'!H106*Титульный!$AY$1,Титульный!$AY$3) -> 31408 | H118: =CEILING('прайс-лист2'!I106*Титульный!$AY$1,Титульный!$AY$3) -> 21528 | I118: =CEILING('прайс-лист2'!J106*Титульный!$AY$1,Титульный!$AY$3) -> 22288 | J118: =CEILING('прайс-лист2'!K106*Титульный!$AY$1,Титульный!$AY$3) -> 24228 | K118: =CEILING('прайс-лист2'!L106*Титульный!$AY$1,Титульный!$AY$3) -> 26608 | L118: - | M118: =CEILING('прайс-лист2'!N106*Титульный!$AY$1,Титульный!$AY$3) -> 35008 | N118: =CEILING('прайс-лист2'!O106*Титульный!$AY$1,Титульный!$AY$3) -> 37308 | O118: =CEILING('прайс-лист2'!P106*Титульный!$AY$1,Титульный!$AY$3) -> 34948 | P118: =CEILING('прайс-лист2'!Q106*Титульный!$AY$1,Титульный!$AY$3) -> 38508 | Q118: - | R118: =CEILING('прайс-лист2'!S106*Титульный!$AY$1,Титульный!$AY$3) -> 4380 | S118: =CEILING('прайс-лист2'!T106*Титульный!$AY$1,Титульный!$AY$3) -> 7264
A119: Шкаф (560) Комб 3дв 2040х1260 | C119: 1260х580х2040 | D119: =CEILING('прайс-лист2'!E107*Титульный!$AY$1,Титульный!$AY$3) -> 27737 | E119: =CEILING('прайс-лист2'!F107*Титульный!$AY$1,Титульный!$AY$3) -> 38357 | F119: =CEILING('прайс-лист2'!G107*Титульный!$AY$1,Титульный!$AY$3) -> 29357 | G119: =CEILING('прайс-лист2'!H107*Титульный!$AY$1,Титульный!$AY$3) -> 33317 | H119: =CEILING('прайс-лист2'!I107*Титульный!$AY$1,Титульный!$AY$3) -> 23267 | I119: =CEILING('прайс-лист2'!J107*Титульный!$AY$1,Титульный!$AY$3) -> 24107 | J119: =CEILING('прайс-лист2'!K107*Титульный!$AY$1,Титульный!$AY$3) -> 26207 | K119: =CEILING('прайс-лист2'!L107*Титульный!$AY$1,Титульный!$AY$3) -> 28697 | L119: - | M119: =CEILING('прайс-лист2'!N107*Титульный!$AY$1,Титульный!$AY$3) -> 37607 | N119: =CEILING('прайс-лист2'!O107*Титульный!$AY$1,Титульный!$AY$3) -> 40637 | O119: =CEILING('прайс-лист2'!P107*Титульный!$AY$1,Титульный!$AY$3) -> 37547 | P119: =CEILING('прайс-лист2'!Q107*Титульный!$AY$1,Титульный!$AY$3) -> 41177 | Q119: - | R119: =CEILING('прайс-лист2'!S107*Титульный!$AY$1,Титульный!$AY$3) -> 1344 | S119: =CEILING('прайс-лист2'!T107*Титульный!$AY$1,Титульный!$AY$3) -> 2490
A120: Шкаф (560) Комб 3дв 2040х1400 | C120: 1400х580х2040 | D120: =CEILING('прайс-лист2'!E108*Титульный!$AY$1,Титульный!$AY$3) -> 29391 | E120: =CEILING('прайс-лист2'!F108*Титульный!$AY$1,Титульный!$AY$3) -> 41191 | F120: =CEILING('прайс-лист2'!G108*Титульный!$AY$1,Титульный!$AY$3) -> 31181 | G120: =CEILING('прайс-лист2'!H108*Титульный!$AY$1,Титульный!$AY$3) -> 35591 | H120: =CEILING('прайс-лист2'!I108*Титульный!$AY$1,Титульный!$AY$3) -> 24391 | I120: =CEILING('прайс-лист2'!J108*Титульный!$AY$1,Титульный!$AY$3) -> 25301 | J120: =CEILING('прайс-лист2'!K108*Титульный!$AY$1,Титульный!$AY$3) -> 27591 | K120: =CEILING('прайс-лист2'!L108*Титульный!$AY$1,Титульный!$AY$3) -> 30341 | L120: - | M120: =CEILING('прайс-лист2'!N108*Титульный!$AY$1,Титульный!$AY$3) -> 40101 | N120: =CEILING('прайс-лист2'!O108*Титульный!$AY$1,Титульный!$AY$3) -> 43191 | O120: =CEILING('прайс-лист2'!P108*Титульный!$AY$1,Титульный!$AY$3) -> 40041 | P120: =CEILING('прайс-лист2'!Q108*Титульный!$AY$1,Титульный!$AY$3) -> 44071 | Q120: - | R120: =CEILING('прайс-лист2'!S108*Титульный!$AY$1,Титульный!$AY$3) -> 1932 | S120: =CEILING('прайс-лист2'!T108*Титульный!$AY$1,Титульный!$AY$3) -> 3314
A121: Шкаф (560) Комб 3дв 2040х1680 | C121: 1680х580х2040 | D121: =CEILING('прайс-лист2'!E109*Титульный!$AY$1,Титульный!$AY$3) -> 32869 | E121: =CEILING('прайс-лист2'!F109*Титульный!$AY$1,Титульный!$AY$3) -> 47029 | F121: =CEILING('прайс-лист2'!G109*Титульный!$AY$1,Титульный!$AY$3) -> 34999 | G121: =CEILING('прайс-лист2'!H109*Титульный!$AY$1,Титульный!$AY$3) -> 40309 | H121: =CEILING('прайс-лист2'!I109*Титульный!$AY$1,Титульный!$AY$3) -> 26809 | I121: =CEILING('прайс-лист2'!J109*Титульный!$AY$1,Титульный!$AY$3) -> 27859 | J121: =CEILING('прайс-лист2'!K109*Титульный!$AY$1,Титульный!$AY$3) -> 30529 | K121: =CEILING('прайс-лист2'!L109*Титульный!$AY$1,Титульный!$AY$3) -> 33799 | L121: - | M121: =CEILING('прайс-лист2'!N109*Титульный!$AY$1,Титульный!$AY$3) -> 45259 | N121: =CEILING('прайс-лист2'!O109*Титульный!$AY$1,Титульный!$AY$3) -> 48469 | O121: =CEILING('прайс-лист2'!P109*Титульный!$AY$1,Титульный!$AY$3) -> 45199 | P121: =CEILING('прайс-лист2'!Q109*Титульный!$AY$1,Титульный!$AY$3) -> 50029 | Q121: - | R121: =CEILING('прайс-лист2'!S109*Титульный!$AY$1,Титульный!$AY$3) -> 1932 | S121: =CEILING('прайс-лист2'!T109*Титульный!$AY$1,Титульный!$AY$3) -> 3314
A122: Шкаф (560) Комб 3дв 2240х1260 | C122: 1260х580х2240 | D122: =CEILING('прайс-лист2'!E110*Титульный!$AY$1,Титульный!$AY$3) -> 29703 | E122: =CEILING('прайс-лист2'!F110*Титульный!$AY$1,Титульный!$AY$3) -> 41343 | F122: =CEILING('прайс-лист2'!G110*Титульный!$AY$1,Титульный!$AY$3) -> 31443 | G122: =CEILING('прайс-лист2'!H110*Титульный!$AY$1,Титульный!$AY$3) -> 35823 | H122: =CEILING('прайс-лист2'!I110*Титульный!$AY$1,Титульный!$AY$3) -> 24783 | I122: =CEILING('прайс-лист2'!J110*Титульный!$AY$1,Титульный!$AY$3) -> 25683 | J122: =CEILING('прайс-лист2'!K110*Титульный!$AY$1,Титульный!$AY$3) -> 27993 | K122: =CEILING('прайс-лист2'!L110*Титульный!$AY$1,Титульный!$AY$3) -> 30723 | L122: - | M122: =CEILING('прайс-лист2'!N110*Титульный!$AY$1,Титульный!$AY$3) -> 40473 | N122: =CEILING('прайс-лист2'!O110*Титульный!$AY$1,Титульный!$AY$3) -> 43773 | O122: =CEILING('прайс-лист2'!P110*Титульный!$AY$1,Титульный!$AY$3) -> 40413 | P122: =CEILING('прайс-лист2'!Q110*Титульный!$AY$1,Титульный!$AY$3) -> 44403 | Q122: - | R122: =CEILING('прайс-лист2'!S110*Титульный!$AY$1,Титульный!$AY$3) -> 1523 | S122: =CEILING('прайс-лист2'!T110*Титульный!$AY$1,Титульный!$AY$3) -> 2730
A123: Шкаф (560) Комб 3дв 2240х1400 | C123: 1400х580х2240 | D123: =CEILING('прайс-лист2'!E111*Титульный!$AY$1,Титульный!$AY$3) -> 31445 | E123: =CEILING('прайс-лист2'!F111*Титульный!$AY$1,Титульный!$AY$3) -> 44395 | F123: =CEILING('прайс-лист2'!G111*Титульный!$AY$1,Титульный!$AY$3) -> 33385 | G123: =CEILING('прайс-лист2'!H111*Титульный!$AY$1,Титульный!$AY$3) -> 38245 | H123: =CEILING('прайс-лист2'!I111*Титульный!$AY$1,Титульный!$AY$3) -> 25945 | I123: =CEILING('прайс-лист2'!J111*Титульный!$AY$1,Титульный!$AY$3) -> 26925 | J123: =CEILING('прайс-лист2'!K111*Титульный!$AY$1,Титульный!$AY$3) -> 29435 | K123: =CEILING('прайс-лист2'!L111*Титульный!$AY$1,Титульный!$AY$3) -> 32445 | L123: - | M123: =CEILING('прайс-лист2'!N111*Титульный!$AY$1,Титульный!$AY$3) -> 43145 | N123: =CEILING('прайс-лист2'!O111*Титульный!$AY$1,Титульный!$AY$3) -> 46495 | O123: =CEILING('прайс-лист2'!P111*Титульный!$AY$1,Титульный!$AY$3) -> 43075 | P123: =CEILING('прайс-лист2'!Q111*Титульный!$AY$1,Титульный!$AY$3) -> 47515 | Q123: - | R123: =CEILING('прайс-лист2'!S111*Титульный!$AY$1,Титульный!$AY$3) -> 2190 | S123: =CEILING('прайс-лист2'!T111*Титульный!$AY$1,Титульный!$AY$3) -> 3632
A124: Шкаф (560) Комб 3дв 2240х1680 | C124: 1680х580х2240 | D124: =CEILING('прайс-лист2'!E112*Титульный!$AY$1,Титульный!$AY$3) -> 35463 | E124: =CEILING('прайс-лист2'!F112*Титульный!$AY$1,Титульный!$AY$3) -> 51033 | F124: =CEILING('прайс-лист2'!G112*Титульный!$AY$1,Титульный!$AY$3) -> 37803 | G124: =CEILING('прайс-лист2'!H112*Титульный!$AY$1,Титульный!$AY$3) -> 43623 | H124: =CEILING('прайс-лист2'!I112*Титульный!$AY$1,Титульный!$AY$3) -> 28803 | I124: =CEILING('прайс-лист2'!J112*Титульный!$AY$1,Титульный!$AY$3) -> 29943 | J124: =CEILING('прайс-лист2'!K112*Титульный!$AY$1,Титульный!$AY$3) -> 32853 | K124: =CEILING('прайс-лист2'!L112*Титульный!$AY$1,Титульный!$AY$3) -> 36423 | L124: - | M124: =CEILING('прайс-лист2'!N112*Титульный!$AY$1,Титульный!$AY$3) -> 49023 | N124: =CEILING('прайс-лист2'!O112*Титульный!$AY$1,Титульный!$AY$3) -> 52473 | O124: =CEILING('прайс-лист2'!P112*Титульный!$AY$1,Титульный!$AY$3) -> 48933 | P124: =CEILING('прайс-лист2'!Q112*Титульный!$AY$1,Титульный!$AY$3) -> 54273 | Q124: - | R124: =CEILING('прайс-лист2'!S112*Титульный!$AY$1,Титульный!$AY$3) -> 2190 | S124: =CEILING('прайс-лист2'!T112*Титульный!$AY$1,Титульный!$AY$3) -> 3632
A125: Шкаф (560) Комб 3дв 2ящ 2040х1400 | C125: 1400х580х2040 | D125: =CEILING('прайс-лист2'!E113*Титульный!$AY$1,Титульный!$AY$3) -> 33122 | E125: =CEILING('прайс-лист2'!F113*Титульный!$AY$1,Титульный!$AY$3) -> 44912 | F125: =CEILING('прайс-лист2'!G113*Титульный!$AY$1,Титульный!$AY$3) -> 34912 | G125: =CEILING('прайс-лист2'!H113*Титульный!$AY$1,Титульный!$AY$3) -> 39322 | H125: =CEILING('прайс-лист2'!I113*Титульный!$AY$1,Титульный!$AY$3) -> 28172 | I125: =CEILING('прайс-лист2'!J113*Титульный!$AY$1,Титульный!$AY$3) -> 29132 | J125: =CEILING('прайс-лист2'!K113*Титульный!$AY$1,Титульный!$AY$3) -> 31492 | K125: =CEILING('прайс-лист2'!L113*Титульный!$AY$1,Титульный!$AY$3) -> 34262 | L125: - | M125: =CEILING('прайс-лист2'!N113*Титульный!$AY$1,Титульный!$AY$3) -> 44242 | N125: =CEILING('прайс-лист2'!O113*Титульный!$AY$1,Титульный!$AY$3) -> 47802 | O125: =CEILING('прайс-лист2'!P113*Титульный!$AY$1,Титульный!$AY$3) -> 44182 | P125: =CEILING('прайс-лист2'!Q113*Титульный!$AY$1,Титульный!$AY$3) -> 48212 | Q125: - | R125: =CEILING('прайс-лист2'!S113*Титульный!$AY$1,Титульный!$AY$3) -> 1932 | S125: =CEILING('прайс-лист2'!T113*Титульный!$AY$1,Титульный!$AY$3) -> 3314
A126: Шкаф (560) Комб 3дв 2ящ 2040х1680 | C126: 1680х580х2040 | D126: =CEILING('прайс-лист2'!E114*Титульный!$AY$1,Титульный!$AY$3) -> 36369 | E126: =CEILING('прайс-лист2'!F114*Титульный!$AY$1,Титульный!$AY$3) -> 50519 | F126: =CEILING('прайс-лист2'!G114*Титульный!$AY$1,Титульный!$AY$3) -> 38499 | G126: =CEILING('прайс-лист2'!H114*Титульный!$AY$1,Титульный!$AY$3) -> 43809 | H126: =CEILING('прайс-лист2'!I114*Титульный!$AY$1,Титульный!$AY$3) -> 30359 | I126: =CEILING('прайс-лист2'!J114*Титульный!$AY$1,Титульный!$AY$3) -> 31459 | J126: =CEILING('прайс-лист2'!K114*Титульный!$AY$1,Титульный!$AY$3) -> 34199 | K126: =CEILING('прайс-лист2'!L114*Титульный!$AY$1,Титульный!$AY$3) -> 37489 | L126: - | M126: =CEILING('прайс-лист2'!N114*Титульный!$AY$1,Титульный!$AY$3) -> 49169 | N126: =CEILING('прайс-лист2'!O114*Титульный!$AY$1,Титульный!$AY$3) -> 52849 | O126: =CEILING('прайс-лист2'!P114*Титульный!$AY$1,Титульный!$AY$3) -> 49109 | P126: =CEILING('прайс-лист2'!Q114*Титульный!$AY$1,Титульный!$AY$3) -> 53939 | Q126: - | R126: =CEILING('прайс-лист2'!S114*Титульный!$AY$1,Титульный!$AY$3) -> 1932 | S126: =CEILING('прайс-лист2'!T114*Титульный!$AY$1,Титульный!$AY$3) -> 3314
A127: Шкаф (560) Комб 3дв 2ящ 2240х1400 | C127: 1400х580х2240 | D127: =CEILING('прайс-лист2'!E119*Титульный!$AY$1,Титульный!$AY$3) -> 35400 | E127: =CEILING('прайс-лист2'!F119*Титульный!$AY$1,Титульный!$AY$3) -> 48350 | F127: =CEILING('прайс-лист2'!G119*Титульный!$AY$1,Титульный!$AY$3) -> 37350 | G127: =CEILING('прайс-лист2'!H119*Титульный!$AY$1,Титульный!$AY$3) -> 42210 | H127: =CEILING('прайс-лист2'!I119*Титульный!$AY$1,Титульный!$AY$3) -> 29950 | I127: =CEILING('прайс-лист2'!J119*Титульный!$AY$1,Титульный!$AY$3) -> 30990 | J127: =CEILING('прайс-лист2'!K119*Титульный!$AY$1,Титульный!$AY$3) -> 33570 | K127: =CEILING('прайс-лист2'!L119*Титульный!$AY$1,Титульный!$AY$3) -> 36610 | L127: - | M127: =CEILING('прайс-лист2'!N119*Титульный!$AY$1,Титульный!$AY$3) -> 47520 | N127: =CEILING('прайс-лист2'!O119*Титульный!$AY$1,Титульный!$AY$3) -> 51350 | O127: =CEILING('прайс-лист2'!P119*Титульный!$AY$1,Титульный!$AY$3) -> 47460 | P127: =CEILING('прайс-лист2'!Q119*Титульный!$AY$1,Титульный!$AY$3) -> 51890 | Q127: - | R127: =CEILING('прайс-лист2'!S119*Титульный!$AY$1,Титульный!$AY$3) -> 2190 | S127: =CEILING('прайс-лист2'!T119*Титульный!$AY$1,Титульный!$AY$3) -> 3632
A128: Шкаф (560) Комб 3дв 2ящ 2240х1680 | C128: 1680х580х2240 | D128: =CEILING('прайс-лист2'!E120*Титульный!$AY$1,Титульный!$AY$3) -> 38888 | E128: =CEILING('прайс-лист2'!F120*Титульный!$AY$1,Титульный!$AY$3) -> 54458 | F128: =CEILING('прайс-лист2'!G120*Титульный!$AY$1,Титульный!$AY$3) -> 41238 | G128: =CEILING('прайс-лист2'!H120*Титульный!$AY$1,Титульный!$AY$3) -> 47058 | H128: =CEILING('прайс-лист2'!I120*Титульный!$AY$1,Титульный!$AY$3) -> 32278 | I128: =CEILING('прайс-лист2'!J120*Титульный!$AY$1,Титульный!$AY$3) -> 33478 | J128: =CEILING('прайс-лист2'!K120*Титульный!$AY$1,Титульный!$AY$3) -> 36458 | K128: =CEILING('прайс-лист2'!L120*Титульный!$AY$1,Титульный!$AY$3) -> 40058 | L128: - | M128: =CEILING('прайс-лист2'!N120*Титульный!$AY$1,Титульный!$AY$3) -> 52868 | N128: =CEILING('прайс-лист2'!O120*Титульный!$AY$1,Титульный!$AY$3) -> 56798 | O128: =CEILING('прайс-лист2'!P120*Титульный!$AY$1,Титульный!$AY$3) -> 52788 | P128: =CEILING('прайс-лист2'!Q120*Титульный!$AY$1,Титульный!$AY$3) -> 58118 | Q128: - | R128: =CEILING('прайс-лист2'!S120*Титульный!$AY$1,Титульный!$AY$3) -> 2190 | S128: =CEILING('прайс-лист2'!T120*Титульный!$AY$1,Титульный!$AY$3) -> 3632
A129: Шкаф (560) Комб 4дв 2040х1960 | C129: 1960х580х2040 | D129: =CEILING('прайс-лист2'!E121*Титульный!$AY$1,Титульный!$AY$3) -> 41137 | E129: =CEILING('прайс-лист2'!F121*Титульный!$AY$1,Титульный!$AY$3) -> 57657 | F129: =CEILING('прайс-лист2'!G121*Титульный!$AY$1,Титульный!$AY$3) -> 43637 | G129: =CEILING('прайс-лист2'!H121*Титульный!$AY$1,Титульный!$AY$3) -> 49817 | H129: =CEILING('прайс-лист2'!I121*Титульный!$AY$1,Титульный!$AY$3) -> 34117 | I129: =CEILING('прайс-лист2'!J121*Титульный!$AY$1,Титульный!$AY$3) -> 35377 | J129: =CEILING('прайс-лист2'!K121*Титульный!$AY$1,Титульный!$AY$3) -> 38557 | K129: =CEILING('прайс-лист2'!L121*Титульный!$AY$1,Титульный!$AY$3) -> 42397 | L129: - | M129: =CEILING('прайс-лист2'!N121*Титульный!$AY$1,Титульный!$AY$3) -> 55977 | N129: =CEILING('прайс-лист2'!O121*Титульный!$AY$1,Титульный!$AY$3) -> 60137 | O129: =CEILING('прайс-лист2'!P121*Титульный!$AY$1,Титульный!$AY$3) -> 55897 | P129: =CEILING('прайс-лист2'!Q121*Титульный!$AY$1,Титульный!$AY$3) -> 61537 | Q129: - | R129: =CEILING('прайс-лист2'!S121*Титульный!$AY$1,Титульный!$AY$3) -> 2688 | S129: =CEILING('прайс-лист2'!T121*Титульный!$AY$1,Титульный!$AY$3) -> 5985
A130: Шкаф (560) Комб 4дв 2240х1960 | C130: 1960х580х2240 | D130: =CEILING('прайс-лист2'!E122*Титульный!$AY$1,Титульный!$AY$3) -> 44414 | E130: =CEILING('прайс-лист2'!F122*Титульный!$AY$1,Титульный!$AY$3) -> 62554 | F130: =CEILING('прайс-лист2'!G122*Титульный!$AY$1,Титульный!$AY$3) -> 47134 | G130: =CEILING('прайс-лист2'!H122*Титульный!$AY$1,Титульный!$AY$3) -> 53934 | H130: =CEILING('прайс-лист2'!I122*Титульный!$AY$1,Титульный!$AY$3) -> 36694 | I130: =CEILING('прайс-лист2'!J122*Титульный!$AY$1,Титульный!$AY$3) -> 38054 | J130: =CEILING('прайс-лист2'!K122*Титульный!$AY$1,Титульный!$AY$3) -> 41534 | K130: =CEILING('прайс-лист2'!L122*Титульный!$AY$1,Титульный!$AY$3) -> 45734 | L130: - | M130: =CEILING('прайс-лист2'!N122*Титульный!$AY$1,Титульный!$AY$3) -> 60634 | N130: =CEILING('прайс-лист2'!O122*Титульный!$AY$1,Титульный!$AY$3) -> 65134 | O130: =CEILING('прайс-лист2'!P122*Титульный!$AY$1,Титульный!$AY$3) -> 60534 | P130: =CEILING('прайс-лист2'!Q122*Титульный!$AY$1,Титульный!$AY$3) -> 66754 | Q130: - | R130: =CEILING('прайс-лист2'!S122*Титульный!$AY$1,Титульный!$AY$3) -> 3046 | S130: =CEILING('прайс-лист2'!T122*Титульный!$AY$1,Титульный!$AY$3) -> 5460
A131: Шкаф (560) Комб 4дв 2ящ 2040х1960 | C131: 1960х580х2040 | D131: =CEILING('прайс-лист2'!E123*Титульный!$AY$1,Титульный!$AY$3) -> 42189 | E131: =CEILING('прайс-лист2'!F123*Титульный!$AY$1,Титульный!$AY$3) -> 58669 | F131: =CEILING('прайс-лист2'!G123*Титульный!$AY$1,Титульный!$AY$3) -> 44689 | G131: =CEILING('прайс-лист2'!H123*Титульный!$AY$1,Титульный!$AY$3) -> 50849 | H131: =CEILING('прайс-лист2'!I123*Титульный!$AY$1,Титульный!$AY$3) -> 35229 | I131: =CEILING('прайс-лист2'!J123*Титульный!$AY$1,Титульный!$AY$3) -> 36529 | J131: =CEILING('прайс-лист2'!K123*Титульный!$AY$1,Титульный!$AY$3) -> 39789 | K131: =CEILING('прайс-лист2'!L123*Титульный!$AY$1,Титульный!$AY$3) -> 43669 | L131: - | M131: =CEILING('прайс-лист2'!N123*Титульный!$AY$1,Титульный!$AY$3) -> 57489 | N131: =CEILING('прайс-лист2'!O123*Титульный!$AY$1,Титульный!$AY$3) -> 62189 | O131: =CEILING('прайс-лист2'!P123*Титульный!$AY$1,Титульный!$AY$3) -> 57409 | P131: =CEILING('прайс-лист2'!Q123*Титульный!$AY$1,Титульный!$AY$3) -> 63049 | Q131: - | R131: =CEILING('прайс-лист2'!S123*Титульный!$AY$1,Титульный!$AY$3) -> 2688 | S131: =CEILING('прайс-лист2'!T123*Титульный!$AY$1,Титульный!$AY$3) -> 5985
A132: Шкаф (560) Комб 4дв 2ящ 2240х1960 | C132: 1960х580х2240 | D132: =CEILING('прайс-лист2'!E124*Титульный!$AY$1,Титульный!$AY$3) -> 45161 | E132: =CEILING('прайс-лист2'!F124*Титульный!$AY$1,Титульный!$AY$3) -> 63301 | F132: =CEILING('прайс-лист2'!G124*Титульный!$AY$1,Титульный!$AY$3) -> 47901 | G132: =CEILING('прайс-лист2'!H124*Титульный!$AY$1,Титульный!$AY$3) -> 54681 | H132: =CEILING('прайс-лист2'!I124*Титульный!$AY$1,Титульный!$AY$3) -> 37501 | I132: =CEILING('прайс-лист2'!J124*Титульный!$AY$1,Титульный!$AY$3) -> 38921 | J132: =CEILING('прайс-лист2'!K124*Титульный!$AY$1,Титульный!$AY$3) -> 42481 | K132: =CEILING('прайс-лист2'!L124*Титульный!$AY$1,Титульный!$AY$3) -> 46721 | L132: - | M132: =CEILING('прайс-лист2'!N124*Титульный!$AY$1,Титульный!$AY$3) -> 61861 | N132: =CEILING('прайс-лист2'!O124*Титульный!$AY$1,Титульный!$AY$3) -> 66901 | O132: =CEILING('прайс-лист2'!P124*Титульный!$AY$1,Титульный!$AY$3) -> 61781 | P132: =CEILING('прайс-лист2'!Q124*Титульный!$AY$1,Титульный!$AY$3) -> 68001 | Q132: - | R132: =CEILING('прайс-лист2'!S124*Титульный!$AY$1,Титульный!$AY$3) -> 3046 | S132: =CEILING('прайс-лист2'!T124*Титульный!$AY$1,Титульный!$AY$3) -> 5460
A133: Внимание!!! Для наборов мебели "Марго" использовать только накладные зеркала
A134: Шкафы глубиной 560мм
A135: Наименование | B135: Эскиз | C135: Габариты, ШхГхВ мм. | D135: МДФ фасады | H135: Марго16 | M135: UV-лак | O135: ТСС | Q135: ТСС сборный | R135: Стоимость зеркал
D136: 1 ЦК | E136: 1 ЦК + патина | F136: 2 ЦК | G136: 3 ЦК | H136: 1 ц.к. | I136: 2 ц.к. | J136: 3 ц.к. | K136: 4 ц.к. | L136: 5 ц.к. | M136: UV-лак кромка ABC/AL кромка | N136: кромка 3D | O136: 1 ЦК | P136: 2 ЦК | R136: Зеркало в рамке** | S136: Зеркало накладное*
A137: Шкаф (560) Торцевой 2040х420 лев./пр | C137: 420х580х2040 | D137: =CEILING('прайс-лист2'!E125*Титульный!$AY$1,Титульный!$AY$3) -> 15798 | E137: =CEILING('прайс-лист2'!F125*Титульный!$AY$1,Титульный!$AY$3) -> 22578 | F137: =CEILING('прайс-лист2'!G125*Титульный!$AY$1,Титульный!$AY$3) -> 16818 | G137: =CEILING('прайс-лист2'!H125*Титульный!$AY$1,Титульный!$AY$3) -> 19358 | H137: =CEILING('прайс-лист2'!I125*Титульный!$AY$1,Титульный!$AY$3) -> 12948 | I137: =CEILING('прайс-лист2'!J125*Титульный!$AY$1,Титульный!$AY$3) -> 13488 | J137: =CEILING('прайс-лист2'!K125*Титульный!$AY$1,Титульный!$AY$3) -> 14838 | K137: =CEILING('прайс-лист2'!L125*Титульный!$AY$1,Титульный!$AY$3) -> 16428 | L137: - | M137: =CEILING('прайс-лист2'!N125*Титульный!$AY$1,Титульный!$AY$3) -> 22158 | N137: =CEILING('прайс-лист2'!O125*Титульный!$AY$1,Титульный!$AY$3) -> 24168 | O137: =CEILING('прайс-лист2'!P125*Титульный!$AY$1,Титульный!$AY$3) -> 22118 | P137: =CEILING('прайс-лист2'!Q125*Титульный!$AY$1,Титульный!$AY$3) -> 24448 | Q137: - | R137: - | S137: -
A138: Шкаф (560) Торцевой 2240х420 лев./пр | C138: 420х580х2240 | D138: =CEILING('прайс-лист2'!E126*Титульный!$AY$1,Титульный!$AY$3) -> 17066 | E138: =CEILING('прайс-лист2'!F126*Титульный!$AY$1,Титульный!$AY$3) -> 24526 | F138: =CEILING('прайс-лист2'!G126*Титульный!$AY$1,Титульный!$AY$3) -> 18186 | G138: =CEILING('прайс-лист2'!H126*Титульный!$AY$1,Титульный!$AY$3) -> 20986 | H138: =CEILING('прайс-лист2'!I126*Титульный!$AY$1,Титульный!$AY$3) -> 13926 | I138: =CEILING('прайс-лист2'!J126*Титульный!$AY$1,Титульный!$AY$3) -> 14516 | J138: =CEILING('прайс-лист2'!K126*Титульный!$AY$1,Титульный!$AY$3) -> 15986 | K138: =CEILING('прайс-лист2'!L126*Титульный!$AY$1,Титульный!$AY$3) -> 17756 | L138: - | M138: =CEILING('прайс-лист2'!N126*Титульный!$AY$1,Титульный!$AY$3) -> 24026 | N138: =CEILING('прайс-лист2'!O126*Титульный!$AY$1,Титульный!$AY$3) -> 26216 | O138: =CEILING('прайс-лист2'!P126*Титульный!$AY$1,Титульный!$AY$3) -> 23996 | P138: =CEILING('прайс-лист2'!Q126*Титульный!$AY$1,Титульный!$AY$3) -> 26546 | Q138: - | R138: - | S138: -
A139: Шкафы антресольные и стеллажи (340) (420)
A140: Шкаф (340) антр 1 дв. 400х1200 | C140: 1200х360х400 | D140: =CEILING('прайс-лист2'!E128*Титульный!$AY$1,Титульный!$AY$3) -> 6071 | E140: =CEILING('прайс-лист2'!F128*Титульный!$AY$1,Титульный!$AY$3) -> 8091 | F140: =CEILING('прайс-лист2'!G128*Титульный!$AY$1,Титульный!$AY$3) -> 6381 | G140: =CEILING('прайс-лист2'!H128*Титульный!$AY$1,Титульный!$AY$3) -> 7131 | H140: =CEILING('прайс-лист2'!I128*Титульный!$AY$1,Титульный!$AY$3) -> 5231 | I140: =CEILING('прайс-лист2'!J128*Титульный!$AY$1,Титульный!$AY$3) -> 5401 | J140: =CEILING('прайс-лист2'!K128*Титульный!$AY$1,Титульный!$AY$3) -> 5811 | K140: =CEILING('прайс-лист2'!L128*Титульный!$AY$1,Титульный!$AY$3) -> 6301 | L140: - | M140: =CEILING('прайс-лист2'!N128*Титульный!$AY$1,Титульный!$AY$3) -> 8031 | N140: =CEILING('прайс-лист2'!O128*Титульный!$AY$1,Титульный!$AY$3) -> 8701 | O140: =CEILING('прайс-лист2'!P128*Титульный!$AY$1,Титульный!$AY$3) -> 8021 | P140: =CEILING('прайс-лист2'!Q128*Титульный!$AY$1,Титульный!$AY$3) -> 8711 | Q140: - | R140: - | S140: -
A141: Шкаф (340) антр 1 дв. 400х1260 | C141: 1260х360х400 | D141: =CEILING('прайс-лист2'!E129*Титульный!$AY$1,Титульный!$AY$3) -> 6183 | E141: =CEILING('прайс-лист2'!F129*Титульный!$AY$1,Титульный!$AY$3) -> 8303 | F141: =CEILING('прайс-лист2'!G129*Титульный!$AY$1,Титульный!$AY$3) -> 6503 | G141: =CEILING('прайс-лист2'!H129*Титульный!$AY$1,Титульный!$AY$3) -> 7293 | H141: =CEILING('прайс-лист2'!I129*Титульный!$AY$1,Титульный!$AY$3) -> 5303 | I141: =CEILING('прайс-лист2'!J129*Титульный!$AY$1,Титульный!$AY$3) -> 5473 | J141: =CEILING('прайс-лист2'!K129*Титульный!$AY$1,Титульный!$AY$3) -> 5903 | K141: =CEILING('прайс-лист2'!L129*Титульный!$AY$1,Титульный!$AY$3) -> 6413 | L141: - | M141: =CEILING('прайс-лист2'!N129*Титульный!$AY$1,Титульный!$AY$3) -> 8233 | N141: =CEILING('прайс-лист2'!O129*Титульный!$AY$1,Титульный!$AY$3) -> 8923 | O141: =CEILING('прайс-лист2'!P129*Титульный!$AY$1,Титульный!$AY$3) -> 8223 | P141: =CEILING('прайс-лист2'!Q129*Титульный!$AY$1,Титульный!$AY$3) -> 8953 | Q141: - | R141: - | S141: -
A142: Шкаф (340) антр 1 дв. 400х840 | C142: 840х360х400 | D142: =CEILING('прайс-лист2'!E130*Титульный!$AY$1,Титульный!$AY$3) -> 5017 | E142: =CEILING('прайс-лист2'!F130*Титульный!$AY$1,Титульный!$AY$3) -> 6427 | F142: =CEILING('прайс-лист2'!G130*Титульный!$AY$1,Титульный!$AY$3) -> 5227 | G142: =CEILING('прайс-лист2'!H130*Титульный!$AY$1,Титульный!$AY$3) -> 5757 | H142: =CEILING('прайс-лист2'!I130*Титульный!$AY$1,Титульный!$AY$3) -> 4427 | I142: =CEILING('прайс-лист2'!J130*Титульный!$AY$1,Титульный!$AY$3) -> 4557 | J142: =CEILING('прайс-лист2'!K130*Титульный!$AY$1,Титульный!$AY$3) -> 4847 | K142: =CEILING('прайс-лист2'!L130*Титульный!$AY$1,Титульный!$AY$3) -> 5187 | L142: - | M142: =CEILING('прайс-лист2'!N130*Титульный!$AY$1,Титульный!$AY$3) -> 6427 | N142: =CEILING('прайс-лист2'!O130*Титульный!$AY$1,Титульный!$AY$3) -> 6947 | O142: =CEILING('прайс-лист2'!P130*Титульный!$AY$1,Титульный!$AY$3) -> 6417 | P142: =CEILING('прайс-лист2'!Q130*Титульный!$AY$1,Титульный!$AY$3) -> 6907 | Q142: - | R142: - | S142: -
A143: Шкаф (340) антр 1 дв. стекло 400х1260 | C143: 1260х360х400 | D143: =CEILING('прайс-лист2'!E131*Титульный!$AY$1,Титульный!$AY$3) -> 7377 | E143: =CEILING('прайс-лист2'!F131*Титульный!$AY$1,Титульный!$AY$3) -> 9497 | F143: =CEILING('прайс-лист2'!G131*Титульный!$AY$1,Титульный!$AY$3) -> 7697 | G143: =CEILING('прайс-лист2'!H131*Титульный!$AY$1,Титульный!$AY$3) -> 8487 | H143: =CEILING('прайс-лист2'!I131*Титульный!$AY$1,Титульный!$AY$3) -> 5389 | I143: =CEILING('прайс-лист2'!J131*Титульный!$AY$1,Титульный!$AY$3) -> 5509 | J143: =CEILING('прайс-лист2'!K131*Титульный!$AY$1,Титульный!$AY$3) -> 5859 | K143: =CEILING('прайс-лист2'!L131*Титульный!$AY$1,Титульный!$AY$3) -> 6319 | L143: - | M143: - | N143: - | O143: - | P143: - | Q143: - | R143: - | S143: -
A144: Шкаф (340) антр 1 дв. стекло 400х840 | C144: 840х360х400 | D144: =CEILING('прайс-лист2'!E132*Титульный!$AY$1,Титульный!$AY$3) -> 5788 | E144: =CEILING('прайс-лист2'!F132*Титульный!$AY$1,Титульный!$AY$3) -> 7198 | F144: =CEILING('прайс-лист2'!G132*Титульный!$AY$1,Титульный!$AY$3) -> 5998 | G144: =CEILING('прайс-лист2'!H132*Титульный!$AY$1,Титульный!$AY$3) -> 6528 | H144: =CEILING('прайс-лист2'!I132*Титульный!$AY$1,Титульный!$AY$3) -> 4495 | I144: =CEILING('прайс-лист2'!J132*Титульный!$AY$1,Титульный!$AY$3) -> 4565 | J144: =CEILING('прайс-лист2'!K132*Титульный!$AY$1,Титульный!$AY$3) -> 4795 | K144: =CEILING('прайс-лист2'!L132*Титульный!$AY$1,Титульный!$AY$3) -> 5095 | L144: - | M144: - | N144: - | O144: - | P144: - | Q144: - | R144: - | S144: -
A145: Шкаф (340) антр 2 дв. ниша 400х1400 | C145: 1400х360х400 | D145: =CEILING('прайс-лист2'!E133*Титульный!$AY$1,Титульный!$AY$3) -> 7486 | E145: =CEILING('прайс-лист2'!F133*Титульный!$AY$1,Титульный!$AY$3) -> 9366 | F145: =CEILING('прайс-лист2'!G133*Титульный!$AY$1,Титульный!$AY$3) -> 7766 | G145: =CEILING('прайс-лист2'!H133*Титульный!$AY$1,Титульный!$AY$3) -> 8466 | H145: =CEILING('прайс-лист2'!I133*Титульный!$AY$1,Титульный!$AY$3) -> 6726 | I145: =CEILING('прайс-лист2'!J133*Титульный!$AY$1,Титульный!$AY$3) -> 6886 | J145: =CEILING('прайс-лист2'!K133*Титульный!$AY$1,Титульный!$AY$3) -> 7306 | K145: =CEILING('прайс-лист2'!L133*Титульный!$AY$1,Титульный!$AY$3) -> 7766 | L145: - | M145: =CEILING('прайс-лист2'!N133*Титульный!$AY$1,Титульный!$AY$3) -> 9466 | N145: =CEILING('прайс-лист2'!O133*Титульный!$AY$1,Титульный!$AY$3) -> 10266 | O145: =CEILING('прайс-лист2'!P133*Титульный!$AY$1,Титульный!$AY$3) -> 9466 | P145: =CEILING('прайс-лист2'!Q133*Титульный!$AY$1,Титульный!$AY$3) -> 10106 | Q145: - | R145: - | S145: -
A146: Шкаф (340) антр 2 дв. ниша 400х1640 | C146: 1640х360х400 | D146: =CEILING('прайс-лист2'!E134*Титульный!$AY$1,Титульный!$AY$3) -> 7998 | E146: =CEILING('прайс-лист2'!F134*Титульный!$AY$1,Титульный!$AY$3) -> 9878 | F146: =CEILING('прайс-лист2'!G134*Титульный!$AY$1,Титульный!$AY$3) -> 8278 | G146: =CEILING('прайс-лист2'!H134*Титульный!$AY$1,Титульный!$AY$3) -> 8978 | H146: =CEILING('прайс-лист2'!I134*Титульный!$AY$1,Титульный!$AY$3) -> 7238 | I146: =CEILING('прайс-лист2'!J134*Титульный!$AY$1,Титульный!$AY$3) -> 7398 | J146: =CEILING('прайс-лист2'!K134*Титульный!$AY$1,Титульный!$AY$3) -> 7818 | K146: =CEILING('прайс-лист2'!L134*Титульный!$AY$1,Титульный!$AY$3) -> 8278 | L146: - | M146: =CEILING('прайс-лист2'!N134*Титульный!$AY$1,Титульный!$AY$3) -> 9978 | N146: =CEILING('прайс-лист2'!O134*Титульный!$AY$1,Титульный!$AY$3) -> 10778 | O146: =CEILING('прайс-лист2'!P134*Титульный!$AY$1,Титульный!$AY$3) -> 9978 | P146: =CEILING('прайс-лист2'!Q134*Титульный!$AY$1,Титульный!$AY$3) -> 10618 | Q146: - | R146: - | S146: -
A147: Шкаф (340) антр 2 дв. ниша 400х2040 | C147: 2040х360х400 | D147: =CEILING('прайс-лист2'!E135*Титульный!$AY$1,Титульный!$AY$3) -> 9405 | E147: =CEILING('прайс-лист2'!F135*Титульный!$AY$1,Титульный!$AY$3) -> 11685 | F147: =CEILING('прайс-лист2'!G135*Титульный!$AY$1,Титульный!$AY$3) -> 9745 | G147: =CEILING('прайс-лист2'!H135*Титульный!$AY$1,Титульный!$AY$3) -> 10605 | H147: =CEILING('прайс-лист2'!I135*Титульный!$AY$1,Титульный!$AY$3) -> 8465 | I147: =CEILING('прайс-лист2'!J135*Титульный!$AY$1,Титульный!$AY$3) -> 8665 | J147: =CEILING('прайс-лист2'!K135*Титульный!$AY$1,Титульный!$AY$3) -> 9145 | K147: =CEILING('прайс-лист2'!L135*Титульный!$AY$1,Титульный!$AY$3) -> 9705 | L147: - | M147: =CEILING('прайс-лист2'!N135*Титульный!$AY$1,Титульный!$AY$3) -> 11745 | N147: =CEILING('прайс-лист2'!O135*Титульный!$AY$1,Титульный!$AY$3) -> 12645 | O147: =CEILING('прайс-лист2'!P135*Титульный!$AY$1,Титульный!$AY$3) -> 11725 | P147: =CEILING('прайс-лист2'!Q135*Титульный!$AY$1,Титульный!$AY$3) -> 12505 | Q147: - | R147: - | S147: -
A148: Стеллаж (340) навесной 300х300 | C148: 300х340х300 | D148: =CEILING('прайс-лист2'!E136*Титульный!$AY$1,Титульный!$AY$3) -> 1030 | E148: =CEILING('прайс-лист2'!F136*Титульный!$AY$1,Титульный!$AY$3) -> 1030 | F148: =CEILING('прайс-лист2'!G136*Титульный!$AY$1,Титульный!$AY$3) -> 1030 | G148: =CEILING('прайс-лист2'!H136*Титульный!$AY$1,Титульный!$AY$3) -> 1030 | H148: =CEILING('прайс-лист2'!I136*Титульный!$AY$1,Титульный!$AY$3) -> 1030 | I148: =CEILING('прайс-лист2'!J136*Титульный!$AY$1,Титульный!$AY$3) -> 1030 | J148: =CEILING('прайс-лист2'!K136*Титульный!$AY$1,Титульный!$AY$3) -> 1030 | K148: =CEILING('прайс-лист2'!L136*Титульный!$AY$1,Титульный!$AY$3) -> 1030 | L148: - | M148: =CEILING('прайс-лист2'!N136*Титульный!$AY$1,Титульный!$AY$3) -> 1030 | N148: =CEILING('прайс-лист2'!O136*Титульный!$AY$1,Титульный!$AY$3) -> 1030 | O148: =CEILING('прайс-лист2'!P136*Титульный!$AY$1,Титульный!$AY$3) -> 1030 | P148: =CEILING('прайс-лист2'!Q136*Титульный!$AY$1,Титульный!$AY$3) -> 1030 | Q148: - | R148: - | S148: -
A149: Стеллаж (340) навесной 300х1260 | C149: 1260х340х300 | D149: =CEILING('прайс-лист2'!E137*Титульный!$AY$1,Титульный!$AY$3) -> 2792 | E149: =CEILING('прайс-лист2'!F137*Титульный!$AY$1,Титульный!$AY$3) -> 2792 | F149: =CEILING('прайс-лист2'!G137*Титульный!$AY$1,Титульный!$AY$3) -> 2792 | G149: =CEILING('прайс-лист2'!H137*Титульный!$AY$1,Титульный!$AY$3) -> 2792 | H149: =CEILING('прайс-лист2'!I137*Титульный!$AY$1,Титульный!$AY$3) -> 2792 | I149: =CEILING('прайс-лист2'!J137*Титульный!$AY$1,Титульный!$AY$3) -> 2792 | J149: =CEILING('прайс-лист2'!K137*Титульный!$AY$1,Титульный!$AY$3) -> 2792 | K149: =CEILING('прайс-лист2'!L137*Титульный!$AY$1,Титульный!$AY$3) -> 2792 | L149: - | M149: =CEILING('прайс-лист2'!N137*Титульный!$AY$1,Титульный!$AY$3) -> 2792 | N149: =CEILING('прайс-лист2'!O137*Титульный!$AY$1,Титульный!$AY$3) -> 2792 | O149: =CEILING('прайс-лист2'!P137*Титульный!$AY$1,Титульный!$AY$3) -> 2792 | P149: =CEILING('прайс-лист2'!Q137*Титульный!$AY$1,Титульный!$AY$3) -> 2792 | Q149: - | R149: - | S149: -
A150: Стеллаж (340) 2040х300 | C150: 300х340х2040 | D150: =CEILING('прайс-лист2'!E138*Титульный!$AY$1,Титульный!$AY$3) -> 4257 | E150: =CEILING('прайс-лист2'!F138*Титульный!$AY$1,Титульный!$AY$3) -> 4257 | F150: =CEILING('прайс-лист2'!G138*Титульный!$AY$1,Титульный!$AY$3) -> 4257 | G150: =CEILING('прайс-лист2'!H138*Титульный!$AY$1,Титульный!$AY$3) -> 4257 | H150: =CEILING('прайс-лист2'!I138*Титульный!$AY$1,Титульный!$AY$3) -> 4257 | I150: - | J150: - | K150: - | L150: - | M150: =CEILING('прайс-лист2'!N138*Титульный!$AY$1,Титульный!$AY$3) -> 4257 | N150: =CEILING('прайс-лист2'!O138*Титульный!$AY$1,Титульный!$AY$3) -> 4257 | O150: =CEILING('прайс-лист2'!P138*Титульный!$AY$1,Титульный!$AY$3) -> 4257 | P150: =CEILING('прайс-лист2'!Q138*Титульный!$AY$1,Титульный!$AY$3) -> 4257 | Q150: - | R150: - | S150: -
A151: Стеллаж (340) 2240х300 | C151: 300х340х2240 | D151: =CEILING('прайс-лист2'!E139*Титульный!$AY$1,Титульный!$AY$3) -> 4625 | E151: =CEILING('прайс-лист2'!F139*Титульный!$AY$1,Титульный!$AY$3) -> 4625 | F151: =CEILING('прайс-лист2'!G139*Титульный!$AY$1,Титульный!$AY$3) -> 4625 | G151: =CEILING('прайс-лист2'!H139*Титульный!$AY$1,Титульный!$AY$3) -> 4625 | H151: =CEILING('прайс-лист2'!I139*Титульный!$AY$1,Титульный!$AY$3) -> 4625 | I151: - | J151: - | K151: - | L151: - | M151: =CEILING('прайс-лист2'!N139*Титульный!$AY$1,Титульный!$AY$3) -> 4625 | N151: =CEILING('прайс-лист2'!O139*Титульный!$AY$1,Титульный!$AY$3) -> 4625 | O151: =CEILING('прайс-лист2'!P139*Титульный!$AY$1,Титульный!$AY$3) -> 4625 | P151: =CEILING('прайс-лист2'!Q139*Титульный!$AY$1,Титульный!$AY$3) -> 4625 | Q151: - | R151: - | S151: -
A152: Стеллаж (420) 2040х420 | C152: 420х420х2040 | D152: =CEILING('прайс-лист2'!E140*Титульный!$AY$1,Титульный!$AY$3) -> 5405 | E152: =CEILING('прайс-лист2'!F140*Титульный!$AY$1,Титульный!$AY$3) -> 5405 | F152: =CEILING('прайс-лист2'!G140*Титульный!$AY$1,Титульный!$AY$3) -> 5405 | G152: =CEILING('прайс-лист2'!H140*Титульный!$AY$1,Титульный!$AY$3) -> 5405 | H152: =CEILING('прайс-лист2'!I140*Титульный!$AY$1,Титульный!$AY$3) -> 5405 | I152: - | J152: - | K152: - | L152: - | M152: =CEILING('прайс-лист2'!N140*Титульный!$AY$1,Титульный!$AY$3) -> 5405 | N152: =CEILING('прайс-лист2'!O140*Титульный!$AY$1,Титульный!$AY$3) -> 5405 | O152: =CEILING('прайс-лист2'!P140*Титульный!$AY$1,Титульный!$AY$3) -> 5405 | P152: =CEILING('прайс-лист2'!Q140*Титульный!$AY$1,Титульный!$AY$3) -> 5405 | Q152: - | R152: - | S152: -
A153: Стеллаж (420) 2040х560 | C153: 560х420х2040 | D153: =CEILING('прайс-лист2'!E141*Титульный!$AY$1,Титульный!$AY$3) -> 6025 | E153: =CEILING('прайс-лист2'!F141*Титульный!$AY$1,Титульный!$AY$3) -> 6025 | F153: =CEILING('прайс-лист2'!G141*Титульный!$AY$1,Титульный!$AY$3) -> 6025 | G153: =CEILING('прайс-лист2'!H141*Титульный!$AY$1,Титульный!$AY$3) -> 6025 | H153: =CEILING('прайс-лист2'!I141*Титульный!$AY$1,Титульный!$AY$3) -> 6025 | I153: - | J153: - | K153: - | L153: - | M153: =CEILING('прайс-лист2'!N141*Титульный!$AY$1,Титульный!$AY$3) -> 6025 | N153: =CEILING('прайс-лист2'!O141*Титульный!$AY$1,Титульный!$AY$3) -> 6025 | O153: =CEILING('прайс-лист2'!P141*Титульный!$AY$1,Титульный!$AY$3) -> 6025 | P153: =CEILING('прайс-лист2'!Q141*Титульный!$AY$1,Титульный!$AY$3) -> 6025 | Q153: - | R153: - | S153: -
A154: Стеллаж (420) 2040х840 | C154: 840х420х2040 | D154: =CEILING('прайс-лист2'!E142*Титульный!$AY$1,Титульный!$AY$3) -> 7212 | E154: =CEILING('прайс-лист2'!F142*Титульный!$AY$1,Титульный!$AY$3) -> 7212 | F154: =CEILING('прайс-лист2'!G142*Титульный!$AY$1,Титульный!$AY$3) -> 7212 | G154: =CEILING('прайс-лист2'!H142*Титульный!$AY$1,Титульный!$AY$3) -> 7212 | H154: =CEILING('прайс-лист2'!I142*Титульный!$AY$1,Титульный!$AY$3) -> 7212 | I154: - | J154: - | K154: - | L154: - | M154: =CEILING('прайс-лист2'!N142*Титульный!$AY$1,Титульный!$AY$3) -> 7212 | N154: =CEILING('прайс-лист2'!O142*Титульный!$AY$1,Титульный!$AY$3) -> 7212 | O154: =CEILING('прайс-лист2'!P142*Титульный!$AY$1,Титульный!$AY$3) -> 7212 | P154: =CEILING('прайс-лист2'!Q142*Титульный!$AY$1,Титульный!$AY$3) -> 7212 | Q154: - | R154: - | S154: -
A155: Стеллаж (420) 2240х420 | C155: 420х420х2240 | D155: =CEILING('прайс-лист2'!E143*Титульный!$AY$1,Титульный!$AY$3) -> 6016 | E155: =CEILING('прайс-лист2'!F143*Титульный!$AY$1,Титульный!$AY$3) -> 6016 | F155: =CEILING('прайс-лист2'!G143*Титульный!$AY$1,Титульный!$AY$3) -> 6016 | G155: =CEILING('прайс-лист2'!H143*Титульный!$AY$1,Титульный!$AY$3) -> 6016 | H155: =CEILING('прайс-лист2'!I143*Титульный!$AY$1,Титульный!$AY$3) -> 6016 | I155: - | J155: - | K155: - | L155: - | M155: =CEILING('прайс-лист2'!N143*Титульный!$AY$1,Титульный!$AY$3) -> 6016 | N155: =CEILING('прайс-лист2'!O143*Титульный!$AY$1,Титульный!$AY$3) -> 6016 | O155: =CEILING('прайс-лист2'!P143*Титульный!$AY$1,Титульный!$AY$3) -> 6016 | P155: =CEILING('прайс-лист2'!Q143*Титульный!$AY$1,Титульный!$AY$3) -> 6016 | Q155: - | R155: - | S155: -
A156: Стеллаж (420) 2240х560 | C156: 560х420х2240 | D156: =CEILING('прайс-лист2'!E144*Титульный!$AY$1,Титульный!$AY$3) -> 6734 | E156: =CEILING('прайс-лист2'!F144*Титульный!$AY$1,Титульный!$AY$3) -> 6734 | F156: =CEILING('прайс-лист2'!G144*Титульный!$AY$1,Титульный!$AY$3) -> 6734 | G156: =CEILING('прайс-лист2'!H144*Титульный!$AY$1,Титульный!$AY$3) -> 6734 | H156: =CEILING('прайс-лист2'!I144*Титульный!$AY$1,Титульный!$AY$3) -> 6734 | I156: - | J156: - | K156: - | L156: - | M156: =CEILING('прайс-лист2'!N144*Титульный!$AY$1,Титульный!$AY$3) -> 6734 | N156: =CEILING('прайс-лист2'!O144*Титульный!$AY$1,Титульный!$AY$3) -> 6734 | O156: =CEILING('прайс-лист2'!P144*Титульный!$AY$1,Титульный!$AY$3) -> 6734 | P156: =CEILING('прайс-лист2'!Q144*Титульный!$AY$1,Титульный!$AY$3) -> 6734 | Q156: - | R156: - | S156: -
A157: Стеллаж (420) 2240х840 | C157: 840х420х2240 | D157: =CEILING('прайс-лист2'!E145*Титульный!$AY$1,Титульный!$AY$3) -> 8107 | E157: =CEILING('прайс-лист2'!F145*Титульный!$AY$1,Титульный!$AY$3) -> 8107 | F157: =CEILING('прайс-лист2'!G145*Титульный!$AY$1,Титульный!$AY$3) -> 8107 | G157: =CEILING('прайс-лист2'!H145*Титульный!$AY$1,Титульный!$AY$3) -> 8107 | H157: =CEILING('прайс-лист2'!I145*Титульный!$AY$1,Титульный!$AY$3) -> 8107 | I157: - | J157: - | K157: - | L157: - | M157: =CEILING('прайс-лист2'!N145*Титульный!$AY$1,Титульный!$AY$3) -> 8107 | N157: =CEILING('прайс-лист2'!O145*Титульный!$AY$1,Титульный!$AY$3) -> 8107 | O157: =CEILING('прайс-лист2'!P145*Титульный!$AY$1,Титульный!$AY$3) -> 8107 | P157: =CEILING('прайс-лист2'!Q145*Титульный!$AY$1,Титульный!$AY$3) -> 8107 | Q157: - | R157: - | S157: -
A158: Стеллаж (420) 2 дв 2240х840 | C158: 840х420х2240 | D158: =CEILING('прайс-лист2'!E146*Титульный!$AY$1,Титульный!$AY$3) -> 11761 | E158: =CEILING('прайс-лист2'!F146*Титульный!$AY$1,Титульный!$AY$3) -> 13181 | F158: =CEILING('прайс-лист2'!G146*Титульный!$AY$1,Титульный!$AY$3) -> 11981 | G158: =CEILING('прайс-лист2'!H146*Титульный!$AY$1,Титульный!$AY$3) -> 12501 | H158: =CEILING('прайс-лист2'!I146*Титульный!$AY$1,Титульный!$AY$3) -> 11201 | I158: - | J158: - | K158: - | L158: - | M158: =CEILING('прайс-лист2'!N146*Титульный!$AY$1,Титульный!$AY$3) -> 13321 | N158: =CEILING('прайс-лист2'!O146*Титульный!$AY$1,Титульный!$AY$3) -> 14021 | O158: =CEILING('прайс-лист2'!P146*Титульный!$AY$1,Титульный!$AY$3) -> 13321 | P158: =CEILING('прайс-лист2'!Q146*Титульный!$AY$1,Титульный!$AY$3) -> 13801 | Q158: - | R158: - | S158: -
A159: Стеллаж (420) 2 ящика 2240х560 | C159: 560х420х2240 | D159: =CEILING('прайс-лист2'!E147*Титульный!$AY$1,Титульный!$AY$3) -> 10562 | E159: =CEILING('прайс-лист2'!F147*Титульный!$AY$1,Титульный!$AY$3) -> 11502 | F159: =CEILING('прайс-лист2'!G147*Титульный!$AY$1,Титульный!$AY$3) -> 10702 | G159: =CEILING('прайс-лист2'!H147*Титульный!$AY$1,Титульный!$AY$3) -> 11062 | H159: =CEILING('прайс-лист2'!I147*Титульный!$AY$1,Титульный!$AY$3) -> 10202 | I159: - | J159: - | K159: - | L159: - | M159: =CEILING('прайс-лист2'!N147*Титульный!$AY$1,Титульный!$AY$3) -> 11762 | N159: =CEILING('прайс-лист2'!O147*Титульный!$AY$1,Титульный!$AY$3) -> 12402 | O159: =CEILING('прайс-лист2'!P147*Титульный!$AY$1,Титульный!$AY$3) -> 11762 | P159: =CEILING('прайс-лист2'!Q147*Титульный!$AY$1,Титульный!$AY$3) -> 12082 | Q159: - | R159: - | S159: -
A160: Стеллаж навесной (420) Н=600х1260 | C160: 1260х600х420 | D160: =CEILING('прайс-лист2'!E148*Титульный!$AY$1,Титульный!$AY$3) -> 5495 | R160: - | S160: -
A161: Антресоли
A162: Антресоль (420) 1дв 400х420 лев\пр | C162: 420х440х400 | D162: =CEILING('прайс-лист2'!E150*Титульный!$AY$1,Титульный!$AY$3) -> 3534 | E162: =CEILING('прайс-лист2'!F150*Титульный!$AY$1,Титульный!$AY$3) -> 4244 | F162: =CEILING('прайс-лист2'!G150*Титульный!$AY$1,Титульный!$AY$3) -> 3644 | G162: =CEILING('прайс-лист2'!H150*Титульный!$AY$1,Титульный!$AY$3) -> 3904 | H162: =CEILING('прайс-лист2'!I150*Титульный!$AY$1,Титульный!$AY$3) -> 3254 | I162: =CEILING('прайс-лист2'!J150*Титульный!$AY$1,Титульный!$AY$3) -> 3324 | J162: =CEILING('прайс-лист2'!K150*Титульный!$AY$1,Титульный!$AY$3) -> 3484 | K162: =CEILING('прайс-лист2'!L150*Титульный!$AY$1,Титульный!$AY$3) -> 3664 | L162: - | M162: =CEILING('прайс-лист2'!N150*Титульный!$AY$1,Титульный!$AY$3) -> 4314 | N162: =CEILING('прайс-лист2'!O150*Титульный!$AY$1,Титульный!$AY$3) -> 4664 | O162: =CEILING('прайс-лист2'!P150*Титульный!$AY$1,Титульный!$AY$3) -> 4314 | P162: =CEILING('прайс-лист2'!Q150*Титульный!$AY$1,Титульный!$AY$3) -> 4554 | Q162: - | R162: - | S162: -
A163: Антресоль (420) 1дв 400х560 лев\пр | C163: 560х440х400 | D163: =CEILING('прайс-лист2'!E151*Титульный!$AY$1,Титульный!$AY$3) -> 4120 | E163: =CEILING('прайс-лист2'!F151*Титульный!$AY$1,Титульный!$AY$3) -> 5060 | F163: =CEILING('прайс-лист2'!G151*Титульный!$AY$1,Титульный!$AY$3) -> 4260 | G163: =CEILING('прайс-лист2'!H151*Титульный!$AY$1,Титульный!$AY$3) -> 4610 | H163: =CEILING('прайс-лист2'!I151*Титульный!$AY$1,Титульный!$AY$3) -> 3740 | I163: =CEILING('прайс-лист2'!J151*Титульный!$AY$1,Титульный!$AY$3) -> 3820 | J163: =CEILING('прайс-лист2'!K151*Титульный!$AY$1,Титульный!$AY$3) -> 4030 | K163: =CEILING('прайс-лист2'!L151*Титульный!$AY$1,Титульный!$AY$3) -> 4260 | L163: - | M163: =CEILING('прайс-лист2'!N151*Титульный!$AY$1,Титульный!$AY$3) -> 5110 | N163: =CEILING('прайс-лист2'!O151*Титульный!$AY$1,Титульный!$AY$3) -> 5510 | O163: =CEILING('прайс-лист2'!P151*Титульный!$AY$1,Титульный!$AY$3) -> 5110 | P163: =CEILING('прайс-лист2'!Q151*Титульный!$AY$1,Титульный!$AY$3) -> 5430 | Q163: - | R163: - | S163: -
A164: Антресоль (420) 2дв 400х840 | C164: 840х440х400 | D164: =CEILING('прайс-лист2'!E152*Титульный!$AY$1,Титульный!$AY$3) -> 5899 | E164: =CEILING('прайс-лист2'!F152*Титульный!$AY$1,Титульный!$AY$3) -> 7319 | F164: =CEILING('прайс-лист2'!G152*Титульный!$AY$1,Титульный!$AY$3) -> 6119 | G164: =CEILING('прайс-лист2'!H152*Титульный!$AY$1,Титульный!$AY$3) -> 6639 | H164: =CEILING('прайс-лист2'!I152*Титульный!$AY$1,Титульный!$AY$3) -> 5339 | I164: =CEILING('прайс-лист2'!J152*Титульный!$AY$1,Титульный!$AY$3) -> 5479 | J164: =CEILING('прайс-лист2'!K152*Титульный!$AY$1,Титульный!$AY$3) -> 5799 | K164: =CEILING('прайс-лист2'!L152*Титульный!$AY$1,Титульный!$AY$3) -> 6159 | L164: - | M164: =CEILING('прайс-лист2'!N152*Титульный!$AY$1,Титульный!$AY$3) -> 7459 | N164: =CEILING('прайс-лист2'!O152*Титульный!$AY$1,Титульный!$AY$3) -> 8159 | O164: =CEILING('прайс-лист2'!P152*Титульный!$AY$1,Титульный!$AY$3) -> 7459 | P164: =CEILING('прайс-лист2'!Q152*Титульный!$AY$1,Титульный!$AY$3) -> 7939 | Q164: - | R164: - | S164: -
A165: Антресоль (420) 3дв 400х1260 | C165: 1260х440х400 | D165: =CEILING('прайс-лист2'!E153*Титульный!$AY$1,Титульный!$AY$3) -> 8475 | E165: =CEILING('прайс-лист2'!F153*Титульный!$AY$1,Титульный!$AY$3) -> 10605 | F165: =CEILING('прайс-лист2'!G153*Титульный!$AY$1,Титульный!$AY$3) -> 8805 | G165: =CEILING('прайс-лист2'!H153*Титульный!$AY$1,Титульный!$AY$3) -> 9585 | H165: =CEILING('прайс-лист2'!I153*Титульный!$AY$1,Титульный!$AY$3) -> 7635 | I165: =CEILING('прайс-лист2'!J153*Титульный!$AY$1,Титульный!$AY$3) -> 7845 | J165: =CEILING('прайс-лист2'!K153*Титульный!$AY$1,Титульный!$AY$3) -> 8325 | K165: =CEILING('прайс-лист2'!L153*Титульный!$AY$1,Титульный!$AY$3) -> 8865 | L165: - | M165: =CEILING('прайс-лист2'!N153*Титульный!$AY$1,Титульный!$AY$3) -> 10815 | N165: =CEILING('прайс-лист2'!O153*Титульный!$AY$1,Титульный!$AY$3) -> 11865 | O165: =CEILING('прайс-лист2'!P153*Титульный!$AY$1,Титульный!$AY$3) -> 10815 | P165: =CEILING('прайс-лист2'!Q153*Титульный!$AY$1,Титульный!$AY$3) -> 11535 | Q165: - | R165: - | S165: -
A166: Антресоль угл. (420) трап. 400х732х732 | C166: 732х732 | D166: =CEILING('прайс-лист2'!E154*Титульный!$AY$1,Титульный!$AY$3) -> 6012 | E166: =CEILING('прайс-лист2'!F154*Титульный!$AY$1,Титульный!$AY$3) -> 6722 | F166: =CEILING('прайс-лист2'!G154*Титульный!$AY$1,Титульный!$AY$3) -> 6122 | G166: =CEILING('прайс-лист2'!H154*Титульный!$AY$1,Титульный!$AY$3) -> 6382 | H166: =CEILING('прайс-лист2'!I154*Титульный!$AY$1,Титульный!$AY$3) -> 5732 | I166: =CEILING('прайс-лист2'!J154*Титульный!$AY$1,Титульный!$AY$3) -> 5802 | J166: =CEILING('прайс-лист2'!K154*Титульный!$AY$1,Титульный!$AY$3) -> 5962 | K166: =CEILING('прайс-лист2'!L154*Титульный!$AY$1,Титульный!$AY$3) -> 6142 | L166: - | M166: =CEILING('прайс-лист2'!N154*Титульный!$AY$1,Титульный!$AY$3) -> 6792 | N166: =CEILING('прайс-лист2'!O154*Титульный!$AY$1,Титульный!$AY$3) -> 7142 | O166: =CEILING('прайс-лист2'!P154*Титульный!$AY$1,Титульный!$AY$3) -> 6792 | P166: =CEILING('прайс-лист2'!Q154*Титульный!$AY$1,Титульный!$AY$3) -> 7032 | Q166: - | R166: - | S166: -
A167: Антресоли
A168: Наименование | B168: Эскиз | C168: Габариты, ШхГхВ мм. | D168: МДФ фасады | H168: Марго16 | M168: UV-лак | O168: ТСС | Q168: ТСС сборный | R168: Стоимость зеркал
D169: 1 ЦК | E169: 1 ЦК + патина | F169: 2 ЦК | G169: 3 ЦК | H169: 1 ц.к. | I169: 2 ц.к. | J169: 3 ц.к. | K169: 4 ц.к. | L169: 5 ц.к. | M169: UV-лак кромка ABC/AL кромка | N169: кромка 3D | O169: 1 ЦК | P169: 2 ЦК | R169: Зеркало в рамке** | S169: Зеркало накладное*
A170: Антресоль (340) 2 дв. 400х840 | C170: 840х360х400 | D170: =CEILING('прайс-лист2'!E155*Титульный!$AY$1,Титульный!$AY$3) -> 5665 | E170: =CEILING('прайс-лист2'!F155*Титульный!$AY$1,Титульный!$AY$3) -> 7085 | F170: =CEILING('прайс-лист2'!G155*Титульный!$AY$1,Титульный!$AY$3) -> 5885 | G170: =CEILING('прайс-лист2'!H155*Титульный!$AY$1,Титульный!$AY$3) -> 6405 | H170: =CEILING('прайс-лист2'!I155*Титульный!$AY$1,Титульный!$AY$3) -> 5105 | I170: =CEILING('прайс-лист2'!J155*Титульный!$AY$1,Титульный!$AY$3) -> 5245 | J170: =CEILING('прайс-лист2'!K155*Титульный!$AY$1,Титульный!$AY$3) -> 5565 | K170: =CEILING('прайс-лист2'!L155*Титульный!$AY$1,Титульный!$AY$3) -> 5925 | L170: - | M170: =CEILING('прайс-лист2'!N155*Титульный!$AY$1,Титульный!$AY$3) -> 7225 | N170: =CEILING('прайс-лист2'!O155*Титульный!$AY$1,Титульный!$AY$3) -> 7925 | O170: =CEILING('прайс-лист2'!P155*Титульный!$AY$1,Титульный!$AY$3) -> 7225 | P170: =CEILING('прайс-лист2'!Q155*Титульный!$AY$1,Титульный!$AY$3) -> 7705 | Q170: - | R170: - | S170: -
A171: Антресоль (340) 2 дв расп. ниша 400х1260 | C171: 1260х360х400 | D171: =CEILING('прайс-лист2'!E156*Титульный!$AY$1,Титульный!$AY$3) -> 7032 | E171: =CEILING('прайс-лист2'!F156*Титульный!$AY$1,Титульный!$AY$3) -> 8452 | F171: =CEILING('прайс-лист2'!G156*Титульный!$AY$1,Титульный!$AY$3) -> 7252 | G171: =CEILING('прайс-лист2'!H156*Титульный!$AY$1,Титульный!$AY$3) -> 7772 | H171: =CEILING('прайс-лист2'!I156*Титульный!$AY$1,Титульный!$AY$3) -> 6472 | I171: =CEILING('прайс-лист2'!J156*Титульный!$AY$1,Титульный!$AY$3) -> 6612 | J171: =CEILING('прайс-лист2'!K156*Титульный!$AY$1,Титульный!$AY$3) -> 6932 | K171: =CEILING('прайс-лист2'!L156*Титульный!$AY$1,Титульный!$AY$3) -> 7292 | L171: - | M171: =CEILING('прайс-лист2'!N156*Титульный!$AY$1,Титульный!$AY$3) -> 8592 | N171: =CEILING('прайс-лист2'!O156*Титульный!$AY$1,Титульный!$AY$3) -> 9292 | O171: =CEILING('прайс-лист2'!P156*Титульный!$AY$1,Титульный!$AY$3) -> 8592 | P171: =CEILING('прайс-лист2'!Q156*Титульный!$AY$1,Титульный!$AY$3) -> 9072 | Q171: - | R171: - | S171: -
A172: Антресоль торц (420) 400х420 лев\пр | C172: 420х440х400 | D172: =CEILING('прайс-лист2'!E157*Титульный!$AY$1,Титульный!$AY$3) -> 4824 | E172: =CEILING('прайс-лист2'!F157*Титульный!$AY$1,Титульный!$AY$3) -> 5944 | F172: =CEILING('прайс-лист2'!G157*Титульный!$AY$1,Титульный!$AY$3) -> 4994 | G172: =CEILING('прайс-лист2'!H157*Титульный!$AY$1,Титульный!$AY$3) -> 5414 | H172: =CEILING('прайс-лист2'!I157*Титульный!$AY$1,Титульный!$AY$3) -> 4384 | I172: =CEILING('прайс-лист2'!J157*Титульный!$AY$1,Титульный!$AY$3) -> 4504 | J172: =CEILING('прайс-лист2'!K157*Титульный!$AY$1,Титульный!$AY$3) -> 4764 | K172: =CEILING('прайс-лист2'!L157*Титульный!$AY$1,Титульный!$AY$3) -> 5054 | L172: - | M172: =CEILING('прайс-лист2'!N157*Титульный!$AY$1,Титульный!$AY$3) -> 6124 | N172: =CEILING('прайс-лист2'!O157*Титульный!$AY$1,Титульный!$AY$3) -> 6734 | O172: =CEILING('прайс-лист2'!P157*Титульный!$AY$1,Титульный!$AY$3) -> 6114 | P172: =CEILING('прайс-лист2'!Q157*Титульный!$AY$1,Титульный!$AY$3) -> 6504 | Q172: - | R172: - | S172: -
A173: Антресоль (560) 1дв 400х420 лев\пр | C173: 420х580х400 | D173: =CEILING('прайс-лист2'!E158*Титульный!$AY$1,Титульный!$AY$3) -> 4049 | E173: =CEILING('прайс-лист2'!F158*Титульный!$AY$1,Титульный!$AY$3) -> 4759 | F173: =CEILING('прайс-лист2'!G158*Титульный!$AY$1,Титульный!$AY$3) -> 4159 | G173: =CEILING('прайс-лист2'!H158*Титульный!$AY$1,Титульный!$AY$3) -> 4419 | H173: =CEILING('прайс-лист2'!I158*Титульный!$AY$1,Титульный!$AY$3) -> 3769 | I173: =CEILING('прайс-лист2'!J158*Титульный!$AY$1,Титульный!$AY$3) -> 3839 | J173: =CEILING('прайс-лист2'!K158*Титульный!$AY$1,Титульный!$AY$3) -> 3999 | K173: =CEILING('прайс-лист2'!L158*Титульный!$AY$1,Титульный!$AY$3) -> 4179 | L173: - | M173: =CEILING('прайс-лист2'!N158*Титульный!$AY$1,Титульный!$AY$3) -> 4829 | N173: =CEILING('прайс-лист2'!O158*Титульный!$AY$1,Титульный!$AY$3) -> 5179 | O173: =CEILING('прайс-лист2'!P158*Титульный!$AY$1,Титульный!$AY$3) -> 4829 | P173: =CEILING('прайс-лист2'!Q158*Титульный!$AY$1,Титульный!$AY$3) -> 5069 | Q173: - | R173: - | S173: -
A174: Антресоль (560) 1дв 400х560 лев\пр | C174: 560х580х400 | D174: =CEILING('прайс-лист2'!E159*Титульный!$AY$1,Титульный!$AY$3) -> 4516 | E174: =CEILING('прайс-лист2'!F159*Титульный!$AY$1,Титульный!$AY$3) -> 5456 | F174: =CEILING('прайс-лист2'!G159*Титульный!$AY$1,Титульный!$AY$3) -> 4656 | G174: =CEILING('прайс-лист2'!H159*Титульный!$AY$1,Титульный!$AY$3) -> 5006 | H174: =CEILING('прайс-лист2'!I159*Титульный!$AY$1,Титульный!$AY$3) -> 4136 | I174: =CEILING('прайс-лист2'!J159*Титульный!$AY$1,Титульный!$AY$3) -> 4216 | J174: =CEILING('прайс-лист2'!K159*Титульный!$AY$1,Титульный!$AY$3) -> 4426 | K174: =CEILING('прайс-лист2'!L159*Титульный!$AY$1,Титульный!$AY$3) -> 4656 | L174: - | M174: =CEILING('прайс-лист2'!N159*Титульный!$AY$1,Титульный!$AY$3) -> 5506 | N174: =CEILING('прайс-лист2'!O159*Титульный!$AY$1,Титульный!$AY$3) -> 5906 | O174: =CEILING('прайс-лист2'!P159*Титульный!$AY$1,Титульный!$AY$3) -> 5506 | P174: =CEILING('прайс-лист2'!Q159*Титульный!$AY$1,Титульный!$AY$3) -> 5826 | Q174: - | R174: - | S174: -
A175: Антресоль (560) 2дв 400х840 | C175: 840х580х400 | D175: =CEILING('прайс-лист2'!E160*Титульный!$AY$1,Титульный!$AY$3) -> 6432 | E175: =CEILING('прайс-лист2'!F160*Титульный!$AY$1,Титульный!$AY$3) -> 7852 | F175: =CEILING('прайс-лист2'!G160*Титульный!$AY$1,Титульный!$AY$3) -> 6652 | G175: =CEILING('прайс-лист2'!H160*Титульный!$AY$1,Титульный!$AY$3) -> 7172 | H175: =CEILING('прайс-лист2'!I160*Титульный!$AY$1,Титульный!$AY$3) -> 5872 | I175: =CEILING('прайс-лист2'!J160*Титульный!$AY$1,Титульный!$AY$3) -> 6012 | J175: =CEILING('прайс-лист2'!K160*Титульный!$AY$1,Титульный!$AY$3) -> 6332 | K175: =CEILING('прайс-лист2'!L160*Титульный!$AY$1,Титульный!$AY$3) -> 6692 | L175: - | M175: =CEILING('прайс-лист2'!N160*Титульный!$AY$1,Титульный!$AY$3) -> 7992 | N175: =CEILING('прайс-лист2'!O160*Титульный!$AY$1,Титульный!$AY$3) -> 8692 | O175: =CEILING('прайс-лист2'!P160*Титульный!$AY$1,Титульный!$AY$3) -> 7992 | P175: =CEILING('прайс-лист2'!Q160*Титульный!$AY$1,Титульный!$AY$3) -> 8472 | Q175: - | R175: - | S175: -
A176: Антресоль (560) 3дв 400х1260 | C176: 1260х580х400 | D176: =CEILING('прайс-лист2'!E162*Титульный!$AY$1,Титульный!$AY$3) -> 9231 | E176: =CEILING('прайс-лист2'!F162*Титульный!$AY$1,Титульный!$AY$3) -> 11361 | F176: =CEILING('прайс-лист2'!G162*Титульный!$AY$1,Титульный!$AY$3) -> 9561 | G176: =CEILING('прайс-лист2'!H162*Титульный!$AY$1,Титульный!$AY$3) -> 10341 | H176: =CEILING('прайс-лист2'!I162*Титульный!$AY$1,Титульный!$AY$3) -> 8391 | I176: =CEILING('прайс-лист2'!J162*Титульный!$AY$1,Титульный!$AY$3) -> 8601 | J176: =CEILING('прайс-лист2'!K162*Титульный!$AY$1,Титульный!$AY$3) -> 9081 | K176: =CEILING('прайс-лист2'!L162*Титульный!$AY$1,Титульный!$AY$3) -> 9621 | L176: - | M176: =CEILING('прайс-лист2'!N162*Титульный!$AY$1,Титульный!$AY$3) -> 11571 | N176: =CEILING('прайс-лист2'!O162*Титульный!$AY$1,Титульный!$AY$3) -> 12621 | O176: =CEILING('прайс-лист2'!P162*Титульный!$AY$1,Титульный!$AY$3) -> 11571 | P176: =CEILING('прайс-лист2'!Q162*Титульный!$AY$1,Титульный!$AY$3) -> 12291 | Q176: - | R176: - | S176: -
A177: Антресоль угл. (560) трап. 400х975х975 | C177: 975х975 | D177: =CEILING('прайс-лист2'!E163*Титульный!$AY$1,Титульный!$AY$3) -> 7514 | E177: =CEILING('прайс-лист2'!F163*Титульный!$AY$1,Титульный!$AY$3) -> 8454 | F177: =CEILING('прайс-лист2'!G163*Титульный!$AY$1,Титульный!$AY$3) -> 7654 | G177: =CEILING('прайс-лист2'!H163*Титульный!$AY$1,Титульный!$AY$3) -> 8004 | H177: =CEILING('прайс-лист2'!I163*Титульный!$AY$1,Титульный!$AY$3) -> 7134 | I177: =CEILING('прайс-лист2'!J163*Титульный!$AY$1,Титульный!$AY$3) -> 7214 | J177: =CEILING('прайс-лист2'!K163*Титульный!$AY$1,Титульный!$AY$3) -> 7424 | K177: =CEILING('прайс-лист2'!L163*Титульный!$AY$1,Титульный!$AY$3) -> 7654 | L177: - | M177: =CEILING('прайс-лист2'!N163*Титульный!$AY$1,Титульный!$AY$3) -> 8504 | N177: =CEILING('прайс-лист2'!O163*Титульный!$AY$1,Титульный!$AY$3) -> 8904 | O177: =CEILING('прайс-лист2'!P163*Титульный!$AY$1,Титульный!$AY$3) -> 8504 | P177: =CEILING('прайс-лист2'!Q163*Титульный!$AY$1,Титульный!$AY$3) -> 8824 | Q177: - | R177: - | S177: -
A178: Шкафы угловые и стеллажи торцевые
A179: Шкаф Угл (420х420) Трап 2040х732х732 | C179: 732х732 | D179: =CEILING('прайс-лист2'!E165*Титульный!$AY$1,Титульный!$AY$3) -> 17446 | E179: =CEILING('прайс-лист2'!F165*Титульный!$AY$1,Титульный!$AY$3) -> 20986 | F179: =CEILING('прайс-лист2'!G165*Титульный!$AY$1,Титульный!$AY$3) -> 17986 | G179: =CEILING('прайс-лист2'!H165*Титульный!$AY$1,Титульный!$AY$3) -> 19306 | H179: =CEILING('прайс-лист2'!I165*Титульный!$AY$1,Титульный!$AY$3) -> 15956 | I179: =CEILING('прайс-лист2'!J165*Титульный!$AY$1,Титульный!$AY$3) -> 16236 | J179: =CEILING('прайс-лист2'!K165*Титульный!$AY$1,Титульный!$AY$3) -> 16936 | K179: =CEILING('прайс-лист2'!L165*Титульный!$AY$1,Титульный!$AY$3) -> 17766 | L179: - | M179: =CEILING('прайс-лист2'!N165*Титульный!$AY$1,Титульный!$AY$3) -> 20736 | N179: =CEILING('прайс-лист2'!O165*Титульный!$AY$1,Титульный!$AY$3) -> 21746 | O179: =CEILING('прайс-лист2'!P165*Титульный!$AY$1,Титульный!$AY$3) -> 20716 | P179: =CEILING('прайс-лист2'!Q165*Титульный!$AY$1,Титульный!$AY$3) -> 21926 | Q179: - | R179: =CEILING('прайс-лист2'!S165*Титульный!$AY$1,Титульный!$AY$3) -> 1344 | S179: =CEILING('прайс-лист2'!T165*Титульный!$AY$1,Титульный!$AY$3) -> 2490
A180: Шкаф Угл (420х420) Трап 2240х732х732 | C180: 732х732 | D180: =CEILING('прайс-лист2'!E166*Титульный!$AY$1,Титульный!$AY$3) -> 18324 | E180: - | F180: =CEILING('прайс-лист2'!G166*Титульный!$AY$1,Титульный!$AY$3) -> 18904 | G180: =CEILING('прайс-лист2'!H166*Титульный!$AY$1,Титульный!$AY$3) -> 20364 | H180: =CEILING('прайс-лист2'!I166*Титульный!$AY$1,Титульный!$AY$3) -> 16684 | I180: =CEILING('прайс-лист2'!J166*Титульный!$AY$1,Титульный!$AY$3) -> 16984 | J180: =CEILING('прайс-лист2'!K166*Титульный!$AY$1,Титульный!$AY$3) -> 17754 | K180: =CEILING('прайс-лист2'!L166*Титульный!$AY$1,Титульный!$AY$3) -> 18664 | L180: - | M180: =CEILING('прайс-лист2'!N166*Титульный!$AY$1,Титульный!$AY$3) -> 21914 | N180: =CEILING('прайс-лист2'!O166*Титульный!$AY$1,Титульный!$AY$3) -> 23014 | O180: =CEILING('прайс-лист2'!P166*Титульный!$AY$1,Титульный!$AY$3) -> 21894 | P180: =CEILING('прайс-лист2'!Q166*Титульный!$AY$1,Титульный!$AY$3) -> 23224 | Q180: - | R180: =CEILING('прайс-лист2'!S166*Титульный!$AY$1,Титульный!$AY$3) -> 1523 | S180: =CEILING('прайс-лист2'!T166*Титульный!$AY$1,Титульный!$AY$3) -> 2730
A181: Шкаф Угл (560х420) Прямой 2040х1000 лев/пр.** | C181: 1000 | D181: =CEILING('прайс-лист2'!E167*Титульный!$AY$1,Титульный!$AY$3) -> 20762 | E181: =CEILING('прайс-лист2'!F167*Титульный!$AY$1,Титульный!$AY$3) -> 29182 | F181: =CEILING('прайс-лист2'!G167*Титульный!$AY$1,Титульный!$AY$3) -> 22032 | G181: =CEILING('прайс-лист2'!H167*Титульный!$AY$1,Титульный!$AY$3) -> 25182 | H181: =CEILING('прайс-лист2'!I167*Титульный!$AY$1,Титульный!$AY$3) -> 17172 | I181: =CEILING('прайс-лист2'!J167*Титульный!$AY$1,Титульный!$AY$3) -> 17812 | J181: =CEILING('прайс-лист2'!K167*Титульный!$AY$1,Титульный!$AY$3) -> 19432 | K181: =CEILING('прайс-лист2'!L167*Титульный!$AY$1,Титульный!$AY$3) -> 21382 | L181: - | M181: =CEILING('прайс-лист2'!N167*Титульный!$AY$1,Титульный!$AY$3) -> 28292 | N181: =CEILING('прайс-лист2'!O167*Титульный!$AY$1,Титульный!$AY$3) -> 30382 | O181: =CEILING('прайс-лист2'!P167*Титульный!$AY$1,Титульный!$AY$3) -> 28252 | P181: =CEILING('прайс-лист2'!Q167*Титульный!$AY$1,Титульный!$AY$3) -> 31132 | Q181: - | R181: =CEILING('прайс-лист2'!S167*Титульный!$AY$1,Титульный!$AY$3) -> 1932 | S181: =CEILING('прайс-лист2'!T167*Титульный!$AY$1,Титульный!$AY$3) -> 3314
A182: Шкаф Угл (560х420) Прямой 2240х1000 лев/пр** | C182: 1000 | D182: =CEILING('прайс-лист2'!E168*Титульный!$AY$1,Титульный!$AY$3) -> 21999 | E182: - | F182: =CEILING('прайс-лист2'!G168*Титульный!$AY$1,Титульный!$AY$3) -> 23389 | G182: =CEILING('прайс-лист2'!H168*Титульный!$AY$1,Титульный!$AY$3) -> 26849 | H182: =CEILING('прайс-лист2'!I168*Титульный!$AY$1,Титульный!$AY$3) -> 18049 | I182: =CEILING('прайс-лист2'!J168*Титульный!$AY$1,Титульный!$AY$3) -> 18749 | J182: =CEILING('прайс-лист2'!K168*Титульный!$AY$1,Титульный!$AY$3) -> 20509 | K182: =CEILING('прайс-лист2'!L168*Титульный!$AY$1,Титульный!$AY$3) -> 22659 | L182: - | M182: =CEILING('прайс-лист2'!N168*Титульный!$AY$1,Титульный!$AY$3) -> 30239 | N182: =CEILING('прайс-лист2'!O168*Титульный!$AY$1,Титульный!$AY$3) -> 32499 | O182: =CEILING('прайс-лист2'!P168*Титульный!$AY$1,Титульный!$AY$3) -> 30189 | P182: =CEILING('прайс-лист2'!Q168*Титульный!$AY$1,Титульный!$AY$3) -> 33369 | Q182: - | R182: =CEILING('прайс-лист2'!S168*Титульный!$AY$1,Титульный!$AY$3) -> 2190 | S182: =CEILING('прайс-лист2'!T168*Титульный!$AY$1,Титульный!$AY$3) -> 3632
A183: Шкаф Угл (560х420) Прямой 2040х1000 ФП ЛДСП лев/пр** | C183: 1000 | D183: =CEILING('прайс-лист2'!E169*Титульный!$AY$1,Титульный!$AY$3) -> 18299 | E183: - | F183: =CEILING('прайс-лист2'!G169*Титульный!$AY$1,Титульный!$AY$3) -> 19009 | G183: =CEILING('прайс-лист2'!H169*Титульный!$AY$1,Титульный!$AY$3) -> 20779 | H183: =CEILING('прайс-лист2'!I169*Титульный!$AY$1,Титульный!$AY$3) -> 16279 | I183: =CEILING('прайс-лист2'!J169*Титульный!$AY$1,Титульный!$AY$3) -> 16629 | J183: =CEILING('прайс-лист2'!K169*Титульный!$AY$1,Титульный!$AY$3) -> 17519 | K183: =CEILING('прайс-лист2'!L169*Титульный!$AY$1,Титульный!$AY$3) -> 18609 | L183: - | M183: =CEILING('прайс-лист2'!N169*Титульный!$AY$1,Титульный!$AY$3) -> 22429 | N183: =CEILING('прайс-лист2'!O169*Титульный!$AY$1,Титульный!$AY$3) -> 23499 | O183: =CEILING('прайс-лист2'!P169*Титульный!$AY$1,Титульный!$AY$3) -> 22409 | P183: =CEILING('прайс-лист2'!Q169*Титульный!$AY$1,Титульный!$AY$3) -> 24019 | Q183: - | R183: - | S183: -
A184: Шкаф Угл (560х420) Прямой 2240х1000 ФП ЛДСП лев/пр** | C184: 1000 | D184: =CEILING('прайс-лист2'!E170*Титульный!$AY$1,Титульный!$AY$3) -> 19337 | E184: - | F184: =CEILING('прайс-лист2'!G170*Титульный!$AY$1,Титульный!$AY$3) -> 20117 | G184: =CEILING('прайс-лист2'!H170*Титульный!$AY$1,Титульный!$AY$3) -> 22057 | H184: =CEILING('прайс-лист2'!I170*Титульный!$AY$1,Титульный!$AY$3) -> 17117 | I184: =CEILING('прайс-лист2'!J170*Титульный!$AY$1,Титульный!$AY$3) -> 17497 | J184: =CEILING('прайс-лист2'!K170*Титульный!$AY$1,Титульный!$AY$3) -> 18467 | K184: =CEILING('прайс-лист2'!L170*Титульный!$AY$1,Титульный!$AY$3) -> 19657 | L184: - | M184: =CEILING('прайс-лист2'!N170*Титульный!$AY$1,Титульный!$AY$3) -> 23857 | N184: =CEILING('прайс-лист2'!O170*Титульный!$AY$1,Титульный!$AY$3) -> 25007 | O184: =CEILING('прайс-лист2'!P170*Титульный!$AY$1,Титульный!$AY$3) -> 23827 | P184: =CEILING('прайс-лист2'!Q170*Титульный!$AY$1,Титульный!$AY$3) -> 25607 | Q184: - | R184: =CEILING('прайс-лист2'!S170*Титульный!$AY$1,Титульный!$AY$3) -> 2190 | S184: =CEILING('прайс-лист2'!T170*Титульный!$AY$1,Титульный!$AY$3) -> 1808
A185: Шкаф Угл (560х420) Трап 2040х830х970 лев ** | C185: 830х970 | D185: =CEILING('прайс-лист2'!E171*Титульный!$AY$1,Титульный!$AY$3) -> 20739 | E185: =CEILING('прайс-лист2'!F171*Титульный!$AY$1,Титульный!$AY$3) -> 25459 | F185: =CEILING('прайс-лист2'!G171*Титульный!$AY$1,Титульный!$AY$3) -> 21449 | G185: =CEILING('прайс-лист2'!H171*Титульный!$AY$1,Титульный!$AY$3) -> 23219 | H185: =CEILING('прайс-лист2'!I171*Титульный!$AY$1,Титульный!$AY$3) -> 18719 | I185: =CEILING('прайс-лист2'!J171*Титульный!$AY$1,Титульный!$AY$3) -> 19069 | J185: =CEILING('прайс-лист2'!K171*Титульный!$AY$1,Титульный!$AY$3) -> 19959 | K185: =CEILING('прайс-лист2'!L171*Титульный!$AY$1,Титульный!$AY$3) -> 21049 | L185: - | M185: =CEILING('прайс-лист2'!N171*Титульный!$AY$1,Титульный!$AY$3) -> 24869 | N185: =CEILING('прайс-лист2'!O171*Титульный!$AY$1,Титульный!$AY$3) -> 25939 | O185: =CEILING('прайс-лист2'!P171*Титульный!$AY$1,Титульный!$AY$3) -> 24849 | P185: =CEILING('прайс-лист2'!Q171*Титульный!$AY$1,Титульный!$AY$3) -> 26459 | Q185: - | R185: =CEILING('прайс-лист2'!S171*Титульный!$AY$1,Титульный!$AY$3) -> 1932 | S185: =CEILING('прайс-лист2'!T171*Титульный!$AY$1,Титульный!$AY$3) -> 3314
A186: Шкаф Угл (560х420) Трап 2040х830х970 пр **
A187: Шкаф Угл (560х420) Трап 2240х830х970 лев** | C187: 830х970 | D187: =CEILING('прайс-лист2'!E173*Титульный!$AY$1,Титульный!$AY$3) -> 21802 | E187: - | F187: =CEILING('прайс-лист2'!G173*Титульный!$AY$1,Титульный!$AY$3) -> 22582 | G187: =CEILING('прайс-лист2'!H173*Титульный!$AY$1,Титульный!$AY$3) -> 24522 | H187: =CEILING('прайс-лист2'!I173*Титульный!$AY$1,Титульный!$AY$3) -> 19582 | I187: =CEILING('прайс-лист2'!J173*Титульный!$AY$1,Титульный!$AY$3) -> 19962 | J187: =CEILING('прайс-лист2'!K173*Титульный!$AY$1,Титульный!$AY$3) -> 20932 | K187: =CEILING('прайс-лист2'!L173*Титульный!$AY$1,Титульный!$AY$3) -> 22122 | L187: - | M187: =CEILING('прайс-лист2'!N173*Титульный!$AY$1,Титульный!$AY$3) -> 26322 | N187: =CEILING('прайс-лист2'!O173*Титульный!$AY$1,Титульный!$AY$3) -> 27472 | O187: =CEILING('прайс-лист2'!P173*Титульный!$AY$1,Титульный!$AY$3) -> 26292 | P187: =CEILING('прайс-лист2'!Q173*Титульный!$AY$1,Титульный!$AY$3) -> 28072 | Q187: - | R187: =CEILING('прайс-лист2'!S173*Титульный!$AY$1,Титульный!$AY$3) -> 2190 | S187: =CEILING('прайс-лист2'!T173*Титульный!$AY$1,Титульный!$AY$3) -> 1808
A188: Шкаф Угл (560х420) Трап 2240х830х970 пр**
A189: Шкаф Угл (420х420) Комб. Трап 2040х732х732 | C189: 732х732 | D189: =CEILING('прайс-лист2'!E175*Титульный!$AY$1,Титульный!$AY$3) -> 18110 | E189: =CEILING('прайс-лист2'!F175*Титульный!$AY$1,Титульный!$AY$3) -> 21650 | F189: =CEILING('прайс-лист2'!G175*Титульный!$AY$1,Титульный!$AY$3) -> 18650 | G189: =CEILING('прайс-лист2'!H175*Титульный!$AY$1,Титульный!$AY$3) -> 19970 | H189: =CEILING('прайс-лист2'!I175*Титульный!$AY$1,Титульный!$AY$3) -> 16620 | I189: =CEILING('прайс-лист2'!J175*Титульный!$AY$1,Титульный!$AY$3) -> 16900 | J189: =CEILING('прайс-лист2'!K175*Титульный!$AY$1,Титульный!$AY$3) -> 17600 | K189: =CEILING('прайс-лист2'!L175*Титульный!$AY$1,Титульный!$AY$3) -> 18430 | L189: - | M189: =CEILING('прайс-лист2'!N175*Титульный!$AY$1,Титульный!$AY$3) -> 21400 | N189: =CEILING('прайс-лист2'!O175*Титульный!$AY$1,Титульный!$AY$3) -> 22410 | O189: =CEILING('прайс-лист2'!P175*Титульный!$AY$1,Титульный!$AY$3) -> 21380 | P189: =CEILING('прайс-лист2'!Q175*Титульный!$AY$1,Титульный!$AY$3) -> 22590 | Q189: - | R189: =CEILING('прайс-лист2'!S175*Титульный!$AY$1,Титульный!$AY$3) -> 1344 | S189: =CEILING('прайс-лист2'!T175*Титульный!$AY$1,Титульный!$AY$3) -> 2490
A190: Шкаф Угл (420х420) Комб. Трап 2240х732х732 | C190: 732х732 | D190: =CEILING('прайс-лист2'!E176*Титульный!$AY$1,Титульный!$AY$3) -> 19196 | E190: - | F190: =CEILING('прайс-лист2'!G176*Титульный!$AY$1,Титульный!$AY$3) -> 19776 | G190: =CEILING('прайс-лист2'!H176*Титульный!$AY$1,Титульный!$AY$3) -> 21236 | H190: =CEILING('прайс-лист2'!I176*Титульный!$AY$1,Титульный!$AY$3) -> 17556 | I190: =CEILING('прайс-лист2'!J176*Титульный!$AY$1,Титульный!$AY$3) -> 17856 | J190: =CEILING('прайс-лист2'!K176*Титульный!$AY$1,Титульный!$AY$3) -> 18626 | K190: =CEILING('прайс-лист2'!L176*Титульный!$AY$1,Титульный!$AY$3) -> 19536 | L190: - | M190: =CEILING('прайс-лист2'!N176*Титульный!$AY$1,Титульный!$AY$3) -> 22786 | N190: =CEILING('прайс-лист2'!O176*Титульный!$AY$1,Титульный!$AY$3) -> 23886 | O190: =CEILING('прайс-лист2'!P176*Титульный!$AY$1,Титульный!$AY$3) -> 22766 | P190: =CEILING('прайс-лист2'!Q176*Титульный!$AY$1,Титульный!$AY$3) -> 24096 | Q190: - | R190: =CEILING('прайс-лист2'!S176*Титульный!$AY$1,Титульный!$AY$3) -> 1932 | S190: =CEILING('прайс-лист2'!T176*Титульный!$AY$1,Титульный!$AY$3) -> 3314
A191: Шкаф Угл (560х560) Трап 2040х970х970 | C191: 970х970 | D191: =CEILING('прайс-лист2'!E177*Титульный!$AY$1,Титульный!$AY$3) -> 21737 | E191: =CEILING('прайс-лист2'!F177*Титульный!$AY$1,Титульный!$AY$3) -> 26457 | F191: =CEILING('прайс-лист2'!G177*Титульный!$AY$1,Титульный!$AY$3) -> 22447 | G191: =CEILING('прайс-лист2'!H177*Титульный!$AY$1,Титульный!$AY$3) -> 24217 | H191: =CEILING('прайс-лист2'!I177*Титульный!$AY$1,Титульный!$AY$3) -> 19717 | I191: =CEILING('прайс-лист2'!J177*Титульный!$AY$1,Титульный!$AY$3) -> 20067 | J191: =CEILING('прайс-лист2'!K177*Титульный!$AY$1,Титульный!$AY$3) -> 20957 | K191: =CEILING('прайс-лист2'!L177*Титульный!$AY$1,Титульный!$AY$3) -> 22047 | L191: - | M191: =CEILING('прайс-лист2'!N177*Титульный!$AY$1,Титульный!$AY$3) -> 25867 | N191: =CEILING('прайс-лист2'!O177*Титульный!$AY$1,Титульный!$AY$3) -> 26937 | O191: =CEILING('прайс-лист2'!P177*Титульный!$AY$1,Титульный!$AY$3) -> 25847 | P191: =CEILING('прайс-лист2'!Q177*Титульный!$AY$1,Титульный!$AY$3) -> 27457 | Q191: - | R191: =CEILING('прайс-лист2'!S177*Титульный!$AY$1,Титульный!$AY$3) -> 1523 | S191: =CEILING('прайс-лист2'!T177*Титульный!$AY$1,Титульный!$AY$3) -> 2730
A192: Шкаф Угл (560х560) Трап 2240х970х970 | C192: 970х970 | D192: =CEILING('прайс-лист2'!E178*Титульный!$AY$1,Титульный!$AY$3) -> 22843 | E192: - | F192: =CEILING('прайс-лист2'!G178*Титульный!$AY$1,Титульный!$AY$3) -> 23623 | G192: =CEILING('прайс-лист2'!H178*Титульный!$AY$1,Титульный!$AY$3) -> 25563 | H192: =CEILING('прайс-лист2'!I178*Титульный!$AY$1,Титульный!$AY$3) -> 20623 | I192: =CEILING('прайс-лист2'!J178*Титульный!$AY$1,Титульный!$AY$3) -> 21003 | J192: =CEILING('прайс-лист2'!K178*Титульный!$AY$1,Титульный!$AY$3) -> 21973 | K192: =CEILING('прайс-лист2'!L178*Титульный!$AY$1,Титульный!$AY$3) -> 23163 | L192: - | M192: =CEILING('прайс-лист2'!N178*Титульный!$AY$1,Титульный!$AY$3) -> 27363 | N192: =CEILING('прайс-лист2'!O178*Титульный!$AY$1,Титульный!$AY$3) -> 28513 | O192: =CEILING('прайс-лист2'!P178*Титульный!$AY$1,Титульный!$AY$3) -> 27333 | P192: =CEILING('прайс-лист2'!Q178*Титульный!$AY$1,Титульный!$AY$3) -> 29113 | Q192: - | R192: =CEILING('прайс-лист2'!S178*Титульный!$AY$1,Титульный!$AY$3) -> 2190 | S192: =CEILING('прайс-лист2'!T178*Титульный!$AY$1,Титульный!$AY$3) -> 3632
A193: Шкаф Угл (560х560) Комб. Трап 2040х975х975 | C193: 975х975 | D193: =CEILING('прайс-лист2'!E179*Титульный!$AY$1,Титульный!$AY$3) -> 22782 | E193: =CEILING('прайс-лист2'!F179*Титульный!$AY$1,Титульный!$AY$3) -> 27502 | F193: =CEILING('прайс-лист2'!G179*Титульный!$AY$1,Титульный!$AY$3) -> 23492 | G193: =CEILING('прайс-лист2'!H179*Титульный!$AY$1,Титульный!$AY$3) -> 25262 | H193: =CEILING('прайс-лист2'!I179*Титульный!$AY$1,Титульный!$AY$3) -> 20762 | I193: =CEILING('прайс-лист2'!J179*Титульный!$AY$1,Титульный!$AY$3) -> 21112 | J193: =CEILING('прайс-лист2'!K179*Титульный!$AY$1,Титульный!$AY$3) -> 22002 | K193: =CEILING('прайс-лист2'!L179*Титульный!$AY$1,Титульный!$AY$3) -> 23092 | L193: - | M193: =CEILING('прайс-лист2'!N179*Титульный!$AY$1,Титульный!$AY$3) -> 26912 | N193: =CEILING('прайс-лист2'!O179*Титульный!$AY$1,Титульный!$AY$3) -> 27982 | O193: =CEILING('прайс-лист2'!P179*Титульный!$AY$1,Титульный!$AY$3) -> 26892 | P193: =CEILING('прайс-лист2'!Q179*Титульный!$AY$1,Титульный!$AY$3) -> 28502 | Q193: - | R193: =CEILING('прайс-лист2'!S179*Титульный!$AY$1,Титульный!$AY$3) -> 1932 | S193: =CEILING('прайс-лист2'!T179*Титульный!$AY$1,Титульный!$AY$3) -> 3314
A194: Шкаф Угл (560х560) Комб. Трап 2240х975х975 | C194: 975х975 | D194: =CEILING('прайс-лист2'!E180*Титульный!$AY$1,Титульный!$AY$3) -> 23579 | E194: - | F194: =CEILING('прайс-лист2'!G180*Титульный!$AY$1,Титульный!$AY$3) -> 24359 | G194: =CEILING('прайс-лист2'!H180*Титульный!$AY$1,Титульный!$AY$3) -> 26299 | H194: =CEILING('прайс-лист2'!I180*Титульный!$AY$1,Титульный!$AY$3) -> 21359 | I194: =CEILING('прайс-лист2'!J180*Титульный!$AY$1,Титульный!$AY$3) -> 21739 | J194: =CEILING('прайс-лист2'!K180*Титульный!$AY$1,Титульный!$AY$3) -> 22709 | K194: =CEILING('прайс-лист2'!L180*Титульный!$AY$1,Титульный!$AY$3) -> 23899 | L194: - | M194: =CEILING('прайс-лист2'!N180*Титульный!$AY$1,Титульный!$AY$3) -> 28099 | N194: =CEILING('прайс-лист2'!O180*Титульный!$AY$1,Титульный!$AY$3) -> 29249 | O194: =CEILING('прайс-лист2'!P180*Титульный!$AY$1,Титульный!$AY$3) -> 28069 | P194: =CEILING('прайс-лист2'!Q180*Титульный!$AY$1,Титульный!$AY$3) -> 29849 | Q194: - | R194: =CEILING('прайс-лист2'!S180*Титульный!$AY$1,Титульный!$AY$3) -> 2190 | S194: =CEILING('прайс-лист2'!T180*Титульный!$AY$1,Титульный!$AY$3) -> 3632
A195: Стеллаж (420) Торцевой 2040х300 Радиусный | C195: 300х420х2040 | D195: =CEILING('прайс-лист2'!E181*Титульный!$AY$1,Титульный!$AY$3) -> 4487 | R195: - | S195: -
A196: Стеллаж (420) Торцевой 2240х300 Радиусный | C196: 300х420х2240 | D196: =CEILING('прайс-лист2'!E182*Титульный!$AY$1,Титульный!$AY$3) -> 5013 | R196: - | S196: -
A197: Стеллаж (560) Торцевой 2040х300 Радиусный | C197: 300х560х2040 | D197: =CEILING('прайс-лист2'!E183*Титульный!$AY$1,Титульный!$AY$3) -> 5100 | R197: - | S197: -
A198: Стеллаж (560) Торцевой 2240х300 Радиусный | C198: 300х560х2240 | D198: =CEILING('прайс-лист2'!E184*Титульный!$AY$1,Титульный!$AY$3) -> 5733 | R198: - | S198: -
A199: Внимание!!! Для наборов мебели "Марго" использовать только накладные зеркала
A200: Кровати
... 212 more rows

Sheet прайс-лист2 (hidden)
B1: Шкафы глубиной 420мм
B2: Наименование | C2: Эскиз | D2: Ширина, мм | E2: МДФ фасады | I2: Марго | N2: UV-лак | P2: ТСС | R2: ТСС сборный
E3: 1 ЦК | F3: 1 ЦК + патина | G3: 2 ЦК | H3: 3 ЦК | I3: Марго 1 ц.к. | J3: Марго 2 ц.к. | K3: Марго 3 ц.к. | L3: Марго 4 ц.к. | M3: Марго 5 ц.к. | N3: кромка АВС | O3: кромка 3D | P3: 1 ЦК | Q3: 2 ЦК | S3: Зеркало в рамке** | T3: Зеркало накладное*
B4: Шкаф (420) 1дв 2040х420 | D4: 420 | E4: 10595 | F4: 14135 | G4: 11135 | H4: 12455 | I4: 9105 | J4: 9385 | K4: 10085 | L4: 10915 | N4: 13885 | O4: 14895 | P4: 13865 | Q4: 15075 | R4: 16750.8 | S4: =X16 -> 1344 | T4: =X29 -> 2490 | W4: Зеркало 1030х410 F10 | X4: 1628
B5: Шкаф (420) 1дв 2040х560 | D5: 560 | E5: 12519 | F5: 17239 | G5: 13229 | H5: 14999 | I5: 10499 | J5: 10849 | K5: 11739 | L5: 12829 | N5: 16649 | O5: 17719 | P5: 16629 | Q5: 18239 | R5: 19962.8 | S5: =X17 -> 1932 | T5: =X30 -> 3314 | W5: Зеркало 1032х412 F10 | X5: 1628 | Y5: 1563
B6: Шкаф (420) 1дв 2240х420 | D6: 420 | E6: 11487 | F6: 15367 | G6: 12067 | H6: 13527 | I6: 9847 | J6: 10147 | K6: 10917 | L6: 11827 | N6: 15077 | O6: 16177 | P6: 15057 | Q6: 16387 | R6: 18210.5 | S6: =X23 -> 1523 | T6: =X32 -> 2730 | W6: Зеркало 1100х400 (арка) 3 мм. Р.О. | X6: 712 | Y6: 647
B7: Шкаф (420) 1дв 2240х560 | D7: 560 | E7: 13588 | F7: 18778 | G7: 14368 | H7: 16308 | I7: 11368 | J7: 11748 | K7: 12718 | L7: 13908 | N7: 18108 | O7: 19258 | P7: 18078 | Q7: 19858 | R7: 21738.2 | S7: =X24 -> 2190 | T7: =X33 -> 3632 | W7: Зеркало 1120х300 | X7: 596 | Y7: 541
B8: Шкаф (420) 1дв 1240х420 | D8: 420х420х1240 | E8: 7177 | F8: 9297 | G8: 7497 | H8: 8287 | I8: 6297 | J8: 6467 | K8: 6897 | L8: 7397 | N8: 9207 | O8: 9887 | P8: 9197 | Q8: 9927 | R8: 11040.7 | W8: Зеркало 1134х380 F10 | X8: 1758 | Y8: 1598
B9: Шкаф (420) 1дв 1240х560 | D9: 560х420х1240 | E9: 8251 | F9: 11081 | G9: 8681 | H9: 9731 | I9: 7051 | J9: 7271 | K9: 7811 | L9: 8471 | N9: 10811 | O9: 11551 | P9: 10801 | Q9: 11771 | R9: 12967.9 | W9: Зеркало 1134х520 F10 | X9: 2042 | Y9: 1856
B10: Шкаф (420) 1дв витрина 1240х420 | D10: 420 | E10: 8338 | F10: 10458 | G10: 8658 | H10: 9448 | I10: 6951 | J10: 7061 | K10: 7401 | L10: 7861 | N10: 10241 | O10: 11151 | P10: 10231 | Q10: 10981 | R10: 9986.9 | W10: Зеркало 1165х402 3 мм. | X10: 752 | Y10: 683
B11: Шкаф (420) 1дв витрина 1240х560 | D11: 560 | E11: 9839 | F11: 12669 | G11: 10269 | H11: 11319 | I11: 7919 | J11: 8079 | K11: 8539 | L11: 9149 | N11: 12159 | O11: 13199 | P11: 12149 | Q11: 13159 | R11: 11180.4 | W11: Зеркало 1230х410 F10 | X11: 1896 | Y11: 1723
B12: Шкаф (420) 1дв витрина 2040х420 | D12: 420 | E12: 11584 | F12: 15124 | G12: 12124 | H12: 13444 | I12: 9228 | J12: 9428 | K12: 10018 | L12: 10798 | N12: 14598 | O12: 15878 | P12: 14578 | Q12: 15868 | R12: 13736.8 | W12: Зеркало 1232х412 F10 | X12: 2086 | Y12: 1896
B13: Шкаф (420) 1дв витрина 2040х560 | D13: 560 | E13: 13224 | F13: 17944 | G13: 13934 | H13: 15704 | I13: 9979 | J13: 10239 | K13: 11029 | L13: 12069 | N13: 16879 | O13: 18289 | P13: 16849 | Q13: 18569 | R13: 14595.9 | W13: Зеркало 1280х318 | X13: 784 | Y13: 712
B14: Шкаф (420) 1дв витрина 2240х420 | D14: 420 | E14: 12658 | F14: 16538 | G14: 13238 | H14: 14698 | I14: 9955 | J14: 10165 | K14: 10815 | L14: 11675 | N14: 15835 | O14: 17205 | P14: 15815 | Q14: 17245 | R14: 14854.4 | W14: Зеркало 1399х384 3мм. | X14: 866 | Y14: 787
B15: Шкаф (420) 1дв 2ящ 2040х420 | D15: 420 | E15: 11717 | F15: 15237 | G15: 12247 | H15: 13557 | I15: 10267 | J15: 10577 | K15: 11317 | L15: 12187 | N15: 15317 | O15: 16677 | P15: 15297 | Q15: 16507 | R15: 18562.5 | S15: =X16 -> 1344 | T15: =X20 -> 2010 | W15: Зеркало 1498х364 шлиф | X15: 669 | Y15: 608
B16: Шкаф (420) 1дв 2ящ 2240х420 | D16: 420 | E16: 12599 | F16: 16479 | G16: 13179 | H16: 14629 | I16: 10999 | J16: 11339 | K16: 12149 | L16: 13099 | N16: 16509 | O16: 17959 | P16: 16499 | Q16: 17829 | R16: 20021.1 | S16: =X23 -> 1523 | T16: =X25 -> 2250 | W16: Зеркало 1500х320 | X16: 1344 | Y16: =X16*2 -> 2688
B17: Шкаф (420) 1дв 2ящ 2040х560 | D17: 560 | E17: 13685 | F17: 18395 | G17: 14395 | H17: 16165 | I17: 11715 | J17: 12115 | K17: 13075 | L17: 14185 | N17: 18225 | O17: 19765 | P17: 18205 | Q17: 19815 | R17: 22061.6 | S17: =X17 -> 1932 | T17: =X22 -> 2677 | W17: Зеркало 1500х460 | X17: 1932 | Y17: 1109
B18: Шкаф (420) 1дв 2ящ 2240х560 | D18: 560 | E18: 14733 | F18: 19923 | G18: 15523 | H18: 17463 | I18: 12563 | J18: 13003 | K18: 14043 | L18: 15263 | N18: 19673 | O18: 21303 | P18: 19653 | Q18: 21423 | R18: 23823.8 | S18: =X24 -> 2190 | T18: =X27 -> 2995 | W18: Зеркало 1570х386 шлиф | X18: 1241 | Y18: 1128
B19: Шкаф (420) 1дв 2ящ Шар 2040х420 | D19: 420 | E19: 12359 | F19: 15879 | G19: 12889 | H19: 14199 | I19: 10909 | J19: 11219 | K19: 11959 | L19: 12829 | N19: 15959 | O19: 17319 | P19: 15939 | Q19: 17149 | R19: 19155.4 | S19: =S15 -> 1344 | T19: =T15 -> 2010 | W19: Зеркало 1570х526 шлиф | X19: 1697 | Y19: 1469
B20: Шкаф (420) 1дв 2ящ Шар 2240х420 | D20: 420 | E20: 13229 | F20: 17109 | G20: 13809 | H20: 15259 | I20: 11629 | J20: 11969 | K20: 12779 | L20: 13729 | N20: 17139 | O20: 18589 | P20: 17129 | Q20: 18459 | R20: 20603 | S20: =S16 -> 1523 | T20: 2250 | W20: Зеркало 1592х318 F10 | X20: 2010 | Y20: 1900
B21: Шкаф (420) 1дв 2ящ Шар 2040х560 | D21: 560 | E21: 14256 | F21: 18966 | G21: 14966 | H21: 16736 | I21: 12286 | J21: 12686 | K21: 13646 | L21: 14756 | N21: 18796 | O21: 20336 | P21: 18776 | Q21: 20386 | R21: 22579.7 | S21: =S17 -> 1932 | T21: 2677 | W21: Зеркало 1592х318 еврокр | X21: 1418 | Y21: 791
B22: Шкаф (420) 1дв 2ящ Шар 2240х560 | D22: 560 | E22: 15258 | F22: 20448 | G22: 16048 | H22: 17988 | I22: 13088 | J22: 13528 | K22: 14568 | L22: 15788 | N22: 20198 | O22: 21828 | P22: 20178 | Q22: 21948 | R22: 24275.9 | S22: =S18 -> 2190 | T22: 2995 | W22: Зеркало 1592х458 F10 | X22: 2677
B23: Шкаф (420) 1дв 2ящ витрина 2040х420 | D23: 420 | E23: 12572 | F23: 16092 | G23: 13102 | H23: 14412 | I23: 10360 | J23: 10600 | K23: 11240 | L23: 12060 | N23: 15890 | O23: 17500 | P23: 15880 | Q23: 17140 | R23: 16208.5 | W23: Зеркало 1700х320 | X23: 1523 | Y23: =X23*2 -> 3046
B24: Шкаф (420) 1дв 2ящ витрина 2240х420 | D24: 420 | E24: 13953 | F24: 17833 | G24: 14533 | H24: 15983 | I24: 11080 | J24: 11340 | K24: 12040 | L24: 12950 | N24: 17130 | O24: 18840 | P24: 17110 | Q24: 18510 | R24: 17329.4 | W24: Зеркало 1700х460 | X24: 2190
B25: Шкаф (420) 2дв 1ящ 2040х420 | D25: 420 | E25: 11106 | F25: 14636 | G25: 11636 | H25: 12946 | I25: 9656 | J25: 9956 | K25: 10706 | L25: 11566 | N25: 14696 | O25: 16056 | P25: 14676 | Q25: 15896 | R25: 18205 | W25: Зеркало 1792х318 F10 | X25: 2250
B26: Шкаф (420) 2дв 1ящ 2240х420 | D26: 420 | E26: 11962 | F26: 15842 | G26: 12552 | H26: 13992 | I26: 10362 | J26: 10692 | K26: 11512 | L26: 12452 | N26: 15872 | O26: 17312 | P26: 15852 | Q26: 17182 | R26: 19650.4 | W26: Зеркало 1792х318 еврокр | X26: 1596
B27: Шкаф (420) 2дв 1ящ витрина 2040х420 | D27: 420 | E27: 11956 | F27: 15486 | G27: 12486 | H27: 13796 | I27: 9760 | J27: 9980 | K27: 10570 | L27: 11350 | N27: 15400 | O27: 17200 | P27: 15380 | Q27: 16620 | R27: 15808.1 | W27: Зеркало 1792х458 F10 | X27: 2995
B28: Шкаф (420) 2дв 1ящ витрина 2240х420 | D28: 420 | E28: 13015 | F28: 16895 | G28: 13605 | H28: 15045 | I28: 10578 | J28: 10818 | K28: 11468 | L28: 12328 | N28: 16738 | O28: 18628 | P28: 16718 | Q28: 18088 | R28: 17003.8 | W28: Зеркало 1920х300 | X28: 1613
B29: Шкаф (420) 2дв 1ящ шар 2040х420 | D29: 420 | E29: 11356 | F29: 14886 | G29: 11886 | H29: 13196 | I29: 9906 | J29: 10206 | K29: 10956 | L29: 11816 | N29: 14946 | O29: 16306 | P29: 14926 | Q29: 16146 | R29: 18418.4 | S29: 0 | T29: 0 | W29: Зеркало 1992х318 F10 | X29: 2490 | Y29: =X29*2 -> 4980
B30: Шкаф (420) 2дв 1ящ шар 2240х420 | D30: 420 | E30: 12201 | F30: 16081 | G30: 12791 | H30: 14231 | I30: 10601 | J30: 10931 | K30: 11751 | L30: 12691 | N30: 16111 | O30: 17551 | P30: 16091 | Q30: 17421 | R30: 19856.1 | S30: 0 | T30: 0 | W30: Зеркало 1992х458 F10 | X30: 3314
B31: Шкаф (420) 2дв 1ящ шар витрина 2040х420 | D31: 420 | E31: 12332 | F31: 15862 | G31: 12862 | H31: 14172 | I31: 10136 | J31: 10356 | K31: 10946 | L31: 11726 | N31: 15776 | O31: 17576 | P31: 15756 | Q31: 16996 | R31: 16162.3 | S31: 0 | T31: 0 | W31: Зеркало 2028х384 F10 | X31: 2984
B32: Шкаф (420) 2дв 1ящ шар витрина 2240х420 | D32: 420 | E32: 13248 | F32: 17128 | G32: 13838 | H32: 15278 | I32: 10811 | J32: 11051 | K32: 11701 | L32: 12561 | N32: 16971 | O32: 18861 | P32: 16951 | Q32: 18321 | R32: 17205.1 | S32: 0 | T32: 0 | W32: Зеркало 2192х318 F10 | X32: 2730 | Y32: =X32*2 -> 5460
B33: Шкаф (420) 2дв 2040х840 | D33: 840 | E33: 17798 | F33: 24878 | G33: 18878 | H33: 21518 | I33: 14818 | J33: 15378 | K33: 16778 | L33: 18438 | N33: 24378 | O33: 26398 | P33: 24338 | Q33: 26758 | R33: 30195 | S33: =Y16 -> 2688 | T33: =Y29 -> 4980 | W33: Зеркало 2192х458 F10 | X33: 3632
B34: Шкаф (420) 2дв 2240х840 | D34: 840 | E34: 19305 | F34: 27065 | G34: 20465 | H34: 23385 | I34: 16025 | J34: 16625 | K34: 18165 | L34: 19985 | N34: 26485 | O34: 28685 | P34: 26445 | Q34: 29105 | R34: 32844.9 | S34: =Y23 -> 3046 | T34: =Y32 -> 5460 | W34: Зеркало 520х690 еврокр | X34: 1015
B35: Шкаф (420) комб 2дв 2040х840 | D35: 840 | E35: 19323 | F35: 26403 | G35: 20403 | H35: 23043 | I35: 16343 | J35: 16903 | K35: 18303 | L35: 19963 | N35: 25903 | O35: 27923 | P35: 25863 | Q35: 28283 | R35: 31658 | S35: =S33 -> 2688 | T35: =T33 -> 4980 | W35: Зеркало 568х688 3 мм. фиг. | X35: 1071
B36: Шкаф (420) комб 2дв 2240х840 | D36: 840 | E36: 20685 | F36: 28445 | G36: 21845 | H36: 24765 | I36: 17405 | J36: 18005 | K36: 19545 | L36: 21365 | N36: 27865 | O36: 30065 | P36: 27825 | Q36: 30485 | R36: 34170.4 | S36: =S34 -> 3046 | T36: =T34 -> 5460 | W36: Зеркало 600х560 (прямое) F10 | X36: 1441
B37: Шкаф (420) 2дв витрина 2040х840 | D37: 840 | E37: 21870 | F37: 28950 | G37: 22950 | H37: 25590 | I37: 15058 | J37: 15458 | K37: 16638 | L37: 18198 | N37: 25798 | O37: 28358 | P37: 25758 | Q37: 28338 | R37: 24163.7 | W37: Зеркало 600х560 (трапеция) F10 | X37: 1441
B38: Шкаф (420) 2дв витрина 2240х840 | D38: 840 | E38: 23777 | F38: 31537 | G38: 24937 | H38: 27857 | I38: 16261 | J38: 16681 | K38: 17981 | L38: 19701 | N38: 28021 | O38: 30761 | P38: 27981 | Q38: 30841 | R38: 26141.5 | W38: Зеркало 600х760 (прямое) F10 | X38: 1711
B39: Шкаф (420) 2дв 2ящ 2040х840 | D39: 840 | E39: 19010 | F39: 26050 | G39: 20090 | H39: 22710 | I39: 16090 | J39: 16690 | K39: 18170 | L39: 19870 | N39: 26050 | O39: 28610 | P39: 26010 | Q39: 28430 | R39: 32301.5 | S39: =S33 -> 2688 | T39: =T33 -> 4980 | W39: Зеркало 600х760 (трапеция) F10 | X39: 1711
B40: Шкаф (420) 2дв 2ящ 2240х840 | D40: 840 | E40: 20525 | F40: 28285 | G40: 21705 | H40: 24605 | I40: 17305 | J40: 17965 | K40: 19585 | L40: 21445 | N40: 28185 | O40: 30925 | P40: 28165 | Q40: 30825 | R40: 34982.2 | S40: =S34 -> 3046 | T40: =T34 -> 5460 | W40: Зеркало 600х960 (прямое) F10 | X40: 1974
B41: Шкаф (420) 2дв 2ящ витрина 2040х840 | D41: 840 | E41: 22224 | F41: 29264 | G41: 23304 | H41: 25924 | I41: 16276 | J41: 16736 | K41: 18016 | L41: 19616 | N41: 27196 | O41: 30256 | P41: 27176 | Q41: 29696 | R41: 27596.8 | W41: Зеркало 600х960 (трапеция) F10 | X41: 1974
B42: Шкаф (420) 2дв 2ящ витрина 2240х840 | D42: 840 | E42: 23872 | F42: 31632 | G42: 25052 | H42: 27952 | I42: 17222 | J42: 17722 | K42: 19122 | L42: 20902 | N42: 29182 | O42: 32442 | P42: 29142 | Q42: 31942 | R42: 29315 | W42: Зеркало 700х600 | X42: 744
B43: Шкаф (420) 2дв 2ящ шар 2040х840 | D43: 840 | E43: 19235 | F43: 26275 | G43: 20315 | H43: 22935 | I43: 16315 | J43: 16915 | K43: 18395 | L43: 20095 | N43: 26275 | O43: 28835 | P43: 26235 | Q43: 28655 | R43: 32439 | W43: Зеркало 800х580 | X43: 823
B44: Шкаф (420) 2дв 2ящ шар 2240х840 | D44: 840 | E44: 20723 | F44: 28483 | G44: 21903 | H44: 24803 | I44: 17503 | J44: 18163 | K44: 19783 | L44: 21643 | N44: 28383 | O44: 31123 | P44: 28363 | Q44: 31023 | R44: 35090 | W44: Зеркало 700х600 | X44: 520
B45: Шкаф (420) 2дв 2ящ шар витрина 2040х840 | D45: 840 | E45: 22442 | F45: 29482 | G45: 23522 | H45: 26142 | I45: 16494 | J45: 16954 | K45: 18234 | L45: 19834 | N45: 27414 | O45: 30474 | P45: 27394 | Q45: 29914 | R45: 27728.8 | W45: Зеркало 800х580 | X45: 575
B46: Шкаф (420) 2дв 2ящ шар витрина 2240х840 | D46: 840 | E46: 24598 | F46: 32358 | G46: 25778 | H46: 28678 | I46: 17948 | J46: 18448 | K46: 19848 | L46: 21628 | N46: 29908 | O46: 33168 | P46: 29868 | Q46: 32668 | R46: 30004.7
B47: Шкаф (420) 1дв полувитрина 2040х420 | D47: 420х440х2040 | E47: 11633 | F47: 15173 | G47: 12173 | H47: 13493 | I47: 9401 | J47: 9601 | K47: 10191 | L47: 10971 | N47: 14771 | O47: 16051 | P47: 14751 | Q47: 16041 | R47: 13886.4
B48: Шкаф (420) 1дв полувитрина 2040х560 | D48: 560х440х2040 | E48: 13732 | F48: 18452 | G48: 14442 | H48: 16212 | I48: 10667 | J48: 10927 | K48: 11717 | L48: 12757 | N48: 17567 | O48: 18977 | P48: 17537 | Q48: 19257 | R48: 15275.7
B49: Шкаф (420) 1дв полувитрина 2240х420 | D49: 420х440х2240 | E49: 13046 | F49: 16926 | G49: 13626 | H49: 15086 | I49: 10153 | J49: 10363 | K49: 11013 | L49: 11873 | N49: 16033 | O49: 17403 | P49: 16013 | Q49: 17443 | R49: 15016.1
B50: Шкаф (420) 1дв полувитрина 2240х560 | D50: 560х440х2240 | E50: 14952 | F50: 20142 | G50: 15732 | H50: 17672 | I50: 11539 | J50: 11829 | K50: 12699 | L50: 13849 | N50: 19099 | O50: 20599 | P50: 19069 | Q50: 20969 | R50: 16536.3
B51: Шкаф (420) 2дв полувитрина 2040х840 | D51: 840х440х2040 | E51: 21177 | F51: 28257 | G51: 22257 | H51: 24897 | I51: 15209 | J51: 15609 | K51: 16789 | L51: 18349 | N51: 25949 | O51: 28509 | P51: 25909 | Q51: 28489 | R51: 24289.1
B52: Шкаф (420) 2дв полувитрина 2240х840 | D52: 840х440х2240 | E52: 23106 | F52: 30866 | G52: 24266 | H52: 27186 | I52: 16436 | J52: 16856 | K52: 18156 | L52: 19876 | N52: 28196 | O52: 30936 | P52: 28156 | Q52: 31016 | R52: 26279
B53: Шкаф (420) 1дв витрина 1дв глух 2040х420 | D53: 420х440х2040 | E53: 12263 | F53: 15793 | G53: 12803 | H53: 14113 | I53: 10031 | J53: 10261 | K53: 10881 | L53: 11681 | N53: 15421 | O53: 16861 | P53: 15411 | Q53: 16671 | R53: 15750.9
B54: Шкаф (420) 1дв витрина 1дв глух 2040х560 | D54: 560х440х2040 | E54: 14366 | F54: 19076 | G54: 15076 | H54: 16836 | I54: 11291 | J54: 11581 | K54: 12411 | L54: 13471 | N54: 18231 | O54: 19851 | P54: 18211 | Q54: 19891 | R54: 17662.7
B55: Шкаф (420) 1дв витрина 1дв глух 2240х420 | D55: 420х440х2240 | E55: 13667 | F55: 17557 | G55: 14257 | H55: 15707 | I55: 10774 | J55: 11024 | K55: 11704 | L55: 12594 | N55: 16684 | O55: 18224 | P55: 16664 | Q55: 18064 | R55: 16882.8
B56: Шкаф (420) 1дв витрина 1дв глух 2240х560 | D56: 560х440х2240 | E56: 15579 | F56: 20769 | G56: 16369 | H56: 18299 | I56: 12166 | J56: 12486 | K56: 13396 | L56: 14566 | N56: 19766 | O56: 21486 | P56: 19746 | Q56: 21606 | R56: 18916.7
B57: Шкаф (420) 1дв витрина зеркало 1дв глух 2040х420 | D57: 420х440х2040 | E57: 15508 | F57: 19038 | G57: 16048 | H57: 17358 | I57: 13276 | J57: 13506 | K57: 14126 | L57: 14926 | M57: 2226 | N57: 18666 | O57: 20106 | P57: 18656 | Q57: 19916 | R57: 18713.2 | S57: 0 | T57: 0
B58: Шкаф (420) 1дв витрина зеркало 1дв глух 2040х560 | D58: 560х440х2040 | E58: 18423 | F58: 23133 | G58: 19133 | H58: 20893 | I58: 15348 | J58: 15638 | K58: 16468 | L58: 17528 | M58: 2051 | N58: 22288 | O58: 23908 | P58: 22268 | Q58: 23948 | R58: 21205.8 | S58: 0 | T58: 0
B59: Шкаф (420) 2дв витрина 2дв глух 2040х840 | D59: 840х440х2040 | E59: 22333 | F59: 29393 | G59: 23413 | H59: 26033 | I59: 16365 | J59: 16825 | K59: 18065 | L59: 19665 | N59: 27145 | O59: 30025 | P59: 27125 | Q59: 29645 | R59: 27926.8 | S59: 0 | T59: 0
B60: Шкаф (420) 2дв витрина 2дв глух 2240х840 | D60: 840х440х2240 | E60: 24246 | F60: 32026 | G60: 25426 | H60: 28326 | I60: 17576 | J60: 18076 | K60: 19436 | L60: 21216 | N60: 29396 | O60: 32476 | P60: 29356 | Q60: 32156 | R60: 29921.1 | S60: 0 | T60: 0
B61: Шкаф (420) ДО 1дв 2040х560 | D61: 560х440х2040 | E61: 11980 | F61: 16700 | G61: 12690 | H61: 14460 | I61: 9960 | J61: 10310 | K61: 11200 | L61: 12290 | N61: 16110 | O61: 17180 | P61: 16090 | Q61: 17700 | R61: 19408.4 | S61: =X17 -> 1932 | T61: =X30 -> 3314
B62: Шкаф (420) ДО 1дв 2240х560 | D62: 560х440х2240 | E62: 12712 | F62: 17902 | G62: 13492 | H62: 15432 | I62: 10492 | J62: 10872 | K62: 11842 | L62: 13032 | N62: 17232 | O62: 18382 | P62: 17202 | Q62: 18982 | R62: 20836.2 | S62: =X24 -> 2190 | T62: =X33 -> 3632
B63: Шкаф (420) ДО 2дв 2040х840 | D63: 840 | E63: 16926 | F63: 24006 | G63: 18006 | H63: 20646 | I63: 13946 | J63: 14506 | K63: 15906 | L63: 17566 | N63: 23506 | O63: 25526 | P63: 23466 | Q63: 25886 | R63: 29291.9 | S63: =S39 -> 2688 | T63: 4980
B64: Шкаф (420) ДО 2дв 2240х840 | D64: 840 | E64: 17951 | F64: 25711 | G64: 19111 | H64: 22031 | I64: 14671 | J64: 15271 | K64: 16811 | L64: 18631 | N64: 25131 | O64: 27331 | P64: 25091 | Q64: 27751 | R64: 31442.4 | S64: =S40 -> 3046 | T64: 5460
B65: Шкаф (420) ДО 2дв 2ящ 2040х840 | D65: 840 | E65: 18209 | F65: 25249 | G65: 19289 | H65: 21909 | I65: 15289 | J65: 15889 | K65: 17369 | L65: 19069 | N65: 25249 | O65: 27809 | P65: 25209 | Q65: 27629 | R65: 31450.1 | S65: =S63 -> 2688 | T65: 4020
B66: Шкаф (420) ДО 2дв 2ящ 2240х840 | D66: 840 | E66: 19214 | F66: 26974 | G66: 20394 | H66: 23294 | I66: 15994 | J66: 16654 | K66: 18274 | L66: 20134 | N66: 26874 | O66: 29614 | P66: 26854 | Q66: 29514 | R66: 33601.7 | S66: =S64 -> 3046 | T66: 4500
B67: Шкаф (420) ДО 2дв 2ящ шар 2040х840 | D67: 840 | E67: 19040 | F67: 26080 | G67: 20120 | H67: 22740 | I67: 16120 | J67: 16720 | K67: 18200 | L67: 19900 | N67: 26080 | O67: 28640 | P67: 26040 | Q67: 28460 | R67: 32243.2 | S67: 2688 | T67: =T65 -> 4020
B68: Шкаф (420) ДО 2дв 2ящ шар 2240х840 | D68: 840 | E68: 20055 | F68: 27815 | G68: 21235 | H68: 24135 | I68: 16835 | J68: 17495 | K68: 19115 | L68: 20975 | N68: 27715 | O68: 30455 | P68: 27695 | Q68: 30355 | R68: 34404.7 | S68: 3046 | T68: =T66 -> 4500
B69: Шкаф (420) Ниша 2дв 2040х420 | D69: 420 | E69: 10166 | F69: 12986 | G69: 10586 | H69: 11646 | I69: 8986 | J69: 9226 | K69: 9826 | L69: 10506 | N69: 12966 | O69: 13986 | P69: 12966 | Q69: 13926 | R69: 15825.7
B70: Шкаф (420) Ниша 2дв 2040х560 | D70: 560 | E70: 12896 | F70: 16656 | G70: 13456 | H70: 14856 | I70: 11296 | J70: 11616 | K70: 12356 | L70: 13256 | N70: 16436 | O70: 17576 | P70: 16416 | Q70: 17716 | R70: 19911.1 | S70: 0 | T70: 0
B71: Шкаф (420) Ниша 2дв 2240х420 | D71: 420 | E71: 11045 | F71: 14215 | G71: 11525 | H71: 12715 | I71: 9715 | J71: 9985 | K71: 10645 | L71: 11415 | N71: 14165 | O71: 15265 | P71: 14155 | Q71: 15245 | R71: 17289.8
B72: Шкаф (420) Ниша 2дв 2240х560 | D72: 560 | E72: 14160 | F72: 18400 | G72: 14800 | H72: 16380 | I72: 12370 | J72: 12710 | K72: 13540 | L72: 14550 | N72: 18100 | O72: 19320 | P72: 18080 | Q72: 19540 | R72: 21901 | S72: 0 | T72: 0
B73: Шкаф (420) Ниша 4дв 2040х840 | D73: 840 | E73: 16982 | F73: 22622 | G73: 17822 | H73: 19942 | I73: 14622 | J73: 15102 | K73: 16302 | L73: 17662 | N73: 22582 | O73: 24622 | P73: 22582 | Q73: 24502 | R73: 28373.4
B74: Шкаф (420) Ниша 4дв 2240х840 | D74: 840 | E74: 20503 | F74: 26843 | G74: 21463 | H74: 23843 | I74: 17843 | J74: 18383 | K74: 19703 | L74: 21243 | N74: 26743 | O74: 28943 | P74: 26723 | Q74: 28903 | R74: 33266.2
B75: Шкаф (420) Торцевой 2040х420 ЛЕВ\ПР | D75: 420 | E75: 13306 | F75: 18906 | G75: 14156 | H75: 16246 | I75: 10986 | J75: 11456 | K75: 12616 | L75: 13956 | N75: 18826 | O75: 20776 | P75: 18796 | Q75: 20716 | R75: 22976.8
B76: Шкаф (420) Торцевой 2240х420 ЛЕВ\ПР | D76: 420 | E76: 14355 | F76: 20525 | G76: 15285 | H76: 17595 | I76: 11795 | J76: 12315 | K76: 13585 | L76: 15065 | N76: 20405 | O76: 22525 | P76: 20375 | Q76: 22485 | R76: 24911.7
B77: Шкаф (420) 4 двери, 1160х1120 | D77: 1120х440х1160 | E77: 16223 | F77: 21463 | G77: 17023 | H77: 18983 | I77: 14023 | J77: 14463 | K77: 15583 | L77: 16823 | N77: 21423 | O77: 23303 | P77: 21423 | Q77: 23223 | R77: 26703.6
B78: Шкафы глубиной 560мм
B79: Шкаф (560) 1дв 2040х420 | D79: 420 | E79: 11792 | F79: 15332 | G79: 12332 | H79: 13652 | I79: 10302 | J79: 10582 | K79: 11282 | L79: 12112 | N79: 15082 | O79: 16092 | P79: 15062 | Q79: 16272 | R79: 18014.7 | S79: =S4 -> 1344 | T79: =T4 -> 2490
B80: Шкаф (560) 1дв 2040х560 | D80: 560 | E80: 13873 | F80: 18593 | G80: 14583 | H80: 16353 | I80: 11853 | J80: 12203 | K80: 13093 | L80: 14183 | N80: 18003 | O80: 19073 | P80: 17983 | Q80: 19593 | R80: 21396.1 | S80: =S5 -> 1932 | T80: 3314
B81: Шкаф (560) 1дв 2240х420 | D81: 420 | E81: 12962 | F81: 16842 | G81: 13542 | H81: 15002 | I81: 11322 | J81: 11622 | K81: 12392 | L81: 13302 | N81: 16552 | O81: 17652 | P81: 16532 | Q81: 17862 | R81: 19731.8 | S81: =S6 -> 1523 | T81: 2730
B82: Шкаф (560) 1дв 2240х560 | D82: 560 | E82: 15077 | F82: 20267 | G82: 15857 | H82: 17797 | I82: 12857 | J82: 13237 | K82: 14207 | L82: 15397 | N82: 19597 | O82: 20747 | P82: 19567 | Q82: 21347 | R82: 23311.2 | S82: =S7 -> 2190 | T82: 3632
B83: Шкаф (560) 1дв 2ящ 2040х420 | D83: 420х580х2040 | E83: 13488 | F83: 17008 | G83: 14018 | H83: 15328 | I83: 12038 | J83: 12348 | K83: 13088 | L83: 13958 | N83: 17088 | O83: 18448 | P83: 17068 | Q83: 18278 | R83: 20425.9 | S83: =S15 -> 1344 | T83: =T15 -> 2010
B84: Шкаф (560) 1дв 2ящ 2040х560 | D84: 560 | E84: 15308 | F84: 20018 | G84: 16018 | H84: 17788 | I84: 13338 | J84: 13738 | K84: 14698 | L84: 15808 | N84: 19848 | O84: 21388 | P84: 19828 | Q84: 21438 | R84: 23741.3 | S84: =S17 -> 1932 | T84: =T17 -> 2677
B85: Шкаф (560) 1дв 2ящ 2240х420 | D85: 420х580х2240 | E85: 14284 | F85: 18164 | G85: 14864 | H85: 16314 | I85: 12684 | J85: 13024 | K85: 13834 | L85: 14784 | N85: 18194 | O85: 19644 | P85: 18184 | Q85: 19514 | R85: 21789.9 | S85: =S16 -> 1523 | T85: =T16 -> 2250
B86: Шкаф (560) 1дв 2ящ 2240х560 | D86: 560 | E86: 16528 | F86: 21718 | G86: 17318 | H86: 19258 | I86: 14358 | J86: 14798 | K86: 15838 | L86: 17058 | N86: 21468 | O86: 23098 | P86: 21448 | Q86: 23218 | R86: 25687.2 | S86: =S18 -> 2190 | T86: =T18 -> 2995
B87: Шкаф (560) 2дв 1ящ 2040х560 | D87: 560 | E87: 14272 | F87: 18982 | G87: 15002 | H87: 16762 | I87: 12312 | J87: 12712 | K87: 13672 | L87: 14792 | N87: 18832 | O87: 20372 | P87: 18812 | Q87: 20412 | R87: 23016.4
B88: Шкаф (560) 2дв 1ящ 2240х560 | D88: 560 | E88: 15510 | F88: 20690 | G88: 16300 | H88: 18240 | I88: 13340 | J88: 13780 | K88: 14820 | L88: 16040 | N88: 20460 | O88: 22080 | P88: 20430 | Q88: 22200 | R88: 24970
B89: Шкаф (560) 2дв 2040х840 | D89: 840 | E89: 19641 | F89: 26721 | G89: 20721 | H89: 23361 | I89: 16661 | J89: 17221 | K89: 18621 | L89: 20281 | N89: 26221 | O89: 28241 | P89: 26181 | Q89: 28601 | R89: 32102.4 | S89: =S33 -> 2688 | T89: =T33 -> 4980
B90: Шкаф (560) 2дв 2240х840 | D90: 840 | E90: 21374 | F90: 29134 | G90: 22534 | H90: 25454 | I90: 18094 | J90: 18694 | K90: 20234 | L90: 22054 | N90: 28554 | O90: 30754 | P90: 28514 | Q90: 31174 | R90: 34991 | S90: =S34 -> 3046 | T90: =T34 -> 5460
B91: Шкаф (560) 2дв 2ящ 2040х840 | D91: 840 | E91: 20840 | F91: 27880 | G91: 21920 | H91: 24540 | I91: 17920 | J91: 18520 | K91: 20000 | L91: 21700 | N91: 27880 | O91: 30440 | P91: 27840 | Q91: 30260 | R91: 34219.9 | S91: =S39 -> 2688 | T91: =T39 -> 4980
B92: Шкаф (560) 2дв 2ящ 2240х840 | D92: 840 | E92: 22553 | F92: 30313 | G92: 23733 | H92: 26633 | I92: 19333 | J92: 19993 | K92: 21613 | L92: 23473 | N92: 30213 | O92: 32953 | P92: 30193 | Q92: 32853 | R92: 37108.5 | S92: =S40 -> 3046 | T92: =T40 -> 5460
B93: Шкаф (560) ДО 1дв 2040х420 | D93: 420 | E93: 11148 | F93: 14688 | G93: 11688 | H93: 13008 | I93: 9658 | J93: 9938 | K93: 10638 | L93: 11468 | N93: 14438 | O93: 15448 | P93: 14418 | Q93: 15628 | R93: 17341.5 | S93: =S4 -> 1344 | T93: =T4 -> 2490
B94: Шкаф (560) ДО 1дв 2040х560 | D94: 560 | E94: 12801 | F94: 17521 | G94: 13511 | H94: 15281 | I94: 10781 | J94: 11131 | K94: 12021 | L94: 13111 | N94: 16931 | O94: 18001 | P94: 16911 | Q94: 18521 | R94: 20326.9 | S94: =S5 -> 1932 | T94: 3314
B95: Шкаф (560) ДО 1дв 2240х420 | D95: 420 | E95: 11855 | F95: 15735 | G95: 12435 | H95: 13895 | I95: 10215 | J95: 10515 | K95: 11285 | L95: 12195 | N95: 15445 | O95: 16545 | P95: 15425 | Q95: 16755 | R95: 18615.3 | S95: 1523 | T95: 2730
B96: Шкаф (560) ДО 1дв 2240х560 | D96: 560 | E96: 13589 | F96: 18779 | G96: 14369 | H96: 16309 | I96: 11369 | J96: 11749 | K96: 12719 | L96: 13909 | N96: 18109 | O96: 19259 | P96: 18079 | Q96: 19859 | R96: 21814.1 | S96: 2190 | T96: 3632
B97: Шкаф (560) ДО 2дв 2040х840 | D97: 840 | E97: 18131 | F97: 25211 | G97: 19211 | H97: 21851 | I97: 15151 | J97: 15711 | K97: 17111 | L97: 18771 | N97: 24711 | O97: 26731 | P97: 24671 | Q97: 27091 | R97: 30569 | S97: =S33 -> 2688 | T97: 5984.66
B98: Шкаф (560) ДО 2дв 2040х1120 | D98: 1120 | E98: 21576 | F98: 31016 | G98: 22996 | H98: 26536 | I98: 17536 | J98: 18236 | K98: 20016 | L98: 22196 | N98: 29836 | O98: 31976 | P98: 29796 | Q98: 33016 | R98: 36626.7 | S98: 3864 | T98: 7463.28
B99: Шкаф (560) ДО 2дв 2240х840 | D99: 840 | E99: 19225 | F99: 26985 | G99: 20385 | H99: 23305 | I99: 15945 | J99: 16545 | K99: 18085 | L99: 19905 | N99: 26405 | O99: 28605 | P99: 26365 | Q99: 29025 | R99: 32794.3 | S99: =S64 -> 3046 | T99: =T64 -> 5460
B100: Шкаф (560) ДО 2дв 2240х1120 | D100: 1120 | E100: 22889 | F100: 33269 | G100: 24449 | H100: 28329 | I100: 18449 | J100: 19209 | K100: 21149 | L100: 23529 | N100: 31929 | O100: 34229 | P100: 31869 | Q100: 35429 | R100: 39326.1 | S100: =X24*2 -> 4380 | T100: =X33*2 -> 7264
B101: Шкаф (560) ДО 2дв 2ящ 2040х840 | D101: 840 | E101: 20361 | F101: 27401 | G101: 21441 | H101: 24061 | I101: 17441 | J101: 18041 | K101: 19521 | L101: 21221 | N101: 27401 | O101: 29961 | P101: 27361 | Q101: 29781 | R101: 33660 | S101: =S91 -> 2688 | T101: =T91 -> 4980
B102: Шкаф (560) ДО 2дв 2ящ 2240х840 | D102: 840 | E102: 21436 | F102: 29196 | G102: 22616 | H102: 25516 | I102: 18216 | J102: 18876 | K102: 20496 | L102: 22356 | N102: 29096 | O102: 31836 | P102: 29076 | Q102: 31736 | R102: 35885.3 | S102: =S92 -> 3046 | T102: =T92 -> 5460
B103: Шкаф (560) Комб 2дв 2040х840 | D103: 840 | E103: 21063 | F103: 28143 | G103: 22143 | H103: 24783 | I103: 18083 | J103: 18643 | K103: 20043 | L103: 21703 | N103: 27643 | O103: 29663 | P103: 27603 | Q103: 30023 | R103: 33490.6 | S103: =S89 -> 2688 | T103: =T89 -> 4980
B104: Шкаф (560) Комб 2дв 2240х840 | D104: 840 | E104: 22606 | F104: 30366 | G104: 23766 | H104: 26686 | I104: 19326 | J104: 19926 | K104: 21466 | L104: 23286 | N104: 29786 | O104: 31986 | P104: 29746 | Q104: 32406 | R104: 36186.7 | S104: =S90 -> 3046 | T104: =T90 -> 5460
B105: Шкаф (560) Комб 2дв 2040х1120 | D105: 1120 | E105: 24294 | F105: 33734 | G105: 25714 | H105: 29254 | I105: 20254 | J105: 20954 | K105: 22734 | L105: 24914 | N105: 32554 | O105: 34694 | P105: 32514 | Q105: 35734 | R105: 39365.7 | S105: =S98 -> 3864 | T105: =T98 -> 7463.28
B106: Шкаф (560) Комб 2дв 2240х1120 | D106: 1120 | E106: 25968 | F106: 36348 | G106: 27528 | H106: 31408 | I106: 21528 | J106: 22288 | K106: 24228 | L106: 26608 | N106: 35008 | O106: 37308 | P106: 34948 | Q106: 38508 | R106: 42483.1 | S106: =S100 -> 4380 | T106: =T100 -> 7264
B107: Шкаф (560) Комб 3дв 2040х1260 | D107: 1260 | E107: 27737 | F107: 38357 | G107: 29357 | H107: 33317 | I107: 23267 | J107: 24107 | K107: 26207 | L107: 28697 | N107: 37607 | O107: 40637 | P107: 37547 | Q107: 41177 | R107: 46391.4 | S107: =X16 -> 1344 | T107: =X29 -> 2490
B108: Шкаф (560) Комб 3дв 2040х1400 | D108: 1400 | E108: 29391 | F108: 41191 | G108: 31181 | H108: 35591 | I108: 24391 | J108: 25301 | K108: 27591 | L108: 30341 | N108: 40101 | O108: 43191 | P108: 40041 | Q108: 44071 | R108: 49359.2 | S108: =X17 -> 1932 | T108: =X30 -> 3314
B109: Шкаф (560) Комб 3дв 2040х1680 | D109: 1680 | E109: 32869 | F109: 47029 | G109: 34999 | H109: 40309 | I109: 26809 | J109: 27859 | K109: 30529 | L109: 33799 | N109: 45259 | O109: 48469 | P109: 45199 | Q109: 50029 | R109: 55499.4 | S109: =S108 -> 1932 | T109: =T108 -> 3314
B110: Шкаф (560) Комб 3дв 2240х1260 | D110: 1260 | E110: 29703 | F110: 41343 | G110: 31443 | H110: 35823 | I110: 24783 | J110: 25683 | K110: 27993 | L110: 30723 | N110: 40473 | O110: 43773 | P110: 40413 | Q110: 44403 | R110: 50069.8 | S110: =X23 -> 1523 | T110: =X32 -> 2730
B111: Шкаф (560) Комб 3дв 2240х1400 | D111: 1400 | E111: 31445 | F111: 44395 | G111: 33385 | H111: 38245 | I111: 25945 | J111: 26925 | K111: 29435 | L111: 32445 | N111: 43145 | O111: 46495 | P111: 43075 | Q111: 47515 | R111: 53258.7 | S111: =X24 -> 2190 | T111: =X33 -> 3632
B112: Шкаф (560) Комб 3дв 2240х1680 | D112: 1680 | E112: 35463 | F112: 51033 | G112: 37803 | H112: 43623 | I112: 28803 | J112: 29943 | K112: 32853 | L112: 36423 | N112: 49023 | O112: 52473 | P112: 48933 | Q112: 54273 | R112: 60146.9 | S112: =S111 -> 2190 | T112: =T111 -> 3632
B113: Шкаф (560) Комб 3дв 2ящ 2040х1400 | D113: 1400 | E113: 33122 | F113: 44912 | G113: 34912 | H113: 39322 | I113: 28172 | J113: 29132 | K113: 31492 | L113: 34262 | N113: 44242 | O113: 47802 | P113: 44182 | Q113: 48212 | R113: 53945.1 | S113: =S108 -> 1932 | T113: =T108 -> 3314
B114: Шкаф (560) Комб 3дв 2ящ 2040х1680 | D114: 1680 | E114: 36369 | F114: 50519 | G114: 38499 | H114: 43809 | I114: 30359 | J114: 31459 | K114: 34199 | L114: 37489 | N114: 49169 | O114: 52849 | P114: 49109 | Q114: 53939 | R114: 59843.3 | S114: =S109 -> 1932 | T114: =T109 -> 3314
B116: Шкафы глубиной 560мм
B117: Наименование | C117: Эскиз | D117: Ширина, мм | E117: Цена руб.
E118: 1 ЦК | F118: 1 ЦК + патина | G118: 2 ЦК | H118: 3 ЦК | I118: Марго 1 ц.к. | J118: Марго 3 ц.к. | S118: Зеркало в рамке* | T118: Зеркало накладное*
B119: Шкаф (560) Комб 3дв 2ящ 2240х1400 | D119: 1400 | E119: 35400 | F119: 48350 | G119: 37350 | H119: 42210 | I119: 29950 | J119: 30990 | K119: 33570 | L119: 36610 | N119: 47520 | O119: 51350 | P119: 47460 | Q119: 51890 | R119: 58089.9 | S119: =S111 -> 2190 | T119: =T111 -> 3632
B120: Шкаф (560) Комб 3дв 2ящ 2240х1680 | D120: 1680 | E120: 38888 | F120: 54458 | G120: 41238 | H120: 47058 | I120: 32278 | J120: 33478 | K120: 36458 | L120: 40058 | N120: 52868 | O120: 56798 | P120: 52788 | Q120: 58118 | R120: 64472.1 | S120: =S112 -> 2190 | T120: =T112 -> 3632
B121: Шкаф (560) Комб 4дв 2040х1960 | D121: 1960 | E121: 41137 | F121: 57657 | G121: 43637 | H121: 49817 | I121: 34117 | J121: 35377 | K121: 38557 | L121: 42397 | N121: 55977 | O121: 60137 | P121: 55897 | Q121: 61537 | R121: 68671.9 | S121: =S97 -> 2688 | T121: =T97 -> 5984.66
B122: Шкаф (560) Комб 4дв 2240х1960 | D122: 1960 | E122: 44414 | F122: 62554 | G122: 47134 | H122: 53934 | I122: 36694 | J122: 38054 | K122: 41534 | L122: 45734 | N122: 60634 | O122: 65134 | P122: 60534 | Q122: 66754 | R122: 74494.2 | S122: =S104 -> 3046 | T122: =T104 -> 5460
B123: Шкаф (560) Комб 4дв 2ящ 2040х1960 | D123: 1960 | E123: 42189 | F123: 58669 | G123: 44689 | H123: 50849 | I123: 35229 | J123: 36529 | K123: 39789 | L123: 43669 | N123: 57489 | O123: 62189 | P123: 57409 | Q123: 63049 | R123: 70539.7 | S123: =S121 -> 2688 | T123: =T121 -> 5984.66
B124: Шкаф (560) Комб 4дв 2ящ 2240х1960 | D124: 1960 | E124: 45161 | F124: 63301 | G124: 47901 | H124: 54681 | I124: 37501 | J124: 38921 | K124: 42481 | L124: 46721 | N124: 61861 | O124: 66901 | P124: 61781 | Q124: 68001 | R124: 76076 | S124: =S122 -> 3046 | T124: =T122 -> 5460
B125: Шкаф (560) Торцевой 2040х420 лев./пр | D125: 420 | E125: 15798 | F125: 22578 | G125: 16818 | H125: 19358 | I125: 12948 | J125: 13488 | K125: 14838 | L125: 16428 | N125: 22158 | O125: 24168 | P125: 22118 | Q125: 24448 | R125: 27788.2
B126: Шкаф (560) Торцевой 2240х420 лев./пр | D126: 420 | E126: 17066 | F126: 24526 | G126: 18186 | H126: 20986 | I126: 13926 | J126: 14516 | K126: 15986 | L126: 17756 | N126: 24026 | O126: 26216 | P126: 23996 | Q126: 26546 | R126: 30133.4
B127: Шкафы антресольные и стеллажи
B128: Шкаф (340) антр 1 дв. 400х1200 | D128: 1200х360х400 | E128: 6071 | F128: 8091 | G128: 6381 | H128: 7131 | I128: 5231 | J128: 5401 | K128: 5811 | L128: 6301 | N128: 8031 | O128: 8701 | P128: 8021 | Q128: 8711 | R128: 9869.2
B129: Шкаф (340) антр 1 дв. 400х1260 | D129: 1260х360х400 | E129: 6183 | F129: 8303 | G129: 6503 | H129: 7293 | I129: 5303 | J129: 5473 | K129: 5903 | L129: 6413 | N129: 8233 | O129: 8923 | P129: 8223 | Q129: 8953 | R129: 10143.1 | S129: - | T129: -
B130: Шкаф (340) антр 1 дв. 400х840 | D130: 840х360х400 | E130: 5017 | F130: 6427 | G130: 5227 | H130: 5757 | I130: 4427 | J130: 4557 | K130: 4847 | L130: 5187 | N130: 6427 | O130: 6947 | P130: 6417 | Q130: 6907 | R130: 7788 | S130: - | T130: -
B131: Шкаф (340) антр 1 дв. стекло 400х1260 | D131: 1260х360х400 | E131: 7377 | F131: 9497 | G131: 7697 | H131: 8487 | I131: 5389 | J131: 5509 | K131: 5859 | L131: 6319 | N131: 8699 | O131: 9619 | P131: 8689 | Q131: 9449 | R131: 8518.4 | S131: - | T131: -
B132: Шкаф (340) антр 1 дв. стекло 400х840 | D132: 840х360х400 | E132: 5788 | F132: 7198 | G132: 5998 | H132: 6528 | I132: 4495 | J132: 4565 | K132: 4795 | L132: 5095 | N132: 6755 | O132: 7485 | P132: 6755 | Q132: 7245 | R132: 6793.6 | S132: - | T132: -
B133: Шкаф (340) антр 2 дв. ниша 400х1400 | D133: 1400х360х400 | E133: 7486 | F133: 9366 | G133: 7766 | H133: 8466 | I133: 6726 | J133: 6886 | K133: 7306 | L133: 7766 | N133: 9466 | O133: 10266 | P133: 9466 | Q133: 10106 | R133: 11463.1 | S133: - | T133: -
B134: Шкаф (340) антр 2 дв. ниша 400х1640 | D134: 1640х360х400 | E134: 7998 | F134: 9878 | G134: 8278 | H134: 8978 | I134: 7238 | J134: 7398 | K134: 7818 | L134: 8278 | N134: 9978 | O134: 10778 | P134: 9978 | Q134: 10618 | R134: 11960.3 | S134: - | T134: -
B135: Шкаф (340) антр 2 дв. ниша 400х2040 | D135: 2040х360х400 | E135: 9405 | F135: 11685 | G135: 9745 | H135: 10605 | I135: 8465 | J135: 8665 | K135: 9145 | L135: 9705 | N135: 11745 | O135: 12645 | P135: 11725 | Q135: 12505 | R135: 14019.5 | S135: - | T135: -
B136: Стеллаж (340) навесной 300х300 | D136: 300х340х300 | E136: 1030 | F136: 1030 | G136: 1030 | H136: 1030 | I136: 1030 | J136: 1030 | K136: 1030 | L136: 1030 | N136: 1030 | O136: 1030 | P136: 1030 | Q136: 1030 | R136: 979 | S136: - | T136: -
B137: Стеллаж (340) навесной 300х1260 | D137: 1260х340х300 | E137: 2792 | F137: 2792 | G137: 2792 | H137: 2792 | I137: 2792 | J137: 2792 | K137: 2792 | L137: 2792 | N137: 2792 | O137: 2792 | P137: 2792 | Q137: 2792 | R137: 2775.3 | S137: - | T137: -
B138: Стеллаж (340) 2040х300 | D138: 300х340х2040 | E138: 4257 | F138: 4257 | G138: 4257 | H138: 4257 | I138: 4257 | J138: 4257 | K138: 4257 | L138: 4257 | N138: 4257 | O138: 4257 | P138: 4257 | Q138: 4257 | R138: 4246 | S138: - | T138: -
B139: Стеллаж (340) 2240х300 | D139: 300х340х2240 | E139: 4625 | F139: 4625 | G139: 4625 | H139: 4625 | I139: 4625 | J139: 4625 | K139: 4625 | L139: 4625 | N139: 4625 | O139: 4625 | P139: 4625 | Q139: 4625 | R139: 4622.2 | S139: - | T139: -
B140: Стеллаж (420) 2040х420 | D140: 420х420х2040 | E140: 5405 | F140: 5405 | G140: 5405 | H140: 5405 | I140: 5405 | J140: 5405 | K140: 5405 | L140: 5405 | N140: 5405 | O140: 5405 | P140: 5405 | Q140: 5405 | R140: 5395.5
B141: Стеллаж (420) 2040х560 | D141: 560х420х2040 | E141: 6025 | F141: 6025 | G141: 6025 | H141: 6025 | I141: 6025 | J141: 6025 | K141: 6025 | L141: 6025 | N141: 6025 | O141: 6025 | P141: 6025 | Q141: 6025 | R141: 6034.6
B142: Стеллаж (420) 2040х840 | D142: 840х420х2040 | E142: 7212 | F142: 7212 | G142: 7212 | H142: 7212 | I142: 7212 | J142: 7212 | K142: 7212 | L142: 7212 | N142: 7212 | O142: 7212 | P142: 7212 | Q142: 7212 | R142: 7268.8
B143: Стеллаж (420) 2240х420 | D143: 420х420х2240 | E143: 6016 | F143: 6016 | G143: 6016 | H143: 6016 | I143: 6016 | J143: 6016 | K143: 6016 | L143: 6016 | N143: 6016 | O143: 6016 | P143: 6016 | Q143: 6016 | R143: 6015.9
B144: Стеллаж (420) 2240х560 | D144: 560х420х2240 | E144: 6734 | F144: 6734 | G144: 6734 | H144: 6734 | I144: 6734 | J144: 6734 | K144: 6734 | L144: 6734 | N144: 6734 | O144: 6734 | P144: 6734 | Q144: 6734 | R144: 6755.1
B145: Стеллаж (420) 2240х840 | D145: 840х420х2240 | E145: 8107 | F145: 8107 | G145: 8107 | H145: 8107 | I145: 8107 | J145: 8107 | K145: 8107 | L145: 8107 | N145: 8107 | O145: 8107 | P145: 8107 | Q145: 8107 | R145: 8185.1
B146: Стеллаж (420) 2 дв 2240х840 | D146: 840х420х2240 | E146: 11761 | F146: 13181 | G146: 11981 | H146: 12501 | I146: 11201 | J146: 11341 | K146: 11661 | L146: 12021 | N146: 13321 | O146: 14021 | P146: 13321 | Q146: 13801 | R146: 15159.1
B147: Стеллаж (420) 2 ящика 2240х560 | D147: 560х420х2240 | E147: 10562 | F147: 11502 | G147: 10702 | H147: 11062 | I147: 10202 | J147: 10322 | K147: 10562 | L147: 10802 | N147: 11762 | O147: 12402 | P147: 11762 | Q147: 12082 | R147: 12767.7
B148: Стеллаж навесной (420) Н=600х1260 | D148: 1260х600х420 | E148: 5495 | F148: 5495 | G148: 5495 | H148: 5495 | I148: 5495 | J148: 5495 | K148: 5495 | L148: 5495 | N148: 5495 | O148: 5495 | P148: 5495 | Q148: 5495 | R148: 5310.8
B149: Антресоли
B150: Антресоль (420) 1дв 400х420 лев\пр | D150: 420х440х400 | E150: 3534 | F150: 4244 | G150: 3644 | H150: 3904 | I150: 3254 | J150: 3324 | K150: 3484 | L150: 3664 | N150: 4314 | O150: 4664 | P150: 4314 | Q150: 4554 | R150: 5150.2
B151: Антресоль (420) 1дв 400х560 лев\пр | D151: 560х440х400 | E151: 4120 | F151: 5060 | G151: 4260 | H151: 4610 | I151: 3740 | J151: 3820 | K151: 4030 | L151: 4260 | N151: 5110 | O151: 5510 | P151: 5110 | Q151: 5430 | R151: 6085.2
B152: Антресоль (420) 2дв 400х840 | D152: 840х440х400 | E152: 5899 | F152: 7319 | G152: 6119 | H152: 6639 | I152: 5339 | J152: 5479 | K152: 5799 | L152: 6159 | N152: 7459 | O152: 8159 | P152: 7459 | Q152: 7939 | R152: 9199.3
B153: Антресоль (420) 3дв 400х1260 | D153: 1260х440х400 | E153: 8475 | F153: 10605 | G153: 8805 | H153: 9585 | I153: 7635 | J153: 7845 | K153: 8325 | L153: 8865 | N153: 10815 | O153: 11865 | P153: 10815 | Q153: 11535 | R153: 13433.2
B154: Антресоль угл. (420) трап. 400х732х732 | D154: 732х732 | E154: 6012 | F154: 6722 | G154: 6122 | H154: 6382 | I154: 5732 | J154: 5802 | K154: 5962 | L154: 6142 | N154: 6792 | O154: 7142 | P154: 6792 | Q154: 7032 | R154: 7569.1
B155: Антресоль (340) 2 дв. 400х840 | D155: 840х360х400 | E155: 5665 | F155: 7085 | G155: 5885 | H155: 6405 | I155: 5105 | J155: 5245 | K155: 5565 | L155: 5925 | N155: 7225 | O155: 7925 | P155: 7225 | Q155: 7705 | R155: 8925.4
B156: Антресоль (340) 2 дв расп. ниша 400х1260 | D156: 1260х360х400 | E156: 7032 | F156: 8452 | G156: 7252 | H156: 7772 | I156: 6472 | J156: 6612 | K156: 6932 | L156: 7292 | N156: 8592 | O156: 9292 | P156: 8592 | Q156: 9072 | R156: 10182.7
B157: Антресоль торц (420) 400х420 лев\пр | D157: 420х440х400 | E157: 4824 | F157: 5944 | G157: 4994 | H157: 5414 | I157: 4384 | J157: 4504 | K157: 4764 | L157: 5054 | N157: 6124 | O157: 6734 | P157: 6114 | Q157: 6504 | R157: 7648.3
B158: Антресоль (560) 1дв 400х420 лев\пр | D158: 420х580х400 | E158: 4049 | F158: 4759 | G158: 4159 | H158: 4419 | I158: 3769 | J158: 3839 | K158: 3999 | L158: 4179 | N158: 4829 | O158: 5179 | P158: 4829 | Q158: 5069 | R158: 5640.8
B159: Антресоль (560) 1дв 400х560 лев\пр | D159: 560х580х400 | E159: 4516 | F159: 5456 | G159: 4656 | H159: 5006 | I159: 4136 | J159: 4216 | K159: 4426 | L159: 4656 | N159: 5506 | O159: 5906 | P159: 5506 | Q159: 5826 | R159: 6506.5
B160: Антресоль (560) 2дв 400х840 | D160: 840х580х400 | E160: 6432 | F160: 7852 | G160: 6652 | H160: 7172 | I160: 5872 | J160: 6012 | K160: 6332 | L160: 6692 | N160: 7992 | O160: 8692 | P160: 7992 | Q160: 8472 | R160: 9736.1
B161: Антресоль (560) 2дв 400х1120 | D161: 1120х580х400 | E161: 7380 | F161: 9260 | G161: 7660 | H161: 8360 | I161: 6620 | J161: 6780 | K161: 7200 | L161: 7660 | N161: 9360 | O161: 10160 | P161: 9360 | Q161: 10000 | R161: 11481.8
B162: Антресоль (560) 3дв 400х1260 | D162: 1260х580х400 | E162: 9231 | F162: 11361 | G162: 9561 | H162: 10341 | I162: 8391 | J162: 8601 | K162: 9081 | L162: 9621 | N162: 11571 | O162: 12621 | P162: 11571 | Q162: 12291 | R162: 14208.7
B163: Антресоль угл. (560) трап. 400х975х975 | D163: 975х975 | E163: 7514 | F163: 8454 | G163: 7654 | H163: 8004 | I163: 7134 | J163: 7214 | K163: 7424 | L163: 7654 | N163: 8504 | O163: 8904 | P163: 8504 | Q163: 8824 | R163: 9661.3
B164: Шкафы угловые и стеллажи торцевые
B165: Шкаф Угл (420х420) Трап 2040х732х732 | D165: 732х732 | E165: 17446 | F165: 20986 | G165: 17986 | H165: 19306 | I165: 15956 | J165: 16236 | K165: 16936 | L165: 17766 | N165: 20736 | O165: 21746 | P165: 20716 | Q165: 21926 | R165: 23966.8 | S165: =S4 -> 1344 | T165: =T4 -> 2490
B166: Шкаф Угл (420х420) Трап 2240х732х732 | D166: 732х732 | E166: 18324 | F166: 22204 | G166: 18904 | H166: 20364 | I166: 16684 | J166: 16984 | K166: 17754 | L166: 18664 | N166: 21914 | O166: 23014 | P166: 21894 | Q166: 23224 | R166: 25623.4 | S166: =S6 -> 1523 | T166: =T6 -> 2730
B167: Шкаф Угл (560х420) Прямой 2040х1000 лев/пр.** | D167: 1000 | E167: 20762 | F167: 29182 | G167: 22032 | H167: 25182 | I167: 17172 | J167: 17812 | K167: 19432 | L167: 21382 | N167: 28292 | O167: 30382 | P167: 28252 | Q167: 31132 | R167: 34630.2 | S167: =S5 -> 1932 | T167: =T5 -> 3314
B168: Шкаф Угл (560х420) Прямой 2240х1000 лев/пр** | D168: 1000 | E168: 21999 | F168: 31259 | G168: 23389 | H168: 26849 | I168: 18049 | J168: 18749 | K168: 20509 | L168: 22659 | N168: 30239 | O168: 32499 | P168: 30189 | Q168: 33369 | R168: 37149.2 | S168: =S7 -> 2190 | T168: =T7 -> 3632
B169: Шкаф Угл (560х420) Прямой 2040х1000 ФП ЛДСП лев/пр** | D169: 1000 | E169: 18299 | F169: 23019 | G169: 19009 | H169: 20779 | I169: 16279 | J169: 16629 | K169: 17519 | L169: 18609 | N169: 22429 | O169: 23499 | P169: 22409 | Q169: 24019 | R169: 25714.7 | S169: 853 | T169: 2156
B170: Шкаф Угл (560х420) Прямой 2240х1000 ФП ЛДСП лев/пр** | D170: 1000 | E170: 19337 | F170: 24527 | G170: 20117 | H170: 22057 | I170: 17117 | J170: 17497 | K170: 18467 | L170: 19657 | N170: 23857 | O170: 25007 | P170: 23827 | Q170: 25607 | R170: 27462.6 | S170: =S112 -> 2190 | T170: 1808
B171: Шкаф Угл (560х420) Трап 2040х830х970 лев ** | D171: 830х970 | E171: 20739 | F171: 25459 | G171: 21449 | H171: 23219 | I171: 18719 | J171: 19069 | K171: 19959 | L171: 21049 | N171: 24869 | O171: 25939 | P171: 24849 | Q171: 26459 | R171: 27966.4 | S171: =S167 -> 1932 | T171: =T167 -> 3314
B172: Шкаф Угл (560х420) Трап 2040х830х970 пр ** | E172: 20739 | F172: 25459 | G172: 21449 | H172: 23219 | I172: 18719 | J172: 19069 | K172: 19959 | L172: 21049 | N172: 24869 | O172: 25939 | P172: 24849 | Q172: 26459 | R172: 27966.4
B173: Шкаф Угл (560х420) Трап 2240х830х970 лев** | D173: 830х970 | E173: 21802 | F173: 26992 | G173: 22582 | H173: 24522 | I173: 19582 | J173: 19962 | K173: 20932 | L173: 22122 | N173: 26322 | O173: 27472 | P173: 26292 | Q173: 28072 | R173: 29741.8 | S173: =S170 -> 2190 | T173: =T170 -> 1808
B174: Шкаф Угл (560х420) Трап 2240х830х970 пр** | E174: 21802 | F174: 26992 | G174: 22582 | H174: 24522 | I174: 19582 | J174: 19962 | K174: 20932 | L174: 22122 | N174: 26322 | O174: 27472 | P174: 26292 | Q174: 28072 | R174: 29741.8
B175: Шкаф Угл (420х420) Комб. Трап 2040х732х732 | D175: 732х732 | E175: 18110 | F175: 21650 | G175: 18650 | H175: 19970 | I175: 16620 | J175: 16900 | K175: 17600 | L175: 18430 | N175: 21400 | O175: 22410 | P175: 21380 | Q175: 22590 | R175: 23966.8 | S175: =S4 -> 1344 | T175: 2490
B176: Шкаф Угл (420х420) Комб. Трап 2240х732х732 | D176: 732х732 | E176: 19196 | F176: 23076 | G176: 19776 | H176: 21236 | I176: 17556 | J176: 17856 | K176: 18626 | L176: 19536 | N176: 22786 | O176: 23886 | P176: 22766 | Q176: 24096 | R176: 25623.4 | S176: 1932 | T176: 3314
B177: Шкаф Угл (560х560) Трап 2040х970х970 | D177: 970х970 | E177: 21737 | F177: 26457 | G177: 22447 | H177: 24217 | I177: 19717 | J177: 20067 | K177: 20957 | L177: 22047 | N177: 25867 | O177: 26937 | P177: 25847 | Q177: 27457 | R177: 29014.7 | S177: 1523 | T177: 2730
B178: Шкаф Угл (560х560) Трап 2240х970х970 | D178: 970х970 | E178: 22843 | F178: 28033 | G178: 23623 | H178: 25563 | I178: 20623 | J178: 21003 | K178: 21973 | L178: 23163 | N178: 27363 | O178: 28513 | P178: 27333 | Q178: 29113 | R178: 30836.3 | S178: 2190 | T178: 3632
B179: Шкаф Угл (560х560) Комб. Трап 2040х975х975 | D179: 975х975 | E179: 22782 | F179: 27502 | G179: 23492 | H179: 25262 | I179: 20762 | J179: 21112 | K179: 22002 | L179: 23092 | N179: 26912 | O179: 27982 | P179: 26892 | Q179: 28502 | R179: 30113.6 | S179: =S176 -> 1932 | T179: =T176 -> 3314
B180: Шкаф Угл (560х560) Комб. Трап 2240х975х975 | D180: 975х975 | E180: 23579 | F180: 28769 | G180: 24359 | H180: 26299 | I180: 21359 | J180: 21739 | K180: 22709 | L180: 23899 | N180: 28099 | O180: 29249 | P180: 28069 | Q180: 29849 | R180: 31625 | S180: =S178 -> 2190 | T180: =T178 -> 3632
B181: Стеллаж (420) Торцевой 2040х300 Радиусный | D181: 300 | E181: 4487 | F181: 4487 | G181: 4487 | H181: 4487 | I181: 4487 | J181: 4487 | K181: 4487 | L181: 4487 | N181: 4487 | O181: 4487 | P181: 4487 | Q181: 4487 | R181: 4078.8 | S181: - | T181: -
B182: Стеллаж (420) Торцевой 2240х300 Радиусный | D182: 300 | E182: 5013 | F182: 5013 | G182: 5013 | H182: 5013 | I182: 5013 | J182: 5013 | K182: 5013 | L182: 5013 | N182: 5013 | O182: 5013 | P182: 5013 | Q182: 5013 | R182: 4547.4 | S182: - | T182: -
B183: Стеллаж (560) Торцевой 2040х300 Радиусный | D183: 300 | E183: 5100 | F183: 5100 | G183: 5100 | H183: 5100 | I183: 5100 | J183: 5100 | K183: 5100 | L183: 5100 | N183: 5100 | O183: 5100 | P183: 5100 | Q183: 5100 | R183: 4743.2 | S183: - | T183: -
B184: Стеллаж (560) Торцевой 2240х300 Радиусный | D184: 300 | E184: 5733 | F184: 5733 | G184: 5733 | H184: 5733 | I184: 5733 | J184: 5733 | K184: 5733 | L184: 5733 | N184: 5733 | O184: 5733 | P184: 5733 | Q184: 5733 | R184: 5318.5 | S184: - | T184: -
B186: Кровати
B187: Наименование | C187: Эскиз | D187: Ширина, мм | E187: МДФ фасады | I187: Марго | J187: Марго16 | O187: UV-лак | Q187: ТСС | S187: ТСС сборный
E188: 1 ЦК | F188: 1 ЦК + патина | G188: 2 ЦК | H188: 3 ЦК | I188: 1 ц.к. | J188: 1 ц.к. | K188: 2 ц.к. | L188: 3 ц.к. | M188: 4 ц.к. | N188: 5 ц.к. | O188: UV-лак кромка ABC/AL кромка | P188: кромка 3D | Q188: 1 ЦК | R188: 2 ЦК
B189: Кровать L-2050 мм., без основания и без матраца | D189: 800 | E189: 8215 | F189: 12895 | G189: 8965 | H189: 10785 | J189: 5535 | K189: 5655 | L189: 5835 | M189: 5955 | O189: 10695 | P189: 11955 | Q189: 10675 | R189: 12275 | S189: -
D190: 900 | E190: 8925 | F190: 14145 | G190: 9765 | H190: 11785 | J190: 5935 | K190: 6075 | L190: 6265 | M190: 6385 | O190: 11635 | P190: 12985 | Q190: 11615 | R190: 13405 | S190: -
D191: 1200 | E191: 11051 | F191: 17851 | G191: 12151 | H191: 14781 | J191: 7151 | K191: 7311 | L191: 7541 | M191: 7681 | O191: 14441 | P191: 16051 | Q191: 14411 | R191: 16741 | S191: -
D192: 1400 | E192: 12481 | F192: 20351 | G192: 13751 | H192: 16801 | J192: 7961 | K192: 8141 | L192: 8391 | M192: 8551 | O192: 16331 | P192: 18111 | Q192: 16291 | R192: 18991 | S192: -
D193: 1600 | E193: 13968 | F193: 22888 | G193: 15398 | H193: 18858 | J193: 8838 | K193: 9018 | L193: 9288 | M193: 9478 | O193: 18258 | P193: 20198 | Q193: 18218 | R193: 21278 | S193: -
D194: 1800 | E194: 15635 | F194: 25605 | G194: 17235 | H194: 21095 | J194: 9885 | K194: 10085 | L194: 10385 | M194: 10585 | O194: 20385 | P194: 22485 | Q194: 20335 | R194: 23765 | S194: -
B195: Кровать L-2150 мм., без основания и без матраца с наборным изголовьем | D195: 800 | E195: 8861 | F195: 13231 | G195: 9561 | H195: 11281 | J195: 6471 | K195: 6721 | L195: 7051 | M195: 7271 | O195: 12241 | P195: 14631 | Q195: 12231 | R195: 13741 | S195: -
D196: 900 | E196: 7681 | F196: 12531 | G196: 8401 | H196: 10231 | J196: 5741 | K196: 6241 | L196: 7341 | M196: 8601 | O196: 13251 | P196: 15821 | Q196: 13211 | R196: 14891 | S196: -
D197: 1200 | E197: 9091 | F197: 15411 | G197: 10031 | H197: 12411 | J197: 6561 | K197: 7191 | L197: 8621 | M197: 10241 | O197: 16221 | P197: 19421 | Q197: 16201 | R197: 18371 | S197: -
D198: 1400 | E198: 12861 | F198: 20171 | G198: 14031 | H198: 16861 | J198: 8851 | K198: 9161 | L198: 9691 | M198: 10051 | O198: 18231 | P198: 21841 | Q198: 18171 | R198: 20691 | S198: -
D199: 1600 | E199: 14171 | F199: 22481 | G199: 15501 | H199: 18731 | J199: 9611 | K199: 9991 | L199: 10591 | M199: 10961 | O199: 20201 | P199: 24251 | Q199: 20171 | R199: 23001 | S199: -
D200: 1800 | E200: 15501 | F200: 24801 | G200: 16981 | H200: 20591 | J200: 10381 | K200: 10841 | L200: 11461 | M200: 11881 | O200: 22171 | P200: 26661 | Q200: 22151 | R200: 25321 | S200: -
B201: Кровать 2 ящика 800х1600 | D201: 800 | E201: 12706 | F201: 14286 | G201: 12946 | H201: 13526 | J201: 12086 | K201: 12246 | L201: 12626 | M201: 13026 | O201: 14546 | P201: 15426 | Q201: 14546 | R201: 15086 | S201: -
B202: Кровать 2 ящика 800х2000 | D202: 800 | E202: 14307 | F202: 16267 | G202: 14607 | H202: 15347 | J202: 13527 | K202: 13727 | L202: 14187 | M202: 14687 | O202: 16567 | P202: 17607 | Q202: 16547 | R202: 17227 | S202: -
... 179 more rows

Sheet Альфа_Бета_пр
A1: МЕБЕЛЬ ДЛЯ ГОСТИННОЙ
A2: Наименование | B2: Эскиз | C2: Габариты, ШхГхВ мм. | D2: МДФ фасады
D3: 1 ЦК | E3: 1 ЦК + патина | F3: 2 ЦК | G3: 3 ЦК
A4: «Бета»
A5: Тумба ТВ 1160 | C5: 1160х550х460 | D5: =CEILING('Альфа_Бета_пр (2)'!D5*Титульный!$AY$1,Титульный!$AY$3) -> 13079 | E5: =CEILING('Альфа_Бета_пр (2)'!E5*Титульный!$AY$1,Титульный!$AY$3) -> 17729 | F5: =CEILING('Альфа_Бета_пр (2)'!F5*Титульный!$AY$1,Титульный!$AY$3) -> 13819 | G5: =CEILING('Альфа_Бета_пр (2)'!G5*Титульный!$AY$1,Титульный!$AY$3) -> 15589 | M5: - | N5: -
A6: Тумба ТВ 1160 ниша | C6: 1160х550х460 | D6: =CEILING('Альфа_Бета_пр (2)'!D6*Титульный!$AY$1,Титульный!$AY$3) -> 11245 | E6: =CEILING('Альфа_Бета_пр (2)'!E6*Титульный!$AY$1,Титульный!$AY$3) -> 15895 | F6: =CEILING('Альфа_Бета_пр (2)'!F6*Титульный!$AY$1,Титульный!$AY$3) -> 11985 | G6: =CEILING('Альфа_Бета_пр (2)'!G6*Титульный!$AY$1,Титульный!$AY$3) -> 13755 | M6: - | N6: -
A7: Тумба ТВ 1680 | C7: 1680х550х460 | D7: =CEILING('Альфа_Бета_пр (2)'!D7*Титульный!$AY$1,Титульный!$AY$3) -> 21126 | E7: =CEILING('Альфа_Бета_пр (2)'!E7*Титульный!$AY$1,Титульный!$AY$3) -> 27856 | F7: =CEILING('Альфа_Бета_пр (2)'!F7*Титульный!$AY$1,Титульный!$AY$3) -> 22196 | G7: =CEILING('Альфа_Бета_пр (2)'!G7*Титульный!$AY$1,Титульный!$AY$3) -> 24756 | M7: - | N7: -
A8: Тумба ТВ 1680 ниша | C8: 1680х550х460 | D8: =CEILING('Альфа_Бета_пр (2)'!D8*Титульный!$AY$1,Титульный!$AY$3) -> 19205 | E8: =CEILING('Альфа_Бета_пр (2)'!E8*Титульный!$AY$1,Титульный!$AY$3) -> 25935 | F8: =CEILING('Альфа_Бета_пр (2)'!F8*Титульный!$AY$1,Титульный!$AY$3) -> 20275 | G8: =CEILING('Альфа_Бета_пр (2)'!G8*Титульный!$AY$1,Титульный!$AY$3) -> 22835 | M8: - | N8: -
A9: Тумба ТВ 2320 | C9: 2320х550х460 | D9: =CEILING('Альфа_Бета_пр (2)'!D9*Титульный!$AY$1,Титульный!$AY$3) -> 26055 | E9: =CEILING('Альфа_Бета_пр (2)'!E9*Титульный!$AY$1,Титульный!$AY$3) -> 35355 | F9: =CEILING('Альфа_Бета_пр (2)'!F9*Титульный!$AY$1,Титульный!$AY$3) -> 27525 | G9: =CEILING('Альфа_Бета_пр (2)'!G9*Титульный!$AY$1,Титульный!$AY$3) -> 31075 | M9: - | N9: -
A10: Тумба ТВ 2320 ниша | C10: 2320х550х460 | D10: =CEILING('Альфа_Бета_пр (2)'!D10*Титульный!$AY$1,Титульный!$AY$3) -> 24224 | E10: =CEILING('Альфа_Бета_пр (2)'!E10*Титульный!$AY$1,Титульный!$AY$3) -> 33524 | F10: =CEILING('Альфа_Бета_пр (2)'!F10*Титульный!$AY$1,Титульный!$AY$3) -> 25694 | G10: =CEILING('Альфа_Бета_пр (2)'!G10*Титульный!$AY$1,Титульный!$AY$3) -> 29244 | M10: - | N10: -
A11: Шкаф 1260х1630 ящики | C11: 1260х340х1630 | D11: =CEILING('Альфа_Бета_пр (2)'!D11*Титульный!$AY$1,Титульный!$AY$3) -> 25304 | E11: =CEILING('Альфа_Бета_пр (2)'!E11*Титульный!$AY$1,Титульный!$AY$3) -> 33754 | F11: =CEILING('Альфа_Бета_пр (2)'!F11*Титульный!$AY$1,Титульный!$AY$3) -> 26584 | G11: =CEILING('Альфа_Бета_пр (2)'!G11*Титульный!$AY$1,Титульный!$AY$3) -> 29734 | M11: - | N11: -
A12: Шкаф 1260х1630 ящ. стекло | C12: 1260х340х1630 | D12: =CEILING('Альфа_Бета_пр (2)'!D12*Титульный!$AY$1,Титульный!$AY$3) -> 30744 | E12: =CEILING('Альфа_Бета_пр (2)'!E12*Титульный!$AY$1,Титульный!$AY$3) -> 39194 | F12: =CEILING('Альфа_Бета_пр (2)'!F12*Титульный!$AY$1,Титульный!$AY$3) -> 32024 | G12: =CEILING('Альфа_Бета_пр (2)'!G12*Титульный!$AY$1,Титульный!$AY$3) -> 35174 | M12: - | N12: -
A13: Шкаф 420х1630 Л/П* | C13: 420х340х1630 | D13: =CEILING('Альфа_Бета_пр (2)'!D13*Титульный!$AY$1,Титульный!$AY$3) -> 8688 | E13: =CEILING('Альфа_Бета_пр (2)'!E13*Титульный!$AY$1,Титульный!$AY$3) -> 11508 | F13: =CEILING('Альфа_Бета_пр (2)'!F13*Титульный!$AY$1,Титульный!$AY$3) -> 9118 | G13: =CEILING('Альфа_Бета_пр (2)'!G13*Титульный!$AY$1,Титульный!$AY$3) -> 10168 | M13: - | N13: -
A14: Шкаф 420х1630 Л/П* стекло | C14: 420х340х1630 | D14: =CEILING('Альфа_Бета_пр (2)'!D14*Титульный!$AY$1,Титульный!$AY$3) -> 11484 | E14: =CEILING('Альфа_Бета_пр (2)'!E14*Титульный!$AY$1,Титульный!$AY$3) -> 14304 | F14: =CEILING('Альфа_Бета_пр (2)'!F14*Титульный!$AY$1,Титульный!$AY$3) -> 11914 | G14: =CEILING('Альфа_Бета_пр (2)'!G14*Титульный!$AY$1,Титульный!$AY$3) -> 12964 | M14: - | N14: -
A15: Шкаф 420х2030 1 дв стекло | C15: 420х340х2030 | D15: =CEILING('Альфа_Бета_пр (2)'!D15*Титульный!$AY$1,Титульный!$AY$3) -> 14136 | E15: =CEILING('Альфа_Бета_пр (2)'!E15*Титульный!$AY$1,Титульный!$AY$3) -> 17676 | F15: =CEILING('Альфа_Бета_пр (2)'!F15*Титульный!$AY$1,Титульный!$AY$3) -> 14676 | G15: =CEILING('Альфа_Бета_пр (2)'!G15*Титульный!$AY$1,Титульный!$AY$3) -> 15996 | M15: - | N15: -
A16: Шкаф 420х2030 2 дв | C16: 420х340х2030 | D16: =CEILING('Альфа_Бета_пр (2)'!D16*Титульный!$AY$1,Титульный!$AY$3) -> 10958 | E16: =CEILING('Альфа_Бета_пр (2)'!E16*Титульный!$AY$1,Титульный!$AY$3) -> 14478 | F16: =CEILING('Альфа_Бета_пр (2)'!F16*Титульный!$AY$1,Титульный!$AY$3) -> 11498 | G16: =CEILING('Альфа_Бета_пр (2)'!G16*Титульный!$AY$1,Титульный!$AY$3) -> 12818 | M16: - | N16: -
A17: Шкаф 840х1630 2 дв | C17: 840х340х1630 | D17: =CEILING('Альфа_Бета_пр (2)'!D17*Титульный!$AY$1,Титульный!$AY$3) -> 14844 | E17: =CEILING('Альфа_Бета_пр (2)'!E17*Титульный!$AY$1,Титульный!$AY$3) -> 20484 | F17: =CEILING('Альфа_Бета_пр (2)'!F17*Титульный!$AY$1,Титульный!$AY$3) -> 15704 | G17: =CEILING('Альфа_Бета_пр (2)'!G17*Титульный!$AY$1,Титульный!$AY$3) -> 17804 | M17: - | N17: -
A18: Шкаф 840х1630 2 дв стекло | C18: 840х340х1630 | D18: =CEILING('Альфа_Бета_пр (2)'!D18*Титульный!$AY$1,Титульный!$AY$3) -> 20352 | E18: =CEILING('Альфа_Бета_пр (2)'!E18*Титульный!$AY$1,Титульный!$AY$3) -> 25992 | F18: =CEILING('Альфа_Бета_пр (2)'!F18*Титульный!$AY$1,Титульный!$AY$3) -> 21212 | G18: =CEILING('Альфа_Бета_пр (2)'!G18*Титульный!$AY$1,Титульный!$AY$3) -> 23312 | M18: - | N18: -
A19: Шкаф 840х2030 2 дв стекло | C19: 840х340х2030 | D19: =CEILING('Альфа_Бета_пр (2)'!D19*Титульный!$AY$1,Титульный!$AY$3) -> 25424 | E19: =CEILING('Альфа_Бета_пр (2)'!E19*Титульный!$AY$1,Титульный!$AY$3) -> 32504 | F19: =CEILING('Альфа_Бета_пр (2)'!F19*Титульный!$AY$1,Титульный!$AY$3) -> 26504 | G19: =CEILING('Альфа_Бета_пр (2)'!G19*Титульный!$AY$1,Титульный!$AY$3) -> 29144 | M19: - | N19: -
A20: Шкаф 840х2030 4 дв | C20: 840х340х2030 | D20: =CEILING('Альфа_Бета_пр (2)'!D20*Титульный!$AY$1,Титульный!$AY$3) -> 18833 | E20: =CEILING('Альфа_Бета_пр (2)'!E20*Титульный!$AY$1,Титульный!$AY$3) -> 25873 | F20: =CEILING('Альфа_Бета_пр (2)'!F20*Титульный!$AY$1,Титульный!$AY$3) -> 19913 | G20: =CEILING('Альфа_Бета_пр (2)'!G20*Титульный!$AY$1,Титульный!$AY$3) -> 22553 | M20: - | N20: -
A21: Шкаф антр.навесной 840х420 | C21: 840х340х420 | D21: =CEILING('Альфа_Бета_пр (2)'!D21*Титульный!$AY$1,Титульный!$AY$3) -> 5011 | E21: =CEILING('Альфа_Бета_пр (2)'!E21*Титульный!$AY$1,Титульный!$AY$3) -> 6491 | F21: =CEILING('Альфа_Бета_пр (2)'!F21*Титульный!$AY$1,Титульный!$AY$3) -> 5231 | G21: =CEILING('Альфа_Бета_пр (2)'!G21*Титульный!$AY$1,Титульный!$AY$3) -> 5781 | M21: - | N21: -
A22: Шкаф антр.навесной 840х420 стекло | C22: 840х340х420 | D22: =CEILING('Альфа_Бета_пр (2)'!D22*Титульный!$AY$1,Титульный!$AY$3) -> 5751 | E22: =CEILING('Альфа_Бета_пр (2)'!E22*Титульный!$AY$1,Титульный!$AY$3) -> 7231 | F22: =CEILING('Альфа_Бета_пр (2)'!F22*Титульный!$AY$1,Титульный!$AY$3) -> 5971 | G22: =CEILING('Альфа_Бета_пр (2)'!G22*Титульный!$AY$1,Титульный!$AY$3) -> 6521 | M22: - | N22: -
A23: Шкаф антр.навесной 1160х420 | C23: 1160х340х420 | D23: =CEILING('Альфа_Бета_пр (2)'!D23*Титульный!$AY$1,Титульный!$AY$3) -> 5909 | E23: =CEILING('Альфа_Бета_пр (2)'!E23*Титульный!$AY$1,Титульный!$AY$3) -> 7959 | F23: =CEILING('Альфа_Бета_пр (2)'!F23*Титульный!$AY$1,Титульный!$AY$3) -> 6219 | G23: =CEILING('Альфа_Бета_пр (2)'!G23*Титульный!$AY$1,Титульный!$AY$3) -> 6989 | M23: - | N23: -
A24: Шкаф антр.навесной 1160х420 стекло | C24: 1160х340х420 | D24: =CEILING('Альфа_Бета_пр (2)'!D24*Титульный!$AY$1,Титульный!$AY$3) -> 7096 | E24: =CEILING('Альфа_Бета_пр (2)'!E24*Титульный!$AY$1,Титульный!$AY$3) -> 9146 | F24: =CEILING('Альфа_Бета_пр (2)'!F24*Титульный!$AY$1,Титульный!$AY$3) -> 7406 | G24: =CEILING('Альфа_Бета_пр (2)'!G24*Титульный!$AY$1,Титульный!$AY$3) -> 8176 | M24: - | N24: -
A25: Шкаф навесной 420х1200 | C25: 420х340х1200 | D25: =CEILING('Альфа_Бета_пр (2)'!D25*Титульный!$AY$1,Титульный!$AY$3) -> 6237 | E25: =CEILING('Альфа_Бета_пр (2)'!E25*Титульный!$AY$1,Титульный!$AY$3) -> 8357 | F25: =CEILING('Альфа_Бета_пр (2)'!F25*Титульный!$AY$1,Титульный!$AY$3) -> 6557 | G25: =CEILING('Альфа_Бета_пр (2)'!G25*Титульный!$AY$1,Титульный!$AY$3) -> 7347 | M25: - | N25: -
A26: Шкаф навесной 420х1200 стекло | C26: 420х340х1200 | D26: =CEILING('Альфа_Бета_пр (2)'!D26*Титульный!$AY$1,Титульный!$AY$3) -> 8110 | E26: =CEILING('Альфа_Бета_пр (2)'!E26*Титульный!$AY$1,Титульный!$AY$3) -> 10230 | F26: =CEILING('Альфа_Бета_пр (2)'!F26*Титульный!$AY$1,Титульный!$AY$3) -> 8430 | G26: =CEILING('Альфа_Бета_пр (2)'!G26*Титульный!$AY$1,Титульный!$AY$3) -> 9220 | M26: - | N26: -
A27: Шкаф навесной 420х1400 | C27: 420х340х1400 | D27: =CEILING('Альфа_Бета_пр (2)'!D27*Титульный!$AY$1,Титульный!$AY$3) -> 7094 | E27: =CEILING('Альфа_Бета_пр (2)'!E27*Титульный!$AY$1,Титульный!$AY$3) -> 9564 | F27: =CEILING('Альфа_Бета_пр (2)'!F27*Титульный!$AY$1,Титульный!$AY$3) -> 7464 | G27: =CEILING('Альфа_Бета_пр (2)'!G27*Титульный!$AY$1,Титульный!$AY$3) -> 8384 | M27: - | N27: -
A28: Шкаф навесной 420х1400 стекло | C28: 420х340х1400 | D28: =CEILING('Альфа_Бета_пр (2)'!D28*Титульный!$AY$1,Титульный!$AY$3) -> 9553 | E28: =CEILING('Альфа_Бета_пр (2)'!E28*Титульный!$AY$1,Титульный!$AY$3) -> 12023 | F28: =CEILING('Альфа_Бета_пр (2)'!F28*Титульный!$AY$1,Титульный!$AY$3) -> 9923 | G28: =CEILING('Альфа_Бета_пр (2)'!G28*Титульный!$AY$1,Титульный!$AY$3) -> 10843 | M28: - | N28: -
A29: Панель 840х400 | C29: 840х16х398 | D29: =CEILING('Альфа_Бета_пр (2)'!D29*Титульный!$AY$1,Титульный!$AY$3) -> 1736 | E29: =CEILING('Альфа_Бета_пр (2)'!E29*Титульный!$AY$1,Титульный!$AY$3) -> 3146 | F29: =CEILING('Альфа_Бета_пр (2)'!F29*Титульный!$AY$1,Титульный!$AY$3) -> 1946 | G29: =CEILING('Альфа_Бета_пр (2)'!G29*Титульный!$AY$1,Титульный!$AY$3) -> 2476 | M29: - | N29: -
A30: Панель 840х400 полка | C30: 840х220х398 | D30: =CEILING('Альфа_Бета_пр (2)'!D30*Титульный!$AY$1,Титульный!$AY$3) -> 3493 | E30: =CEILING('Альфа_Бета_пр (2)'!E30*Титульный!$AY$1,Титульный!$AY$3) -> 4903 | F30: =CEILING('Альфа_Бета_пр (2)'!F30*Титульный!$AY$1,Титульный!$AY$3) -> 3703 | G30: =CEILING('Альфа_Бета_пр (2)'!G30*Титульный!$AY$1,Титульный!$AY$3) -> 4233 | M30: - | N30: -
A31: Панель 1160х400 | C31: 1160х16х398 | D31: =CEILING('Альфа_Бета_пр (2)'!D31*Титульный!$AY$1,Титульный!$AY$3) -> 2256 | E31: =CEILING('Альфа_Бета_пр (2)'!E31*Титульный!$AY$1,Титульный!$AY$3) -> 4216 | F31: =CEILING('Альфа_Бета_пр (2)'!F31*Титульный!$AY$1,Титульный!$AY$3) -> 2556 | G31: =CEILING('Альфа_Бета_пр (2)'!G31*Титульный!$AY$1,Титульный!$AY$3) -> 3286 | M31: - | N31: -
A32: Панель 1160х400 полка | C32: 1160х220х398 | D32: =CEILING('Альфа_Бета_пр (2)'!D32*Титульный!$AY$1,Титульный!$AY$3) -> 4325 | E32: =CEILING('Альфа_Бета_пр (2)'!E32*Титульный!$AY$1,Титульный!$AY$3) -> 6285 | F32: =CEILING('Альфа_Бета_пр (2)'!F32*Титульный!$AY$1,Титульный!$AY$3) -> 4625 | G32: =CEILING('Альфа_Бета_пр (2)'!G32*Титульный!$AY$1,Титульный!$AY$3) -> 5355 | M32: - | N32: -
A33: Панель 1360х400 | C33: 1360х16х398 | D33: =CEILING('Альфа_Бета_пр (2)'!D33*Титульный!$AY$1,Титульный!$AY$3) -> 2586 | E33: =CEILING('Альфа_Бета_пр (2)'!E33*Титульный!$AY$1,Титульный!$AY$3) -> 4876 | F33: =CEILING('Альфа_Бета_пр (2)'!F33*Титульный!$AY$1,Титульный!$AY$3) -> 2936 | G33: =CEILING('Альфа_Бета_пр (2)'!G33*Титульный!$AY$1,Титульный!$AY$3) -> 3786 | M33: - | N33: -
A34: Панель 1360х400 полка | C34: 1360х220х398 | D34: =CEILING('Альфа_Бета_пр (2)'!D34*Титульный!$AY$1,Титульный!$AY$3) -> 4849 | E34: =CEILING('Альфа_Бета_пр (2)'!E34*Титульный!$AY$1,Титульный!$AY$3) -> 7139 | F34: =CEILING('Альфа_Бета_пр (2)'!F34*Титульный!$AY$1,Титульный!$AY$3) -> 5199 | G34: =CEILING('Альфа_Бета_пр (2)'!G34*Титульный!$AY$1,Титульный!$AY$3) -> 6049 | M34: - | N34: -
A35: «Альфа» | M35: - | N35: -
A36: Шкаф МЦ | C36: 840х580х2100 | D36: =CEILING('Альфа_Бета_пр (2)'!D36*Титульный!$AY$1,Титульный!$AY$3) -> 36403 | E36: =CEILING('Альфа_Бета_пр (2)'!E36*Титульный!$AY$1,Титульный!$AY$3) -> 44793 | F36: =CEILING('Альфа_Бета_пр (2)'!F36*Титульный!$AY$1,Титульный!$AY$3) -> 37703 | G36: =CEILING('Альфа_Бета_пр (2)'!G36*Титульный!$AY$1,Титульный!$AY$3) -> 40843 | M36: - | N36: -
A37: Шкаф книжный | C37: 840х580х2040 | D37: =CEILING('Альфа_Бета_пр (2)'!D37*Титульный!$AY$1,Титульный!$AY$3) -> 27193 | E37: =CEILING('Альфа_Бета_пр (2)'!E37*Титульный!$AY$1,Титульный!$AY$3) -> 35193 | F37: =CEILING('Альфа_Бета_пр (2)'!F37*Титульный!$AY$1,Титульный!$AY$3) -> 28423 | G37: =CEILING('Альфа_Бета_пр (2)'!G37*Титульный!$AY$1,Титульный!$AY$3) -> 31423 | M37: - | N37: -
A38: Шкаф комб.низкий | C38: 840х580х1540 | D38: =CEILING('Альфа_Бета_пр (2)'!D38*Титульный!$AY$1,Титульный!$AY$3) -> 19725 | E38: =CEILING('Альфа_Бета_пр (2)'!E38*Титульный!$AY$1,Титульный!$AY$3) -> 25965 | F38: =CEILING('Альфа_Бета_пр (2)'!F38*Титульный!$AY$1,Титульный!$AY$3) -> 20695 | G38: =CEILING('Альфа_Бета_пр (2)'!G38*Титульный!$AY$1,Титульный!$AY$3) -> 23035 | M38: - | N38: -
A39: Шк комб. с баром | C39: 840х580х2040 | D39: =CEILING('Альфа_Бета_пр (2)'!D39*Титульный!$AY$1,Титульный!$AY$3) -> 22560 | E39: =CEILING('Альфа_Бета_пр (2)'!E39*Титульный!$AY$1,Титульный!$AY$3) -> 29500 | F39: =CEILING('Альфа_Бета_пр (2)'!F39*Титульный!$AY$1,Титульный!$AY$3) -> 23630 | G39: =CEILING('Альфа_Бета_пр (2)'!G39*Титульный!$AY$1,Титульный!$AY$3) -> 26220 | M39: - | N39: -
A40: Шкаф ТВ высокий | C40: 840х580х2040 | D40: =CEILING('Альфа_Бета_пр (2)'!D40*Титульный!$AY$1,Титульный!$AY$3) -> 19783 | E40: =CEILING('Альфа_Бета_пр (2)'!E40*Титульный!$AY$1,Титульный!$AY$3) -> 26023 | F40: =CEILING('Альфа_Бета_пр (2)'!F40*Титульный!$AY$1,Титульный!$AY$3) -> 20753 | G40: =CEILING('Альфа_Бета_пр (2)'!G40*Титульный!$AY$1,Титульный!$AY$3) -> 23093 | M40: - | N40: -
A41: Шкаф ТВ низкий | C41: 840х580х1540 | D41: =CEILING('Альфа_Бета_пр (2)'!D41*Титульный!$AY$1,Титульный!$AY$3) -> 15903 | E41: =CEILING('Альфа_Бета_пр (2)'!E41*Титульный!$AY$1,Титульный!$AY$3) -> 20823 | F41: =CEILING('Альфа_Бета_пр (2)'!F41*Титульный!$AY$1,Титульный!$AY$3) -> 16663 | G41: =CEILING('Альфа_Бета_пр (2)'!G41*Титульный!$AY$1,Титульный!$AY$3) -> 18523 | M41: - | N41: -
A42: Шк комб.с ящ. Л/П* | C42: 840х580х2040 | D42: =CEILING('Альфа_Бета_пр (2)'!D42*Титульный!$AY$1,Титульный!$AY$3) -> 26786 | E42: =CEILING('Альфа_Бета_пр (2)'!E42*Титульный!$AY$1,Титульный!$AY$3) -> 34116 | F42: =CEILING('Альфа_Бета_пр (2)'!F42*Титульный!$AY$1,Титульный!$AY$3) -> 27926 | G42: =CEILING('Альфа_Бета_пр (2)'!G42*Титульный!$AY$1,Титульный!$AY$3) -> 30666 | M42: - | N42: -
A43: Шкаф ДО | C43: 840х580х2040 | D43: =CEILING('Альфа_Бета_пр (2)'!D43*Титульный!$AY$1,Титульный!$AY$3) -> 18354 | E43: =CEILING('Альфа_Бета_пр (2)'!E43*Титульный!$AY$1,Титульный!$AY$3) -> 25434 | F43: =CEILING('Альфа_Бета_пр (2)'!F43*Титульный!$AY$1,Титульный!$AY$3) -> 19434 | G43: =CEILING('Альфа_Бета_пр (2)'!G43*Титульный!$AY$1,Титульный!$AY$3) -> 22074 | M43: - | N43: -
A44: Шкаф торц. низ. Л/П* | C44: 580х580х1540 | D44: =CEILING('Альфа_Бета_пр (2)'!D44*Титульный!$AY$1,Титульный!$AY$3) -> 17138 | E44: =CEILING('Альфа_Бета_пр (2)'!E44*Титульный!$AY$1,Титульный!$AY$3) -> 23328 | F44: =CEILING('Альфа_Бета_пр (2)'!F44*Титульный!$AY$1,Титульный!$AY$3) -> 18098 | G44: =CEILING('Альфа_Бета_пр (2)'!G44*Титульный!$AY$1,Титульный!$AY$3) -> 20408 | M44: - | N44: -
A45: Шкаф торц. Л/П* | C45: 580х580х2040 | D45: =CEILING('Альфа_Бета_пр (2)'!D45*Титульный!$AY$1,Титульный!$AY$3) -> 20884 | E45: =CEILING('Альфа_Бета_пр (2)'!E45*Титульный!$AY$1,Титульный!$AY$3) -> 28494 | F45: =CEILING('Альфа_Бета_пр (2)'!F45*Титульный!$AY$1,Титульный!$AY$3) -> 22044 | G45: =CEILING('Альфа_Бета_пр (2)'!G45*Титульный!$AY$1,Титульный!$AY$3) -> 24904 | M45: - | N45: -
A46: Тумба ТВ | C46: 840х580х700 | D46: =CEILING('Альфа_Бета_пр (2)'!D46*Титульный!$AY$1,Титульный!$AY$3) -> 10576 | E46: =CEILING('Альфа_Бета_пр (2)'!E46*Титульный!$AY$1,Титульный!$AY$3) -> 14356 | F46: =CEILING('Альфа_Бета_пр (2)'!F46*Титульный!$AY$1,Титульный!$AY$3) -> 11166 | G46: =CEILING('Альфа_Бета_пр (2)'!G46*Титульный!$AY$1,Титульный!$AY$3) -> 12606 | M46: - | N46: -
A47: Тумба ТВ 1 ящ. | C47: 840х580х550 | D47: =CEILING('Альфа_Бета_пр (2)'!D47*Титульный!$AY$1,Титульный!$AY$3) -> 8882 | E47: =CEILING('Альфа_Бета_пр (2)'!E47*Титульный!$AY$1,Титульный!$AY$3) -> 12662 | F47: =CEILING('Альфа_Бета_пр (2)'!F47*Титульный!$AY$1,Титульный!$AY$3) -> 9472 | G47: =CEILING('Альфа_Бета_пр (2)'!G47*Титульный!$AY$1,Титульный!$AY$3) -> 10912 | M47: - | N47: -
A48: Тумба угл. Л/П* | C48: 580х580х1540 | D48: =CEILING('Альфа_Бета_пр (2)'!D48*Титульный!$AY$1,Титульный!$AY$3) -> 10925 | E48: =CEILING('Альфа_Бета_пр (2)'!E48*Титульный!$AY$1,Титульный!$AY$3) -> 15375 | F48: =CEILING('Альфа_Бета_пр (2)'!F48*Титульный!$AY$1,Титульный!$AY$3) -> 11605 | G48: =CEILING('Альфа_Бета_пр (2)'!G48*Титульный!$AY$1,Титульный!$AY$3) -> 13295 | M48: - | N48: -
A49: Полка угл. Л/П* | C49: 420х420х420 | D49: =CEILING('Альфа_Бета_пр (2)'!D49*Титульный!$AY$1,Титульный!$AY$3) -> 1722 | E49: =CEILING('Альфа_Бета_пр (2)'!E49*Титульный!$AY$1,Титульный!$AY$3) -> 2142 | F49: =CEILING('Альфа_Бета_пр (2)'!F49*Титульный!$AY$1,Титульный!$AY$3) -> 1782 | G49: =CEILING('Альфа_Бета_пр (2)'!G49*Титульный!$AY$1,Титульный!$AY$3) -> 1942 | M49: - | N49: -
A50: Пенал ДБ | C50: 420х580х2040 | D50: =CEILING('Альфа_Бета_пр (2)'!D50*Титульный!$AY$1,Титульный!$AY$3) -> 11715 | E50: =CEILING('Альфа_Бета_пр (2)'!E50*Титульный!$AY$1,Титульный!$AY$3) -> 15255 | F50: =CEILING('Альфа_Бета_пр (2)'!F50*Титульный!$AY$1,Титульный!$AY$3) -> 12255 | G50: =CEILING('Альфа_Бета_пр (2)'!G50*Титульный!$AY$1,Титульный!$AY$3) -> 13575 | M50: - | N50: -
A51: Сириус
A52: Сириус | D52: =CEILING('Альфа_Бета_пр (2)'!D52*Титульный!$AY$1,Титульный!$AY$3) -> 67665 | E52: =CEILING('Альфа_Бета_пр (2)'!E52*Титульный!$AY$1,Титульный!$AY$3) -> 93245 | F52: =CEILING('Альфа_Бета_пр (2)'!F52*Титульный!$AY$1,Титульный!$AY$3) -> 71605 | G52: =CEILING('Альфа_Бета_пр (2)'!G52*Титульный!$AY$1,Титульный!$AY$3) -> 81245

Sheet Альфа_Бета_пр (2) (hidden)
A1: МЕБЕЛЬ ДЛЯ ГОСТИННОЙ
A2: Наименование | B2: Эскиз | C2: Габариты, ШхГхВ мм. | D2: МДФ фасады
D3: 1 ЦК | E3: 1 ЦК + патина | F3: 2 ЦК | G3: 3 ЦК | H3: 1.1
A4: «Бета»
A5: Тумба ТВ 1160 | D5: 13079 | E5: 17729 | F5: 13819 | G5: 15589 | I5: =D5*$H$3 -> 14386.9 | J5: =E5*$H$3 -> 19501.9 | K5: 15200.9 | L5: 17147.9
A6: Тумба ТВ 1160 ниша | D6: 11245 | E6: 15895 | F6: 11985 | G6: 13755 | I6: =D6*$H$3 -> 12369.5 | J6: =E6*$H$3 -> 17484.5 | K6: =F6*$H$3 -> 13183.5 | L6: =G6*$H$3 -> 15130.5
A7: Тумба ТВ 1680 | D7: 21126 | E7: 27856 | F7: 22196 | G7: 24756 | I7: 23238.6 | J7: 30641.6 | K7: 24415.6 | L7: 27231.6
A8: Тумба ТВ 1680 ниша | D8: 19205 | E8: 25935 | F8: 20275 | G8: 22835 | I8: 21125.5 | J8: 28528.5 | K8: 22302.5 | L8: 25118.5
A9: Тумба ТВ 2320 | D9: 26055 | E9: 35355 | F9: 27525 | G9: 31075 | I9: 28660.5 | J9: 38890.5 | K9: 30277.5 | L9: 34182.5
A10: Тумба ТВ 2320 ниша | D10: 24224 | E10: 33524 | F10: 25694 | G10: 29244 | I10: 26646.4 | J10: 36876.4 | K10: 28263.4 | L10: 32168.4
A11: Шкаф 1260х1630 ящики | D11: 25304 | E11: 33754 | F11: 26584 | G11: 29734 | I11: 27834.4 | J11: 37129.4 | K11: 29242.4 | L11: 32707.4
A12: Шкаф 1260х1630 ящ. стекло | D12: 30744 | E12: 39194 | F12: 32024 | G12: 35174 | I12: 33818.4 | J12: 43113.4 | K12: 35226.4 | L12: 38691.4
A13: Шкаф 420х1630 Л/П* | D13: 8688 | E13: 11508 | F13: 9118 | G13: 10168 | I13: 9556.8 | J13: 12658.8 | K13: 10029.8 | L13: 11184.8
A14: Шкаф 420х1630 Л/П* стекло | D14: 11484 | E14: 14304 | F14: 11914 | G14: 12964 | I14: 12632.4 | J14: 15734.4 | K14: 13105.4 | L14: 14260.4
A15: Шкаф 420х2030 1 дв стекло | D15: 14136 | E15: 17676 | F15: 14676 | G15: 15996 | I15: 15549.6 | J15: 19443.6 | K15: 16143.6 | L15: 17595.6
A16: Шкаф 420х2030 2 дв | D16: 10958 | E16: 14478 | F16: 11498 | G16: 12818 | I16: 12053.8 | J16: 15925.8 | K16: 12647.8 | L16: 14099.8
A17: Шкаф 840х1630 2 дв | D17: 14844 | E17: 20484 | F17: 15704 | G17: 17804 | I17: 16328.4 | J17: 22532.4 | K17: 17274.4 | L17: 19584.4
A18: Шкаф 840х1630 2 дв стекло | D18: 20352 | E18: 25992 | F18: 21212 | G18: 23312 | I18: 22387.2 | J18: 28591.2 | K18: 23333.2 | L18: 25643.2
A19: Шкаф 840х2030 2 дв стекло | D19: 25424 | E19: 32504 | F19: 26504 | G19: 29144 | I19: 27966.4 | J19: 35754.4 | K19: 29154.4 | L19: 32058.4
A20: Шкаф 840х2030 4 дв | D20: 18833 | E20: 25873 | F20: 19913 | G20: 22553 | I20: 20716.3 | J20: 28460.3 | K20: 21904.3 | L20: 24808.3
A21: Шкаф антр.навесной 840х420 | D21: 5011 | E21: 6491 | F21: 5231 | G21: 5781 | I21: 5512.1 | J21: 7140.1 | K21: 5754.1 | L21: 6359.1
A22: Шкаф антр.навесной 840х420 стекло | D22: 5751 | E22: 7231 | F22: 5971 | G22: 6521 | I22: 6326.1 | J22: 7954.1 | K22: 6568.1 | L22: 7173.1
A23: Шкаф антр.навесной 1160х420 | D23: 5909 | E23: 7959 | F23: 6219 | G23: 6989 | I23: 6499.9 | J23: 8754.9 | K23: 6840.9 | L23: 7687.9
A24: Шкаф антр.навесной 1160х420 стекло | D24: 7096 | E24: 9146 | F24: 7406 | G24: 8176 | I24: 7805.6 | J24: 10060.6 | K24: 8146.6 | L24: 8993.6
A25: Шкаф навесной 420х1200 | D25: 6237 | E25: 8357 | F25: 6557 | G25: 7347 | I25: 6860.7 | J25: 9192.7 | K25: 7212.7 | L25: 8081.7
A26: Шкаф навесной 420х1200 стекло | D26: 8110 | E26: 10230 | F26: 8430 | G26: 9220 | I26: 8921 | J26: 11253 | K26: 9273 | L26: 10142
A27: Шкаф навесной 420х1400 | D27: 7094 | E27: 9564 | F27: 7464 | G27: 8384 | I27: 7803.4 | J27: 10520.4 | K27: 8210.4 | L27: 9222.4
A28: Шкаф навесной 420х1400 стекло | D28: 9553 | E28: 12023 | F28: 9923 | G28: 10843 | I28: 10508.3 | J28: 13225.3 | K28: 10915.3 | L28: 11927.3
A29: Панель 840х400 | D29: 1736 | E29: 3146 | F29: 1946 | G29: 2476 | I29: 1909.6 | J29: 3460.6 | K29: 2140.6 | L29: 2723.6
A30: Панель 840х400 полка | D30: 3493 | E30: 4903 | F30: 3703 | G30: 4233 | I30: 3842.3 | J30: 5393.3 | K30: 4073.3 | L30: 4656.3
A31: Панель 1160х400 | D31: 2256 | E31: 4216 | F31: 2556 | G31: 3286 | I31: 2481.6 | J31: 4637.6 | K31: 2811.6 | L31: 3614.6
A32: Панель 1160х400 полка | D32: 4325 | E32: 6285 | F32: 4625 | G32: 5355 | I32: 4757.5 | J32: 6913.5 | K32: 5087.5 | L32: 5890.5
A33: Панель 1360х400 | D33: 2586 | E33: 4876 | F33: 2936 | G33: 3786 | I33: 2844.6 | J33: 5363.6 | K33: 3229.6 | L33: 4164.6
A34: Панель 1360х400 полка | D34: 4849 | E34: 7139 | F34: 5199 | G34: 6049 | I34: 5333.9 | J34: 7852.9 | K34: 5718.9 | L34: 6653.9
A35: «Альфа»
A36: Шкаф МЦ | D36: 36403 | E36: 44793 | F36: 37703 | G36: 40843 | I36: 40043.3 | J36: =E36*$H$3 -> 49272.3 | K36: =F36*$H$3 -> 41473.3 | L36: =G36*$H$3 -> 44927.3
A37: Шкаф книжный | D37: 27193 | E37: 35193 | F37: 28423 | G37: 31423 | I37: =D37*$H$3 -> 29912.3 | J37: =E37*$H$3 -> 38712.3 | K37: =F37*$H$3 -> 31265.3 | L37: =G37*$H$3 -> 34565.3
A38: Шкаф комб.низкий | D38: 19725 | E38: 25965 | F38: 20695 | G38: 23035 | I38: 21697.5 | J38: 28561.5 | K38: 22764.5 | L38: 25338.5
A39: Шк комб. с баром | D39: 22560 | E39: 29500 | F39: 23630 | G39: 26220 | I39: 24816 | J39: 32450 | K39: 25993 | L39: 28842
A40: Шкаф ТВ высокий | D40: 19783 | E40: 26023 | F40: 20753 | G40: 23093 | I40: 21761.3 | J40: 28625.3 | K40: 22828.3 | L40: 25402.3
A41: Шкаф ТВ низкий | D41: 15903 | E41: 20823 | F41: 16663 | G41: 18523 | I41: 17493.3 | J41: 22905.3 | K41: 18329.3 | L41: 20375.3
A42: Шк комб.с ящ. Л/П* | D42: 26786 | E42: 34116 | F42: 27926 | G42: 30666 | I42: 29464.6 | J42: 37527.6 | K42: 30718.6 | L42: 33732.6
A43: Шкаф ДО | D43: 18354 | E43: 25434 | F43: 19434 | G43: 22074 | I43: 20189.4 | J43: 27977.4 | K43: 21377.4 | L43: 24281.4
A44: Шкаф торц. низ. Л/П* | D44: 17138 | E44: 23328 | F44: 18098 | G44: 20408 | I44: 18851.8 | J44: 25660.8 | K44: 19907.8 | L44: 22448.8
A45: Шкаф торц. Л/П* | D45: 20884 | E45: 28494 | F45: 22044 | G45: 24904 | I45: 22972.4 | J45: 31343.4 | K45: 24248.4 | L45: 27394.4
A46: Тумба ТВ | D46: 10576 | E46: 14356 | F46: 11166 | G46: 12606 | I46: 11633.6 | J46: 15791.6 | K46: 12282.6 | L46: 13866.6
A47: Тумба ТВ 1 ящ. | D47: 8882 | E47: 12662 | F47: 9472 | G47: 10912 | I47: 9770.2 | J47: 13928.2 | K47: 10419.2 | L47: 12003.2
A48: Тумба угл. Л/П* | D48: 10925 | E48: 15375 | F48: 11605 | G48: 13295 | I48: 12017.5 | J48: 16912.5 | K48: 12765.5 | L48: 14624.5
A49: Полка угл. Л/П* | D49: 1722 | E49: 2142 | F49: 1782 | G49: 1942 | I49: 1894.2 | J49: 2356.2 | K49: 1960.2 | L49: 2136.2
A50: Пенал ДБ | D50: 11715 | E50: 15255 | F50: 12255 | G50: 13575 | I50: 12886.5 | J50: 16780.5 | K50: 13480.5 | L50: 14932.5
A51: Сириус | I51: 0 | J51: 0 | K51: 0 | L51: 0
A52: Сириус | D52: 67665 | E52: 93245 | F52: 71605 | G52: 81245 | I52: 74431.5 | J52: 102569.5 | K52: 78765.5 | L52: 89369.5

Sheet Loft
A1: Loft, краткое описание
A2: Набор мебели для гостиной состоит из модулей с вкладным фасадом, т.е. фасад утоплен во внутрь каркаса.
A3: Каркас тумб изготавливается из ЛДСП толщиной 22 мм, а каркас навесных шкафов изготавливается из ЛДСП толщиной 16 мм,
A4: а нижний и верхний горизонты изготавливаются из ЛДСП толщиной 22 мм.
A6: Базовая комплектация
A7: 1. Каркас модулей изготовлен из ЛДСП оклеенной кромкой ПВХ 0,4 мм. Задняя стенка модулей из облагороженной ХДФ;
A8: 2. Фасад UV-лак, толщиной 16 мм. в кромке ABS в цвет фасада;
A9: 3. Петли Hettich Sensys плавного закрывания;
A10: 4. Полки ЛДСП;
A11: 5. Направляющие Blum TUNDEM для деревянных ящиков, без доводчика и частичного выдвижения;
A12: 8. Ручка RS-47, белый + металл;
A13: 9. Регулируемые ножки PI04 на тумбах;
A14: 10. Стекло тонированное в шкафах-витринах.
A15: Фасад UV-лак
A17: Варианты цветового решения фасадов:
A21: Белый скандинавский | C21: Черный | E21: Винный красный | G21: Серый шелк | H21: Крем | I21: Оранжевый
A25: Желтый Нарцисс | B25: Мята | C25: Сирень
A27: Ручка
A31: RS-47, хром+белый
A32: Цветовое исполнение каркасов
A33: Дуб шамони темный, Дуб шамони светлый, Сонома
A35: Состав комплекта
A52: 1. Шкаф (320) навесной 1246 х 420 мм; | F52: 3. Шкаф (320) барный 466х1200 мм.;
A53: 2. Тумба (420) 1 ящик 380х1200; | F53: 4. Полка ЛДСП 22 300х1200.
A56: Прайс-лист
A58: Наименование | E58: Эскиз | F58: Габариты, ШхГхВ мм. | G58: Цена, руб
A60: Шкаф (320) навесной 1246х420 | F60: 420х320х1246 | G60: =CEILING('Loft (2)'!G60*Титульный!$AY$1,Титульный!$AY$3) -> 9405
A61: Шкаф (320) навесной 1446х420 | F61: 420х320х1446 | G61: =CEILING('Loft (2)'!G61*Титульный!$AY$1,Титульный!$AY$3) -> 10572
A62: Шкаф (320) антресольный 466х840 | F62: 840х320х466 | G62: =CEILING('Loft (2)'!G62*Титульный!$AY$1,Титульный!$AY$3) -> 7137
A63: Шкаф (320) антресольный 466х1200 | F63: 1200х320х466 | G63: =CEILING('Loft (2)'!G63*Титульный!$AY$1,Титульный!$AY$3) -> 9277
A64: Шкаф (320) барный 466х1200 | F64: 1200х320х466 | G64: =CEILING('Loft (2)'!G64*Титульный!$AY$1,Титульный!$AY$3) -> 12785
A65: Шкаф (420) 1 дв. 2040х560 | F65: 560х420х2040 | G65: =CEILING('Loft (2)'!G65*Титульный!$AY$1,Титульный!$AY$3) -> 16927
A66: Шкаф (420) 2 дв. 2040х840 | F66: 840х420х2040 | G66: =CEILING('Loft (2)'!G66*Титульный!$AY$1,Титульный!$AY$3) -> 27066
A67: Тумбы
A68: Наименование | E68: Эскиз | F68: Габариты, ШхГхВ мм. | G68: Цена, руб | H68: Замена направляющих
H69: с доводчиком | I69: c Tip-on
A70: Тумба (420) 1 ящ. 380х1200 | F70: 1200х420х380 | G70: =CEILING('Loft (2)'!G70*Титульный!$AY$1,Титульный!$AY$3) -> 9699 | H70: =CEILING('Loft (2)'!H70*Титульный!$AY$1,Титульный!$AY$3) -> 12410 | I70: =CEILING('Loft (2)'!I70*Титульный!$AY$1,Титульный!$AY$3) -> 12732
A71: Тумба (420) 2 ящ. 380х1200 | F71: 1200х420х380 | G71: =CEILING('Loft (2)'!G71*Титульный!$AY$1,Титульный!$AY$3) -> 12785 | H71: =CEILING('Loft (2)'!H71*Титульный!$AY$1,Титульный!$AY$3) -> 18207 | I71: =CEILING('Loft (2)'!I71*Титульный!$AY$1,Титульный!$AY$3) -> 18851
A72: Тумба (420) ниша 1 ящ. 380х1200 | F72: 1200х420х381 | G72: =CEILING('Loft (2)'!G72*Титульный!$AY$1,Титульный!$AY$3) -> 9123 | H72: =CEILING('Loft (2)'!H72*Титульный!$AY$1,Титульный!$AY$3) -> 11834 | I72: =CEILING('Loft (2)'!I72*Титульный!$AY$1,Титульный!$AY$3) -> 12156
A73: Тумба (420) для обуви 860х820 1ящ. | F73: 860х420х820 | G73: =CEILING('Loft (2)'!G73*Титульный!$AY$1,Титульный!$AY$3) -> 11525
A74: Полки
A75: Панель настенная полка ЛДСП 22 300х1200 | F75: 1200х200х300 | G75: =CEILING('Loft (2)'!G75*Титульный!$AY$1,Титульный!$AY$3) -> 1597
A76: Панель настенная полка ЛДСП 22 300х1260 | F76: 1200х200х300 | G76: =CEILING('Loft (2)'!G76*Титульный!$AY$1,Титульный!$AY$3) -> 1806
A77: Панель настенная полка ЛДСП 22 500х1680 | F77: 1680х200х500 | G77: =CEILING('Loft (2)'!G77*Титульный!$AY$1,Титульный!$AY$3) -> 3384
A78: Вешалка
A79: Вешалка (420) 2040х560 Л/Пр | F79: 420х560х2040 | G79: =CEILING('Loft (2)'!G79*Титульный!$AY$1,Титульный!$AY$3) -> 10978

Sheet Loft (2) (hidden)
A1: Loft, краткое описание
A2: Набор мебели для гостиной состоит из модулей с вкладным фасадом, т.е. фасад утоплен во внутрь каркаса.
A3: Каркас тумб изготавливается из ЛДСП толщиной 22 мм, а каркас навесных шкафов изготавливается из ЛДСП толщиной 16 мм,
A4: а нижний и верхний горизонты изготавливаются из ЛДСП толщиной 22 мм.
A6: Базовая комплектация
A7: 1. Каркас модулей изготовлен из ЛДСП оклеенной кромкой ПВХ 0,4 мм. Задняя стенка модулей из облагороженной ХДФ;
A8: 2. Фасад UV-лак, толщиной 16 мм. в кромке ABS в цвет фасада;
A9: 3. Петли Hettich Sensys плавного закрывания;
A10: 4. Полки ЛДСП;
A11: 5. Направляющие Blum TUNDEM для деревянных ящиков, без доводчика и частичного выдвижения;
A12: 8. Ручка RS-47, белый + металл;
A13: 9. Регулируемые ножки PI04 на тумбах;
A14: 10. Стекло тонированное в шкафах-витринах.
A15: Фасад UV-лак
A17: Варианты цветового решения фасадов:
A21: Белый скандинавский | C21: Черный | E21: Винный красный | G21: Дуб Тортона | I21: Оранжевый
A25: Бирюза | C25: Крем | E25: Лайм
A27: Ручка
A31: RS-47, хром+белый
A32: Цветовое исполнение каркасов
A33: Дуб шамони темный, Дуб шамони светлый, Выбеленное дерево, Каппучино
A35: Состав комплекта
A52: 1. Шкаф (320) навесной 1246 х 420 мм; | F52: 3. Шкаф (320) барный 466х1260 мм.;
A53: 2. Тумба (420) 1 ящик 380х1260; | F53: 4. Полка ЛДСП 22 300х1260.
A56: Прайс-лист
A58: Наименование | E58: Эскиз | F58: Габариты, ШхГхВ мм. | G58: Цена, руб
I59: 1.1
A60: Шкаф (320) навесной 1246х420 | G60: 9405 | I60: =G60*$I$59 -> 10345.5
A61: Шкаф (320) навесной 1446х420 | G61: 10572 | I61: =G61*$I$59 -> 11629.2
A62: Шкаф (320) антресольный 466х840 | G62: 7137 | I62: 7850.7
A63: Шкаф (320) антресольный 466х1160 | G63: 9277 | I63: 10204.7
A64: Шкаф (320) барный 466х1260 | G64: 12785 | I64: 14063.5
A65: Шкаф (420) 1 дв. 2040х560 | F65: 560х420х2040 | G65: 16927 | I65: 18619.7
A66: Шкаф (420) 2 дв. 2040х840 | F66: 840х420х2040 | G66: 27066 | I66: 29772.6
A67: Тумбы
A68: Наименование | E68: Эскиз | F68: Габариты, ШхГхВ мм. | G68: Цена, руб | H68: Замена направляющих
H69: с доводчиком | I69: c Tip-on
A70: Тумба (420) 1 ящ. 380х1260 | F70: 720 | G70: 9699 | H70: =G70+J70 -> 12410 | I70: =G70+K70 -> 12732 | J70: 2711 | K70: 3033 | M70: =G70*$I$59 -> 10668.9 | N70: =H70*$I$59 -> 13651 | O70: 14005.2 | P70: 2982.1 | Q70: 3336.3
A71: Тумба (420) 2 ящ. 380х1260 | F71: =F70*2 -> 1440 | G71: 12785 | H71: =G71+J71 -> 18207 | I71: =G71+K71 -> 18851 | J71: =J70*2 -> 5422 | K71: =K70*2 -> 6066 | M71: =G71*$I$59 -> 14063.5 | N71: 20027.7 | O71: 20736.1 | P71: 5964.2 | Q71: 6672.6
A72: Тумба (420) ниша 1 ящ. 380х1260 | F72: 456 | G72: 9123 | H72: 11834 | I72: 12156 | J72: 2711 | K72: =K70 -> 3033 | M72: 10035.3 | N72: 13017.4 | O72: 13371.6 | P72: 2982.1 | Q72: 3336.3
A73: Тумба (420) для обуви 860х820 1ящ. | F73: 860х420х820 | G73: 11525 | M73: 12677.5
A74: Полки
A75: Панель настенная полка ЛДСП 22 300х1200 | G75: 1596.1 | M75: 1755.71
A76: Панель настенная полка ЛДСП 22 300х1260 | G76: 1805.1 | M76: 1985.61
A77: Панель настенная полка ЛДСП 22 500х1680 | G77: 3383.6 | M77: 3721.96
A78: Вешалка | M78: 0
A79: Вешалка (420) 2040х560 Л/Пр | F79: 420х560х2040 | G79: 10978 | M79: 12075.8

Sheet Александрия
A1: Александрия, краткое описание
A3: Базовая комплектация
A4: 1. Каркас модулей изготовлен из ЛДСП оклеенной кромкой ПВХ 0,4 мм. Задняя стенка модулей из облагороженной ХДФ;
A5: 2. Фасад из МДФ, покрытый пленкой ПВХ "Кремовый ясень" с золотой патиной;
A6: 3. Петли Hettich Sensys плавного закрывания;
A7: 4. | B7: Полки ЛДСП
A8: 5. Роликовые направляющие в выкатных ящиках тумб и шкафов;
A9: 8. Ручка - кнопка "Вензель латунь";
A10: 9. Регулируемые ножки PI04;
A11: 10. Стекло тонированное в шкафах-витринах.
A13: Фасад
A27: Состав комплекта
E29: 1. Шкаф (420) 1дв витрина 1дв глух 2040х560;
E30: 2. Комод (420) 2дв 4ящ 860х1200;
E31: 3. Багетный блок (420) 560 мм.
A46: Багетный блок
A47: Багетный блок состоит:
D48: 1. Багет 16, запиленный под необходимым углом;
D49: 2. Панель - козырек "Классика"
A53: Все составляющие комплекты имеют необходимые сверловки для облегчения процесса сборки и правильной
A54: стыковки багета.
A56: Доступные к заказу модули
B58: Наименование | C58: Эскиз | D58: Габариты, ШхГхВ мм. | E58: Цена, руб
B60: Шкаф (420) 1дв витрина зеркало 1дв глух 2040х420 | D60: 420х440х2040 | E60: =CEILING('Александрия (2)'!E60*Титульный!$AY$1,Титульный!$AY$3) -> 19196
B61: Шкаф (420) 1дв витрина зеркало 1дв глух 2040х560 | D61: 560х440х2040 | E61: =CEILING('Александрия (2)'!E61*Титульный!$AY$1,Титульный!$AY$3) -> 23291
B62: Стеллаж (420) Торцевой 2040х300 Радиусный | D62: 300х420х2040 | E62: =CEILING('Александрия (2)'!E62*Титульный!$AY$1,Титульный!$AY$3) -> 4487
B63: Тумба TV (560) 2ящ 460х1260 | D63: 1260х560х460 | E63: =CEILING('Александрия (2)'!E63*Титульный!$AY$1,Титульный!$AY$3) -> 24262
B64: Тумба TV (560) 2ящ 460х840 | D64: 840х560х460 | E64: =CEILING('Александрия (2)'!E64*Титульный!$AY$1,Титульный!$AY$3) -> 19226
B65: Тумба TV (560) 4ящ 460х1680 | D65: 1680х560х460 | E65: =CEILING('Александрия (2)'!E65*Титульный!$AY$1,Титульный!$AY$3) -> 37438
B66: Тумба TV (560) 4ящ 460х2520 | D66: 2520х560х460 | E66: =CEILING('Александрия (2)'!E66*Титульный!$AY$1,Титульный!$AY$3) -> 48375
B67: Тумба TV (560) Ниша 1 ящ 460х1260 | D67: 1260х560х460 | E67: =CEILING('Александрия (2)'!E67*Титульный!$AY$1,Титульный!$AY$3) -> 21621
B68: Тумба TV (560) Ниша 1ящ 460х840 | D68: 840х560х460 | E68: =CEILING('Александрия (2)'!E68*Титульный!$AY$1,Титульный!$AY$3) -> 15263
B69: Тумба TV (560) Ниша 3ящ 460х1680 | D69: 1680х560х460 | E69: =CEILING('Александрия (2)'!E69*Титульный!$AY$1,Титульный!$AY$3) -> 34198
B70: Тумба TV (560) Ниша 3ящ 460х2520 | D70: 2520х560х460 | E70: =CEILING('Александрия (2)'!E70*Титульный!$AY$1,Титульный!$AY$3) -> 45582
B71: Комод (420) 2дв 4ящ 860х1060 | D71: 1060х440х860 | E71: =CEILING('Александрия (2)'!E71*Титульный!$AY$1,Титульный!$AY$3) -> 22341
B72: Комод (420) 2дв 4ящ 860х1200 | D72: 1200х440х860 | E72: =CEILING('Александрия (2)'!E72*Титульный!$AY$1,Титульный!$AY$3) -> 24269
A74: Дополнительная комплектация
B76: Наименование | C76: Эскиз | D76: Габариты, ШхГхВ мм. | E76: Цена, руб
B78: Багетный блок (420) 420 | E78: =CEILING('Александрия (2)'!E78*Титульный!$AY$1,Титульный!$AY$3) -> 2500
B79: Багетный блок (420) 560 | E79: =CEILING('Александрия (2)'!E79*Титульный!$AY$1,Титульный!$AY$3) -> 3100

Sheet Александрия (2) (hidden)
A1: Александрия, краткое описание
A3: Базовая комплектация
A4: 1. Каркас модулей изготовлен из ЛДСП оклеенной кромкой ПВХ 0,4 мм. Задняя стенка модулей из облагороженной ХДФ;
A5: 2. Фасад из МДФ, покрытый пленкой ПВХ "Кремовый ясень" с золотой патиной;
A6: 3. Петли Hettich Sensys плавного закрывания;
A7: 4. | B7: Полки ЛДСП
A8: 5. Роликовые направляющие в выкатных ящиках тумб и шкафов;
A9: 8. Ручка - кнопка "Вензель латунь";
A10: 9. Регулируемые ножки PI04;
A11: 10. Стекло тонированное в шкафах-витринах.
A13: Фасад
A27: Состав комплекта
E29: 1. Шкаф (420) 1дв витрина 1дв глух 2040х560;
E30: 2. Комод (420) 2дв 4ящ 860х1200;
E31: 3. Багетный блок (420) 560 мм.
A46: Багетный блок
A47: Багетный блок состоит:
D48: 1. Багет 16, запиленный под необходимым углом;
D49: 2. Панель - козырек "Классика"
A53: Все составляющие комплекты имеют необходимые сверловки для облегчения процесса сборки и правильной
A54: стыковки багета.
A56: Доступные к заказу модули
H57: 1.1
B58: Наименование | C58: Эскиз | D58: Габариты, ШхГхВ мм. | E58: Цена, руб
